Workbook

Sheet Assumptions
A1: Field | B1: Value | C1: Period | D1: Note | E1: Source
A2: Ambassador Acquisition
A3: Monthly Ambassador Conversions | B3: 5000 | C3: Monthly | D3: Combination of influencers, high school, and college students
A4: % growth in number of conversions per month | B4: 10.0% | C4: Monthly | D4: More onboards over time
A5: Depreciation rate of conversions growth rate | B5: =-2.5% -> -2.5% | C5: Monthly | D5: Less conversions per onboarded ambassador over time
A6: Average cost per ambassador download | B6: ='Ambassador Payout'!A8+'User Leveling Up Payout'!I2 -> $2.22 | C6: N/A | D6: Expected pay based on retention (see ambassador payout sheet for details) | E6: https://www.businessofapps.com/marketplace/app-marketing/research/app-marketing-cost/CNEitLfARHdGGL1nb0fXOGzsKCMt9w/
A8: Referral Acquisition
A9: Invites per Active User (first month) | B9: 10 | C9: Monthly | D9: Refer to referral rate and payout sheet for details | E9: https://www.invitereferrals.com/blog/referral-program-statistics
A10: Rate of diminishing invites per user per month | B10: 20% | C10: Monthly | D10: Friend circles are only so big... users run out of people to invite | E10: https://www.invitereferrals.com/blog/referral-program-statistics
A11: Click through and install rate off invite | B11: 5% | C11: N/A | D11: Platform's gamification and unique commission sharing structure should generate higher convertion rates | E11: https://www.invitereferrals.com/blog/referral-program-statistics
A12: Average cost per referral | B12: ='Referral Rate and Payout '!D16+'User Leveling Up Payout'!G2 -> $1.24 | C12: N/A | D12: Expected pay based on retention --> refer to referral rate and payout sheet for details | E12: N/A
A13: Implied lifetime K-factor per user | B13: ='Cohort Analysis'!AN54 -> 0.79 | C13: N/A | D13: (includes referrals , over 36 months) --> refer to Cohort Analysis sheet for details | E13: N/A
A15: Other Acquisition
A16: Organic User download % | B16: 20.0% | C16: Monthly | D16: Number of users that sign up without a referral code | E16: https://www.digitalturbine.com/blog/mobile-marketing/paid-media-affects-organic-lifts-in-app-downloads/
A17: Cost of organic user Download | B17: ='User Leveling Up Payout'!H2 -> $0.54
A19: Retention Rates
A20: Users via Ambassador 1st month | B20: 40% | C20: Monthly | D20: Platform's gamification should generate higher retention rates | E20: https://www.apptentive.com/blog/2021/03/23/2021-app-retention-benchmarks/
A21: churn rate | B21: 15% | C21: Monthly | E21: https://www.apptentive.com/blog/2021/03/23/2021-app-retention-benchmarks/
A22: depreciation rate of churn rate | B22: -25% | C22: Monthly | E22: https://www.apptentive.com/blog/2021/03/23/2021-app-retention-benchmarks/
A23: Organic user 1 month | B23: =AVERAGE(B20,B26) -> 47% | C23: Monthly | D23: Average of marketed and referral
A24: churn rate | B24: =AVERAGE(B21,B27) -> 15% | C24: Monthly
A25: depreciation rate of churn rate | B25: =AVERAGE(B22,B28) -> -25% | C25: Monthly
A26: Referred user 1 month | B26: =B20*1.37 -> 54.8% | C26: Monthly | D26: 37% increased retention rates for referred users vs users without friend incentive | E26: https://www.annexcloud.com/blog/42-referral-marketing-statistics-that-will-make-you-want-to-start-a-raf-program-tomorrow/
A27: churn rate | B27: =B21 -> 15% | C27: Monthly | E27: https://www.annexcloud.com/blog/42-referral-marketing-statistics-that-will-make-you-want-to-start-a-raf-program-tomorrow/
A28: depreciation rate of churn rate | B28: =B22 -> -25% | C28: Monthly | E28: https://www.annexcloud.com/blog/42-referral-marketing-statistics-that-will-make-you-want-to-start-a-raf-program-tomorrow/
A30: Pre-Launch Costs
A31: Secondary SOW (round of CRs) | B31: $10,000 | C31: N/A | D31: Self-funded
A32: Award Pool Promotion | B32: $1,200 | C32: N/A | D32: Self-funded
A33: Kiwitech - App Development Innitial SOW | B33: $34,000 | C33: N/A | D33: Self-funded
A34: Miscellaneous (ad, art, website dev.) | B34: $2,500 | C34: N/A | D34: Self-funded
A36: Operational Costs
A37: Instant prize winnings (gift cards) / user / month | B37: $0.20 | C37: Monthly | D37: Continuously monitored and adjusted by Admin
A38: Growth rate of gift card winnings | B38: 3.00% | C38: Monthly | D38: Continuously monitored and adjusted by Admin
A39: Raffle winnings per month per active user | B39: =0.7 -> $0.70 | C39: Monthly | D39: Continuously monitored and adjusted by Admin
A40: Growth % of raffle winnings per month | B40: -1.00% | C40: Monthly | D40: Continuously monitored and adjusted by Admin
A41: Fanful store (value of goods sold) | B41: =-'Loyalty Marketplace Assumptions'!D8 -> $0.00 | C41: Monthly | D41: No physical goods offered at launch (nothing of monetary value being sold)
A42: Growth % of Loyalty winnings value | B42: 0.00% | C42: Monthly | D42: No physical goods offered at launch (nothing of monetary value being sold)
A43: SportsRadar Sports Data | B43: $4,000 | C43: Monthly | D43: Sports Radar Partnership Deal
A44: Growth of SportsRadar expenses | B44: 50.00% | C44: Bi-Annually | D44: Sports Radar Partnership Deal
A45: AWS Server Expenses per user | B45: $0.01 | C45: Monthly | D45: AWS rates
A46: Updates/Maintenance | B46: $1,500 | C46: Monthly | D46: Adjustable depending on needs
A47: Increase in engineering and dev work | B47: 5% | C47: Monthly | D47: Adjustable depending on needs
A49: Fixed Costs
A50: Human Resources | B50: Variable | D50: Refer to HR sheet
A51: Miscellaneous (ad, art, ambassador, website dev.) | B51: $1,500 | C51: Monthly | D51: Money to spend on small expenses and service subscriptions
A52: Growth rate in miscellaneous | B52: 2.5% | C52: Monthly | D52: Slow growth in these 'random small expenses'
A53: Ambassador Software
A55: Revenue
A56: Advertising rev per user per month | B56: $0.40 | C56: Monthly | D56: Starts month 3 -- conservative target provided by Sports Radar | E56: SportsRadar - Average for sports apps is $2-4/month
A57: Growth % of advertising | B57: 5.0% | C57: Monthly | D57: Goal is to ultimately reach the $2-4 dollars per month mark --> slowly get there... (Instagram, FB reach these numbers) | E57: https://stockdividendscreener.com/information-technology/comparison-of-average-revenue-per-user-for-social-media-companies/
A58: Sportsbook partnership programs | B58: $0.30 | C58: Monthly | D58: Starts month 1 -- conservative target provided by Sports Radar | E58: SportsRadar
A59: Growth % of Sportsbook partnerships | B59: 0.1% | C59: Monthly | D59: Number grows over time due to rev share model + more live betting widgets
A60: Loyalty Marketplace (cash-back) | B60: ='Loyalty Marketplace Assumptions'!C8 -> $0.40 | C60: Monthly | D60: Cash-back and affiliate offers (via Loyalize) being sold in marketplace
A61: Growth % loyalty marketplace rev | B61: 1.5% | C61: Monthly | D61: Growth in size of cash-back offers + introduction of a more targeted cash-back strategy
A62: In-app purchase revenue | B62: 0 | C62: Monthly | D62: Not applicable until we hit a certain user threshold
A63: Growth of in-app purchase revenue | B63: 5% | C63: Monthly | D63: Not applicable until we hit a certain user threshold

Sheet Low-Med-High Rev Projections
B1: Low | C1: med | D1: hi | E1: 3-Year Projections | H1: Low | I1: Medium | J1: High
A2: ARPU | B2: 6 | C2: 18 | D2: 36 | G2: Users | H2: 100,000 | I2: 500,000 | J2: 1,500,000
F3: ARPU
E4: Low | F4: $12 | H4: =F4*H2 -> $1,200,000 | I4: =F4*I2 -> $6,000,000 | J4: =F4*J2 -> $18,000,000
E5: Med | F5: $24 | H5: =F5*H2 -> $2,400,000 | I5: =F5*I2 -> $12,000,000 | J5: =J2*F5 -> $36,000,000
E6: High | F6: $48 | H6: =H2*F6 -> $4,800,000 | I6: =I2*F6 -> $24,000,000 | J6: =J2*F6 -> $72,000,000

Sheet 3 Year Pro Forma
B1: Reference / notes | C1: 0 | D1: 1 | E1: 2 | F1: 3 | G1: 4 | H1: 5 | I1: 6 | J1: 7 | K1: 8 | L1: 9 | M1: 10 | N1: 11 | O1: 12 | P1: 13 | Q1: 14 | R1: 15 | S1: 16 | T1: 17 | U1: 18 | V1: 19 | W1: 20 | X1: 21 | Y1: 22 | Z1: 23 | AA1: 24 | AB1: 25 | AC1: 26 | AD1: 27 | AE1: 28 | AF1: 29 | AG1: 30 | AH1: 31 | AI1: 32 | AJ1: 33 | AK1: 34 | AL1: 35 | AM1: 36
A2: Month # | B2: Reference / Notes | C2: 1 | D2: 2 | E2: 3 | F2: 4 | G2: 5 | H2: 6 | I2: 7 | J2: 8 | K2: 9 | L2: 10 | M2: 11 | N2: 12 | O2: 13 | P2: 14 | Q2: 15 | R2: 16 | S2: 17 | T2: 18 | U2: 19 | V2: 20 | W2: 21 | X2: 22 | Y2: 23 | Z2: 24 | AA2: 25 | AB2: 26 | AC2: 27 | AD2: 28 | AE2: 29 | AF2: 30 | AG2: 31 | AH2: 32 | AI2: 33 | AJ2: 34 | AK2: 35 | AL2: 36 | AM2: 37
A3: Month Name | C3: January | D3: February | E3: March | F3: April | G3: May | H3: June | I3: July | J3: August | K3: September | L3: October | M3: November | N3: December | O3: January | P3: February | Q3: March | R3: April | S3: May | T3: June | U3: July | V3: August | W3: September | X3: October | Y3: November | Z3: December | AA3: January | AB3: February | AC3: March | AD3: April | AE3: May | AF3: June | AG3: July | AH3: August | AI3: September | AJ3: October | AK3: November | AL3: December | AM3: January
A4: User Growth
A5: Avg Active Users | B5: Cohort Analysis | C5: =D5/2 -> 1,798 | D5: ='Cohort Analysis'!C6 -> 3,597 | E5: ='Cohort Analysis'!D6 -> 7,449 | F5: ='Cohort Analysis'!E6 -> 11,560 | G5: ='Cohort Analysis'!F6 -> 15,950 | H5: ='Cohort Analysis'!G6 -> 20,647 | I5: ='Cohort Analysis'!H6 -> 25,681 | J5: ='Cohort Analysis'!I6 -> 31,084 | K5: ='Cohort Analysis'!J6 -> 36,888 | L5: ='Cohort Analysis'!K6 -> 43,124 | M5: ='Cohort Analysis'!L6 -> 49,824 | N5: ='Cohort Analysis'!M6 -> 57,018 | O5: ='Cohort Analysis'!N6 -> 64,737 | P5: ='Cohort Analysis'!O6 -> 73,010 | Q5: ='Cohort Analysis'!P6 -> 81,868 | R5: ='Cohort Analysis'!Q6 -> 91,340 | S5: ='Cohort Analysis'!R6 -> 101,455 | T5: ='Cohort Analysis'!S6 -> 112,242 | U5: ='Cohort Analysis'!T6 -> 123,730 | V5: ='Cohort Analysis'!U6 -> 135,948 | W5: ='Cohort Analysis'!V6 -> 148,924 | X5: ='Cohort Analysis'!W6 -> 162,685 | Y5: ='Cohort Analysis'!X6 -> 177,261 | Z5: ='Cohort Analysis'!Y6 -> 192,677 | AA5: ='Cohort Analysis'!Z6 -> 208,961 | AB5: ='Cohort Analysis'!AA6 -> 226,140 | AC5: ='Cohort Analysis'!AB6 -> 244,239 | AD5: ='Cohort Analysis'!AC6 -> 263,285 | AE5: ='Cohort Analysis'!AD6 -> 283,301 | AF5: ='Cohort Analysis'!AE6 -> 304,313 | AG5: ='Cohort Analysis'!AF6 -> 326,344 | AH5: ='Cohort Analysis'!AG6 -> 349,417 | AI5: ='Cohort Analysis'!AH6 -> 373,555 | AJ5: ='Cohort Analysis'!AI6 -> 398,778 | AK5: ='Cohort Analysis'!AJ6 -> 425,109 | AL5: ='Cohort Analysis'!AK6 -> 452,566 | AM5: ='Cohort Analysis'!AL6 -> 481,170
A6: Avg Cost per download | B6: Cohort Analysis | C6: ='Cohort Analysis'!C10 -> $1.82 | D6: ='Cohort Analysis'!C10 -> $1.82 | E6: ='Cohort Analysis'!D10 -> $1.64 | F6: ='Cohort Analysis'!E10 -> $1.60 | G6: ='Cohort Analysis'!F10 -> $1.58 | H6: ='Cohort Analysis'!G10 -> $1.57 | I6: ='Cohort Analysis'!H10 -> $1.56 | J6: ='Cohort Analysis'!I10 -> $1.55 | K6: ='Cohort Analysis'!J10 -> $1.55 | L6: ='Cohort Analysis'!K10 -> $1.54 | M6: ='Cohort Analysis'!L10 -> $1.54 | N6: ='Cohort Analysis'!M10 -> $1.54 | O6: ='Cohort Analysis'!N10 -> $1.54 | P6: ='Cohort Analysis'!O10 -> $1.53 | Q6: ='Cohort Analysis'!P10 -> $1.53 | R6: ='Cohort Analysis'!Q10 -> $1.53 | S6: ='Cohort Analysis'!R10 -> $1.53 | T6: ='Cohort Analysis'!S10 -> $1.53 | U6: ='Cohort Analysis'!T10 -> $1.53 | V6: ='Cohort Analysis'!U10 -> $1.53 | W6: ='Cohort Analysis'!V10 -> $1.53 | X6: ='Cohort Analysis'!W10 -> $1.53 | Y6: ='Cohort Analysis'!X10 -> $1.53 | Z6: ='Cohort Analysis'!Y10 -> $1.52 | AA6: ='Cohort Analysis'!Z10 -> $1.52 | AB6: ='Cohort Analysis'!AA10 -> $1.52 | AC6: ='Cohort Analysis'!AB10 -> $1.52 | AD6: ='Cohort Analysis'!AC10 -> $1.52 | AE6: ='Cohort Analysis'!AD10 -> $1.52 | AF6: ='Cohort Analysis'!AE10 -> $1.52 | AG6: ='Cohort Analysis'!AF10 -> $1.52 | AH6: ='Cohort Analysis'!AG10 -> $1.52 | AI6: ='Cohort Analysis'!AH10 -> $1.52 | AJ6: ='Cohort Analysis'!AI10 -> $1.52 | AK6: ='Cohort Analysis'!AJ10 -> $1.52 | AL6: ='Cohort Analysis'!AK10 -> $1.52 | AM6: ='Cohort Analysis'!AL10 -> $1.52
A7: % growth | B7: Cohort Analysis | D7: =D5/C5 -> 200% | E7: ='Cohort Analysis'!D8 -> 107% | F7: ='Cohort Analysis'!E8 -> 55% | G7: ='Cohort Analysis'!F8 -> 38% | H7: ='Cohort Analysis'!G8 -> 29% | I7: ='Cohort Analysis'!H8 -> 24% | J7: ='Cohort Analysis'!I8 -> 21% | K7: ='Cohort Analysis'!J8 -> 19% | L7: ='Cohort Analysis'!K8 -> 17% | M7: ='Cohort Analysis'!L8 -> 16% | N7: ='Cohort Analysis'!M8 -> 14% | O7: ='Cohort Analysis'!N8 -> 14% | P7: ='Cohort Analysis'!O8 -> 13% | Q7: ='Cohort Analysis'!P8 -> 12% | R7: ='Cohort Analysis'!Q8 -> 12% | S7: ='Cohort Analysis'!R8 -> 11% | T7: ='Cohort Analysis'!S8 -> 11% | U7: ='Cohort Analysis'!T8 -> 10% | V7: ='Cohort Analysis'!U8 -> 10% | W7: ='Cohort Analysis'!V8 -> 10% | X7: ='Cohort Analysis'!W8 -> 9% | Y7: ='Cohort Analysis'!X8 -> 9% | Z7: ='Cohort Analysis'!Y8 -> 9% | AA7: ='Cohort Analysis'!Z8 -> 8% | AB7: ='Cohort Analysis'!AA8 -> 8% | AC7: ='Cohort Analysis'!AB8 -> 8% | AD7: ='Cohort Analysis'!AC8 -> 8% | AE7: ='Cohort Analysis'!AD8 -> 8% | AF7: ='Cohort Analysis'!AE8 -> 7% | AG7: ='Cohort Analysis'!AF8 -> 7% | AH7: ='Cohort Analysis'!AG8 -> 7% | AI7: ='Cohort Analysis'!AH8 -> 7% | AJ7: ='Cohort Analysis'!AI8 -> 7% | AK7: ='Cohort Analysis'!AJ8 -> 7% | AL7: ='Cohort Analysis'!AK8 -> 6% | AM7: ='Cohort Analysis'!AL8 -> 6%
A8: User Revenue
A9: Ad rev per user | B9: Assumptions | C9: 0 | D9: 0 | E9: =Assumptions!$B$56*(1+Assumptions!$B$57)^'3 Year Pro Forma'!C1 -> $0.40 | F9: =Assumptions!$B$56*(1+Assumptions!$B$57)^'3 Year Pro Forma'!D1 -> $0.42 | G9: =Assumptions!$B$56*(1+Assumptions!$B$57)^'3 Year Pro Forma'!E1 -> $0.44 | H9: =Assumptions!$B$56*(1+Assumptions!$B$57)^'3 Year Pro Forma'!F1 -> $0.46 | I9: =Assumptions!$B$56*(1+Assumptions!$B$57)^'3 Year Pro Forma'!G1 -> $0.49 | J9: =Assumptions!$B$56*(1+Assumptions!$B$57)^'3 Year Pro Forma'!H1 -> $0.51 | K9: =Assumptions!$B$56*(1+Assumptions!$B$57)^'3 Year Pro Forma'!I1 -> $0.54 | L9: =Assumptions!$B$56*(1+Assumptions!$B$57)^'3 Year Pro Forma'!J1 -> $0.56 | M9: =Assumptions!$B$56*(1+Assumptions!$B$57)^'3 Year Pro Forma'!K1 -> $0.59 | N9: =Assumptions!$B$56*(1+Assumptions!$B$57)^'3 Year Pro Forma'!L1 -> $0.62 | O9: =Assumptions!$B$56*(1+Assumptions!$B$57)^'3 Year Pro Forma'!M1 -> $0.65 | P9: =Assumptions!$B$56*(1+Assumptions!$B$57)^'3 Year Pro Forma'!N1 -> $0.68 | Q9: =Assumptions!$B$56*(1+Assumptions!$B$57)^'3 Year Pro Forma'!O1 -> $0.72 | R9: =Assumptions!$B$56*(1+Assumptions!$B$57)^'3 Year Pro Forma'!P1 -> $0.75 | S9: =Assumptions!$B$56*(1+Assumptions!$B$57)^'3 Year Pro Forma'!Q1 -> $0.79 | T9: =Assumptions!$B$56*(1+Assumptions!$B$57)^'3 Year Pro Forma'!R1 -> $0.83 | U9: =Assumptions!$B$56*(1+Assumptions!$B$57)^'3 Year Pro Forma'!S1 -> $0.87 | V9: =Assumptions!$B$56*(1+Assumptions!$B$57)^'3 Year Pro Forma'!T1 -> $0.92 | W9: =Assumptions!$B$56*(1+Assumptions!$B$57)^'3 Year Pro Forma'!U1 -> $0.96 | X9: =Assumptions!$B$56*(1+Assumptions!$B$57)^'3 Year Pro Forma'!V1 -> $1.01 | Y9: =Assumptions!$B$56*(1+Assumptions!$B$57)^'3 Year Pro Forma'!W1 -> $1.06 | Z9: =Assumptions!$B$56*(1+Assumptions!$B$57)^'3 Year Pro Forma'!X1 -> $1.11 | AA9: =Assumptions!$B$56*(1+Assumptions!$B$57)^'3 Year Pro Forma'!Y1 -> $1.17 | AB9: =Assumptions!$B$56*(1+Assumptions!$B$57)^'3 Year Pro Forma'!Z1 -> $1.23 | AC9: =Assumptions!$B$56*(1+Assumptions!$B$57)^'3 Year Pro Forma'!AA1 -> $1.29 | AD9: =Assumptions!$B$56*(1+Assumptions!$B$57)^'3 Year Pro Forma'!AB1 -> $1.35 | AE9: =Assumptions!$B$56*(1+Assumptions!$B$57)^'3 Year Pro Forma'!AC1 -> $1.42 | AF9: =Assumptions!$B$56*(1+Assumptions!$B$57)^'3 Year Pro Forma'!AD1 -> $1.49 | AG9: =Assumptions!$B$56*(1+Assumptions!$B$57)^'3 Year Pro Forma'!AE1 -> $1.57 | AH9: =Assumptions!$B$56*(1+Assumptions!$B$57)^'3 Year Pro Forma'!AF1 -> $1.65 | AI9: =Assumptions!$B$56*(1+Assumptions!$B$57)^'3 Year Pro Forma'!AG1 -> $1.73 | AJ9: =Assumptions!$B$56*(1+Assumptions!$B$57)^'3 Year Pro Forma'!AH1 -> $1.82 | AK9: =Assumptions!$B$56*(1+Assumptions!$B$57)^'3 Year Pro Forma'!AI1 -> $1.91 | AL9: =Assumptions!$B$56*(1+Assumptions!$B$57)^'3 Year Pro Forma'!AJ1 -> $2.00 | AM9: =Assumptions!$B$56*(1+Assumptions!$B$57)^'3 Year Pro Forma'!AK1 -> $2.10
A10: Sportsbook rev per user | B10: Assumptions | C10: =Assumptions!$B$58*(1+Assumptions!$B$59)^'3 Year Pro Forma'!C1 -> $0.30 | D10: =Assumptions!$B$58*(1+Assumptions!$B$59)^'3 Year Pro Forma'!D1 -> $0.30 | E10: =Assumptions!$B$58*(1+Assumptions!$B$59)^'3 Year Pro Forma'!E1 -> $0.30 | F10: =Assumptions!$B$58*(1+Assumptions!$B$59)^'3 Year Pro Forma'!F1 -> $0.30 | G10: =Assumptions!$B$58*(1+Assumptions!$B$59)^'3 Year Pro Forma'!G1 -> $0.30 | H10: =Assumptions!$B$58*(1+Assumptions!$B$59)^'3 Year Pro Forma'!H1 -> $0.30 | I10: =Assumptions!$B$58*(1+Assumptions!$B$59)^'3 Year Pro Forma'!I1 -> $0.30 | J10: =Assumptions!$B$58*(1+Assumptions!$B$59)^'3 Year Pro Forma'!J1 -> $0.30 | K10: =Assumptions!$B$58*(1+Assumptions!$B$59)^'3 Year Pro Forma'!K1 -> $0.30 | L10: =Assumptions!$B$58*(1+Assumptions!$B$59)^'3 Year Pro Forma'!L1 -> $0.30 | M10: =Assumptions!$B$58*(1+Assumptions!$B$59)^'3 Year Pro Forma'!M1 -> $0.30 | N10: =Assumptions!$B$58*(1+Assumptions!$B$59)^'3 Year Pro Forma'!N1 -> $0.30 | O10: =Assumptions!$B$58*(1+Assumptions!$B$59)^'3 Year Pro Forma'!O1 -> $0.30 | P10: =Assumptions!$B$58*(1+Assumptions!$B$59)^'3 Year Pro Forma'!P1 -> $0.30 | Q10: =Assumptions!$B$58*(1+Assumptions!$B$59)^'3 Year Pro Forma'!Q1 -> $0.30 | R10: =Assumptions!$B$58*(1+Assumptions!$B$59)^'3 Year Pro Forma'!R1 -> $0.30 | S10: =Assumptions!$B$58*(1+Assumptions!$B$59)^'3 Year Pro Forma'!S1 -> $0.30 | T10: =Assumptions!$B$58*(1+Assumptions!$B$59)^'3 Year Pro Forma'!T1 -> $0.31 | U10: =Assumptions!$B$58*(1+Assumptions!$B$59)^'3 Year Pro Forma'!U1 -> $0.31 | V10: =Assumptions!$B$58*(1+Assumptions!$B$59)^'3 Year Pro Forma'!V1 -> $0.31 | W10: =Assumptions!$B$58*(1+Assumptions!$B$59)^'3 Year Pro Forma'!W1 -> $0.31 | X10: =Assumptions!$B$58*(1+Assumptions!$B$59)^'3 Year Pro Forma'!X1 -> $0.31 | Y10: =Assumptions!$B$58*(1+Assumptions!$B$59)^'3 Year Pro Forma'!Y1 -> $0.31 | Z10: =Assumptions!$B$58*(1+Assumptions!$B$59)^'3 Year Pro Forma'!Z1 -> $0.31 | AA10: =Assumptions!$B$58*(1+Assumptions!$B$59)^'3 Year Pro Forma'!AA1 -> $0.31 | AB10: =Assumptions!$B$58*(1+Assumptions!$B$59)^'3 Year Pro Forma'!AB1 -> $0.31 | AC10: =Assumptions!$B$58*(1+Assumptions!$B$59)^'3 Year Pro Forma'!AC1 -> $0.31 | AD10: =Assumptions!$B$58*(1+Assumptions!$B$59)^'3 Year Pro Forma'!AD1 -> $0.31 | AE10: =Assumptions!$B$58*(1+Assumptions!$B$59)^'3 Year Pro Forma'!AE1 -> $0.31 | AF10: =Assumptions!$B$58*(1+Assumptions!$B$59)^'3 Year Pro Forma'!AF1 -> $0.31 | AG10: =Assumptions!$B$58*(1+Assumptions!$B$59)^'3 Year Pro Forma'!AG1 -> $0.31 | AH10: =Assumptions!$B$58*(1+Assumptions!$B$59)^'3 Year Pro Forma'!AH1 -> $0.31 | AI10: =Assumptions!$B$58*(1+Assumptions!$B$59)^'3 Year Pro Forma'!AI1 -> $0.31 | AJ10: =Assumptions!$B$58*(1+Assumptions!$B$59)^'3 Year Pro Forma'!AJ1 -> $0.31 | AK10: =Assumptions!$B$58*(1+Assumptions!$B$59)^'3 Year Pro Forma'!AK1 -> $0.31 | AL10: =Assumptions!$B$58*(1+Assumptions!$B$59)^'3 Year Pro Forma'!AL1 -> $0.31 | AM10: =Assumptions!$B$58*(1+Assumptions!$B$59)^'3 Year Pro Forma'!AM1 -> $0.31
A11: Marketplace rev per user | B11: Marketplace Rev | C11: =Assumptions!$B$60*(1+Assumptions!$B$61)^'3 Year Pro Forma'!C1 -> $0.40 | D11: =Assumptions!$B$60*(1+Assumptions!$B$61)^'3 Year Pro Forma'!D1 -> $0.41 | E11: =Assumptions!$B$60*(1+Assumptions!$B$61)^'3 Year Pro Forma'!E1 -> $0.41 | F11: =Assumptions!$B$60*(1+Assumptions!$B$61)^'3 Year Pro Forma'!F1 -> $0.42 | G11: =Assumptions!$B$60*(1+Assumptions!$B$61)^'3 Year Pro Forma'!G1 -> $0.42 | H11: =Assumptions!$B$60*(1+Assumptions!$B$61)^'3 Year Pro Forma'!H1 -> $0.43 | I11: =Assumptions!$B$60*(1+Assumptions!$B$61)^'3 Year Pro Forma'!I1 -> $0.44 | J11: =Assumptions!$B$60*(1+Assumptions!$B$61)^'3 Year Pro Forma'!J1 -> $0.44 | K11: =Assumptions!$B$60*(1+Assumptions!$B$61)^'3 Year Pro Forma'!K1 -> $0.45 | L11: =Assumptions!$B$60*(1+Assumptions!$B$61)^'3 Year Pro Forma'!L1 -> $0.46 | M11: =Assumptions!$B$60*(1+Assumptions!$B$61)^'3 Year Pro Forma'!M1 -> $0.46 | N11: =Assumptions!$B$60*(1+Assumptions!$B$61)^'3 Year Pro Forma'!N1 -> $0.47 | O11: =Assumptions!$B$60*(1+Assumptions!$B$61)^'3 Year Pro Forma'!O1 -> $0.48 | P11: =Assumptions!$B$60*(1+Assumptions!$B$61)^'3 Year Pro Forma'!P1 -> $0.49 | Q11: =Assumptions!$B$60*(1+Assumptions!$B$61)^'3 Year Pro Forma'!Q1 -> $0.49 | R11: =Assumptions!$B$60*(1+Assumptions!$B$61)^'3 Year Pro Forma'!R1 -> $0.50 | S11: =Assumptions!$B$60*(1+Assumptions!$B$61)^'3 Year Pro Forma'!S1 -> $0.51 | T11: =Assumptions!$B$60*(1+Assumptions!$B$61)^'3 Year Pro Forma'!T1 -> $0.52 | U11: =Assumptions!$B$60*(1+Assumptions!$B$61)^'3 Year Pro Forma'!U1 -> $0.52 | V11: =Assumptions!$B$60*(1+Assumptions!$B$61)^'3 Year Pro Forma'!V1 -> $0.53 | W11: =Assumptions!$B$60*(1+Assumptions!$B$61)^'3 Year Pro Forma'!W1 -> $0.54 | X11: =Assumptions!$B$60*(1+Assumptions!$B$61)^'3 Year Pro Forma'!X1 -> $0.55 | Y11: =Assumptions!$B$60*(1+Assumptions!$B$61)^'3 Year Pro Forma'!Y1 -> $0.56 | Z11: =Assumptions!$B$60*(1+Assumptions!$B$61)^'3 Year Pro Forma'!Z1 -> $0.56 | AA11: =Assumptions!$B$60*(1+Assumptions!$B$61)^'3 Year Pro Forma'!AA1 -> $0.57 | AB11: =Assumptions!$B$60*(1+Assumptions!$B$61)^'3 Year Pro Forma'!AB1 -> $0.58 | AC11: =Assumptions!$B$60*(1+Assumptions!$B$61)^'3 Year Pro Forma'!AC1 -> $0.59 | AD11: =Assumptions!$B$60*(1+Assumptions!$B$61)^'3 Year Pro Forma'!AD1 -> $0.60 | AE11: =Assumptions!$B$60*(1+Assumptions!$B$61)^'3 Year Pro Forma'!AE1 -> $0.61 | AF11: =Assumptions!$B$60*(1+Assumptions!$B$61)^'3 Year Pro Forma'!AF1 -> $0.62 | AG11: =Assumptions!$B$60*(1+Assumptions!$B$61)^'3 Year Pro Forma'!AG1 -> $0.63 | AH11: =Assumptions!$B$60*(1+Assumptions!$B$61)^'3 Year Pro Forma'!AH1 -> $0.63 | AI11: =Assumptions!$B$60*(1+Assumptions!$B$61)^'3 Year Pro Forma'!AI1 -> $0.64 | AJ11: =Assumptions!$B$60*(1+Assumptions!$B$61)^'3 Year Pro Forma'!AJ1 -> $0.65 | AK11: =Assumptions!$B$60*(1+Assumptions!$B$61)^'3 Year Pro Forma'!AK1 -> $0.66 | AL11: =Assumptions!$B$60*(1+Assumptions!$B$61)^'3 Year Pro Forma'!AL1 -> $0.67 | AM11: =Assumptions!$B$60*(1+Assumptions!$B$61)^'3 Year Pro Forma'!AM1 -> $0.68
A12: In-app purchase rev per user | C12: =Assumptions!$B$62*(1+Assumptions!$B$63)^'3 Year Pro Forma'!C1 -> 0 | D12: =Assumptions!$B$62*(1+Assumptions!$B$63)^'3 Year Pro Forma'!D1 -> 0 | E12: =Assumptions!$B$62*(1+Assumptions!$B$63)^'3 Year Pro Forma'!E1 -> 0 | F12: =Assumptions!$B$62*(1+Assumptions!$B$63)^'3 Year Pro Forma'!F1 -> 0 | G12: =Assumptions!$B$62*(1+Assumptions!$B$63)^'3 Year Pro Forma'!G1 -> 0 | H12: =Assumptions!$B$62*(1+Assumptions!$B$63)^'3 Year Pro Forma'!H1 -> 0 | I12: =Assumptions!$B$62*(1+Assumptions!$B$63)^'3 Year Pro Forma'!I1 -> 0 | J12: =Assumptions!$B$62*(1+Assumptions!$B$63)^'3 Year Pro Forma'!J1 -> 0 | K12: =Assumptions!$B$62*(1+Assumptions!$B$63)^'3 Year Pro Forma'!K1 -> 0 | L12: =Assumptions!$B$62*(1+Assumptions!$B$63)^'3 Year Pro Forma'!L1 -> 0 | M12: =Assumptions!$B$62*(1+Assumptions!$B$63)^'3 Year Pro Forma'!M1 -> 0 | N12: =Assumptions!$B$62*(1+Assumptions!$B$63)^'3 Year Pro Forma'!N1 -> 0 | O12: =Assumptions!$B$62*(1+Assumptions!$B$63)^'3 Year Pro Forma'!O1 -> 0 | P12: =Assumptions!$B$62*(1+Assumptions!$B$63)^'3 Year Pro Forma'!P1 -> 0 | Q12: =Assumptions!$B$62*(1+Assumptions!$B$63)^'3 Year Pro Forma'!Q1 -> 0 | R12: =Assumptions!$B$62*(1+Assumptions!$B$63)^'3 Year Pro Forma'!R1 -> 0 | S12: =Assumptions!$B$62*(1+Assumptions!$B$63)^'3 Year Pro Forma'!S1 -> 0 | T12: =Assumptions!$B$62*(1+Assumptions!$B$63)^'3 Year Pro Forma'!T1 -> 0 | U12: =Assumptions!$B$62*(1+Assumptions!$B$63)^'3 Year Pro Forma'!U1 -> 0 | V12: =Assumptions!$B$62*(1+Assumptions!$B$63)^'3 Year Pro Forma'!V1 -> 0 | W12: =Assumptions!$B$62*(1+Assumptions!$B$63)^'3 Year Pro Forma'!W1 -> 0 | X12: =Assumptions!$B$62*(1+Assumptions!$B$63)^'3 Year Pro Forma'!X1 -> 0 | Y12: =Assumptions!$B$62*(1+Assumptions!$B$63)^'3 Year Pro Forma'!Y1 -> 0 | Z12: =Assumptions!$B$62*(1+Assumptions!$B$63)^'3 Year Pro Forma'!Z1 -> 0 | AA12: =Assumptions!$B$62*(1+Assumptions!$B$63)^'3 Year Pro Forma'!AA1 -> 0 | AB12: =Assumptions!$B$62*(1+Assumptions!$B$63)^'3 Year Pro Forma'!AB1 -> 0 | AC12: =Assumptions!$B$62*(1+Assumptions!$B$63)^'3 Year Pro Forma'!AC1 -> 0 | AD12: =Assumptions!$B$62*(1+Assumptions!$B$63)^'3 Year Pro Forma'!AD1 -> 0 | AE12: =Assumptions!$B$62*(1+Assumptions!$B$63)^'3 Year Pro Forma'!AE1 -> 0 | AF12: =Assumptions!$B$62*(1+Assumptions!$B$63)^'3 Year Pro Forma'!AF1 -> 0 | AG12: =Assumptions!$B$62*(1+Assumptions!$B$63)^'3 Year Pro Forma'!AG1 -> 0 | AH12: =Assumptions!$B$62*(1+Assumptions!$B$63)^'3 Year Pro Forma'!AH1 -> 0 | AI12: =Assumptions!$B$62*(1+Assumptions!$B$63)^'3 Year Pro Forma'!AI1 -> 0 | AJ12: =Assumptions!$B$62*(1+Assumptions!$B$63)^'3 Year Pro Forma'!AJ1 -> 0 | AK12: =Assumptions!$B$62*(1+Assumptions!$B$63)^'3 Year Pro Forma'!AK1 -> 0 | AL12: =Assumptions!$B$62*(1+Assumptions!$B$63)^'3 Year Pro Forma'!AL1 -> 0 | AM12: =Assumptions!$B$62*(1+Assumptions!$B$63)^'3 Year Pro Forma'!AM1 -> 0
A13: Total Revenue Per User | B13: Sum | C13: =SUM(C9:C12) -> $0.70 | D13: =SUM(D9:D12) -> $0.71 | E13: $1.11 | F13: $1.14 | G13: $1.17 | H13: $1.20 | I13: $1.23 | J13: $1.26 | K13: $1.29 | L13: $1.32 | M13: $1.36 | N13: $1.40 | O13: $1.43 | P13: $1.47 | Q13: $1.52 | R13: $1.56 | S13: $1.60 | T13: $1.65 | U13: $1.70 | V13: $1.75 | W13: $1.81 | X13: $1.86 | Y13: $1.92 | Z13: $1.98 | AA13: $2.05 | AB13: $2.12 | AC13: $2.19 | AD13: $2.26 | AE13: $2.34 | AF13: $2.42 | AG13: $2.50 | AH13: $2.59 | AI13: $2.68 | AJ13: $2.78 | AK13: $2.88 | AL13: $2.99 | AM13: $3.10
A14: Total Revenue | B14: Sum * Active Users | C14: =C13*C5 -> $1,259 | D14: $2,540 | E14: $8,288 | F14: $13,169 | G14: $18,610 | H14: $24,683 | I14: $31,469 | J14: $39,059 | K14: $47,550 | L14: $57,049 | M14: $67,671 | N14: $79,541 | O14: $92,795 | P14: $107,579 | Q14: $124,052 | R14: $142,388 | S14: $162,775 | T14: $185,415 | U14: $210,531 | V14: $238,363 | W14: $269,172 | X14: $303,240 | Y14: $340,875 | Z14: $382,408 | AA14: $428,201 | AB14: $478,643 | AC14: $534,157 | AD14: $595,199 | AE14: $662,265 | AF14: $735,889 | AG14: $816,648 | AH14: $905,167 | AI14: $1,002,119 | AJ14: $1,108,232 | AK14: $1,224,290 | AL14: $1,351,141 | AM14: $1,489,695
A15: Variable User Costs
A16: Gift Cards Per User | B16: Control over amount | C16: =Assumptions!$B$37*(1+Assumptions!$B$38)^'3 Year Pro Forma'!C1 -> $0.20 | D16: =Assumptions!$B$37*(1+Assumptions!$B$38)^'3 Year Pro Forma'!D1 -> $0.21 | E16: =Assumptions!$B$37*(1+Assumptions!$B$38)^'3 Year Pro Forma'!E1 -> $0.21 | F16: =Assumptions!$B$37*(1+Assumptions!$B$38)^'3 Year Pro Forma'!F1 -> $0.22 | G16: =Assumptions!$B$37*(1+Assumptions!$B$38)^'3 Year Pro Forma'!G1 -> $0.23 | H16: =Assumptions!$B$37*(1+Assumptions!$B$38)^'3 Year Pro Forma'!H1 -> $0.23 | I16: =Assumptions!$B$37*(1+Assumptions!$B$38)^'3 Year Pro Forma'!I1 -> $0.24 | J16: =Assumptions!$B$37*(1+Assumptions!$B$38)^'3 Year Pro Forma'!J1 -> $0.25 | K16: =Assumptions!$B$37*(1+Assumptions!$B$38)^'3 Year Pro Forma'!K1 -> $0.25 | L16: =Assumptions!$B$37*(1+Assumptions!$B$38)^'3 Year Pro Forma'!L1 -> $0.26 | M16: =Assumptions!$B$37*(1+Assumptions!$B$38)^'3 Year Pro Forma'!M1 -> $0.27 | N16: =Assumptions!$B$37*(1+Assumptions!$B$38)^'3 Year Pro Forma'!N1 -> $0.28 | O16: =Assumptions!$B$37*(1+Assumptions!$B$38)^'3 Year Pro Forma'!O1 -> $0.29 | P16: =Assumptions!$B$37*(1+Assumptions!$B$38)^'3 Year Pro Forma'!P1 -> $0.29 | Q16: =Assumptions!$B$37*(1+Assumptions!$B$38)^'3 Year Pro Forma'!Q1 -> $0.30 | R16: =Assumptions!$B$37*(1+Assumptions!$B$38)^'3 Year Pro Forma'!R1 -> $0.31 | S16: =Assumptions!$B$37*(1+Assumptions!$B$38)^'3 Year Pro Forma'!S1 -> $0.32 | T16: =Assumptions!$B$37*(1+Assumptions!$B$38)^'3 Year Pro Forma'!T1 -> $0.33 | U16: =Assumptions!$B$37*(1+Assumptions!$B$38)^'3 Year Pro Forma'!U1 -> $0.34 | V16: =Assumptions!$B$37*(1+Assumptions!$B$38)^'3 Year Pro Forma'!V1 -> $0.35 | W16: =Assumptions!$B$37*(1+Assumptions!$B$38)^'3 Year Pro Forma'!W1 -> $0.36 | X16: =Assumptions!$B$37*(1+Assumptions!$B$38)^'3 Year Pro Forma'!X1 -> $0.37 | Y16: =Assumptions!$B$37*(1+Assumptions!$B$38)^'3 Year Pro Forma'!Y1 -> $0.38 | Z16: =Assumptions!$B$37*(1+Assumptions!$B$38)^'3 Year Pro Forma'!Z1 -> $0.39 | AA16: =Assumptions!$B$37*(1+Assumptions!$B$38)^'3 Year Pro Forma'!AA1 -> $0.41 | AB16: =Assumptions!$B$37*(1+Assumptions!$B$38)^'3 Year Pro Forma'!AB1 -> $0.42 | AC16: =Assumptions!$B$37*(1+Assumptions!$B$38)^'3 Year Pro Forma'!AC1 -> $0.43 | AD16: =Assumptions!$B$37*(1+Assumptions!$B$38)^'3 Year Pro Forma'!AD1 -> $0.44 | AE16: =Assumptions!$B$37*(1+Assumptions!$B$38)^'3 Year Pro Forma'!AE1 -> $0.46 | AF16: =Assumptions!$B$37*(1+Assumptions!$B$38)^'3 Year Pro Forma'!AF1 -> $0.47 | AG16: =Assumptions!$B$37*(1+Assumptions!$B$38)^'3 Year Pro Forma'!AG1 -> $0.49 | AH16: =Assumptions!$B$37*(1+Assumptions!$B$38)^'3 Year Pro Forma'!AH1 -> $0.50 | AI16: =Assumptions!$B$37*(1+Assumptions!$B$38)^'3 Year Pro Forma'!AI1 -> $0.52 | AJ16: =Assumptions!$B$37*(1+Assumptions!$B$38)^'3 Year Pro Forma'!AJ1 -> $0.53 | AK16: =Assumptions!$B$37*(1+Assumptions!$B$38)^'3 Year Pro Forma'!AK1 -> $0.55 | AL16: =Assumptions!$B$37*(1+Assumptions!$B$38)^'3 Year Pro Forma'!AL1 -> $0.56 | AM16: =Assumptions!$B$37*(1+Assumptions!$B$38)^'3 Year Pro Forma'!AM1 -> $0.58
A17: Raffle Value Per user | C17: =(Assumptions!$B$39*(1+Assumptions!$B$40)^'3 Year Pro Forma'!C1) -> $0.70 | D17: =(Assumptions!$B$39*(1+Assumptions!$B$40)^'3 Year Pro Forma'!D1) -> $0.69 | E17: =(Assumptions!$B$39*(1+Assumptions!$B$40)^'3 Year Pro Forma'!E1) -> $0.69 | F17: =(Assumptions!$B$39*(1+Assumptions!$B$40)^'3 Year Pro Forma'!F1) -> $0.68 | G17: =(Assumptions!$B$39*(1+Assumptions!$B$40)^'3 Year Pro Forma'!G1) -> $0.67 | H17: =(Assumptions!$B$39*(1+Assumptions!$B$40)^'3 Year Pro Forma'!H1) -> $0.67 | I17: =(Assumptions!$B$39*(1+Assumptions!$B$40)^'3 Year Pro Forma'!I1) -> $0.66 | J17: =(Assumptions!$B$39*(1+Assumptions!$B$40)^'3 Year Pro Forma'!J1) -> $0.65 | K17: =(Assumptions!$B$39*(1+Assumptions!$B$40)^'3 Year Pro Forma'!K1) -> $0.65 | L17: =(Assumptions!$B$39*(1+Assumptions!$B$40)^'3 Year Pro Forma'!L1) -> $0.64 | M17: =(Assumptions!$B$39*(1+Assumptions!$B$40)^'3 Year Pro Forma'!M1) -> $0.63 | N17: =(Assumptions!$B$39*(1+Assumptions!$B$40)^'3 Year Pro Forma'!N1) -> $0.63 | O17: =(Assumptions!$B$39*(1+Assumptions!$B$40)^'3 Year Pro Forma'!O1) -> $0.62 | P17: =(Assumptions!$B$39*(1+Assumptions!$B$40)^'3 Year Pro Forma'!P1) -> $0.61 | Q17: =(Assumptions!$B$39*(1+Assumptions!$B$40)^'3 Year Pro Forma'!Q1) -> $0.61 | R17: =(Assumptions!$B$39*(1+Assumptions!$B$40)^'3 Year Pro Forma'!R1) -> $0.60 | S17: =(Assumptions!$B$39*(1+Assumptions!$B$40)^'3 Year Pro Forma'!S1) -> $0.60 | T17: =(Assumptions!$B$39*(1+Assumptions!$B$40)^'3 Year Pro Forma'!T1) -> $0.59 | U17: =(Assumptions!$B$39*(1+Assumptions!$B$40)^'3 Year Pro Forma'!U1) -> $0.58 | V17: =(Assumptions!$B$39*(1+Assumptions!$B$40)^'3 Year Pro Forma'!V1) -> $0.58 | W17: =(Assumptions!$B$39*(1+Assumptions!$B$40)^'3 Year Pro Forma'!W1) -> $0.57 | X17: =(Assumptions!$B$39*(1+Assumptions!$B$40)^'3 Year Pro Forma'!X1) -> $0.57 | Y17: =(Assumptions!$B$39*(1+Assumptions!$B$40)^'3 Year Pro Forma'!Y1) -> $0.56 | Z17: =(Assumptions!$B$39*(1+Assumptions!$B$40)^'3 Year Pro Forma'!Z1) -> $0.56 | AA17: =(Assumptions!$B$39*(1+Assumptions!$B$40)^'3 Year Pro Forma'!AA1) -> $0.55 | AB17: =(Assumptions!$B$39*(1+Assumptions!$B$40)^'3 Year Pro Forma'!AB1) -> $0.54 | AC17: =(Assumptions!$B$39*(1+Assumptions!$B$40)^'3 Year Pro Forma'!AC1) -> $0.54 | AD17: =(Assumptions!$B$39*(1+Assumptions!$B$40)^'3 Year Pro Forma'!AD1) -> $0.53 | AE17: =(Assumptions!$B$39*(1+Assumptions!$B$40)^'3 Year Pro Forma'!AE1) -> $0.53 | AF17: =(Assumptions!$B$39*(1+Assumptions!$B$40)^'3 Year Pro Forma'!AF1) -> $0.52 | AG17: =(Assumptions!$B$39*(1+Assumptions!$B$40)^'3 Year Pro Forma'!AG1) -> $0.52 | AH17: =(Assumptions!$B$39*(1+Assumptions!$B$40)^'3 Year Pro Forma'!AH1) -> $0.51 | AI17: =(Assumptions!$B$39*(1+Assumptions!$B$40)^'3 Year Pro Forma'!AI1) -> $0.51 | AJ17: =(Assumptions!$B$39*(1+Assumptions!$B$40)^'3 Year Pro Forma'!AJ1) -> $0.50 | AK17: =(Assumptions!$B$39*(1+Assumptions!$B$40)^'3 Year Pro Forma'!AK1) -> $0.50 | AL17: =(Assumptions!$B$39*(1+Assumptions!$B$40)^'3 Year Pro Forma'!AL1) -> $0.49 | AM17: =(Assumptions!$B$39*(1+Assumptions!$B$40)^'3 Year Pro Forma'!AM1) -> $0.49
A18: AWS per user | B18: Does not include accelerator credit | C18: =Assumptions!B45 -> $0.01 | D18: =C18 -> $0.01 | E18: =D18 -> $0.01 | F18: $0.01 | G18: $0.01 | H18: $0.01 | I18: $0.01 | J18: $0.01 | K18: $0.01 | L18: $0.01 | M18: $0.01 | N18: $0.01 | O18: $0.01 | P18: $0.01 | Q18: $0.01 | R18: $0.01 | S18: $0.01 | T18: $0.01 | U18: $0.01 | V18: $0.01 | W18: $0.01 | X18: $0.01 | Y18: $0.01 | Z18: $0.01 | AA18: $0.01 | AB18: $0.01 | AC18: $0.01 | AD18: $0.01 | AE18: $0.01 | AF18: $0.01 | AG18: $0.01 | AH18: $0.01 | AI18: =AH18 -> $0.01 | AJ18: $0.01 | AK18: $0.01 | AL18: $0.01 | AM18: =AL18 -> $0.01
A19: Total Variable Costs per User | C19: =SUM(C16:C18) -> $0.91 | D19: $0.91 | E19: $0.91 | F19: $0.91 | G19: $0.91 | H19: $0.91 | I19: $0.91 | J19: $0.91 | K19: $0.91 | L19: $0.91 | M19: $0.91 | N19: $0.91 | O19: $0.92 | P19: $0.92 | Q19: $0.92 | R19: $0.92 | S19: $0.93 | T19: $0.93 | U19: $0.93 | V19: $0.94 | W19: $0.94 | X19: $0.95 | Y19: $0.95 | Z19: $0.96 | AA19: $0.97 | AB19: $0.97 | AC19: $0.98 | AD19: $0.99 | AE19: $1.00 | AF19: $1.00 | AG19: $1.01 | AH19: $1.02 | AI19: $1.03 | AJ19: $1.04 | AK19: $1.05 | AL19: $1.07 | AM19: $1.08
A20: Total Variable Costs | C20: =C19*C5 -> $1,637 | D20: $3,269 | E20: $6,766 | F20: $10,494 | G20: $14,475 | H20: $18,738 | I20: $23,314 | J20: $28,237 | K20: $33,541 | L20: $39,261 | M20: $45,432 | N20: $52,091 | O20: $59,274 | P20: $67,021 | Q20: $75,371 | R20: $84,365 | S20: $94,045 | T20: $104,456 | U20: $115,644 | V20: $127,658 | W20: $140,548 | X20: $154,367 | Y20: $169,171 | Z20: $185,018 | AA20: $201,968 | AB20: $220,086 | AC20: $239,440 | AD20: $260,098 | AE20: $282,136 | AF20: $305,632 | AG20: $330,666 | AH20: $357,324 | AI20: $385,696 | AJ20: $415,877 | AK20: $447,966 | AL20: $482,067 | AM20: $518,290
A21: Fixed and Acquisition Costs
A22: Sports Data | B22: 9 months mostly free -- Accelerator | C22: $1,000 | D22: =C22 -> $1,000 | E22: =D22 -> $1,000 | F22: =E22 -> $1,000 | G22: =F22 -> $1,000 | H22: =G22 -> $1,000 | I22: =H22 -> $1,000 | J22: =I22 -> $1,000 | K22: =J22 -> $1,000 | L22: =6000 -> $6,000 | M22: =6000 -> $6,000 | N22: =7500 -> $7,500 | O22: =9000 -> $9,000 | P22: =O22 -> $9,000 | Q22: =P22 -> $9,000 | R22: $9,000 | S22: =13000 -> $13,000 | T22: $13,000 | U22: =T22 -> $13,000 | V22: =U22 -> $13,000 | W22: =15000 -> $15,000 | X22: =15000 -> $15,000 | Y22: =15000 -> $15,000 | Z22: =15000 -> $15,000 | AA22: =20000 -> $20,000 | AB22: =AA22 -> $20,000 | AC22: =AB22 -> $20,000 | AD22: $20,000 | AE22: $20,000 | AF22: $20,000 | AG22: =30000 -> $30,000 | AH22: =30000 -> $30,000 | AI22: =30000 -> $30,000 | AJ22: =30000 -> $30,000 | AK22: =30000 -> $30,000 | AL22: =30000 -> $30,000 | AM22: =30000 -> $30,000
A23: Updates/maintenance | C23: =Assumptions!$B$46*(1+Assumptions!$B$47)^'3 Year Pro Forma'!C1 -> $1,500 | D23: =Assumptions!$B$46*(1+Assumptions!$B$47)^'3 Year Pro Forma'!D1 -> $1,575 | E23: =Assumptions!$B$46*(1+Assumptions!$B$47)^'3 Year Pro Forma'!E1 -> $1,654 | F23: =Assumptions!$B$46*(1+Assumptions!$B$47)^'3 Year Pro Forma'!F1 -> $1,736 | G23: =Assumptions!$B$46*(1+Assumptions!$B$47)^'3 Year Pro Forma'!G1 -> $1,823 | H23: =Assumptions!$B$46*(1+Assumptions!$B$47)^'3 Year Pro Forma'!H1 -> $1,914 | I23: =Assumptions!$B$46*(1+Assumptions!$B$47)^'3 Year Pro Forma'!I1 -> $2,010 | J23: =Assumptions!$B$46*(1+Assumptions!$B$47)^'3 Year Pro Forma'!J1 -> $2,111 | K23: =Assumptions!$B$46*(1+Assumptions!$B$47)^'3 Year Pro Forma'!K1 -> $2,216 | L23: =Assumptions!$B$46*(1+Assumptions!$B$47)^'3 Year Pro Forma'!L1 -> $2,327 | M23: =Assumptions!$B$46*(1+Assumptions!$B$47)^'3 Year Pro Forma'!M1 -> $2,443 | N23: =Assumptions!$B$46*(1+Assumptions!$B$47)^'3 Year Pro Forma'!N1 -> $2,566 | O23: =Assumptions!$B$46*(1+Assumptions!$B$47)^'3 Year Pro Forma'!O1 -> $2,694 | P23: =Assumptions!$B$46*(1+Assumptions!$B$47)^'3 Year Pro Forma'!P1 -> $2,828 | Q23: =Assumptions!$B$46*(1+Assumptions!$B$47)^'3 Year Pro Forma'!Q1 -> $2,970 | R23: =Assumptions!$B$46*(1+Assumptions!$B$47)^'3 Year Pro Forma'!R1 -> $3,118 | S23: =Assumptions!$B$46*(1+Assumptions!$B$47)^'3 Year Pro Forma'!S1 -> $3,274 | T23: =Assumptions!$B$46*(1+Assumptions!$B$47)^'3 Year Pro Forma'!T1 -> $3,438 | U23: =Assumptions!$B$46*(1+Assumptions!$B$47)^'3 Year Pro Forma'!U1 -> $3,610 | V23: =Assumptions!$B$46*(1+Assumptions!$B$47)^'3 Year Pro Forma'!V1 -> $3,790 | W23: =Assumptions!$B$46*(1+Assumptions!$B$47)^'3 Year Pro Forma'!W1 -> $3,980 | X23: =Assumptions!$B$46*(1+Assumptions!$B$47)^'3 Year Pro Forma'!X1 -> $4,179 | Y23: =Assumptions!$B$46*(1+Assumptions!$B$47)^'3 Year Pro Forma'!Y1 -> $4,388 | Z23: =Assumptions!$B$46*(1+Assumptions!$B$47)^'3 Year Pro Forma'!Z1 -> $4,607 | AA23: =Assumptions!$B$46*(1+Assumptions!$B$47)^'3 Year Pro Forma'!AA1 -> $4,838 | AB23: =Assumptions!$B$46*(1+Assumptions!$B$47)^'3 Year Pro Forma'!AB1 -> $5,080 | AC23: =Assumptions!$B$46*(1+Assumptions!$B$47)^'3 Year Pro Forma'!AC1 -> $5,334 | AD23: =Assumptions!$B$46*(1+Assumptions!$B$47)^'3 Year Pro Forma'!AD1 -> $5,600 | AE23: =Assumptions!$B$46*(1+Assumptions!$B$47)^'3 Year Pro Forma'!AE1 -> $5,880 | AF23: =Assumptions!$B$46*(1+Assumptions!$B$47)^'3 Year Pro Forma'!AF1 -> $6,174 | AG23: =Assumptions!$B$46*(1+Assumptions!$B$47)^'3 Year Pro Forma'!AG1 -> $6,483 | AH23: =Assumptions!$B$46*(1+Assumptions!$B$47)^'3 Year Pro Forma'!AH1 -> $6,807 | AI23: =Assumptions!$B$46*(1+Assumptions!$B$47)^'3 Year Pro Forma'!AI1 -> $7,147 | AJ23: =Assumptions!$B$46*(1+Assumptions!$B$47)^'3 Year Pro Forma'!AJ1 -> $7,505 | AK23: =Assumptions!$B$46*(1+Assumptions!$B$47)^'3 Year Pro Forma'!AK1 -> $7,880 | AL23: =Assumptions!$B$46*(1+Assumptions!$B$47)^'3 Year Pro Forma'!AL1 -> $8,274 | AM23: =Assumptions!$B$46*(1+Assumptions!$B$47)^'3 Year Pro Forma'!AM1 -> $8,688
A24: Human Resources | B24: Only Social Media until affordable | C24: =HR!B8 -> $1,000 | D24: =HR!C8 -> $1,050 | E24: =HR!D8 -> $1,103 | F24: =HR!E8 -> $1,158 | G24: =HR!F8 -> $2,216 | H24: =HR!G8 -> $2,376 | I24: =HR!H8 -> $2,550 | J24: =HR!I8 -> $2,738 | K24: =HR!J8 -> $2,942 | L24: =HR!K8 -> $3,162 | M24: =HR!L8 -> $3,400 | N24: =HR!M8 -> $3,659 | O24: =HR!N8 -> $28,719 | P24: =HR!O8 -> $30,902 | Q24: =HR!P8 -> $33,319 | R24: =HR!Q8 -> $35,995 | S24: =HR!R8 -> $40,955 | T24: =HR!S8 -> $44,337 | U24: =HR!T8 -> $55,578 | V24: =HR!U8 -> $59,714 | W24: =HR!V8 -> $68,282 | X24: =HR!W8 -> $73,326 | Y24: =HR!X8 -> $78,889 | Z24: =HR!Y8 -> $85,023 | AA24: =HR!Z8 -> $118,781 | AB24: =HR!AA8 -> $126,221 | AC24: =HR!AB8 -> $134,408 | AD24: =HR!AC8 -> $143,411 | AE24: =HR!AD8 -> $163,307 | AF24: =HR!AE8 -> $174,177 | AG24: =HR!AF8 -> $189,112 | AH24: =HR!AG8 -> $202,209 | AI24: =HR!AH8 -> $226,573 | AJ24: =HR!AI8 -> $242,321 | AK24: =HR!AJ8 -> $259,576 | AL24: =HR!AK8 -> $278,476 | AM24: =AL24*1.05 -> $292,400
A25: Miscellaneous | C25: =Assumptions!$B$51*(1+Assumptions!$B$52)^'3 Year Pro Forma'!C1 -> $1,500 | D25: =Assumptions!$B$51*(1+Assumptions!$B$52)^'3 Year Pro Forma'!D1 -> $1,538 | E25: =Assumptions!$B$51*(1+Assumptions!$B$52)^'3 Year Pro Forma'!E1 -> $1,576 | F25: =Assumptions!$B$51*(1+Assumptions!$B$52)^'3 Year Pro Forma'!F1 -> $1,615 | G25: =Assumptions!$B$51*(1+Assumptions!$B$52)^'3 Year Pro Forma'!G1 -> $1,656 | H25: =Assumptions!$B$51*(1+Assumptions!$B$52)^'3 Year Pro Forma'!H1 -> $1,697 | I25: =Assumptions!$B$51*(1+Assumptions!$B$52)^'3 Year Pro Forma'!I1 -> $1,740 | J25: =Assumptions!$B$51*(1+Assumptions!$B$52)^'3 Year Pro Forma'!J1 -> $1,783 | K25: =Assumptions!$B$51*(1+Assumptions!$B$52)^'3 Year Pro Forma'!K1 -> $1,828 | L25: =Assumptions!$B$51*(1+Assumptions!$B$52)^'3 Year Pro Forma'!L1 -> $1,873 | M25: =Assumptions!$B$51*(1+Assumptions!$B$52)^'3 Year Pro Forma'!M1 -> $1,920 | N25: =Assumptions!$B$51*(1+Assumptions!$B$52)^'3 Year Pro Forma'!N1 -> $1,968 | O25: =Assumptions!$B$51*(1+Assumptions!$B$52)^'3 Year Pro Forma'!O1 -> $2,017 | P25: =Assumptions!$B$51*(1+Assumptions!$B$52)^'3 Year Pro Forma'!P1 -> $2,068 | Q25: =Assumptions!$B$51*(1+Assumptions!$B$52)^'3 Year Pro Forma'!Q1 -> $2,119 | R25: =Assumptions!$B$51*(1+Assumptions!$B$52)^'3 Year Pro Forma'!R1 -> $2,172 | S25: =Assumptions!$B$51*(1+Assumptions!$B$52)^'3 Year Pro Forma'!S1 -> $2,227 | T25: =Assumptions!$B$51*(1+Assumptions!$B$52)^'3 Year Pro Forma'!T1 -> $2,282 | U25: =Assumptions!$B$51*(1+Assumptions!$B$52)^'3 Year Pro Forma'!U1 -> $2,339 | V25: =Assumptions!$B$51*(1+Assumptions!$B$52)^'3 Year Pro Forma'!V1 -> $2,398 | W25: =Assumptions!$B$51*(1+Assumptions!$B$52)^'3 Year Pro Forma'!W1 -> $2,458 | X25: =Assumptions!$B$51*(1+Assumptions!$B$52)^'3 Year Pro Forma'!X1 -> $2,519 | Y25: =Assumptions!$B$51*(1+Assumptions!$B$52)^'3 Year Pro Forma'!Y1 -> $2,582 | Z25: =Assumptions!$B$51*(1+Assumptions!$B$52)^'3 Year Pro Forma'!Z1 -> $2,647 | AA25: =Assumptions!$B$51*(1+Assumptions!$B$52)^'3 Year Pro Forma'!AA1 -> $2,713 | AB25: =Assumptions!$B$51*(1+Assumptions!$B$52)^'3 Year Pro Forma'!AB1 -> $2,781 | AC25: =Assumptions!$B$51*(1+Assumptions!$B$52)^'3 Year Pro Forma'!AC1 -> $2,850 | AD25: =Assumptions!$B$51*(1+Assumptions!$B$52)^'3 Year Pro Forma'!AD1 -> $2,922 | AE25: =Assumptions!$B$51*(1+Assumptions!$B$52)^'3 Year Pro Forma'!AE1 -> $2,995 | AF25: =Assumptions!$B$51*(1+Assumptions!$B$52)^'3 Year Pro Forma'!AF1 -> $3,070 | AG25: =Assumptions!$B$51*(1+Assumptions!$B$52)^'3 Year Pro Forma'!AG1 -> $3,146 | AH25: =Assumptions!$B$51*(1+Assumptions!$B$52)^'3 Year Pro Forma'!AH1 -> $3,225 | AI25: =Assumptions!$B$51*(1+Assumptions!$B$52)^'3 Year Pro Forma'!AI1 -> $3,306 | AJ25: =Assumptions!$B$51*(1+Assumptions!$B$52)^'3 Year Pro Forma'!AJ1 -> $3,388 | AK25: =Assumptions!$B$51*(1+Assumptions!$B$52)^'3 Year Pro Forma'!AK1 -> $3,473 | AL25: =Assumptions!$B$51*(1+Assumptions!$B$52)^'3 Year Pro Forma'!AL1 -> $3,560 | AM25: =Assumptions!$B$51*(1+Assumptions!$B$52)^'3 Year Pro Forma'!AM1 -> $3,649
A26: Licensing | B26: Covered by Sports Radar | C26: 0 | D26: 0 | E26: 0 | F26: 0 | G26: 0 | H26: 0 | I26: 0 | J26: 0 | K26: 0 | L26: 0 | M26: 0 | N26: 0 | O26: 0 | P26: 0 | Q26: 0 | R26: 0 | S26: 0 | T26: 0 | U26: 0 | V26: 0 | W26: 0 | X26: 0 | Y26: 0 | Z26: 0 | AA26: 0 | AB26: 0 | AC26: 0 | AD26: 0 | AE26: 0 | AF26: 0 | AG26: 0 | AH26: 0 | AI26: 0 | AJ26: 0 | AK26: 0 | AL26: 0 | AM26: 0
A27: Organic Acquisition | C27: =Assumptions!$B$17*'Cohort Analysis'!B4 -> $202.52 | D27: =Assumptions!$B$17*'Cohort Analysis'!C4 -> $405.04 | E27: =Assumptions!$B$17*'Cohort Analysis'!D4 -> $810.08 | F27: =Assumptions!$B$17*'Cohort Analysis'!E4 -> $944.93 | G27: =Assumptions!$B$17*'Cohort Analysis'!F4 -> $1,075.43 | H27: =Assumptions!$B$17*'Cohort Analysis'!G4 -> $1,205.77 | I27: =Assumptions!$B$17*'Cohort Analysis'!H4 -> $1,338.56 | J27: =Assumptions!$B$17*'Cohort Analysis'!I4 -> $1,475.54 | K27: =Assumptions!$B$17*'Cohort Analysis'!J4 -> $1,617.91 | L27: =Assumptions!$B$17*'Cohort Analysis'!K4 -> $1,766.57 | M27: =Assumptions!$B$17*'Cohort Analysis'!L4 -> $1,922.22 | N27: =Assumptions!$B$17*'Cohort Analysis'!M4 -> $2,085.39 | O27: =Assumptions!$B$17*'Cohort Analysis'!N4 -> $2,256.53 | P27: =Assumptions!$B$17*'Cohort Analysis'!O4 -> $2,435.99 | Q27: =Assumptions!$B$17*'Cohort Analysis'!P4 -> $2,624.09 | R27: =Assumptions!$B$17*'Cohort Analysis'!Q4 -> $2,821.05 | S27: =Assumptions!$B$17*'Cohort Analysis'!R4 -> $3,027.10 | T27: =Assumptions!$B$17*'Cohort Analysis'!S4 -> $3,242.39 | U27: =Assumptions!$B$17*'Cohort Analysis'!T4 -> $3,467.06 | V27: =Assumptions!$B$17*'Cohort Analysis'!U4 -> $3,701.21 | W27: =Assumptions!$B$17*'Cohort Analysis'!V4 -> $3,944.89 | X27: =Assumptions!$B$17*'Cohort Analysis'!W4 -> $4,198.17 | Y27: =Assumptions!$B$17*'Cohort Analysis'!X4 -> $4,461.05 | Z27: =Assumptions!$B$17*'Cohort Analysis'!Y4 -> $4,733.52 | AA27: =Assumptions!$B$17*'Cohort Analysis'!Z4 -> $5,015.56 | AB27: =Assumptions!$B$17*'Cohort Analysis'!AA4 -> $5,307.11 | AC27: =Assumptions!$B$17*'Cohort Analysis'!AB4 -> $5,608.08 | AD27: =Assumptions!$B$17*'Cohort Analysis'!AC4 -> $5,918.39 | AE27: =Assumptions!$B$17*'Cohort Analysis'!AD4 -> $6,237.91 | AF27: =Assumptions!$B$17*'Cohort Analysis'!AE4 -> $6,566.51 | AG27: =Assumptions!$B$17*'Cohort Analysis'!AF4 -> $6,904.03 | AH27: =Assumptions!$B$17*'Cohort Analysis'!AG4 -> $7,250.29 | AI27: =Assumptions!$B$17*'Cohort Analysis'!AH4 -> $7,605.11 | AJ27: =Assumptions!$B$17*'Cohort Analysis'!AI4 -> $7,968.27 | AK27: =Assumptions!$B$17*'Cohort Analysis'!AJ4 -> $8,339.55 | AL27: =Assumptions!$B$17*'Cohort Analysis'!AK4 -> $8,718.72 | AM27: =Assumptions!$B$17*'Cohort Analysis'!AL4 -> $9,105.53
A28: Referral Program | C28: ='Cohort Analysis'!C3*Assumptions!$B$12 -> $1,399 | D28: ='Cohort Analysis'!D3*Assumptions!$B$12 -> $2,459 | E28: ='Cohort Analysis'!E3*Assumptions!$B$12 -> $3,340 | F28: ='Cohort Analysis'!F3*Assumptions!$B$12 -> $4,124 | G28: ='Cohort Analysis'!G3*Assumptions!$B$12 -> $4,856 | H28: ='Cohort Analysis'!H3*Assumptions!$B$12 -> $5,567 | I28: ='Cohort Analysis'!I3*Assumptions!$B$12 -> $6,273 | J28: ='Cohort Analysis'!J3*Assumptions!$B$12 -> $6,988 | K28: ='Cohort Analysis'!K3*Assumptions!$B$12 -> $7,720 | L28: ='Cohort Analysis'!L3*Assumptions!$B$12 -> $8,476 | M28: ='Cohort Analysis'!M3*Assumptions!$B$12 -> $9,261 | N28: ='Cohort Analysis'!N3*Assumptions!$B$12 -> $10,079 | O28: ='Cohort Analysis'!O3*Assumptions!$B$12 -> $10,933 | P28: ='Cohort Analysis'!P3*Assumptions!$B$12 -> $11,825 | Q28: ='Cohort Analysis'!Q3*Assumptions!$B$12 -> $12,759 | R28: ='Cohort Analysis'!R3*Assumptions!$B$12 -> $13,736 | S28: ='Cohort Analysis'!S3*Assumptions!$B$12 -> $14,756 | T28: ='Cohort Analysis'!T3*Assumptions!$B$12 -> $15,822 | U28: ='Cohort Analysis'!U3*Assumptions!$B$12 -> $16,934 | V28: ='Cohort Analysis'!V3*Assumptions!$B$12 -> $18,093 | W28: ='Cohort Analysis'!W3*Assumptions!$B$12 -> $19,299 | X28: ='Cohort Analysis'!X3*Assumptions!$B$12 -> $20,554 | Y28: ='Cohort Analysis'!Y3*Assumptions!$B$12 -> $21,856 | Z28: ='Cohort Analysis'!Z3*Assumptions!$B$12 -> $23,207 | AA28: ='Cohort Analysis'!AA3*Assumptions!$B$12 -> $24,607 | AB28: ='Cohort Analysis'!AB3*Assumptions!$B$12 -> $26,054 | AC28: ='Cohort Analysis'!AC3*Assumptions!$B$12 -> $27,549 | AD28: ='Cohort Analysis'!AD3*Assumptions!$B$12 -> $29,091 | AE28: ='Cohort Analysis'!AE3*Assumptions!$B$12 -> $30,680 | AF28: ='Cohort Analysis'!AF3*Assumptions!$B$12 -> $32,316 | AG28: ='Cohort Analysis'!AG3*Assumptions!$B$12 -> $33,997 | AH28: ='Cohort Analysis'!AH3*Assumptions!$B$12 -> $35,723 | AI28: ='Cohort Analysis'!AI3*Assumptions!$B$12 -> $37,493 | AJ28: ='Cohort Analysis'!AJ3*Assumptions!$B$12 -> $39,306 | AK28: ='Cohort Analysis'!AK3*Assumptions!$B$12 -> $41,161 | AL28: ='Cohort Analysis'!AL3*Assumptions!$B$12 -> $43,056 | AM28: =AL28*1.15 -> $49,514
A29: Ambassador Program | C29: =D29/2 -> $5,558 | D29: ='Ambassador Cost Analysis'!B5 -> $11,115 | E29: ='Ambassador Cost Analysis'!C5 -> $12,227 | F29: ='Ambassador Cost Analysis'!D5 -> $13,420 | G29: ='Ambassador Cost Analysis'!E5 -> $14,697 | H29: ='Ambassador Cost Analysis'!F5 -> $16,062 | I29: ='Ambassador Cost Analysis'!G5 -> $17,517 | J29: ='Ambassador Cost Analysis'!H5 -> $19,065 | K29: ='Ambassador Cost Analysis'!I5 -> $20,709 | L29: ='Ambassador Cost Analysis'!J5 -> $22,451 | M29: ='Ambassador Cost Analysis'!K5 -> $24,294 | N29: ='Ambassador Cost Analysis'!L5 -> $26,239 | O29: ='Ambassador Cost Analysis'!M5 -> $28,289 | P29: ='Ambassador Cost Analysis'!N5 -> $30,445 | Q29: ='Ambassador Cost Analysis'!O5 -> $32,709 | R29: ='Ambassador Cost Analysis'!P5 -> $35,082 | S29: ='Ambassador Cost Analysis'!Q5 -> $37,565 | T29: ='Ambassador Cost Analysis'!R5 -> $40,159 | U29: ='Ambassador Cost Analysis'!S5 -> $42,864 | V29: ='Ambassador Cost Analysis'!T5 -> $45,681 | W29: ='Ambassador Cost Analysis'!U5 -> $48,610 | X29: ='Ambassador Cost Analysis'!V5 -> $51,650 | Y29: ='Ambassador Cost Analysis'!W5 -> $54,802 | Z29: ='Ambassador Cost Analysis'!X5 -> $58,065 | AA29: ='Ambassador Cost Analysis'!Y5 -> $61,438 | AB29: ='Ambassador Cost Analysis'!Z5 -> $64,920 | AC29: ='Ambassador Cost Analysis'!AA5 -> $68,509 | AD29: ='Ambassador Cost Analysis'!AB5 -> $72,204 | AE29: ='Ambassador Cost Analysis'!AC5 -> $76,004 | AF29: ='Ambassador Cost Analysis'!AD5 -> $79,906 | AG29: ='Ambassador Cost Analysis'!AE5 -> $83,908 | AH29: ='Ambassador Cost Analysis'!AF5 -> $88,008 | AI29: ='Ambassador Cost Analysis'!AG5 -> $92,204 | AJ29: ='Ambassador Cost Analysis'!AH5 -> $96,493 | AK29: ='Ambassador Cost Analysis'!AI5 -> $100,871 | AL29: ='Ambassador Cost Analysis'!AJ5 -> $105,337 | AM29: ='Ambassador Cost Analysis'!AK5 -> $109,886
A30: Total fixed costs per user | C30: =C31/C5 -> $6.76 | D30: $5.32 | E30: $2.91 | F30: $2.08 | G30: $1.71 | H30: $1.44 | I30: $1.26 | J30: $1.13 | K30: $1.03 | L30: $1.07 | M30: $0.99 | N30: $0.95 | O30: $1.30 | P30: $1.23 | Q30: $1.17 | R30: $1.12 | S30: $1.13 | T30: $1.09 | U30: $1.11 | V30: $1.08 | W30: $1.08 | X30: $1.05 | Y30: $1.03 | Z30: $1.00 | AA30: $1.14 | AB30: $1.11 | AC30: $1.08 | AD30: $1.06 | AE30: $1.08 | AF30: $1.06 | AG30: $1.08 | AH30: $1.07 | AI30: $1.08 | AJ30: $1.07 | AK30: $1.06 | AL30: $1.05 | AM30: $1.05
A31: Total fixed costs | C31: =SUM(C22:C29) -> $12,159 | D31: $19,142 | E31: $21,709 | F31: $23,998 | G31: $27,323 | H31: $29,822 | I31: $32,429 | J31: $35,160 | K31: $38,032 | L31: $46,056 | M31: $49,241 | N31: $54,096 | O31: $83,909 | P31: $89,505 | Q31: $95,501 | R31: $101,924 | S31: $114,804 | T31: $122,280 | U31: $137,792 | V31: $146,377 | W31: $161,574 | X31: $171,426 | Y31: $181,980 | Z31: $193,283 | AA31: $237,391 | AB31: $250,362 | AC31: $264,257 | AD31: $279,147 | AE31: $305,104 | AF31: $322,210 | AG31: $353,551 | AH31: $373,223 | AI31: $404,329 | AJ31: $426,980 | AK31: $451,300 | AL31: $477,421 | AM31: $503,242
A32: Net Profit
A33: Total Revenue | C33: =C14 -> $1,259 | D33: =D14 -> $2,540 | E33: $8,288 | F33: $13,169 | G33: $18,610 | H33: $24,683 | I33: $31,469 | J33: $39,059 | K33: $47,550 | L33: $57,049 | M33: $67,671 | N33: $79,541 | O33: $92,795 | P33: $107,579 | Q33: $124,052 | R33: $142,388 | S33: $162,775 | T33: $185,415 | U33: $210,531 | V33: $238,363 | W33: $269,172 | X33: $303,240 | Y33: $340,875 | Z33: $382,408 | AA33: $428,201 | AB33: $478,643 | AC33: $534,157 | AD33: $595,199 | AE33: $662,265 | AF33: $735,889 | AG33: $816,648 | AH33: $905,167 | AI33: $1,002,119 | AJ33: $1,108,232 | AK33: $1,224,290 | AL33: $1,351,141 | AM33: $1,489,695
A34: Total Expenses | C34: =C31+C20 -> $13,796 | D34: $22,412 | E34: $28,475 | F34: $34,492 | G34: $41,799 | H34: $48,561 | I34: $55,743 | J34: $63,398 | K34: $71,573 | L34: $85,317 | M34: $94,673 | N34: $106,187 | O34: $143,183 | P34: $156,526 | Q34: $170,872 | R34: $186,289 | S34: $208,849 | T34: $226,736 | U34: $253,436 | V34: $274,035 | W34: $302,122 | X34: $325,793 | Y34: $351,150 | Z34: $378,301 | AA34: $439,359 | AB34: $470,448 | AC34: $503,697 | AD34: $539,245 | AE34: $587,240 | AF34: $627,841 | AG34: $684,216 | AH34: $730,546 | AI34: $790,025 | AJ34: $842,858 | AK34: $899,267 | AL34: $959,488 | AM34: $1,021,532
A35: Net Profit | C35: =C33-C34 -> $(12,537) | D35: =D33-D34 -> $(19,871) | E35: $(20,186) | F35: $(21,323) | G35: $(23,189) | H35: $(23,878) | I35: $(24,274) | J35: $(24,339) | K35: $(24,024) | L35: $(28,268) | M35: $(27,002) | N35: $(26,645) | O35: $(50,388) | P35: $(48,947) | Q35: $(46,819) | R35: $(43,901) | S35: $(46,074) | T35: $(41,321) | U35: $(42,905) | V35: $(35,672) | W35: $(32,950) | X35: $(22,553) | Y35: $(10,276) | Z35: $4,108 | AA35: $(11,158) | AB35: $8,195 | AC35: $30,460 | AD35: $55,954 | AE35: $75,025 | AF35: $108,047 | AG35: $132,431 | AH35: $174,620 | AI35: $212,094 | AJ35: $265,374 | AK35: $325,024 | AL35: $391,652 | AM35: $468,163
A36: Cash Flow | C36: =SUM($C$35:C35) -> $(12,537) | D36: =SUM($C$35:D35) -> $(32,408) | E36: =SUM($C$35:E35) -> $(52,595) | F36: =SUM($C$35:F35) -> $(73,917) | G36: =SUM($C$35:G35) -> $(97,106) | H36: =SUM($C$35:H35) -> $(120,984) | I36: =SUM($C$35:I35) -> $(145,258) | J36: =SUM($C$35:J35) -> $(169,597) | K36: =SUM($C$35:K35) -> $(193,620) | L36: =SUM($C$35:L35) -> $(221,888) | M36: =SUM($C$35:M35) -> $(248,890) | N36: =SUM($C$35:N35) -> $(275,535) | O36: =SUM($C$35:O35) -> $(325,923) | P36: =SUM($C$35:P35) -> $(374,869) | Q36: =SUM($C$35:Q35) -> $(421,689) | R36: =SUM($C$35:R35) -> $(465,589) | S36: =SUM($C$35:S35) -> $(511,664) | T36: =SUM($C$35:T35) -> $(552,985) | U36: =SUM($C$35:U35) -> $(595,890) | V36: =SUM($C$35:V35) -> $(631,562) | W36: =SUM($C$35:W35) -> $(664,512) | X36: =SUM($C$35:X35) -> $(687,065) | Y36: =SUM($C$35:Y35) -> $(697,341) | Z36: =SUM($C$35:Z35) -> $(693,233) | AA36: =SUM($C$35:AA35) -> $(704,391) | AB36: =SUM($C$35:AB35) -> $(696,196) | AC36: =SUM($C$35:AC35) -> $(665,737) | AD36: =SUM($C$35:AD35) -> $(609,783) | AE36: =SUM($C$35:AE35) -> $(534,758) | AF36: =SUM($C$35:AF35) -> $(426,711) | AG36: =SUM($C$35:AG35) -> $(294,279) | AH36: =SUM($C$35:AH35) -> $(119,659) | AI36: =SUM($C$35:AI35) -> $92,435 | AJ36: =SUM($C$35:AJ35) -> $357,809 | AK36: =SUM($C$35:AK35) -> $682,833 | AL36: =SUM($C$35:AL35) -> $1,074,485 | AM36: =SUM($C$35:AM35) -> $1,542,648
C39: =SUM(C28:C29) -> $6,957 | D39: $13,575 | E39: $15,567 | F39: $17,543 | G39: $19,554 | H39: $21,629 | I39: $23,790 | J39: $26,053 | K39: $28,429 | L39: $30,927 | M39: $33,555 | N39: $36,318 | O39: $39,222 | P39: $42,271 | Q39: $45,468 | R39: $48,818 | S39: $52,321 | T39: $55,980 | U39: $59,798 | V39: $63,774 | W39: $67,909 | X39: $72,204 | Y39: $76,659 | Z39: $81,272 | AA39: $86,044 | AB39: $90,973 | AC39: $96,058 | AD39: $101,295 | AE39: $106,684 | AF39: $112,222 | AG39: $117,905 | AH39: $123,732 | AI39: $129,697 | AJ39: $135,799 | AK39: $142,032 | AL39: $148,393 | AM39: $159,401
C40: =C31-C39 -> $5,203 | D40: $5,568 | E40: $6,142 | F40: $6,454 | G40: $7,770 | H40: $8,194 | I40: $8,638 | J40: $9,107 | K40: $9,603 | L40: $15,129 | M40: $15,686 | N40: $17,778 | O40: $44,687 | P40: $47,234 | Q40: $50,032 | R40: $53,107 | S40: $62,483 | T40: $66,300 | U40: $77,995 | V40: $82,603 | W40: $93,665 | X40: $99,222 | Y40: $105,321 | Z40: $112,011 | AA40: $151,347 | AB40: $159,388 | AC40: $168,200 | AD40: $177,851 | AE40: $198,420 | AF40: $209,988 | AG40: $235,645 | AH40: $249,491 | AI40: $274,631 | AJ40: $291,182 | AK40: $309,269 | AL40: $329,028 | AM40: $343,842
C42: =C5*C9 -> 0 | D42: =D5*D9 -> 0 | E42: $2,980 | F42: $4,855 | G42: $7,034 | H42: $9,561 | I42: $12,486 | J42: $15,869 | K42: $19,773 | L42: $24,272 | M42: $29,445 | N42: $35,381 | O42: $42,180 | P42: $49,949 | Q42: $58,809 | R42: $68,894 | S42: $80,350 | T42: $93,337 | U42: $108,035 | V42: $124,638 | W42: $143,361 | X42: $164,439 | Y42: $188,130 | Z42: $214,716 | AA42: $244,506 | AB42: $277,838 | AC42: $315,078 | AD42: $356,630 | AE42: $402,930 | AF42: $454,456 | AG42: $511,724 | AH42: $575,299 | AI42: $645,793 | AJ42: $723,869 | AK42: $810,248 | AL42: $905,710 | AM42: $1,011,101
C43: =C11*C5 -> 719.35875 | D43: =D11*D5 -> 1460.298262 | E43: 3069.645172 | F43: 4835.296405 | G43: 6771.661462 | H43: 8897.107843 | I43: 11232.28861 | J43: 13799.33428 | K43: 16621.49156 | L43: 19722.9855 | M43: 23128.99061 | N43: 26865.65308 | O43: 30960.13504 | P43: 35440.66617 | Q43: 40336.59567 | R43: 45678.44118 | S43: 51497.93326 | T43: 57828.05501 | U43: 64703.07687 | V43: 72158.58689 | W43: 80231.5169 | X43: 88960.16486 | Y43: 98384.2139 | Z43: 108544.7484 | AA43: 119484.2673 | AB43: 131246.6953 | AC43: 143877.3917 | AD43: 157423.1578 | AE43: 171932.2426 | AF43: 187454.3468 | AG43: 204040.6262 | AH43: 221743.6942 | AI43: 240617.6227 | AJ43: 260717.9434 | AK43: 282101.6478 | AL43: 304827.1876 | AM43: 328954.474
C44: =C10*C5 -> 539.5190625 | D44: =D10*D5 -> 1080.117163 | E44: 2239.161978 | F44: 3478.47167 | G44: 4804.283669 | H44: 6225.15679 | I44: 7750.642918 | J44: 9390.649809 | K44: 11155.15319 | L44: 13054.07898 | M44: 15097.2656 | N44: 17294.46188 | O44: 19655.33872 | P44: 22189.50418 | Q44: 24906.51698 | R44: 27815.89681 | S44: 30927.13052 | T44: 34249.67445 | U44: 37792.95331 | V44: 41566.35596 | W44: 45579.22866 | X44: 49840.8663 | Y44: 54360.50197 | Z44: 59147.2953 | AA44: 64210.3199 | AB44: 69558.55013 | AC44: 75200.84756 | AD44: 81145.94729 | AE44: 87402.4442 | AF44: 93978.77949 | AG44: 100883.2275 | AH44: 108123.883 | AI44: 115708.6489 | AJ44: 123645.2246 | AK44: 131941.0951 | AL44: 140603.5207 | AM44: 149639.5278
B46: Referral Program | C46: =C28 -> $1,399 | D46: =D28 -> $2,459 | E46: $3,340 | F46: $4,124 | G46: $4,856 | H46: $5,567 | I46: $6,273 | J46: $6,988 | K46: $7,720 | L46: $8,476 | M46: $9,261 | N46: $10,079 | O46: $10,933 | P46: $11,825 | Q46: $12,759 | R46: $13,736 | S46: $14,756 | T46: $15,822 | U46: $16,934 | V46: $18,093 | W46: $19,299 | X46: $20,554 | Y46: $21,856 | Z46: $23,207 | AA46: $24,607 | AB46: $26,054 | AC46: $27,549 | AD46: $29,091 | AE46: $30,680 | AF46: $32,316 | AG46: $33,997 | AH46: $35,723 | AI46: $37,493 | AJ46: $39,306 | AK46: $41,161 | AL46: $43,056 | AM46: $49,514
B47: Ambassador Program | C47: =C29 -> $5,558 | D47: =D29 -> $11,115 | E47: $12,227 | F47: $13,420 | G47: $14,697 | H47: $16,062 | I47: $17,517 | J47: $19,065 | K47: $20,709 | L47: $22,451 | M47: $24,294 | N47: $26,239 | O47: $28,289 | P47: $30,445 | Q47: $32,709 | R47: $35,082 | S47: $37,565 | T47: $40,159 | U47: $42,864 | V47: $45,681 | W47: $48,610 | X47: $51,650 | Y47: $54,802 | Z47: $58,065 | AA47: $61,438 | AB47: $64,920 | AC47: $68,509 | AD47: $72,204 | AE47: $76,004 | AF47: $79,906 | AG47: $83,908 | AH47: $88,008 | AI47: $92,204 | AJ47: $96,493 | AK47: $100,871 | AL47: $105,337 | AM47: $109,886
B48: User Rewards | C48: =(C17+C16)*C5 -> $1,619 | D48: =(D17+D16)*D5 -> $3,234 | E48: $6,691 | F48: $10,378 | G48: $14,316 | H48: $18,532 | I48: $23,058 | J48: $27,926 | K48: $33,172 | L48: $38,830 | M48: $44,934 | N48: $51,520 | O48: $58,627 | P48: $66,291 | Q48: $74,552 | R48: $83,451 | S48: $93,030 | T48: $103,333 | U48: $114,407 | V48: $126,298 | W48: $139,059 | X48: $152,740 | Y48: $167,398 | Z48: $183,091 | AA48: $199,878 | AB48: $217,825 | AC48: $236,997 | AD48: $257,465 | AE48: $279,303 | AF48: $302,588 | AG48: $327,402 | AH48: $353,830 | AI48: $381,961 | AJ48: $411,890 | AK48: $443,715 | AL48: $477,542 | AM48: $513,478
B49: Updates/Maintenance | C49: =C23 -> $1,500 | D49: =D23 -> $1,575 | E49: $1,654 | F49: $1,736 | G49: $1,823 | H49: $1,914 | I49: $2,010 | J49: $2,111 | K49: $2,216 | L49: $2,327 | M49: $2,443 | N49: $2,566 | O49: $2,694 | P49: $2,828 | Q49: $2,970 | R49: $3,118 | S49: $3,274 | T49: $3,438 | U49: $3,610 | V49: $3,790 | W49: $3,980 | X49: $4,179 | Y49: $4,388 | Z49: $4,607 | AA49: $4,838 | AB49: $5,080 | AC49: $5,334 | AD49: $5,600 | AE49: $5,880 | AF49: $6,174 | AG49: $6,483 | AH49: $6,807 | AI49: $7,147 | AJ49: $7,505 | AK49: $7,880 | AL49: $8,274 | AM49: $8,688
B50: Server, Data, Licenses | C50: =C22+C25+C26+(C18*C5) -> $2,518 | D50: =D22+D25+D26+(D18*D5) -> $2,573 | E50: $2,650 | F50: $2,731 | G50: $2,815 | H50: $2,904 | I50: $2,996 | J50: $3,094 | K50: $3,196 | L50: $8,305 | M50: $8,418 | N50: $10,038 | O50: $11,665 | P50: $11,798 | Q50: $11,938 | R50: $12,086 | S50: $16,241 | T50: $16,405 | U50: $16,577 | V50: $16,757 | W50: $18,947 | X50: $19,146 | Y50: $19,355 | Z50: $19,574 | AA50: $24,803 | AB50: $25,042 | AC50: $25,293 | AD50: $25,555 | AE50: $25,828 | AF50: $26,113 | AG50: $36,410 | AH50: $36,719 | AI50: $37,041 | AJ50: $37,376 | AK50: $37,724 | AL50: $38,085 | AM50: $38,461
B51: HR | C51: =-C24 -> $(1,000) | D51: =-D24 -> $(1,050) | E51: $(1,103) | F51: $(1,158) | G51: $(2,216) | H51: $(2,376) | I51: $(2,550) | J51: $(2,738) | K51: $(2,942) | L51: $(3,162) | M51: $(3,400) | N51: $(3,659) | O51: $(28,719) | P51: $(30,902) | Q51: $(33,319) | R51: $(35,995) | S51: $(40,955) | T51: $(44,337) | U51: $(55,578) | V51: $(59,714) | W51: $(68,282) | X51: $(73,326) | Y51: $(78,889) | Z51: $(85,023) | AA51: $(118,781) | AB51: $(126,221) | AC51: $(134,408) | AD51: $(143,411) | AE51: $(163,307) | AF51: $(174,177) | AG51: $(189,112) | AH51: $(202,209) | AI51: $(226,573) | AJ51: $(242,321) | AK51: $(259,576) | AL51: $(278,476) | AM51: $(292,400)
B56: Revenue ADs | C56: =C9*C$5 -> 0 | D56: =D9*D$5 -> 0 | E56: 2979.58715 | F56: 4855.279928 | G56: 7034.118288 | H56: 9560.63065 | I56: 12486.16866 | J56: 15868.736 | K56: 19773.22235 | L56: 24271.87734 | M56: 29444.93838 | N56: 35381.3687 | O56: 42179.6848 | P56: 49948.8642 | Q56: 58809.33102 | R56: 68894.02034 | S56: 80349.52451 | T56: 93337.32569 | U56: 108035.1199 | V56: 124638.2381 | W56: 143361.1716 | X56: 164439.2072 | Y56: 188130.1804 | Z56: 214716.3545 | AA56: 244506.4332 | AB56: 277837.7154 | AC56: 315078.4028 | AD56: 356630.0676 | AE56: 402930.2941 | AF56: 454455.5014 | AG56: 511723.9626 | AH56: 575299.03 | AI56: 645792.5815 | AJ56: 723868.7007 | AK56: 810247.6065 | AL56: 905709.8477
B57: Revenue sportsbook | C57: =C10*C$5 -> 539.5190625 | D57: 1080.117163 | E57: 2239.161978 | F57: 3478.47167 | G57: 4804.283669 | H57: 6225.15679 | I57: 7750.642918 | J57: 9390.649809 | K57: 11155.15319 | L57: 13054.07898 | M57: 15097.2656 | N57: 17294.46188 | O57: 19655.33872 | P57: 22189.50418 | Q57: 24906.51698 | R57: 27815.89681 | S57: 30927.13052 | T57: 34249.67445 | U57: 37792.95331 | V57: 41566.35596 | W57: 45579.22866 | X57: 49840.8663 | Y57: 54360.50197 | Z57: 59147.2953 | AA57: 64210.3199 | AB57: 69558.55013 | AC57: 75200.84756 | AD57: 81145.94729 | AE57: 87402.4442 | AF57: 93978.77949 | AG57: 100883.2275 | AH57: 108123.883 | AI57: 115708.6489 | AJ57: 123645.2246 | AK57: 131941.0951 | AL57: 140603.5207
B58: Revenue promos | C58: 719.35875 | D58: 1460.298262 | E58: 3069.645172 | F58: 4835.296405 | G58: 6771.661462 | H58: 8897.107843 | I58: 11232.28861 | J58: 13799.33428 | K58: 16621.49156 | L58: 19722.9855 | M58: 23128.99061 | N58: 26865.65308 | O58: 30960.13504 | P58: 35440.66617 | Q58: 40336.59567 | R58: 45678.44118 | S58: 51497.93326 | T58: 57828.05501 | U58: 64703.07687 | V58: 72158.58689 | W58: 80231.5169 | X58: 88960.16486 | Y58: 98384.2139 | Z58: 108544.7484 | AA58: 119484.2673 | AB58: 131246.6953 | AC58: 143877.3917 | AD58: 157423.1578 | AE58: 171932.2426 | AF58: 187454.3468 | AG58: 204040.6262 | AH58: 221743.6942 | AI58: 240617.6227 | AJ58: 260717.9434 | AK58: 282101.6478 | AL58: 304827.1876

Sheet Annual High Level Summaries
A1: High Level Projections -- Big Picture | B1: Year 1 | C1: Year 2 | D1: Year 3
A2: Active Users - Average | B2: =AVERAGE('3 Year Pro Forma'!C5:N5) -> 25,385 | C2: =AVERAGE('3 Year Pro Forma'!O5:Z5) -> 122,156 | D2: =AVERAGE('3 Year Pro Forma'!AA5:AL5) -> 321,334
A3: Active Users - Year End | B3: ='3 Year Pro Forma'!N5 -> 57,018 | C3: ='3 Year Pro Forma'!Z5 -> 192,677 | D3: ='3 Year Pro Forma'!AL5 -> 452,566
A4: Revenue | B4: =SUM('3 Year Pro Forma'!C14:N14) -> $390,889 | C4: =SUM('3 Year Pro Forma'!O14:Z14) -> $2,559,594 | D4: =SUM('3 Year Pro Forma'!AA14:AL14) -> $9,841,949
A5: Average Monthly User Rewards Expenses
A6: Average Monthly Acquisition Expenses
A7: Average Monthly Operational Expenses
A8: Expenses (acquisition) | B8: =SUM('3 Year Pro Forma'!C27:N29) -> $288,747 | C8: =SUM('3 Year Pro Forma'!O28:Z29) -> $705,695 | D8: =SUM('3 Year Pro Forma'!AA28:AL29) -> $1,390,834
A9: Expenses (variable -- server + rewards) | B9: =SUM('3 Year Pro Forma'!C20:N20) -> $277,255 | C9: =SUM('3 Year Pro Forma'!O20:Z20) -> $1,376,937 | D9: =SUM('3 Year Pro Forma'!AA20:AL20) -> $3,928,956
A10: Expenses (fixed -- HR + operational) | B10: =SUM('3 Year Pro Forma'!C22:N26) -> $100,422 | C10: =SUM('3 Year Pro Forma'!O22:Z26) -> $853,747 | D10: =SUM('3 Year Pro Forma'!AA22:AL26) -> $2,673,001
A11: Expenses | B11: =SUM(B8:B10) -> $666,424 | C11: =SUM(C8:C10) -> $2,936,380 | D11: $7,992,792
A12: Net Profit | B12: =B4-B8-B9-B10 -> $(275,535) | C12: =C4-C8-C9-C10 -> $(376,785) | D12: $1,849,158
A13: Cost to Acquire Active User (CAC) | B13: =B8/'3 Year Pro Forma'!N5 -> $5.06 | C13: =C8/('3 Year Pro Forma'!Z5-'3 Year Pro Forma'!N5) -> $5.20 | D13: =D8/('3 Year Pro Forma'!AL5-'3 Year Pro Forma'!Z5) -> $5.35
A14: Revenue per Active User (year sum) | B14: =B21*12 -> $15.40 | C14: =C21*12 -> $20.95 | D14: $30.63
A17: High Level Projections -- Revenue | B17: Year 1 | C17: Year 2 | D17: Year 3
A18: Average Monthly Advertising Rev p/ user | B18: =SUM('3 Year Pro Forma'!C56:N56)/$B$2/12 -> $0.53 | C18: =SUM('3 Year Pro Forma'!O56:Z56)/$C$2/12 -> $0.91 | D18: =SUM('3 Year Pro Forma'!AA56:AL56)/$D$2/12 -> $1.61
A19: Average Monthly Sportsbook Affiliate Rev p/ user | B19: =SUM('3 Year Pro Forma'!C57:N57)/$B$2/12 -> $0.30 | C19: =SUM('3 Year Pro Forma'!O57:Z57)/$C$2/12 -> $0.31 | D19: =SUM('3 Year Pro Forma'!AA57:AL57)/$D$2/12 -> $0.31
A20: Average Monthly Promo Commision Rev p/ user | B20: =SUM('3 Year Pro Forma'!C58:N58)/$B$2/12 -> $0.45 | C20: =SUM('3 Year Pro Forma'!O58:Z58)/$C$2/12 -> $0.53 | D20: =SUM('3 Year Pro Forma'!AA58:AL58)/$D$2/12 -> $0.63
A21: Total Average Monthly Revenue p/ user | B21: =SUM(B18:B20) -> $1.28 | C21: =SUM(C18:C20) -> $1.75 | D21: $2.55
A22: Average Users Active | B22: =B2 -> 25,385 | C22: =C2 -> 122,156 | D22: =D2 -> 321,334
A23: Revenue Generated in Period | B23: =B22*B21*12 -> $390,889 | C23: =C22*C21*12 -> $2,559,594 | D23: $9,841,949
A24: Revenue to Date | B24: =SUM($B$23:B23) -> $390,889 | C24: =SUM($B$23:C23) -> $2,950,483 | D24: =SUM($B$23:D23) -> $12,792,433
F25: 2
A26: High Level Projections -- Expenses | B26: Year 1 | C26: Year 2 | D26: Year 3
A27: Average Monthly Expenses on Referral Program | B27: =SUM('3 Year Pro Forma'!C28:N28)/12 -> $5,878 | C27: =SUM('3 Year Pro Forma'!O28:Z28)/12 -> $16,648 | D27: =SUM('3 Year Pro Forma'!AA28:AL28)/12 -> $33,419
A28: Average Monthly Expenses on Ambassador Program | B28: =SUM('3 Year Pro Forma'!C29:N29)/12 -> $16,946 | C28: =SUM('3 Year Pro Forma'!O29:Z29)/12 -> $42,160 | D28: =SUM('3 Year Pro Forma'!AA29:AL29)/12 -> $82,483
A29: Average Monthly Expenses on Organic Acquisition | B29: =SUM('3 Year Pro Forma'!C27:N27)/12 -> $1,237 | C29: =SUM('3 Year Pro Forma'!O27:Z27)/12 -> $3,409 | D29: =SUM('3 Year Pro Forma'!AA27:AL27)/12 -> $6,787
A30: Average Monthly Expenses on In-app Rewards | B30: =SUM('3 Year Pro Forma'!C20:N20)/12 -> $23,105 | C30: =SUM('3 Year Pro Forma'!O20:Z20)/12 -> $114,745 | D30: =SUM('3 Year Pro Forma'!AA20:AL20)/12 -> $327,413
A31: Average Monthly Expenses on Updates/Maintenance | B31: =SUM('3 Year Pro Forma'!C23:N23)/12 -> $1,990 | C31: =SUM('3 Year Pro Forma'!O23:Z23)/12 -> $3,573 | D31: =SUM('3 Year Pro Forma'!AA23:AL23)/12 -> $6,417
A32: Average Monthly Spend on Server, Data, Licenses | B32: =(SUM('3 Year Pro Forma'!C22:N22)+SUM('3 Year Pro Forma'!C25:N25))/12 -> $4,099 | C32: =(SUM('3 Year Pro Forma'!O22:Z22)+SUM('3 Year Pro Forma'!O25:Z25))/12 -> $14,653 | D32: =(SUM('3 Year Pro Forma'!AA22:AL22)+SUM('3 Year Pro Forma'!AA25:AL25))/12 -> $28,119
A33: Average Monthly Expenses on HR | B33: =SUM('3 Year Pro Forma'!C24:N24)/12 -> $2,279 | C33: =SUM('3 Year Pro Forma'!O24:Z24)/12 -> $52,920 | D33: =SUM('3 Year Pro Forma'!AA24:AL24)/12 -> $188,214
A34: Total Average Monthly Expenses | B34: =SUM(B27:B33) -> $55,535 | C34: =SUM(C27:C33) -> $248,108 | D34: $672,853
A35: Total Expenses in Period | B35: =B34*12 -> $666,424 | C35: =C34*12 -> $2,977,293 | D35: $8,074,231
A36: Total Expenses to Date | B36: =SUM($B$35:B35) -> $666,424 | C36: =SUM($B$35:C35) -> $3,643,717 | D36: =SUM($B$35:D35) -> $11,717,948
A38: High Level Projections -- User Growth | B38: Year 1 | C38: Year 2 | D38: Year 3
A39: Average Cost of Ambassador Download | B39: =Assumptions!B6 -> $2.22 | C39: =B39 -> $2.22 | D39: =C39 -> $2.22
A40: Number of Ambassador Downloads | B40: =SUM('3 Year Pro Forma'!C29:N29)/B39 -> 91,475 | C40: =SUM('3 Year Pro Forma'!M29:Z29)/C39 -> $250,308 | D40: =SUM('3 Year Pro Forma'!AA29:AL29)/D39 -> $445,239
A41: Average Cost of Referral Download | B41: =Assumptions!B12 -> $1.24 | C41: =B41 -> $1.24 | D41: =C41 -> $1.24
A42: Number of Referral Downloads | B42: =SUM('3 Year Pro Forma'!C28:N28)/B41 -> 56,719 | C42: =SUM('3 Year Pro Forma'!M28:Z28)/C41 -> 176,179 | D42: =SUM('3 Year Pro Forma'!AA28:AL28)/D41 -> 322,451
A43: Average Cost of Organic User Download | B43: =Assumptions!$B$17 -> $0.54 | C43: =Assumptions!$B$17 -> $0.54 | D43: =Assumptions!$B$17 -> $0.54
A44: Number of Organic Downloads | B44: =SUM('Cohort Analysis'!C4:M4)+'Cohort Analysis'!C4/2 -> 27,415 | C44: =SUM('Cohort Analysis'!N4:Y4) -> 75,530 | D44: =SUM('Cohort Analysis'!Z4:AK4) -> 150,346
A45: Total New User Downloads | B45: =B40+B42+B44 -> 175,608 | C45: =C40+C42+C44 -> 502,017 | D45: 918,036
A46: Cost per User Download | B46: =(B39*B40+B41*B42+B43*B44)/B45 -> $1.64 | C46: =(C39*C40+C41*C42+C43*C44)/C45 -> $1.63 | D46: $1.60
A47: Total User Churn | B47: =B45-B3 -> 118,591 | C47: =C45+B3-C3 -> 366,358 | D47: =D45+C3-D3 -> 658,147
A48: Users at End of Period | B48: =B45-B47 -> 57,018 | C48: =C45-C47+B48 -> 192,677 | D48: =D45-D47+C48 -> 452,566

Sheet 6 Month High Level Summaries
A1: High Level Projections -- Big Picture | B1: Months 1-6 | C1: Months 7-12 | D1: Months 13-18 | E1: Months 19-24 | F1: Months 24-30 | G1: Months 31-36
A2: Average Users Active | B2: =AVERAGE('3 Year Pro Forma'!C5:H5) -> 10,167 | C2: =AVERAGE('3 Year Pro Forma'!I5:N5) -> 40,603 | D2: =AVERAGE('3 Year Pro Forma'!O5:T5) -> 87,442 | E2: =AVERAGE('3 Year Pro Forma'!U5:Z5) -> 156,871 | F2: =AVERAGE('3 Year Pro Forma'!AA5:AF5) -> 255,040 | G2: =AVERAGE('3 Year Pro Forma'!AG5:AL5) -> 387,628
A3: Average Monthly Revenue per user | B3: =B4/B2 -> $1.12 | C3: =C4/C2 -> $1.32 | D3: $1.55 | E3: $1.85 | F3: $2.24 | G3: $2.76
A4: Average Monthly Revenue | B4: =SUM('3 Year Pro Forma'!C14:H14)/6 -> $11,425 | C4: =SUM('3 Year Pro Forma'!I14:N14)/6 -> $53,723 | D4: =SUM('3 Year Pro Forma'!O14:T14)/6 -> $135,834 | E4: =SUM('3 Year Pro Forma'!U14:Z14)/6 -> $290,765 | F4: =SUM('3 Year Pro Forma'!AA14:AF14)/6 -> $572,392 | G4: =SUM('3 Year Pro Forma'!AG14:AL14)/6 -> $1,067,933
A5: Average Monthly User Rewards Expenses | B5: =SUM('3 Year Pro Forma'!C20:H20)/6 -> $9,230 | C5: =SUM('3 Year Pro Forma'!I20:N20)/6 -> $36,979 | D5: =SUM('3 Year Pro Forma'!O20:T20)/6 -> $80,755 | E5: =SUM('3 Year Pro Forma'!U20:Z20)/6 -> $148,734 | F5: =SUM('3 Year Pro Forma'!AA20:AF20)/6 -> $251,560 | G5: =SUM('3 Year Pro Forma'!AG20:AL20)/6 -> $403,266
A6: Average Monthly Acquisition Expenses | B6: =SUM('3 Year Pro Forma'!C39:H39)/6 -> $15,804 | C6: =SUM('3 Year Pro Forma'!I39:N39)/6 -> $29,845 | D6: =SUM('3 Year Pro Forma'!O39:T39)/6 -> $47,347 | E6: =SUM('3 Year Pro Forma'!U39:Z39)/6 -> $70,269 | F6: =SUM('3 Year Pro Forma'!AA39:AF39)/6 -> $98,879 | G6: =SUM('3 Year Pro Forma'!AG39:AL39)/6 -> $132,926
A7: Average Monthly Operational Expenses | B7: =SUM('3 Year Pro Forma'!C40:H40)/6 -> $6,555 | C7: =SUM('3 Year Pro Forma'!I40:N40)/6 -> $12,657 | D7: =SUM('3 Year Pro Forma'!O40:T40)/6 -> $53,974 | E7: =SUM('3 Year Pro Forma'!U40:Z40)/6 -> $95,136 | F7: =SUM('3 Year Pro Forma'!AA40:AF40)/6 -> $177,532 | G7: =SUM('3 Year Pro Forma'!AG40:AL40)/6 -> $281,541
A8: Average Monthly Expenses | B8: =SUM(B5:B7) -> $31,589 | C8: =SUM(C5:C7) -> $79,482 | D8: $182,076 | E8: $314,140 | F8: $527,972 | G8: $817,733
A9: Average Monthly Net Profit | B9: =B4-B5-B6-B7 -> $(20,164) | C9: $(25,759) | D9: $(46,242) | E9: $(23,375) | F9: $44,420 | G9: $250,199
A10: Period total Net Profit | B10: =B9*6 -> $(120,984) | C10: =C9*6 -> $(154,551) | D10: $(277,450) | E10: $(140,248) | F10: $266,523 | G10: $1,501,196
A11: Net Profit | B11: =SUM($B$10:B10) -> $(120,984) | C11: =SUM($B$10:C10) -> $(275,535) | D11: =SUM($B$10:D10) -> $(552,985) | E11: =SUM($B$10:E10) -> $(693,233) | F11: =SUM($B$10:F10) -> $(426,711) | G11: =SUM($B$10:G10) -> $1,074,485
A12: Average Customer Aquisition Cost (CAC) | B12: =B41 -> $1.44 | C12: =C41 -> $1.34 | D12: $1.33 | E12: $1.32 | F12: $1.31 | G12: $1.31
A14: High Level Projections -- Revenue | B14: Months 1-6 | C14: Months 7-12 | D14: Months 13-18 | E14: Months 19-24 | F14: Months 24-30 | G14: Months 31-36
A15: Average Monthly Advertising Rev p/ user | B15: =AVERAGE('3 Year Pro Forma'!C42:H42)/'6 Month High Level Summaries'!B$2 -> $0.40 | C15: =AVERAGE('3 Year Pro Forma'!I42:N42)/'6 Month High Level Summaries'!C$2 -> $0.56 | D15: =AVERAGE('3 Year Pro Forma'!O42:T42)/'6 Month High Level Summaries'!D$2 -> $0.75 | E15: =AVERAGE('3 Year Pro Forma'!U42:Z42)/'6 Month High Level Summaries'!E$2 -> $1.00 | F15: =AVERAGE('3 Year Pro Forma'!AA42:AF42)/'6 Month High Level Summaries'!F$2 -> $1.34 | G15: =AVERAGE('3 Year Pro Forma'!AG42:AL42)/'6 Month High Level Summaries'!G$2 -> $1.79
A16: Average Monthly Promo Commision Rev p/ user | B16: =AVERAGE('3 Year Pro Forma'!C43:H43)/'6 Month High Level Summaries'!B$2 -> $0.42 | C16: =AVERAGE('3 Year Pro Forma'!I43:N43)/'6 Month High Level Summaries'!C$2 -> $0.46 | D16: =AVERAGE('3 Year Pro Forma'!O43:T43)/'6 Month High Level Summaries'!D$2 -> $0.50 | E16: =AVERAGE('3 Year Pro Forma'!U43:Z43)/'6 Month High Level Summaries'!E$2 -> $0.55 | F16: =AVERAGE('3 Year Pro Forma'!AA43:AF43)/'6 Month High Level Summaries'!F$2 -> $0.60 | G16: =AVERAGE('3 Year Pro Forma'!AG43:AL43)/'6 Month High Level Summaries'!G$2 -> $0.65
A17: Average Monthly Sportsbook Affiliate Rev p/ user | B17: =AVERAGE('3 Year Pro Forma'!C44:H44)/'6 Month High Level Summaries'!B$2 -> $0.30 | C17: =AVERAGE('3 Year Pro Forma'!I44:N44)/'6 Month High Level Summaries'!C$2 -> $0.30 | D17: =AVERAGE('3 Year Pro Forma'!O44:T44)/'6 Month High Level Summaries'!D$2 -> $0.30 | E17: =AVERAGE('3 Year Pro Forma'!U44:Z44)/'6 Month High Level Summaries'!E$2 -> $0.31 | F17: =AVERAGE('3 Year Pro Forma'!AA44:AF44)/'6 Month High Level Summaries'!F$2 -> $0.31 | G17: =AVERAGE('3 Year Pro Forma'!AG44:AL44)/'6 Month High Level Summaries'!G$2 -> $0.31
A18: Total Average Monthly Revenue p/ user | B18: =SUM(B15:B17) -> $1.12 | C18: =SUM(C15:C17) -> $1.32 | D18: $1.55 | E18: $1.85 | F18: $2.24 | G18: $2.76
A19: Average Users Active | B19: =B2 -> 10,167 | C19: =C2 -> 40,603 | D19: 87,442 | E19: 156,871 | F19: 255,040 | G19: 387,628
A20: Revenue Generated in Period | B20: =B4*6 -> $68,550 | C20: =C4*6 -> $322,339 | D20: $815,005 | E20: $1,744,590 | F20: $3,434,353 | G20: $6,407,596
A21: Revenue to Date | B21: =SUM($B$20:B20) -> $68,550 | C21: =SUM($B$20:C20) -> $390,889 | D21: =SUM($B$20:D20) -> $1,205,894 | E21: =SUM($B$20:E20) -> $2,950,483 | F21: =SUM($B$20:F20) -> $6,384,837 | G21: =SUM($B$20:G20) -> $12,792,433
A23: High Level Projections -- Expenses | B23: Months 1-6 | C23: Months 7-12 | D23: Months 13-18 | E23: Months 19-24 | F23: Months 24-30 | G23: Months 31-36
A24: Average Monthly Expenses on Referral Program | B24: =AVERAGE('3 Year Pro Forma'!C46:H46) -> $3,624 | C24: =AVERAGE('3 Year Pro Forma'!I46:N46) -> $8,133 | D24: =AVERAGE('3 Year Pro Forma'!O46:T46) -> $13,305 | E24: =AVERAGE('3 Year Pro Forma'!U46:Z46) -> $19,991 | F24: =AVERAGE('3 Year Pro Forma'!AA46:AF46) -> $28,383 | G24: =AVERAGE('3 Year Pro Forma'!AG46:AL46) -> $38,456
A25: Average Monthly Expenses on Ambassador Program | B25: =AVERAGE('3 Year Pro Forma'!C47:H47) -> $12,180 | C25: =AVERAGE('3 Year Pro Forma'!I47:N47) -> $21,713 | D25: =AVERAGE('3 Year Pro Forma'!O47:T47) -> $34,042 | E25: =AVERAGE('3 Year Pro Forma'!U47:Z47) -> $50,279 | F25: =AVERAGE('3 Year Pro Forma'!AA47:AF47) -> $70,497 | G25: =AVERAGE('3 Year Pro Forma'!AG47:AL47) -> $94,470
A26: Average Monthly Expenses on User Rewards | B26: =AVERAGE('3 Year Pro Forma'!C48:H48) -> $9,128 | C26: =AVERAGE('3 Year Pro Forma'!I48:N48) -> $36,573 | D26: =AVERAGE('3 Year Pro Forma'!O48:T48) -> $79,881 | E26: =AVERAGE('3 Year Pro Forma'!U48:Z48) -> $147,166 | F26: =AVERAGE('3 Year Pro Forma'!AA48:AF48) -> $249,010 | G26: =AVERAGE('3 Year Pro Forma'!AG48:AL48) -> $399,390
A27: Average Monthly Expenses on Updates/Maintenance | B27: =AVERAGE('3 Year Pro Forma'!C49:H49) -> $1,700 | C27: =AVERAGE('3 Year Pro Forma'!I49:N49) -> $2,279 | D27: =AVERAGE('3 Year Pro Forma'!O49:T49) -> $3,054 | E27: =AVERAGE('3 Year Pro Forma'!U49:Z49) -> $4,092 | F27: =AVERAGE('3 Year Pro Forma'!AA49:AF49) -> $5,484 | G27: =AVERAGE('3 Year Pro Forma'!AG49:AL49) -> $7,349
A28: Average Monthly Spend on Server, Data, Licenses | B28: =AVERAGE('3 Year Pro Forma'!C50:H50) -> $2,699 | C28: =AVERAGE('3 Year Pro Forma'!I50:N50) -> $6,008 | D28: =AVERAGE('3 Year Pro Forma'!O50:T50) -> $13,355 | E28: =AVERAGE('3 Year Pro Forma'!U50:Z50) -> $18,393 | F28: =AVERAGE('3 Year Pro Forma'!AA50:AF50) -> $25,439 | G28: =AVERAGE('3 Year Pro Forma'!AG50:AL50) -> $37,226
A29: Average Monthly Expenses on HR | B29: =-AVERAGE('3 Year Pro Forma'!C51:H51) -> $1,484 | C29: =-AVERAGE('3 Year Pro Forma'!I51:N51) -> $3,075 | D29: =-AVERAGE('3 Year Pro Forma'!O51:T51) -> $35,704 | E29: =-AVERAGE('3 Year Pro Forma'!U51:Z51) -> $70,135 | F29: =-AVERAGE('3 Year Pro Forma'!AA51:AF51) -> $143,384 | G29: =-AVERAGE('3 Year Pro Forma'!AG51:AL51) -> $233,044
A30: Total Average Monthly Expenses | B30: =SUM(B24:B29) -> $30,815 | C30: =SUM(C24:C29) -> $77,781 | D30: $179,341 | E30: $310,055 | F30: $522,196 | G30: $809,936
A31: Total Expenses in Period | B31: =SUM(B24:B29)*6 -> $184,890 | C31: =SUM(C24:C29)*6 -> $466,684 | D31: $1,076,047 | E31: $1,860,332 | F31: $3,133,177 | G31: $4,859,614
A32: Total Expenses to Date | B32: =SUM($B$31:B31) -> $184,890 | C32: =SUM($B$31:C31) -> $651,574 | D32: =SUM($B$31:D31) -> $1,727,621 | E32: =SUM($B$31:E31) -> $3,587,954 | F32: =SUM($B$31:F31) -> $6,721,131 | G32: =SUM($B$31:G31) -> $11,580,745
A34: High Level Projections -- User Growth | B34: Months 1-6 | C34: Months 7-12 | D34: Months 13-18 | E34: Months 19-24 | F34: Months 24-30 | G34: Months 31-36
A35: Average Monthly Ambassador Conversions | B35: =AVERAGE('Ambassador Cost Analysis'!B3:G3) -> 6,375 | C35: =AVERAGE('Ambassador Cost Analysis'!H3:M3) -> 10,575 | D35: =AVERAGE('Ambassador Cost Analysis'!N3:S3) -> 16,405 | E35: =AVERAGE('Ambassador Cost Analysis'!T3:Y3) -> 24,009 | F35: =AVERAGE('Ambassador Cost Analysis'!Z3:AE3) -> 33,396 | G35: =AVERAGE('Ambassador Cost Analysis'!AF3:AK3) -> 44,443
A36: Average Cost of Ambassador Conversion | B36: =AVERAGE('Ambassador Cost Analysis'!B4:G4) -> $2.22 | C36: =B36 -> $2.22 | D36: =C36 -> $2.22 | E36: $2.22 | F36: $2.22 | G36: $2.22
A37: Average Monthly Referral Conversions | B37: =AVERAGE('Cohort Analysis'!C3:H3) -> 2,914 | C37: =AVERAGE('Cohort Analysis'!I3:N3) -> 6,539 | D37: =AVERAGE('Cohort Analysis'!O3:T3) -> 10,698 | E37: =AVERAGE('Cohort Analysis'!U3:Z3) -> 16,074 | F37: =AVERAGE('Cohort Analysis'!AA3:AF3) -> 22,821 | G37: =AVERAGE('Cohort Analysis'!AG3:AL3) -> 30,921
A38: Average Cost of Referral Conversion | B38: =('Referral Rate and Payout '!D16) -> $0.62 | C38: =B38 -> $0.62 | D38: =C38 -> $0.62 | E38: $0.62 | F38: $0.62 | G38: $0.62
A39: Average Monthly Organic User Acquisition | B39: =AVERAGE('Cohort Analysis'!C4:H4) -> 1,778 | C39: =AVERAGE('Cohort Analysis'!I4:N4) -> 3,423 | D39: =AVERAGE('Cohort Analysis'!O4:T4) -> 5,421 | E39: =AVERAGE('Cohort Analysis'!U4:Z4) -> 8,017 | F39: =AVERAGE('Cohort Analysis'!AA4:AF4) -> 11,243 | G39: =AVERAGE('Cohort Analysis'!AG4:AL4) -> 15,073
A40: Average Monthly Total New User Sign-Ups | B40: =B39+B37+B35 -> 11,068 | C40: =C39+C37+C35 -> 20,536 | D40: 32,524 | E40: 48,099 | F40: 67,461 | G40: 90,436
A41: Overall CPA | B41: =((B35*B36)+(B37*B38))/(B35+B37+B39) -> $1.44 | C41: =((C35*C36)+(C37*C38))/(C35+C37+C39) -> $1.34 | D41: $1.33 | E41: $1.32 | F41: $1.31 | G41: $1.31
A42: Average Monthly Churned Users | B42: =AVERAGE('Cohort Analysis'!C12:H12) -> 6,788 | C42: =AVERAGE('Cohort Analysis'!I12:N12) -> 14,027 | D42: =AVERAGE('Cohort Analysis'!O12:T12) -> 22,692 | E42: =AVERAGE('Cohort Analysis'!U12:Z12) -> 33,894 | F42: =AVERAGE('Cohort Analysis'!AA12:AF12) -> 47,897 | G42: =AVERAGE('Cohort Analysis'!AG12:AL12) -> 64,632
A43: Average Monthly Total User Growth | B43: =B40-B42 -> 4,280 | C43: =C40-C42 -> 6,509 | D43: 9,832 | E43: 14,205 | F43: 19,564 | G43: 25,804
A44: Total User Growth in period | B44: =B43*6 -> 25,681 | C44: =C43*6 -> 39,056 | D44: 58,994 | E44: 85,231 | F44: 117,383 | G44: 154,826
A45: User Count at End of Period | B45: =SUM($B$44:B44) -> 25,681 | C45: =SUM($B$44:C44) -> 64,737 | D45: =SUM($B$44:D44) -> 123,730 | E45: =SUM($B$44:E44) -> 208,961 | F45: =SUM($B$44:F44) -> 326,344 | G45: =SUM($B$44:G44) -> 481,170

Sheet Loyalty Marketplace Assumptions
A1: Number | B1: Type | C1: Economic +/- when redeemed | D1: Expected user averages p month
A2: Good type 1 | B2: Cash-back | C2: positive -- 5% of final purchase | D2: $0.40
A3: Good type 2 | B3: Raffle entriees | C3: 0 | D3: 0
A4: Good type 4 | B4: Merch | C4: negative –– COGS | D4: $0.00 | E4: <-- not going to launch with this
A5: Good type 3 | B5: Collectibles | C5: 0 | D5: 0 | E5: <- not launching with this
A7: Loyalty Marketplace Net +/- | C7: Loyalty Marketplace + | D7: Loyalty Marketplace -
A8: =SUM(D2:D5) -> $0.40 | C8: =D2 -> $0.40 | D8: =D4 -> $0.00

Sheet LTV
A1: Expected LTV | C1: 1 | D1: 2 | E1: 3 | F1: 4 | G1: 5 | H1: 6 | I1: 7 | J1: 8 | K1: 9 | L1: 10 | M1: 11 | N1: 12 | O1: 13 | P1: 14 | Q1: 15 | R1: 16 | S1: 17 | T1: 18 | U1: 19 | V1: 19 | W1: 19 | X1: 19 | Y1: 19 | Z1: 19 | AA1: 19 | AB1: 19 | AC1: 19 | AD1: 19 | AE1: 19 | AF1: 19 | AG1: 19 | AH1: 19 | AI1: 19 | AJ1: 19 | AK1: 19 | AL1: 19
B2: Churn Rate | C2: ='Cohort Analysis'!C12/'Cohort Analysis'!C6 -> 91.08% | D2: ='Cohort Analysis'!D12/'Cohort Analysis'!D6 -> 68.75% | E2: ='Cohort Analysis'!E12/'Cohort Analysis'!E6 -> 54.98% | F2: ='Cohort Analysis'!F12/'Cohort Analysis'!F6 -> 47.16% | G2: ='Cohort Analysis'!G12/'Cohort Analysis'!G6 -> 41.94% | H2: ='Cohort Analysis'!H12/'Cohort Analysis'!H6 -> 38.13% | I2: ='Cohort Analysis'!I12/'Cohort Analysis'!I6 -> 35.20% | J2: ='Cohort Analysis'!J12/'Cohort Analysis'!J6 -> 32.85% | K2: ='Cohort Analysis'!K12/'Cohort Analysis'!K6 -> 30.91% | L2: ='Cohort Analysis'!L12/'Cohort Analysis'!L6 -> 29.29% | M2: ='Cohort Analysis'!M12/'Cohort Analysis'!M6 -> 27.89% | N2: ='Cohort Analysis'!N12/'Cohort Analysis'!N6 -> 26.69% | O2: ='Cohort Analysis'!O12/'Cohort Analysis'!O6 -> 25.63% | P2: ='Cohort Analysis'!P12/'Cohort Analysis'!P6 -> 24.68% | Q2: ='Cohort Analysis'!Q12/'Cohort Analysis'!Q6 -> 23.84% | R2: ='Cohort Analysis'!R12/'Cohort Analysis'!R6 -> 23.08% | S2: ='Cohort Analysis'!S12/'Cohort Analysis'!S6 -> 22.39% | T2: ='Cohort Analysis'!T12/'Cohort Analysis'!T6 -> 21.75% | U2: ='Cohort Analysis'!U12/'Cohort Analysis'!U6 -> 21.17% | V2: ='Cohort Analysis'!V12/'Cohort Analysis'!V6 -> 20.63% | W2: ='Cohort Analysis'!W12/'Cohort Analysis'!W6 -> 20.12% | X2: ='Cohort Analysis'!X12/'Cohort Analysis'!X6 -> 19.65% | Y2: ='Cohort Analysis'!Y12/'Cohort Analysis'!Y6 -> 19.21% | Z2: ='Cohort Analysis'!Z12/'Cohort Analysis'!Z6 -> 18.79% | AA2: ='Cohort Analysis'!AA12/'Cohort Analysis'!AA6 -> 18.40% | AB2: ='Cohort Analysis'!AB12/'Cohort Analysis'!AB6 -> 18.02% | AC2: ='Cohort Analysis'!AC12/'Cohort Analysis'!AC6 -> 17.67% | AD2: ='Cohort Analysis'!AD12/'Cohort Analysis'!AD6 -> 17.32% | AE2: ='Cohort Analysis'!AE12/'Cohort Analysis'!AE6 -> 17.00% | AF2: ='Cohort Analysis'!AF12/'Cohort Analysis'!AF6 -> 16.68% | AG2: ='Cohort Analysis'!AG12/'Cohort Analysis'!AG6 -> 16.38% | AH2: ='Cohort Analysis'!AH12/'Cohort Analysis'!AH6 -> 16.09% | AI2: ='Cohort Analysis'!AI12/'Cohort Analysis'!AI6 -> 15.81% | AJ2: ='Cohort Analysis'!AJ12/'Cohort Analysis'!AJ6 -> 15.54% | AK2: ='Cohort Analysis'!AK12/'Cohort Analysis'!AK6 -> 15.27% | AL2: ='Cohort Analysis'!AL12/'Cohort Analysis'!AL6 -> 15.02%
B3: ARPU | C3: ='3 Year Pro Forma'!C13 -> $0.70 | D3: ='3 Year Pro Forma'!D13 -> $0.71 | E3: ='3 Year Pro Forma'!E13 -> $1.11 | F3: ='3 Year Pro Forma'!F13 -> $1.14 | G3: ='3 Year Pro Forma'!G13 -> $1.17 | H3: ='3 Year Pro Forma'!H13 -> $1.20 | I3: ='3 Year Pro Forma'!I13 -> $1.23 | J3: ='3 Year Pro Forma'!J13 -> $1.26 | K3: ='3 Year Pro Forma'!K13 -> $1.29 | L3: ='3 Year Pro Forma'!L13 -> $1.32 | M3: ='3 Year Pro Forma'!M13 -> $1.36 | N3: ='3 Year Pro Forma'!N13 -> $1.40 | O3: ='3 Year Pro Forma'!O13 -> $1.43 | P3: ='3 Year Pro Forma'!P13 -> $1.47 | Q3: ='3 Year Pro Forma'!Q13 -> $1.52 | R3: ='3 Year Pro Forma'!R13 -> $1.56 | S3: ='3 Year Pro Forma'!S13 -> $1.60 | T3: ='3 Year Pro Forma'!T13 -> $1.65 | U3: ='3 Year Pro Forma'!U13 -> $1.70 | V3: ='3 Year Pro Forma'!V13 -> $1.75 | W3: ='3 Year Pro Forma'!W13 -> $1.81 | X3: ='3 Year Pro Forma'!X13 -> $1.86 | Y3: ='3 Year Pro Forma'!Y13 -> $1.92 | Z3: ='3 Year Pro Forma'!Z13 -> $1.98 | AA3: ='3 Year Pro Forma'!AA13 -> $2.05 | AB3: ='3 Year Pro Forma'!AB13 -> $2.12 | AC3: ='3 Year Pro Forma'!AC13 -> $2.19 | AD3: ='3 Year Pro Forma'!AD13 -> $2.26 | AE3: ='3 Year Pro Forma'!AE13 -> $2.34 | AF3: ='3 Year Pro Forma'!AF13 -> $2.42 | AG3: ='3 Year Pro Forma'!AG13 -> $2.50 | AH3: ='3 Year Pro Forma'!AH13 -> $2.59 | AI3: ='3 Year Pro Forma'!AI13 -> $2.68 | AJ3: ='3 Year Pro Forma'!AJ13 -> $2.78 | AK3: ='3 Year Pro Forma'!AK13 -> $2.88 | AL3: ='3 Year Pro Forma'!AL13 -> $2.99
B4: LTV | C4: =(1/C2)*('3 Year Pro Forma'!C13) -> $0.77 | D4: =(1/D2)*('3 Year Pro Forma'!D13) -> $1.03 | E4: =(1/E2)*('3 Year Pro Forma'!E13) -> $2.02 | F4: =(1/F2)*('3 Year Pro Forma'!F13) -> $2.42 | G4: =(1/G2)*('3 Year Pro Forma'!G13) -> $2.78 | H4: =(1/H2)*('3 Year Pro Forma'!H13) -> $3.14 | I4: =(1/I2)*('3 Year Pro Forma'!I13) -> $3.48 | J4: =(1/J2)*('3 Year Pro Forma'!J13) -> $3.83 | K4: =(1/K2)*('3 Year Pro Forma'!K13) -> $4.17 | L4: =(1/L2)*('3 Year Pro Forma'!L13) -> $4.52 | M4: =(1/M2)*('3 Year Pro Forma'!M13) -> $4.87 | N4: =(1/N2)*('3 Year Pro Forma'!N13) -> $5.23 | O4: =(1/O2)*('3 Year Pro Forma'!O13) -> $5.59 | P4: =(1/P2)*('3 Year Pro Forma'!P13) -> $5.97 | Q4: =(1/Q2)*('3 Year Pro Forma'!Q13) -> $6.36 | R4: =(1/R2)*('3 Year Pro Forma'!R13) -> $6.75 | S4: =(1/S2)*('3 Year Pro Forma'!S13) -> $7.17 | T4: =(1/T2)*('3 Year Pro Forma'!T13) -> $7.59 | U4: =(1/U2)*('3 Year Pro Forma'!U13) -> $8.04 | V4: =(1/V2)*('3 Year Pro Forma'!V13) -> $8.50 | W4: =(1/W2)*('3 Year Pro Forma'!W13) -> $8.98 | X4: =(1/X2)*('3 Year Pro Forma'!X13) -> $9.48 | Y4: =(1/Y2)*('3 Year Pro Forma'!Y13) -> $10.01 | Z4: =(1/Z2)*('3 Year Pro Forma'!Z13) -> $10.56 | AA4: =(1/AA2)*('3 Year Pro Forma'!AA13) -> $11.14 | AB4: =(1/AB2)*('3 Year Pro Forma'!AB13) -> $11.74 | AC4: =(1/AC2)*('3 Year Pro Forma'!AC13) -> $12.38 | AD4: =(1/AD2)*('3 Year Pro Forma'!AD13) -> $13.05 | AE4: =(1/AE2)*('3 Year Pro Forma'!AE13) -> $13.75 | AF4: =(1/AF2)*('3 Year Pro Forma'!AF13) -> $14.50 | AG4: =(1/AG2)*('3 Year Pro Forma'!AG13) -> $15.28 | AH4: =(1/AH2)*('3 Year Pro Forma'!AH13) -> $16.10 | AI4: =(1/AI2)*('3 Year Pro Forma'!AI13) -> $16.97 | AJ4: =(1/AJ2)*('3 Year Pro Forma'!AJ13) -> $17.89 | AK4: =(1/AK2)*('3 Year Pro Forma'!AK13) -> $18.86 | AL4: =(1/AL2)*('3 Year Pro Forma'!AL13) -> $19.88
A6: 3 Year LTV
A7: Month Joined | B7: Months Active>>>>
C8: 1 | D8: 2 | E8: 3 | F8: 4 | G8: 5 | H8: 6 | I8: 7 | J8: 8 | K8: 9 | L8: 10 | M8: 11 | N8: 12 | O8: 13 | P8: 14 | Q8: 15 | R8: 16 | S8: 17 | T8: 18 | U8: 19 | V8: 20 | W8: 21 | X8: 22 | Y8: 23 | Z8: 24 | AA8: 25 | AB8: 26 | AC8: 27 | AD8: 28 | AE8: 29 | AF8: 30 | AG8: 31 | AH8: 32 | AI8: 33 | AJ8: 34 | AK8: 35 | AL8: 36
A9: 1 | C9: =SUM('3 Year Pro Forma'!$C$13:'3 Year Pro Forma'!C13)-SUM('3 Year Pro Forma'!$C$19:'3 Year Pro Forma'!C19)-'3 Year Pro Forma'!$C$6 -> $(2.03) | D9: =SUM('3 Year Pro Forma'!$C$13:'3 Year Pro Forma'!D13)-SUM('3 Year Pro Forma'!$C$19:'3 Year Pro Forma'!D19)-'3 Year Pro Forma'!$C$6 -> $(2.23) | E9: =SUM('3 Year Pro Forma'!$C$13:'3 Year Pro Forma'!E13)-SUM('3 Year Pro Forma'!$C$19:'3 Year Pro Forma'!E19)-'3 Year Pro Forma'!$C$6 -> $(2.03) | F9: =SUM('3 Year Pro Forma'!$C$13:'3 Year Pro Forma'!F13)-SUM('3 Year Pro Forma'!$C$19:'3 Year Pro Forma'!F19)-'3 Year Pro Forma'!$C$6 -> $(1.80) | G9: =SUM('3 Year Pro Forma'!$C$13:'3 Year Pro Forma'!G13)-SUM('3 Year Pro Forma'!$C$19:'3 Year Pro Forma'!G19)-'3 Year Pro Forma'!$C$6 -> $(1.54) | H9: =SUM('3 Year Pro Forma'!$C$13:'3 Year Pro Forma'!H13)-SUM('3 Year Pro Forma'!$C$19:'3 Year Pro Forma'!H19)-'3 Year Pro Forma'!$C$6 -> $(1.25) | I9: =SUM('3 Year Pro Forma'!$C$13:'3 Year Pro Forma'!I13)-SUM('3 Year Pro Forma'!$C$19:'3 Year Pro Forma'!I19)-'3 Year Pro Forma'!$C$6 -> $(0.93) | J9: =SUM('3 Year Pro Forma'!$C$13:'3 Year Pro Forma'!J13)-SUM('3 Year Pro Forma'!$C$19:'3 Year Pro Forma'!J19)-'3 Year Pro Forma'!$C$6 -> $(0.58) | K9: =SUM('3 Year Pro Forma'!$C$13:'3 Year Pro Forma'!K13)-SUM('3 Year Pro Forma'!$C$19:'3 Year Pro Forma'!K19)-'3 Year Pro Forma'!$C$6 -> $(0.21) | L9: =SUM('3 Year Pro Forma'!$C$13:'3 Year Pro Forma'!L13)-SUM('3 Year Pro Forma'!$C$19:'3 Year Pro Forma'!L19)-'3 Year Pro Forma'!$C$6 -> $0.21 | M9: =SUM('3 Year Pro Forma'!$C$13:'3 Year Pro Forma'!M13)-SUM('3 Year Pro Forma'!$C$19:'3 Year Pro Forma'!M19)-'3 Year Pro Forma'!$C$6 -> $0.65 | N9: =SUM('3 Year Pro Forma'!$C$13:'3 Year Pro Forma'!N13)-SUM('3 Year Pro Forma'!$C$19:'3 Year Pro Forma'!N19)-'3 Year Pro Forma'!$C$6 -> $1.14 | O9: =SUM('3 Year Pro Forma'!$C$13:'3 Year Pro Forma'!O13)-SUM('3 Year Pro Forma'!$C$19:'3 Year Pro Forma'!O19)-'3 Year Pro Forma'!$C$6 -> $1.65 | P9: =SUM('3 Year Pro Forma'!$C$13:'3 Year Pro Forma'!P13)-SUM('3 Year Pro Forma'!$C$19:'3 Year Pro Forma'!P19)-'3 Year Pro Forma'!$C$6 -> $2.21 | Q9: =SUM('3 Year Pro Forma'!$C$13:'3 Year Pro Forma'!Q13)-SUM('3 Year Pro Forma'!$C$19:'3 Year Pro Forma'!Q19)-'3 Year Pro Forma'!$C$6 -> $2.80 | R9: =SUM('3 Year Pro Forma'!$C$13:'3 Year Pro Forma'!R13)-SUM('3 Year Pro Forma'!$C$19:'3 Year Pro Forma'!R19)-'3 Year Pro Forma'!$C$6 -> $3.44 | S9: =SUM('3 Year Pro Forma'!$C$13:'3 Year Pro Forma'!S13)-SUM('3 Year Pro Forma'!$C$19:'3 Year Pro Forma'!S19)-'3 Year Pro Forma'!$C$6 -> $4.12 | T9: =SUM('3 Year Pro Forma'!$C$13:'3 Year Pro Forma'!T13)-SUM('3 Year Pro Forma'!$C$19:'3 Year Pro Forma'!T19)-'3 Year Pro Forma'!$C$6 -> $4.84 | U9: =SUM('3 Year Pro Forma'!$C$13:'3 Year Pro Forma'!U13)-SUM('3 Year Pro Forma'!$C$19:'3 Year Pro Forma'!U19)-'3 Year Pro Forma'!$C$6 -> $5.60 | V9: =SUM('3 Year Pro Forma'!$C$13:'3 Year Pro Forma'!V13)-SUM('3 Year Pro Forma'!$C$19:'3 Year Pro Forma'!V19)-'3 Year Pro Forma'!$C$6 -> $6.42 | W9: =SUM('3 Year Pro Forma'!$C$13:'3 Year Pro Forma'!W13)-SUM('3 Year Pro Forma'!$C$19:'3 Year Pro Forma'!W19)-'3 Year Pro Forma'!$C$6 -> $7.28 | X9: =SUM('3 Year Pro Forma'!$C$13:'3 Year Pro Forma'!X13)-SUM('3 Year Pro Forma'!$C$19:'3 Year Pro Forma'!X19)-'3 Year Pro Forma'!$C$6 -> $8.20 | Y9: =SUM('3 Year Pro Forma'!$C$13:'3 Year Pro Forma'!Y13)-SUM('3 Year Pro Forma'!$C$19:'3 Year Pro Forma'!Y19)-'3 Year Pro Forma'!$C$6 -> $9.17 | Z9: =SUM('3 Year Pro Forma'!$C$13:'3 Year Pro Forma'!Z13)-SUM('3 Year Pro Forma'!$C$19:'3 Year Pro Forma'!Z19)-'3 Year Pro Forma'!$C$6 -> $10.19 | AA9: =SUM('3 Year Pro Forma'!$C$13:'3 Year Pro Forma'!AA13)-SUM('3 Year Pro Forma'!$C$19:'3 Year Pro Forma'!AA19)-'3 Year Pro Forma'!$C$6 -> $11.27 | AB9: =SUM('3 Year Pro Forma'!$C$13:'3 Year Pro Forma'!AB13)-SUM('3 Year Pro Forma'!$C$19:'3 Year Pro Forma'!AB19)-'3 Year Pro Forma'!$C$6 -> $12.42 | AC9: =SUM('3 Year Pro Forma'!$C$13:'3 Year Pro Forma'!AC13)-SUM('3 Year Pro Forma'!$C$19:'3 Year Pro Forma'!AC19)-'3 Year Pro Forma'!$C$6 -> $13.62 | AD9: =SUM('3 Year Pro Forma'!$C$13:'3 Year Pro Forma'!AD13)-SUM('3 Year Pro Forma'!$C$19:'3 Year Pro Forma'!AD19)-'3 Year Pro Forma'!$C$6 -> $14.90 | AE9: =SUM('3 Year Pro Forma'!$C$13:'3 Year Pro Forma'!AE13)-SUM('3 Year Pro Forma'!$C$19:'3 Year Pro Forma'!AE19)-'3 Year Pro Forma'!$C$6 -> $16.24 | AF9: =SUM('3 Year Pro Forma'!$C$13:'3 Year Pro Forma'!AF13)-SUM('3 Year Pro Forma'!$C$19:'3 Year Pro Forma'!AF19)-'3 Year Pro Forma'!$C$6 -> $17.65 | AG9: =SUM('3 Year Pro Forma'!$C$13:'3 Year Pro Forma'!AG13)-SUM('3 Year Pro Forma'!$C$19:'3 Year Pro Forma'!AG19)-'3 Year Pro Forma'!$C$6 -> $19.14 | AH9: =SUM('3 Year Pro Forma'!$C$13:'3 Year Pro Forma'!AH13)-SUM('3 Year Pro Forma'!$C$19:'3 Year Pro Forma'!AH19)-'3 Year Pro Forma'!$C$6 -> $20.71 | AI9: =SUM('3 Year Pro Forma'!$C$13:'3 Year Pro Forma'!AI13)-SUM('3 Year Pro Forma'!$C$19:'3 Year Pro Forma'!AI19)-'3 Year Pro Forma'!$C$6 -> $22.36 | AJ9: =SUM('3 Year Pro Forma'!$C$13:'3 Year Pro Forma'!AJ13)-SUM('3 Year Pro Forma'!$C$19:'3 Year Pro Forma'!AJ19)-'3 Year Pro Forma'!$C$6 -> $24.09 | AK9: =SUM('3 Year Pro Forma'!$C$13:'3 Year Pro Forma'!AK13)-SUM('3 Year Pro Forma'!$C$19:'3 Year Pro Forma'!AK19)-'3 Year Pro Forma'!$C$6 -> $25.92 | AL9: =SUM('3 Year Pro Forma'!$C$13:'3 Year Pro Forma'!AL13)-SUM('3 Year Pro Forma'!$C$19:'3 Year Pro Forma'!AL19)-'3 Year Pro Forma'!$C$6 -> $27.84
A10: 2 | D10: =SUM('3 Year Pro Forma'!$D$13:'3 Year Pro Forma'!D13)-SUM('3 Year Pro Forma'!$D$19:'3 Year Pro Forma'!D19)-'3 Year Pro Forma'!$D$6 -> $(2.02) | E10: =SUM('3 Year Pro Forma'!$D$13:'3 Year Pro Forma'!E13)-SUM('3 Year Pro Forma'!$D$19:'3 Year Pro Forma'!E19)-'3 Year Pro Forma'!$D$6 -> $(1.82) | F10: =SUM('3 Year Pro Forma'!$D$13:'3 Year Pro Forma'!F13)-SUM('3 Year Pro Forma'!$D$19:'3 Year Pro Forma'!F19)-'3 Year Pro Forma'!$D$6 -> $(1.59) | G10: =SUM('3 Year Pro Forma'!$D$13:'3 Year Pro Forma'!G13)-SUM('3 Year Pro Forma'!$D$19:'3 Year Pro Forma'!G19)-'3 Year Pro Forma'!$D$6 -> $(1.33) | H10: =SUM('3 Year Pro Forma'!$D$13:'3 Year Pro Forma'!H13)-SUM('3 Year Pro Forma'!$D$19:'3 Year Pro Forma'!H19)-'3 Year Pro Forma'!$D$6 -> $(1.04) | I10: =SUM('3 Year Pro Forma'!$D$13:'3 Year Pro Forma'!I13)-SUM('3 Year Pro Forma'!$D$19:'3 Year Pro Forma'!I19)-'3 Year Pro Forma'!$D$6 -> $(0.72) | J10: =SUM('3 Year Pro Forma'!$D$13:'3 Year Pro Forma'!J13)-SUM('3 Year Pro Forma'!$D$19:'3 Year Pro Forma'!J19)-'3 Year Pro Forma'!$D$6 -> $(0.37) | K10: =SUM('3 Year Pro Forma'!$D$13:'3 Year Pro Forma'!K13)-SUM('3 Year Pro Forma'!$D$19:'3 Year Pro Forma'!K19)-'3 Year Pro Forma'!$D$6 -> $0.00 | L10: =SUM('3 Year Pro Forma'!$D$13:'3 Year Pro Forma'!L13)-SUM('3 Year Pro Forma'!$D$19:'3 Year Pro Forma'!L19)-'3 Year Pro Forma'!$D$6 -> $0.42 | M10: =SUM('3 Year Pro Forma'!$D$13:'3 Year Pro Forma'!M13)-SUM('3 Year Pro Forma'!$D$19:'3 Year Pro Forma'!M19)-'3 Year Pro Forma'!$D$6 -> $0.86 | N10: =SUM('3 Year Pro Forma'!$D$13:'3 Year Pro Forma'!N13)-SUM('3 Year Pro Forma'!$D$19:'3 Year Pro Forma'!N19)-'3 Year Pro Forma'!$D$6 -> $1.35 | O10: =SUM('3 Year Pro Forma'!$D$13:'3 Year Pro Forma'!O13)-SUM('3 Year Pro Forma'!$D$19:'3 Year Pro Forma'!O19)-'3 Year Pro Forma'!$D$6 -> $1.86 | P10: =SUM('3 Year Pro Forma'!$D$13:'3 Year Pro Forma'!P13)-SUM('3 Year Pro Forma'!$D$19:'3 Year Pro Forma'!P19)-'3 Year Pro Forma'!$D$6 -> $2.42 | Q10: =SUM('3 Year Pro Forma'!$D$13:'3 Year Pro Forma'!Q13)-SUM('3 Year Pro Forma'!$D$19:'3 Year Pro Forma'!Q19)-'3 Year Pro Forma'!$D$6 -> $3.01 | R10: =SUM('3 Year Pro Forma'!$D$13:'3 Year Pro Forma'!R13)-SUM('3 Year Pro Forma'!$D$19:'3 Year Pro Forma'!R19)-'3 Year Pro Forma'!$D$6 -> $3.65 | S10: =SUM('3 Year Pro Forma'!$D$13:'3 Year Pro Forma'!S13)-SUM('3 Year Pro Forma'!$D$19:'3 Year Pro Forma'!S19)-'3 Year Pro Forma'!$D$6 -> $4.33 | T10: =SUM('3 Year Pro Forma'!$D$13:'3 Year Pro Forma'!T13)-SUM('3 Year Pro Forma'!$D$19:'3 Year Pro Forma'!T19)-'3 Year Pro Forma'!$D$6 -> $5.05 | U10: =SUM('3 Year Pro Forma'!$D$13:'3 Year Pro Forma'!U13)-SUM('3 Year Pro Forma'!$D$19:'3 Year Pro Forma'!U19)-'3 Year Pro Forma'!$D$6 -> $5.81 | V10: =SUM('3 Year Pro Forma'!$D$13:'3 Year Pro Forma'!V13)-SUM('3 Year Pro Forma'!$D$19:'3 Year Pro Forma'!V19)-'3 Year Pro Forma'!$D$6 -> $6.63 | W10: =SUM('3 Year Pro Forma'!$D$13:'3 Year Pro Forma'!W13)-SUM('3 Year Pro Forma'!$D$19:'3 Year Pro Forma'!W19)-'3 Year Pro Forma'!$D$6 -> $7.49 | X10: =SUM('3 Year Pro Forma'!$D$13:'3 Year Pro Forma'!X13)-SUM('3 Year Pro Forma'!$D$19:'3 Year Pro Forma'!X19)-'3 Year Pro Forma'!$D$6 -> $8.41 | Y10: =SUM('3 Year Pro Forma'!$D$13:'3 Year Pro Forma'!Y13)-SUM('3 Year Pro Forma'!$D$19:'3 Year Pro Forma'!Y19)-'3 Year Pro Forma'!$D$6 -> $9.38 | Z10: =SUM('3 Year Pro Forma'!$D$13:'3 Year Pro Forma'!Z13)-SUM('3 Year Pro Forma'!$D$19:'3 Year Pro Forma'!Z19)-'3 Year Pro Forma'!$D$6 -> $10.40 | AA10: =SUM('3 Year Pro Forma'!$D$13:'3 Year Pro Forma'!AA13)-SUM('3 Year Pro Forma'!$D$19:'3 Year Pro Forma'!AA19)-'3 Year Pro Forma'!$D$6 -> $11.48 | AB10: =SUM('3 Year Pro Forma'!$D$13:'3 Year Pro Forma'!AB13)-SUM('3 Year Pro Forma'!$D$19:'3 Year Pro Forma'!AB19)-'3 Year Pro Forma'!$D$6 -> $12.63 | AC10: =SUM('3 Year Pro Forma'!$D$13:'3 Year Pro Forma'!AC13)-SUM('3 Year Pro Forma'!$D$19:'3 Year Pro Forma'!AC19)-'3 Year Pro Forma'!$D$6 -> $13.83 | AD10: =SUM('3 Year Pro Forma'!$D$13:'3 Year Pro Forma'!AD13)-SUM('3 Year Pro Forma'!$D$19:'3 Year Pro Forma'!AD19)-'3 Year Pro Forma'!$D$6 -> $15.11 | AE10: =SUM('3 Year Pro Forma'!$D$13:'3 Year Pro Forma'!AE13)-SUM('3 Year Pro Forma'!$D$19:'3 Year Pro Forma'!AE19)-'3 Year Pro Forma'!$D$6 -> $16.45 | AF10: =SUM('3 Year Pro Forma'!$D$13:'3 Year Pro Forma'!AF13)-SUM('3 Year Pro Forma'!$D$19:'3 Year Pro Forma'!AF19)-'3 Year Pro Forma'!$D$6 -> $17.86 | AG10: =SUM('3 Year Pro Forma'!$D$13:'3 Year Pro Forma'!AG13)-SUM('3 Year Pro Forma'!$D$19:'3 Year Pro Forma'!AG19)-'3 Year Pro Forma'!$D$6 -> $19.35 | AH10: =SUM('3 Year Pro Forma'!$D$13:'3 Year Pro Forma'!AH13)-SUM('3 Year Pro Forma'!$D$19:'3 Year Pro Forma'!AH19)-'3 Year Pro Forma'!$D$6 -> $20.92 | AI10: =SUM('3 Year Pro Forma'!$D$13:'3 Year Pro Forma'!AI13)-SUM('3 Year Pro Forma'!$D$19:'3 Year Pro Forma'!AI19)-'3 Year Pro Forma'!$D$6 -> $22.57 | AJ10: =SUM('3 Year Pro Forma'!$D$13:'3 Year Pro Forma'!AJ13)-SUM('3 Year Pro Forma'!$D$19:'3 Year Pro Forma'!AJ19)-'3 Year Pro Forma'!$D$6 -> $24.30 | AK10: =SUM('3 Year Pro Forma'!$D$13:'3 Year Pro Forma'!AK13)-SUM('3 Year Pro Forma'!$D$19:'3 Year Pro Forma'!AK19)-'3 Year Pro Forma'!$D$6 -> $26.13 | AL10: =SUM('3 Year Pro Forma'!$D$13:'3 Year Pro Forma'!AL13)-SUM('3 Year Pro Forma'!$D$19:'3 Year Pro Forma'!AL19)-'3 Year Pro Forma'!$D$6 -> $28.05
A11: 3 | E11: =SUM('3 Year Pro Forma'!$E$13:'3 Year Pro Forma'!E13)-SUM('3 Year Pro Forma'!$E$19:'3 Year Pro Forma'!E19)-'3 Year Pro Forma'!$E$6 -> $(1.43) | F11: =SUM('3 Year Pro Forma'!$E$13:'3 Year Pro Forma'!F13)-SUM('3 Year Pro Forma'!$E$19:'3 Year Pro Forma'!F19)-'3 Year Pro Forma'!$E$6 -> $(1.20) | G11: =SUM('3 Year Pro Forma'!$E$13:'3 Year Pro Forma'!G13)-SUM('3 Year Pro Forma'!$E$19:'3 Year Pro Forma'!G19)-'3 Year Pro Forma'!$E$6 -> $(0.94) | H11: =SUM('3 Year Pro Forma'!$E$13:'3 Year Pro Forma'!H13)-SUM('3 Year Pro Forma'!$E$19:'3 Year Pro Forma'!H19)-'3 Year Pro Forma'!$E$6 -> $(0.65) | I11: =SUM('3 Year Pro Forma'!$E$13:'3 Year Pro Forma'!I13)-SUM('3 Year Pro Forma'!$E$19:'3 Year Pro Forma'!I19)-'3 Year Pro Forma'!$E$6 -> $(0.34) | J11: =SUM('3 Year Pro Forma'!$E$13:'3 Year Pro Forma'!J13)-SUM('3 Year Pro Forma'!$E$19:'3 Year Pro Forma'!J19)-'3 Year Pro Forma'!$E$6 -> $0.01 | K11: =SUM('3 Year Pro Forma'!$E$13:'3 Year Pro Forma'!K13)-SUM('3 Year Pro Forma'!$E$19:'3 Year Pro Forma'!K19)-'3 Year Pro Forma'!$E$6 -> $0.39 | L11: =SUM('3 Year Pro Forma'!$E$13:'3 Year Pro Forma'!L13)-SUM('3 Year Pro Forma'!$E$19:'3 Year Pro Forma'!L19)-'3 Year Pro Forma'!$E$6 -> $0.80 | M11: =SUM('3 Year Pro Forma'!$E$13:'3 Year Pro Forma'!M13)-SUM('3 Year Pro Forma'!$E$19:'3 Year Pro Forma'!M19)-'3 Year Pro Forma'!$E$6 -> $1.25 | N11: =SUM('3 Year Pro Forma'!$E$13:'3 Year Pro Forma'!N13)-SUM('3 Year Pro Forma'!$E$19:'3 Year Pro Forma'!N19)-'3 Year Pro Forma'!$E$6 -> $1.73 | O11: =SUM('3 Year Pro Forma'!$E$13:'3 Year Pro Forma'!O13)-SUM('3 Year Pro Forma'!$E$19:'3 Year Pro Forma'!O19)-'3 Year Pro Forma'!$E$6 -> $2.25 | P11: =SUM('3 Year Pro Forma'!$E$13:'3 Year Pro Forma'!P13)-SUM('3 Year Pro Forma'!$E$19:'3 Year Pro Forma'!P19)-'3 Year Pro Forma'!$E$6 -> $2.81 | Q11: =SUM('3 Year Pro Forma'!$E$13:'3 Year Pro Forma'!Q13)-SUM('3 Year Pro Forma'!$E$19:'3 Year Pro Forma'!Q19)-'3 Year Pro Forma'!$E$6 -> $3.40 | R11: =SUM('3 Year Pro Forma'!$E$13:'3 Year Pro Forma'!R13)-SUM('3 Year Pro Forma'!$E$19:'3 Year Pro Forma'!R19)-'3 Year Pro Forma'!$E$6 -> $4.04 | S11: =SUM('3 Year Pro Forma'!$E$13:'3 Year Pro Forma'!S13)-SUM('3 Year Pro Forma'!$E$19:'3 Year Pro Forma'!S19)-'3 Year Pro Forma'!$E$6 -> $4.71 | T11: =SUM('3 Year Pro Forma'!$E$13:'3 Year Pro Forma'!T13)-SUM('3 Year Pro Forma'!$E$19:'3 Year Pro Forma'!T19)-'3 Year Pro Forma'!$E$6 -> $5.43 | U11: =SUM('3 Year Pro Forma'!$E$13:'3 Year Pro Forma'!U13)-SUM('3 Year Pro Forma'!$E$19:'3 Year Pro Forma'!U19)-'3 Year Pro Forma'!$E$6 -> $6.20 | V11: =SUM('3 Year Pro Forma'!$E$13:'3 Year Pro Forma'!V13)-SUM('3 Year Pro Forma'!$E$19:'3 Year Pro Forma'!V19)-'3 Year Pro Forma'!$E$6 -> $7.02 | W11: =SUM('3 Year Pro Forma'!$E$13:'3 Year Pro Forma'!W13)-SUM('3 Year Pro Forma'!$E$19:'3 Year Pro Forma'!W19)-'3 Year Pro Forma'!$E$6 -> $7.88 | X11: =SUM('3 Year Pro Forma'!$E$13:'3 Year Pro Forma'!X13)-SUM('3 Year Pro Forma'!$E$19:'3 Year Pro Forma'!X19)-'3 Year Pro Forma'!$E$6 -> $8.79 | Y11: =SUM('3 Year Pro Forma'!$E$13:'3 Year Pro Forma'!Y13)-SUM('3 Year Pro Forma'!$E$19:'3 Year Pro Forma'!Y19)-'3 Year Pro Forma'!$E$6 -> $9.76 | Z11: =SUM('3 Year Pro Forma'!$E$13:'3 Year Pro Forma'!Z13)-SUM('3 Year Pro Forma'!$E$19:'3 Year Pro Forma'!Z19)-'3 Year Pro Forma'!$E$6 -> $10.79 | AA11: =SUM('3 Year Pro Forma'!$E$13:'3 Year Pro Forma'!AA13)-SUM('3 Year Pro Forma'!$E$19:'3 Year Pro Forma'!AA19)-'3 Year Pro Forma'!$E$6 -> $11.87 | AB11: =SUM('3 Year Pro Forma'!$E$13:'3 Year Pro Forma'!AB13)-SUM('3 Year Pro Forma'!$E$19:'3 Year Pro Forma'!AB19)-'3 Year Pro Forma'!$E$6 -> $13.01 | AC11: =SUM('3 Year Pro Forma'!$E$13:'3 Year Pro Forma'!AC13)-SUM('3 Year Pro Forma'!$E$19:'3 Year Pro Forma'!AC19)-'3 Year Pro Forma'!$E$6 -> $14.22 | AD11: =SUM('3 Year Pro Forma'!$E$13:'3 Year Pro Forma'!AD13)-SUM('3 Year Pro Forma'!$E$19:'3 Year Pro Forma'!AD19)-'3 Year Pro Forma'!$E$6 -> $15.49 | AE11: =SUM('3 Year Pro Forma'!$E$13:'3 Year Pro Forma'!AE13)-SUM('3 Year Pro Forma'!$E$19:'3 Year Pro Forma'!AE19)-'3 Year Pro Forma'!$E$6 -> $16.83 | AF11: =SUM('3 Year Pro Forma'!$E$13:'3 Year Pro Forma'!AF13)-SUM('3 Year Pro Forma'!$E$19:'3 Year Pro Forma'!AF19)-'3 Year Pro Forma'!$E$6 -> $18.25 | AG11: =SUM('3 Year Pro Forma'!$E$13:'3 Year Pro Forma'!AG13)-SUM('3 Year Pro Forma'!$E$19:'3 Year Pro Forma'!AG19)-'3 Year Pro Forma'!$E$6 -> $19.74 | AH11: =SUM('3 Year Pro Forma'!$E$13:'3 Year Pro Forma'!AH13)-SUM('3 Year Pro Forma'!$E$19:'3 Year Pro Forma'!AH19)-'3 Year Pro Forma'!$E$6 -> $21.31 | AI11: =SUM('3 Year Pro Forma'!$E$13:'3 Year Pro Forma'!AI13)-SUM('3 Year Pro Forma'!$E$19:'3 Year Pro Forma'!AI19)-'3 Year Pro Forma'!$E$6 -> $22.96 | AJ11: =SUM('3 Year Pro Forma'!$E$13:'3 Year Pro Forma'!AJ13)-SUM('3 Year Pro Forma'!$E$19:'3 Year Pro Forma'!AJ19)-'3 Year Pro Forma'!$E$6 -> $24.69 | AK11: =SUM('3 Year Pro Forma'!$E$13:'3 Year Pro Forma'!AK13)-SUM('3 Year Pro Forma'!$E$19:'3 Year Pro Forma'!AK19)-'3 Year Pro Forma'!$E$6 -> $26.52 | AL11: =SUM('3 Year Pro Forma'!$E$13:'3 Year Pro Forma'!AL13)-SUM('3 Year Pro Forma'!$E$19:'3 Year Pro Forma'!AL19)-'3 Year Pro Forma'!$E$6 -> $28.44
A12: 4 | F12: =SUM('3 Year Pro Forma'!$F$13:'3 Year Pro Forma'!F13)-SUM('3 Year Pro Forma'!$F$19:'3 Year Pro Forma'!F19)-'3 Year Pro Forma'!$F$6 -> $(1.37) | G12: =SUM('3 Year Pro Forma'!$F$13:'3 Year Pro Forma'!G13)-SUM('3 Year Pro Forma'!$F$19:'3 Year Pro Forma'!G19)-'3 Year Pro Forma'!$F$6 -> $(1.11) | H12: =SUM('3 Year Pro Forma'!$F$13:'3 Year Pro Forma'!H13)-SUM('3 Year Pro Forma'!$F$19:'3 Year Pro Forma'!H19)-'3 Year Pro Forma'!$F$6 -> $(0.82) | I12: =SUM('3 Year Pro Forma'!$F$13:'3 Year Pro Forma'!I13)-SUM('3 Year Pro Forma'!$F$19:'3 Year Pro Forma'!I19)-'3 Year Pro Forma'!$F$6 -> $(0.51) | J12: =SUM('3 Year Pro Forma'!$F$13:'3 Year Pro Forma'!J13)-SUM('3 Year Pro Forma'!$F$19:'3 Year Pro Forma'!J19)-'3 Year Pro Forma'!$F$6 -> $(0.16) | K12: =SUM('3 Year Pro Forma'!$F$13:'3 Year Pro Forma'!K13)-SUM('3 Year Pro Forma'!$F$19:'3 Year Pro Forma'!K19)-'3 Year Pro Forma'!$F$6 -> $0.22 | L12: =SUM('3 Year Pro Forma'!$F$13:'3 Year Pro Forma'!L13)-SUM('3 Year Pro Forma'!$F$19:'3 Year Pro Forma'!L19)-'3 Year Pro Forma'!$F$6 -> $0.64 | M12: =SUM('3 Year Pro Forma'!$F$13:'3 Year Pro Forma'!M13)-SUM('3 Year Pro Forma'!$F$19:'3 Year Pro Forma'!M19)-'3 Year Pro Forma'!$F$6 -> $1.08 | N12: =SUM('3 Year Pro Forma'!$F$13:'3 Year Pro Forma'!N13)-SUM('3 Year Pro Forma'!$F$19:'3 Year Pro Forma'!N19)-'3 Year Pro Forma'!$F$6 -> $1.56 | O12: =SUM('3 Year Pro Forma'!$F$13:'3 Year Pro Forma'!O13)-SUM('3 Year Pro Forma'!$F$19:'3 Year Pro Forma'!O19)-'3 Year Pro Forma'!$F$6 -> $2.08 | P12: =SUM('3 Year Pro Forma'!$F$13:'3 Year Pro Forma'!P13)-SUM('3 Year Pro Forma'!$F$19:'3 Year Pro Forma'!P19)-'3 Year Pro Forma'!$F$6 -> $2.64 | Q12: =SUM('3 Year Pro Forma'!$F$13:'3 Year Pro Forma'!Q13)-SUM('3 Year Pro Forma'!$F$19:'3 Year Pro Forma'!Q19)-'3 Year Pro Forma'!$F$6 -> $3.23 | R12: =SUM('3 Year Pro Forma'!$F$13:'3 Year Pro Forma'!R13)-SUM('3 Year Pro Forma'!$F$19:'3 Year Pro Forma'!R19)-'3 Year Pro Forma'!$F$6 -> $3.87 | S12: =SUM('3 Year Pro Forma'!$F$13:'3 Year Pro Forma'!S13)-SUM('3 Year Pro Forma'!$F$19:'3 Year Pro Forma'!S19)-'3 Year Pro Forma'!$F$6 -> $4.54 | T12: =SUM('3 Year Pro Forma'!$F$13:'3 Year Pro Forma'!T13)-SUM('3 Year Pro Forma'!$F$19:'3 Year Pro Forma'!T19)-'3 Year Pro Forma'!$F$6 -> $5.26 | U12: =SUM('3 Year Pro Forma'!$F$13:'3 Year Pro Forma'!U13)-SUM('3 Year Pro Forma'!$F$19:'3 Year Pro Forma'!U19)-'3 Year Pro Forma'!$F$6 -> $6.03 | V12: =SUM('3 Year Pro Forma'!$F$13:'3 Year Pro Forma'!V13)-SUM('3 Year Pro Forma'!$F$19:'3 Year Pro Forma'!V19)-'3 Year Pro Forma'!$F$6 -> $6.85 | W12: =SUM('3 Year Pro Forma'!$F$13:'3 Year Pro Forma'!W13)-SUM('3 Year Pro Forma'!$F$19:'3 Year Pro Forma'!W19)-'3 Year Pro Forma'!$F$6 -> $7.71 | X12: =SUM('3 Year Pro Forma'!$F$13:'3 Year Pro Forma'!X13)-SUM('3 Year Pro Forma'!$F$19:'3 Year Pro Forma'!X19)-'3 Year Pro Forma'!$F$6 -> $8.62 | Y12: =SUM('3 Year Pro Forma'!$F$13:'3 Year Pro Forma'!Y13)-SUM('3 Year Pro Forma'!$F$19:'3 Year Pro Forma'!Y19)-'3 Year Pro Forma'!$F$6 -> $9.59 | Z12: =SUM('3 Year Pro Forma'!$F$13:'3 Year Pro Forma'!Z13)-SUM('3 Year Pro Forma'!$F$19:'3 Year Pro Forma'!Z19)-'3 Year Pro Forma'!$F$6 -> $10.62 | AA12: =SUM('3 Year Pro Forma'!$F$13:'3 Year Pro Forma'!AA13)-SUM('3 Year Pro Forma'!$F$19:'3 Year Pro Forma'!AA19)-'3 Year Pro Forma'!$F$6 -> $11.70 | AB12: =SUM('3 Year Pro Forma'!$F$13:'3 Year Pro Forma'!AB13)-SUM('3 Year Pro Forma'!$F$19:'3 Year Pro Forma'!AB19)-'3 Year Pro Forma'!$F$6 -> $12.84 | AC12: =SUM('3 Year Pro Forma'!$F$13:'3 Year Pro Forma'!AC13)-SUM('3 Year Pro Forma'!$F$19:'3 Year Pro Forma'!AC19)-'3 Year Pro Forma'!$F$6 -> $14.05 | AD12: =SUM('3 Year Pro Forma'!$F$13:'3 Year Pro Forma'!AD13)-SUM('3 Year Pro Forma'!$F$19:'3 Year Pro Forma'!AD19)-'3 Year Pro Forma'!$F$6 -> $15.32 | AE12: =SUM('3 Year Pro Forma'!$F$13:'3 Year Pro Forma'!AE13)-SUM('3 Year Pro Forma'!$F$19:'3 Year Pro Forma'!AE19)-'3 Year Pro Forma'!$F$6 -> $16.67 | AF12: =SUM('3 Year Pro Forma'!$F$13:'3 Year Pro Forma'!AF13)-SUM('3 Year Pro Forma'!$F$19:'3 Year Pro Forma'!AF19)-'3 Year Pro Forma'!$F$6 -> $18.08 | AG12: =SUM('3 Year Pro Forma'!$F$13:'3 Year Pro Forma'!AG13)-SUM('3 Year Pro Forma'!$F$19:'3 Year Pro Forma'!AG19)-'3 Year Pro Forma'!$F$6 -> $19.57 | AH12: =SUM('3 Year Pro Forma'!$F$13:'3 Year Pro Forma'!AH13)-SUM('3 Year Pro Forma'!$F$19:'3 Year Pro Forma'!AH19)-'3 Year Pro Forma'!$F$6 -> $21.14 | AI12: =SUM('3 Year Pro Forma'!$F$13:'3 Year Pro Forma'!AI13)-SUM('3 Year Pro Forma'!$F$19:'3 Year Pro Forma'!AI19)-'3 Year Pro Forma'!$F$6 -> $22.79 | AJ12: =SUM('3 Year Pro Forma'!$F$13:'3 Year Pro Forma'!AJ13)-SUM('3 Year Pro Forma'!$F$19:'3 Year Pro Forma'!AJ19)-'3 Year Pro Forma'!$F$6 -> $24.52 | AK12: =SUM('3 Year Pro Forma'!$F$13:'3 Year Pro Forma'!AK13)-SUM('3 Year Pro Forma'!$F$19:'3 Year Pro Forma'!AK19)-'3 Year Pro Forma'!$F$6 -> $26.35 | AL12: =SUM('3 Year Pro Forma'!$F$13:'3 Year Pro Forma'!AL13)-SUM('3 Year Pro Forma'!$F$19:'3 Year Pro Forma'!AL19)-'3 Year Pro Forma'!$F$6 -> $28.27
A13: 5 | G13: =SUM('3 Year Pro Forma'!$G$13:'3 Year Pro Forma'!G13)-SUM('3 Year Pro Forma'!$G$19:'3 Year Pro Forma'!G19)-'3 Year Pro Forma'!$G$6 -> $(1.32) | H13: =SUM('3 Year Pro Forma'!$G$13:'3 Year Pro Forma'!H13)-SUM('3 Year Pro Forma'!$G$19:'3 Year Pro Forma'!H19)-'3 Year Pro Forma'!$G$6 -> $(1.03) | I13: =SUM('3 Year Pro Forma'!$G$13:'3 Year Pro Forma'!I13)-SUM('3 Year Pro Forma'!$G$19:'3 Year Pro Forma'!I19)-'3 Year Pro Forma'!$G$6 -> $(0.72) | J13: =SUM('3 Year Pro Forma'!$G$13:'3 Year Pro Forma'!J13)-SUM('3 Year Pro Forma'!$G$19:'3 Year Pro Forma'!J19)-'3 Year Pro Forma'!$G$6 -> $(0.37) | K13: =SUM('3 Year Pro Forma'!$G$13:'3 Year Pro Forma'!K13)-SUM('3 Year Pro Forma'!$G$19:'3 Year Pro Forma'!K19)-'3 Year Pro Forma'!$G$6 -> $0.01 | L13: =SUM('3 Year Pro Forma'!$G$13:'3 Year Pro Forma'!L13)-SUM('3 Year Pro Forma'!$G$19:'3 Year Pro Forma'!L19)-'3 Year Pro Forma'!$G$6 -> $0.43 | M13: =SUM('3 Year Pro Forma'!$G$13:'3 Year Pro Forma'!M13)-SUM('3 Year Pro Forma'!$G$19:'3 Year Pro Forma'!M19)-'3 Year Pro Forma'!$G$6 -> $0.87 | N13: =SUM('3 Year Pro Forma'!$G$13:'3 Year Pro Forma'!N13)-SUM('3 Year Pro Forma'!$G$19:'3 Year Pro Forma'!N19)-'3 Year Pro Forma'!$G$6 -> $1.35 | O13: =SUM('3 Year Pro Forma'!$G$13:'3 Year Pro Forma'!O13)-SUM('3 Year Pro Forma'!$G$19:'3 Year Pro Forma'!O19)-'3 Year Pro Forma'!$G$6 -> $1.87 | P13: =SUM('3 Year Pro Forma'!$G$13:'3 Year Pro Forma'!P13)-SUM('3 Year Pro Forma'!$G$19:'3 Year Pro Forma'!P19)-'3 Year Pro Forma'!$G$6 -> $2.43 | Q13: =SUM('3 Year Pro Forma'!$G$13:'3 Year Pro Forma'!Q13)-SUM('3 Year Pro Forma'!$G$19:'3 Year Pro Forma'!Q19)-'3 Year Pro Forma'!$G$6 -> $3.02 | R13: =SUM('3 Year Pro Forma'!$G$13:'3 Year Pro Forma'!R13)-SUM('3 Year Pro Forma'!$G$19:'3 Year Pro Forma'!R19)-'3 Year Pro Forma'!$G$6 -> $3.66 | S13: =SUM('3 Year Pro Forma'!$G$13:'3 Year Pro Forma'!S13)-SUM('3 Year Pro Forma'!$G$19:'3 Year Pro Forma'!S19)-'3 Year Pro Forma'!$G$6 -> $4.33 | T13: =SUM('3 Year Pro Forma'!$G$13:'3 Year Pro Forma'!T13)-SUM('3 Year Pro Forma'!$G$19:'3 Year Pro Forma'!T19)-'3 Year Pro Forma'!$G$6 -> $5.05 | U13: =SUM('3 Year Pro Forma'!$G$13:'3 Year Pro Forma'!U13)-SUM('3 Year Pro Forma'!$G$19:'3 Year Pro Forma'!U19)-'3 Year Pro Forma'!$G$6 -> $5.82 | V13: =SUM('3 Year Pro Forma'!$G$13:'3 Year Pro Forma'!V13)-SUM('3 Year Pro Forma'!$G$19:'3 Year Pro Forma'!V19)-'3 Year Pro Forma'!$G$6 -> $6.64 | W13: =SUM('3 Year Pro Forma'!$G$13:'3 Year Pro Forma'!W13)-SUM('3 Year Pro Forma'!$G$19:'3 Year Pro Forma'!W19)-'3 Year Pro Forma'!$G$6 -> $7.50 | X13: =SUM('3 Year Pro Forma'!$G$13:'3 Year Pro Forma'!X13)-SUM('3 Year Pro Forma'!$G$19:'3 Year Pro Forma'!X19)-'3 Year Pro Forma'!$G$6 -> $8.41 | Y13: =SUM('3 Year Pro Forma'!$G$13:'3 Year Pro Forma'!Y13)-SUM('3 Year Pro Forma'!$G$19:'3 Year Pro Forma'!Y19)-'3 Year Pro Forma'!$G$6 -> $9.38 | Z13: =SUM('3 Year Pro Forma'!$G$13:'3 Year Pro Forma'!Z13)-SUM('3 Year Pro Forma'!$G$19:'3 Year Pro Forma'!Z19)-'3 Year Pro Forma'!$G$6 -> $10.41 | AA13: =SUM('3 Year Pro Forma'!$G$13:'3 Year Pro Forma'!AA13)-SUM('3 Year Pro Forma'!$G$19:'3 Year Pro Forma'!AA19)-'3 Year Pro Forma'!$G$6 -> $11.49 | AB13: =SUM('3 Year Pro Forma'!$G$13:'3 Year Pro Forma'!AB13)-SUM('3 Year Pro Forma'!$G$19:'3 Year Pro Forma'!AB19)-'3 Year Pro Forma'!$G$6 -> $12.63 | AC13: =SUM('3 Year Pro Forma'!$G$13:'3 Year Pro Forma'!AC13)-SUM('3 Year Pro Forma'!$G$19:'3 Year Pro Forma'!AC19)-'3 Year Pro Forma'!$G$6 -> $13.84 | AD13: =SUM('3 Year Pro Forma'!$G$13:'3 Year Pro Forma'!AD13)-SUM('3 Year Pro Forma'!$G$19:'3 Year Pro Forma'!AD19)-'3 Year Pro Forma'!$G$6 -> $15.11 | AE13: =SUM('3 Year Pro Forma'!$G$13:'3 Year Pro Forma'!AE13)-SUM('3 Year Pro Forma'!$G$19:'3 Year Pro Forma'!AE19)-'3 Year Pro Forma'!$G$6 -> $16.46 | AF13: =SUM('3 Year Pro Forma'!$G$13:'3 Year Pro Forma'!AF13)-SUM('3 Year Pro Forma'!$G$19:'3 Year Pro Forma'!AF19)-'3 Year Pro Forma'!$G$6 -> $17.87 | AG13: =SUM('3 Year Pro Forma'!$G$13:'3 Year Pro Forma'!AG13)-SUM('3 Year Pro Forma'!$G$19:'3 Year Pro Forma'!AG19)-'3 Year Pro Forma'!$G$6 -> $19.36 | AH13: =SUM('3 Year Pro Forma'!$G$13:'3 Year Pro Forma'!AH13)-SUM('3 Year Pro Forma'!$G$19:'3 Year Pro Forma'!AH19)-'3 Year Pro Forma'!$G$6 -> $20.93 | AI13: =SUM('3 Year Pro Forma'!$G$13:'3 Year Pro Forma'!AI13)-SUM('3 Year Pro Forma'!$G$19:'3 Year Pro Forma'!AI19)-'3 Year Pro Forma'!$G$6 -> $22.58 | AJ13: =SUM('3 Year Pro Forma'!$G$13:'3 Year Pro Forma'!AJ13)-SUM('3 Year Pro Forma'!$G$19:'3 Year Pro Forma'!AJ19)-'3 Year Pro Forma'!$G$6 -> $24.31 | AK13: =SUM('3 Year Pro Forma'!$G$13:'3 Year Pro Forma'!AK13)-SUM('3 Year Pro Forma'!$G$19:'3 Year Pro Forma'!AK19)-'3 Year Pro Forma'!$G$6 -> $26.14 | AL13: =SUM('3 Year Pro Forma'!$G$13:'3 Year Pro Forma'!AL13)-SUM('3 Year Pro Forma'!$G$19:'3 Year Pro Forma'!AL19)-'3 Year Pro Forma'!$G$6 -> $28.06
A14: 6 | H14: =SUM('3 Year Pro Forma'!$H$13:'3 Year Pro Forma'!H13)-SUM('3 Year Pro Forma'!$H$19:'3 Year Pro Forma'!H19)-'3 Year Pro Forma'!$H$6 -> $(1.28) | I14: =SUM('3 Year Pro Forma'!$H$13:'3 Year Pro Forma'!I13)-SUM('3 Year Pro Forma'!$H$19:'3 Year Pro Forma'!I19)-'3 Year Pro Forma'!$H$6 -> $(0.96) | J14: =SUM('3 Year Pro Forma'!$H$13:'3 Year Pro Forma'!J13)-SUM('3 Year Pro Forma'!$H$19:'3 Year Pro Forma'!J19)-'3 Year Pro Forma'!$H$6 -> $(0.61) | K14: =SUM('3 Year Pro Forma'!$H$13:'3 Year Pro Forma'!K13)-SUM('3 Year Pro Forma'!$H$19:'3 Year Pro Forma'!K19)-'3 Year Pro Forma'!$H$6 -> $(0.23) | L14: =SUM('3 Year Pro Forma'!$H$13:'3 Year Pro Forma'!L13)-SUM('3 Year Pro Forma'!$H$19:'3 Year Pro Forma'!L19)-'3 Year Pro Forma'!$H$6 -> $0.18 | M14: =SUM('3 Year Pro Forma'!$H$13:'3 Year Pro Forma'!M13)-SUM('3 Year Pro Forma'!$H$19:'3 Year Pro Forma'!M19)-'3 Year Pro Forma'!$H$6 -> $0.63 | N14: =SUM('3 Year Pro Forma'!$H$13:'3 Year Pro Forma'!N13)-SUM('3 Year Pro Forma'!$H$19:'3 Year Pro Forma'!N19)-'3 Year Pro Forma'!$H$6 -> $1.11 | O14: =SUM('3 Year Pro Forma'!$H$13:'3 Year Pro Forma'!O13)-SUM('3 Year Pro Forma'!$H$19:'3 Year Pro Forma'!O19)-'3 Year Pro Forma'!$H$6 -> $1.63 | P14: =SUM('3 Year Pro Forma'!$H$13:'3 Year Pro Forma'!P13)-SUM('3 Year Pro Forma'!$H$19:'3 Year Pro Forma'!P19)-'3 Year Pro Forma'!$H$6 -> $2.18 | Q14: =SUM('3 Year Pro Forma'!$H$13:'3 Year Pro Forma'!Q13)-SUM('3 Year Pro Forma'!$H$19:'3 Year Pro Forma'!Q19)-'3 Year Pro Forma'!$H$6 -> $2.78 | R14: =SUM('3 Year Pro Forma'!$H$13:'3 Year Pro Forma'!R13)-SUM('3 Year Pro Forma'!$H$19:'3 Year Pro Forma'!R19)-'3 Year Pro Forma'!$H$6 -> $3.41 | S14: =SUM('3 Year Pro Forma'!$H$13:'3 Year Pro Forma'!S13)-SUM('3 Year Pro Forma'!$H$19:'3 Year Pro Forma'!S19)-'3 Year Pro Forma'!$H$6 -> $4.09 | T14: =SUM('3 Year Pro Forma'!$H$13:'3 Year Pro Forma'!T13)-SUM('3 Year Pro Forma'!$H$19:'3 Year Pro Forma'!T19)-'3 Year Pro Forma'!$H$6 -> $4.81 | U14: =SUM('3 Year Pro Forma'!$H$13:'3 Year Pro Forma'!U13)-SUM('3 Year Pro Forma'!$H$19:'3 Year Pro Forma'!U19)-'3 Year Pro Forma'!$H$6 -> $5.58 | V14: =SUM('3 Year Pro Forma'!$H$13:'3 Year Pro Forma'!V13)-SUM('3 Year Pro Forma'!$H$19:'3 Year Pro Forma'!V19)-'3 Year Pro Forma'!$H$6 -> $6.39 | W14: =SUM('3 Year Pro Forma'!$H$13:'3 Year Pro Forma'!W13)-SUM('3 Year Pro Forma'!$H$19:'3 Year Pro Forma'!W19)-'3 Year Pro Forma'!$H$6 -> $7.25 | X14: =SUM('3 Year Pro Forma'!$H$13:'3 Year Pro Forma'!X13)-SUM('3 Year Pro Forma'!$H$19:'3 Year Pro Forma'!X19)-'3 Year Pro Forma'!$H$6 -> $8.17 | Y14: =SUM('3 Year Pro Forma'!$H$13:'3 Year Pro Forma'!Y13)-SUM('3 Year Pro Forma'!$H$19:'3 Year Pro Forma'!Y19)-'3 Year Pro Forma'!$H$6 -> $9.14 | Z14: =SUM('3 Year Pro Forma'!$H$13:'3 Year Pro Forma'!Z13)-SUM('3 Year Pro Forma'!$H$19:'3 Year Pro Forma'!Z19)-'3 Year Pro Forma'!$H$6 -> $10.16 | AA14: =SUM('3 Year Pro Forma'!$H$13:'3 Year Pro Forma'!AA13)-SUM('3 Year Pro Forma'!$H$19:'3 Year Pro Forma'!AA19)-'3 Year Pro Forma'!$H$6 -> $11.25 | AB14: =SUM('3 Year Pro Forma'!$H$13:'3 Year Pro Forma'!AB13)-SUM('3 Year Pro Forma'!$H$19:'3 Year Pro Forma'!AB19)-'3 Year Pro Forma'!$H$6 -> $12.39 | AC14: =SUM('3 Year Pro Forma'!$H$13:'3 Year Pro Forma'!AC13)-SUM('3 Year Pro Forma'!$H$19:'3 Year Pro Forma'!AC19)-'3 Year Pro Forma'!$H$6 -> $13.60 | AD14: =SUM('3 Year Pro Forma'!$H$13:'3 Year Pro Forma'!AD13)-SUM('3 Year Pro Forma'!$H$19:'3 Year Pro Forma'!AD19)-'3 Year Pro Forma'!$H$6 -> $14.87 | AE14: =SUM('3 Year Pro Forma'!$H$13:'3 Year Pro Forma'!AE13)-SUM('3 Year Pro Forma'!$H$19:'3 Year Pro Forma'!AE19)-'3 Year Pro Forma'!$H$6 -> $16.21 | AF14: =SUM('3 Year Pro Forma'!$H$13:'3 Year Pro Forma'!AF13)-SUM('3 Year Pro Forma'!$H$19:'3 Year Pro Forma'!AF19)-'3 Year Pro Forma'!$H$6 -> $17.62 | AG14: =SUM('3 Year Pro Forma'!$H$13:'3 Year Pro Forma'!AG13)-SUM('3 Year Pro Forma'!$H$19:'3 Year Pro Forma'!AG19)-'3 Year Pro Forma'!$H$6 -> $19.11 | AH14: =SUM('3 Year Pro Forma'!$H$13:'3 Year Pro Forma'!AH13)-SUM('3 Year Pro Forma'!$H$19:'3 Year Pro Forma'!AH19)-'3 Year Pro Forma'!$H$6 -> $20.68 | AI14: =SUM('3 Year Pro Forma'!$H$13:'3 Year Pro Forma'!AI13)-SUM('3 Year Pro Forma'!$H$19:'3 Year Pro Forma'!AI19)-'3 Year Pro Forma'!$H$6 -> $22.33 | AJ14: =SUM('3 Year Pro Forma'!$H$13:'3 Year Pro Forma'!AJ13)-SUM('3 Year Pro Forma'!$H$19:'3 Year Pro Forma'!AJ19)-'3 Year Pro Forma'!$H$6 -> $24.07 | AK14: =SUM('3 Year Pro Forma'!$H$13:'3 Year Pro Forma'!AK13)-SUM('3 Year Pro Forma'!$H$19:'3 Year Pro Forma'!AK19)-'3 Year Pro Forma'!$H$6 -> $25.89 | AL14: =SUM('3 Year Pro Forma'!$H$13:'3 Year Pro Forma'!AL13)-SUM('3 Year Pro Forma'!$H$19:'3 Year Pro Forma'!AL19)-'3 Year Pro Forma'!$H$6 -> $27.81
A15: 7 | I15: =SUM('3 Year Pro Forma'!$I$13:'3 Year Pro Forma'!I13)-SUM('3 Year Pro Forma'!$I$19:'3 Year Pro Forma'!I19)-'3 Year Pro Forma'!$I$6 -> $(1.24) | J15: =SUM('3 Year Pro Forma'!$I$13:'3 Year Pro Forma'!J13)-SUM('3 Year Pro Forma'!$I$19:'3 Year Pro Forma'!J19)-'3 Year Pro Forma'!$I$6 -> $(0.89) | K15: =SUM('3 Year Pro Forma'!$I$13:'3 Year Pro Forma'!K13)-SUM('3 Year Pro Forma'!$I$19:'3 Year Pro Forma'!K19)-'3 Year Pro Forma'!$I$6 -> $(0.51) | L15: =SUM('3 Year Pro Forma'!$I$13:'3 Year Pro Forma'!L13)-SUM('3 Year Pro Forma'!$I$19:'3 Year Pro Forma'!L19)-'3 Year Pro Forma'!$I$6 -> $(0.10) | M15: =SUM('3 Year Pro Forma'!$I$13:'3 Year Pro Forma'!M13)-SUM('3 Year Pro Forma'!$I$19:'3 Year Pro Forma'!M19)-'3 Year Pro Forma'!$I$6 -> $0.35 | N15: =SUM('3 Year Pro Forma'!$I$13:'3 Year Pro Forma'!N13)-SUM('3 Year Pro Forma'!$I$19:'3 Year Pro Forma'!N19)-'3 Year Pro Forma'!$I$6 -> $0.83 | O15: =SUM('3 Year Pro Forma'!$I$13:'3 Year Pro Forma'!O13)-SUM('3 Year Pro Forma'!$I$19:'3 Year Pro Forma'!O19)-'3 Year Pro Forma'!$I$6 -> $1.35 | P15: =SUM('3 Year Pro Forma'!$I$13:'3 Year Pro Forma'!P13)-SUM('3 Year Pro Forma'!$I$19:'3 Year Pro Forma'!P19)-'3 Year Pro Forma'!$I$6 -> $1.90 | Q15: =SUM('3 Year Pro Forma'!$I$13:'3 Year Pro Forma'!Q13)-SUM('3 Year Pro Forma'!$I$19:'3 Year Pro Forma'!Q19)-'3 Year Pro Forma'!$I$6 -> $2.50 | R15: =SUM('3 Year Pro Forma'!$I$13:'3 Year Pro Forma'!R13)-SUM('3 Year Pro Forma'!$I$19:'3 Year Pro Forma'!R19)-'3 Year Pro Forma'!$I$6 -> $3.13 | S15: =SUM('3 Year Pro Forma'!$I$13:'3 Year Pro Forma'!S13)-SUM('3 Year Pro Forma'!$I$19:'3 Year Pro Forma'!S19)-'3 Year Pro Forma'!$I$6 -> $3.81 | T15: =SUM('3 Year Pro Forma'!$I$13:'3 Year Pro Forma'!T13)-SUM('3 Year Pro Forma'!$I$19:'3 Year Pro Forma'!T19)-'3 Year Pro Forma'!$I$6 -> $4.53 | U15: =SUM('3 Year Pro Forma'!$I$13:'3 Year Pro Forma'!U13)-SUM('3 Year Pro Forma'!$I$19:'3 Year Pro Forma'!U19)-'3 Year Pro Forma'!$I$6 -> $5.30 | V15: =SUM('3 Year Pro Forma'!$I$13:'3 Year Pro Forma'!V13)-SUM('3 Year Pro Forma'!$I$19:'3 Year Pro Forma'!V19)-'3 Year Pro Forma'!$I$6 -> $6.11 | W15: =SUM('3 Year Pro Forma'!$I$13:'3 Year Pro Forma'!W13)-SUM('3 Year Pro Forma'!$I$19:'3 Year Pro Forma'!W19)-'3 Year Pro Forma'!$I$6 -> $6.98 | X15: =SUM('3 Year Pro Forma'!$I$13:'3 Year Pro Forma'!X13)-SUM('3 Year Pro Forma'!$I$19:'3 Year Pro Forma'!X19)-'3 Year Pro Forma'!$I$6 -> $7.89 | Y15: =SUM('3 Year Pro Forma'!$I$13:'3 Year Pro Forma'!Y13)-SUM('3 Year Pro Forma'!$I$19:'3 Year Pro Forma'!Y19)-'3 Year Pro Forma'!$I$6 -> $8.86 | Z15: =SUM('3 Year Pro Forma'!$I$13:'3 Year Pro Forma'!Z13)-SUM('3 Year Pro Forma'!$I$19:'3 Year Pro Forma'!Z19)-'3 Year Pro Forma'!$I$6 -> $9.88 | AA15: =SUM('3 Year Pro Forma'!$I$13:'3 Year Pro Forma'!AA13)-SUM('3 Year Pro Forma'!$I$19:'3 Year Pro Forma'!AA19)-'3 Year Pro Forma'!$I$6 -> $10.97 | AB15: =SUM('3 Year Pro Forma'!$I$13:'3 Year Pro Forma'!AB13)-SUM('3 Year Pro Forma'!$I$19:'3 Year Pro Forma'!AB19)-'3 Year Pro Forma'!$I$6 -> $12.11 | AC15: =SUM('3 Year Pro Forma'!$I$13:'3 Year Pro Forma'!AC13)-SUM('3 Year Pro Forma'!$I$19:'3 Year Pro Forma'!AC19)-'3 Year Pro Forma'!$I$6 -> $13.32 | AD15: =SUM('3 Year Pro Forma'!$I$13:'3 Year Pro Forma'!AD13)-SUM('3 Year Pro Forma'!$I$19:'3 Year Pro Forma'!AD19)-'3 Year Pro Forma'!$I$6 -> $14.59 | AE15: =SUM('3 Year Pro Forma'!$I$13:'3 Year Pro Forma'!AE13)-SUM('3 Year Pro Forma'!$I$19:'3 Year Pro Forma'!AE19)-'3 Year Pro Forma'!$I$6 -> $15.93 | AF15: =SUM('3 Year Pro Forma'!$I$13:'3 Year Pro Forma'!AF13)-SUM('3 Year Pro Forma'!$I$19:'3 Year Pro Forma'!AF19)-'3 Year Pro Forma'!$I$6 -> $17.34 | AG15: =SUM('3 Year Pro Forma'!$I$13:'3 Year Pro Forma'!AG13)-SUM('3 Year Pro Forma'!$I$19:'3 Year Pro Forma'!AG19)-'3 Year Pro Forma'!$I$6 -> $18.83 | AH15: =SUM('3 Year Pro Forma'!$I$13:'3 Year Pro Forma'!AH13)-SUM('3 Year Pro Forma'!$I$19:'3 Year Pro Forma'!AH19)-'3 Year Pro Forma'!$I$6 -> $20.40 | AI15: =SUM('3 Year Pro Forma'!$I$13:'3 Year Pro Forma'!AI13)-SUM('3 Year Pro Forma'!$I$19:'3 Year Pro Forma'!AI19)-'3 Year Pro Forma'!$I$6 -> $22.05 | AJ15: =SUM('3 Year Pro Forma'!$I$13:'3 Year Pro Forma'!AJ13)-SUM('3 Year Pro Forma'!$I$19:'3 Year Pro Forma'!AJ19)-'3 Year Pro Forma'!$I$6 -> $23.79 | AK15: =SUM('3 Year Pro Forma'!$I$13:'3 Year Pro Forma'!AK13)-SUM('3 Year Pro Forma'!$I$19:'3 Year Pro Forma'!AK19)-'3 Year Pro Forma'!$I$6 -> $25.61 | AL15: =SUM('3 Year Pro Forma'!$I$13:'3 Year Pro Forma'!AL13)-SUM('3 Year Pro Forma'!$I$19:'3 Year Pro Forma'!AL19)-'3 Year Pro Forma'!$I$6 -> $27.53
A16: 8 | J16: =SUM('3 Year Pro Forma'!$J$13:'3 Year Pro Forma'!J13)-SUM('3 Year Pro Forma'!$J$19:'3 Year Pro Forma'!J19)-'3 Year Pro Forma'!$J$6 -> $(1.20) | K16: =SUM('3 Year Pro Forma'!$J$13:'3 Year Pro Forma'!K13)-SUM('3 Year Pro Forma'!$J$19:'3 Year Pro Forma'!K19)-'3 Year Pro Forma'!$J$6 -> $(0.82) | L16: =SUM('3 Year Pro Forma'!$J$13:'3 Year Pro Forma'!L13)-SUM('3 Year Pro Forma'!$J$19:'3 Year Pro Forma'!L19)-'3 Year Pro Forma'!$J$6 -> $(0.41) | M16: =SUM('3 Year Pro Forma'!$J$13:'3 Year Pro Forma'!M13)-SUM('3 Year Pro Forma'!$J$19:'3 Year Pro Forma'!M19)-'3 Year Pro Forma'!$J$6 -> $0.04 | N16: =SUM('3 Year Pro Forma'!$J$13:'3 Year Pro Forma'!N13)-SUM('3 Year Pro Forma'!$J$19:'3 Year Pro Forma'!N19)-'3 Year Pro Forma'!$J$6 -> $0.52 | O16: =SUM('3 Year Pro Forma'!$J$13:'3 Year Pro Forma'!O13)-SUM('3 Year Pro Forma'!$J$19:'3 Year Pro Forma'!O19)-'3 Year Pro Forma'!$J$6 -> $1.04 | P16: =SUM('3 Year Pro Forma'!$J$13:'3 Year Pro Forma'!P13)-SUM('3 Year Pro Forma'!$J$19:'3 Year Pro Forma'!P19)-'3 Year Pro Forma'!$J$6 -> $1.59 | Q16: =SUM('3 Year Pro Forma'!$J$13:'3 Year Pro Forma'!Q13)-SUM('3 Year Pro Forma'!$J$19:'3 Year Pro Forma'!Q19)-'3 Year Pro Forma'!$J$6 -> $2.19 | R16: =SUM('3 Year Pro Forma'!$J$13:'3 Year Pro Forma'!R13)-SUM('3 Year Pro Forma'!$J$19:'3 Year Pro Forma'!R19)-'3 Year Pro Forma'!$J$6 -> $2.82 | S16: =SUM('3 Year Pro Forma'!$J$13:'3 Year Pro Forma'!S13)-SUM('3 Year Pro Forma'!$J$19:'3 Year Pro Forma'!S19)-'3 Year Pro Forma'!$J$6 -> $3.50 | T16: =SUM('3 Year Pro Forma'!$J$13:'3 Year Pro Forma'!T13)-SUM('3 Year Pro Forma'!$J$19:'3 Year Pro Forma'!T19)-'3 Year Pro Forma'!$J$6 -> $4.22 | U16: =SUM('3 Year Pro Forma'!$J$13:'3 Year Pro Forma'!U13)-SUM('3 Year Pro Forma'!$J$19:'3 Year Pro Forma'!U19)-'3 Year Pro Forma'!$J$6 -> $4.99 | V16: =SUM('3 Year Pro Forma'!$J$13:'3 Year Pro Forma'!V13)-SUM('3 Year Pro Forma'!$J$19:'3 Year Pro Forma'!V19)-'3 Year Pro Forma'!$J$6 -> $5.80 | W16: =SUM('3 Year Pro Forma'!$J$13:'3 Year Pro Forma'!W13)-SUM('3 Year Pro Forma'!$J$19:'3 Year Pro Forma'!W19)-'3 Year Pro Forma'!$J$6 -> $6.66 | X16: =SUM('3 Year Pro Forma'!$J$13:'3 Year Pro Forma'!X13)-SUM('3 Year Pro Forma'!$J$19:'3 Year Pro Forma'!X19)-'3 Year Pro Forma'!$J$6 -> $7.58 | Y16: =SUM('3 Year Pro Forma'!$J$13:'3 Year Pro Forma'!Y13)-SUM('3 Year Pro Forma'!$J$19:'3 Year Pro Forma'!Y19)-'3 Year Pro Forma'!$J$6 -> $8.55 | Z16: =SUM('3 Year Pro Forma'!$J$13:'3 Year Pro Forma'!Z13)-SUM('3 Year Pro Forma'!$J$19:'3 Year Pro Forma'!Z19)-'3 Year Pro Forma'!$J$6 -> $9.57 | AA16: =SUM('3 Year Pro Forma'!$J$13:'3 Year Pro Forma'!AA13)-SUM('3 Year Pro Forma'!$J$19:'3 Year Pro Forma'!AA19)-'3 Year Pro Forma'!$J$6 -> $10.66 | AB16: =SUM('3 Year Pro Forma'!$J$13:'3 Year Pro Forma'!AB13)-SUM('3 Year Pro Forma'!$J$19:'3 Year Pro Forma'!AB19)-'3 Year Pro Forma'!$J$6 -> $11.80 | AC16: =SUM('3 Year Pro Forma'!$J$13:'3 Year Pro Forma'!AC13)-SUM('3 Year Pro Forma'!$J$19:'3 Year Pro Forma'!AC19)-'3 Year Pro Forma'!$J$6 -> $13.01 | AD16: =SUM('3 Year Pro Forma'!$J$13:'3 Year Pro Forma'!AD13)-SUM('3 Year Pro Forma'!$J$19:'3 Year Pro Forma'!AD19)-'3 Year Pro Forma'!$J$6 -> $14.28 | AE16: =SUM('3 Year Pro Forma'!$J$13:'3 Year Pro Forma'!AE13)-SUM('3 Year Pro Forma'!$J$19:'3 Year Pro Forma'!AE19)-'3 Year Pro Forma'!$J$6 -> $15.62 | AF16: =SUM('3 Year Pro Forma'!$J$13:'3 Year Pro Forma'!AF13)-SUM('3 Year Pro Forma'!$J$19:'3 Year Pro Forma'!AF19)-'3 Year Pro Forma'!$J$6 -> $17.03 | AG16: =SUM('3 Year Pro Forma'!$J$13:'3 Year Pro Forma'!AG13)-SUM('3 Year Pro Forma'!$J$19:'3 Year Pro Forma'!AG19)-'3 Year Pro Forma'!$J$6 -> $18.52 | AH16: =SUM('3 Year Pro Forma'!$J$13:'3 Year Pro Forma'!AH13)-SUM('3 Year Pro Forma'!$J$19:'3 Year Pro Forma'!AH19)-'3 Year Pro Forma'!$J$6 -> $20.09 | AI16: =SUM('3 Year Pro Forma'!$J$13:'3 Year Pro Forma'!AI13)-SUM('3 Year Pro Forma'!$J$19:'3 Year Pro Forma'!AI19)-'3 Year Pro Forma'!$J$6 -> $21.74 | AJ16: =SUM('3 Year Pro Forma'!$J$13:'3 Year Pro Forma'!AJ13)-SUM('3 Year Pro Forma'!$J$19:'3 Year Pro Forma'!AJ19)-'3 Year Pro Forma'!$J$6 -> $23.48 | AK16: =SUM('3 Year Pro Forma'!$J$13:'3 Year Pro Forma'!AK13)-SUM('3 Year Pro Forma'!$J$19:'3 Year Pro Forma'!AK19)-'3 Year Pro Forma'!$J$6 -> $25.30 | AL16: =SUM('3 Year Pro Forma'!$J$13:'3 Year Pro Forma'!AL13)-SUM('3 Year Pro Forma'!$J$19:'3 Year Pro Forma'!AL19)-'3 Year Pro Forma'!$J$6 -> $27.22
A17: 9 | K17: =SUM('3 Year Pro Forma'!$K$13:'3 Year Pro Forma'!K13)-SUM('3 Year Pro Forma'!$K$19:'3 Year Pro Forma'!K19)-'3 Year Pro Forma'!$K$6 -> $(1.17) | L17: =SUM('3 Year Pro Forma'!$K$13:'3 Year Pro Forma'!L13)-SUM('3 Year Pro Forma'!$K$19:'3 Year Pro Forma'!L19)-'3 Year Pro Forma'!$K$6 -> $(0.75) | M17: =SUM('3 Year Pro Forma'!$K$13:'3 Year Pro Forma'!M13)-SUM('3 Year Pro Forma'!$K$19:'3 Year Pro Forma'!M19)-'3 Year Pro Forma'!$K$6 -> $(0.31) | N17: =SUM('3 Year Pro Forma'!$K$13:'3 Year Pro Forma'!N13)-SUM('3 Year Pro Forma'!$K$19:'3 Year Pro Forma'!N19)-'3 Year Pro Forma'!$K$6 -> $0.17 | O17: =SUM('3 Year Pro Forma'!$K$13:'3 Year Pro Forma'!O13)-SUM('3 Year Pro Forma'!$K$19:'3 Year Pro Forma'!O19)-'3 Year Pro Forma'!$K$6 -> $0.69 | P17: =SUM('3 Year Pro Forma'!$K$13:'3 Year Pro Forma'!P13)-SUM('3 Year Pro Forma'!$K$19:'3 Year Pro Forma'!P19)-'3 Year Pro Forma'!$K$6 -> $1.25 | Q17: =SUM('3 Year Pro Forma'!$K$13:'3 Year Pro Forma'!Q13)-SUM('3 Year Pro Forma'!$K$19:'3 Year Pro Forma'!Q19)-'3 Year Pro Forma'!$K$6 -> $1.84 | R17: =SUM('3 Year Pro Forma'!$K$13:'3 Year Pro Forma'!R13)-SUM('3 Year Pro Forma'!$K$19:'3 Year Pro Forma'!R19)-'3 Year Pro Forma'!$K$6 -> $2.48 | S17: =SUM('3 Year Pro Forma'!$K$13:'3 Year Pro Forma'!S13)-SUM('3 Year Pro Forma'!$K$19:'3 Year Pro Forma'!S19)-'3 Year Pro Forma'!$K$6 -> $3.16 | T17: =SUM('3 Year Pro Forma'!$K$13:'3 Year Pro Forma'!T13)-SUM('3 Year Pro Forma'!$K$19:'3 Year Pro Forma'!T19)-'3 Year Pro Forma'!$K$6 -> $3.88 | U17: =SUM('3 Year Pro Forma'!$K$13:'3 Year Pro Forma'!U13)-SUM('3 Year Pro Forma'!$K$19:'3 Year Pro Forma'!U19)-'3 Year Pro Forma'!$K$6 -> $4.64 | V17: =SUM('3 Year Pro Forma'!$K$13:'3 Year Pro Forma'!V13)-SUM('3 Year Pro Forma'!$K$19:'3 Year Pro Forma'!V19)-'3 Year Pro Forma'!$K$6 -> $5.46 | W17: =SUM('3 Year Pro Forma'!$K$13:'3 Year Pro Forma'!W13)-SUM('3 Year Pro Forma'!$K$19:'3 Year Pro Forma'!W19)-'3 Year Pro Forma'!$K$6 -> $6.32 | X17: =SUM('3 Year Pro Forma'!$K$13:'3 Year Pro Forma'!X13)-SUM('3 Year Pro Forma'!$K$19:'3 Year Pro Forma'!X19)-'3 Year Pro Forma'!$K$6 -> $7.24 | Y17: =SUM('3 Year Pro Forma'!$K$13:'3 Year Pro Forma'!Y13)-SUM('3 Year Pro Forma'!$K$19:'3 Year Pro Forma'!Y19)-'3 Year Pro Forma'!$K$6 -> $8.21 | Z17: =SUM('3 Year Pro Forma'!$K$13:'3 Year Pro Forma'!Z13)-SUM('3 Year Pro Forma'!$K$19:'3 Year Pro Forma'!Z19)-'3 Year Pro Forma'!$K$6 -> $9.23 | AA17: =SUM('3 Year Pro Forma'!$K$13:'3 Year Pro Forma'!AA13)-SUM('3 Year Pro Forma'!$K$19:'3 Year Pro Forma'!AA19)-'3 Year Pro Forma'!$K$6 -> $10.31 | AB17: =SUM('3 Year Pro Forma'!$K$13:'3 Year Pro Forma'!AB13)-SUM('3 Year Pro Forma'!$K$19:'3 Year Pro Forma'!AB19)-'3 Year Pro Forma'!$K$6 -> $11.46 | AC17: =SUM('3 Year Pro Forma'!$K$13:'3 Year Pro Forma'!AC13)-SUM('3 Year Pro Forma'!$K$19:'3 Year Pro Forma'!AC19)-'3 Year Pro Forma'!$K$6 -> $12.66 | AD17: =SUM('3 Year Pro Forma'!$K$13:'3 Year Pro Forma'!AD13)-SUM('3 Year Pro Forma'!$K$19:'3 Year Pro Forma'!AD19)-'3 Year Pro Forma'!$K$6 -> $13.94 | AE17: =SUM('3 Year Pro Forma'!$K$13:'3 Year Pro Forma'!AE13)-SUM('3 Year Pro Forma'!$K$19:'3 Year Pro Forma'!AE19)-'3 Year Pro Forma'!$K$6 -> $15.28 | AF17: =SUM('3 Year Pro Forma'!$K$13:'3 Year Pro Forma'!AF13)-SUM('3 Year Pro Forma'!$K$19:'3 Year Pro Forma'!AF19)-'3 Year Pro Forma'!$K$6 -> $16.69 | AG17: =SUM('3 Year Pro Forma'!$K$13:'3 Year Pro Forma'!AG13)-SUM('3 Year Pro Forma'!$K$19:'3 Year Pro Forma'!AG19)-'3 Year Pro Forma'!$K$6 -> $18.18 | AH17: =SUM('3 Year Pro Forma'!$K$13:'3 Year Pro Forma'!AH13)-SUM('3 Year Pro Forma'!$K$19:'3 Year Pro Forma'!AH19)-'3 Year Pro Forma'!$K$6 -> $19.75 | AI17: =SUM('3 Year Pro Forma'!$K$13:'3 Year Pro Forma'!AI13)-SUM('3 Year Pro Forma'!$K$19:'3 Year Pro Forma'!AI19)-'3 Year Pro Forma'!$K$6 -> $21.40 | AJ17: =SUM('3 Year Pro Forma'!$K$13:'3 Year Pro Forma'!AJ13)-SUM('3 Year Pro Forma'!$K$19:'3 Year Pro Forma'!AJ19)-'3 Year Pro Forma'!$K$6 -> $23.13 | AK17: =SUM('3 Year Pro Forma'!$K$13:'3 Year Pro Forma'!AK13)-SUM('3 Year Pro Forma'!$K$19:'3 Year Pro Forma'!AK19)-'3 Year Pro Forma'!$K$6 -> $24.96 | AL17: =SUM('3 Year Pro Forma'!$K$13:'3 Year Pro Forma'!AL13)-SUM('3 Year Pro Forma'!$K$19:'3 Year Pro Forma'!AL19)-'3 Year Pro Forma'!$K$6 -> $26.88
A18: 10 | L18: =SUM('3 Year Pro Forma'!$L$13:'3 Year Pro Forma'!L13)-SUM('3 Year Pro Forma'!$L$19:'3 Year Pro Forma'!L19)-'3 Year Pro Forma'!$L$6 -> $(1.13) | M18: =SUM('3 Year Pro Forma'!$L$13:'3 Year Pro Forma'!M13)-SUM('3 Year Pro Forma'!$L$19:'3 Year Pro Forma'!M19)-'3 Year Pro Forma'!$L$6 -> $(0.68) | N18: =SUM('3 Year Pro Forma'!$L$13:'3 Year Pro Forma'!N13)-SUM('3 Year Pro Forma'!$L$19:'3 Year Pro Forma'!N19)-'3 Year Pro Forma'!$L$6 -> $(0.20) | O18: =SUM('3 Year Pro Forma'!$L$13:'3 Year Pro Forma'!O13)-SUM('3 Year Pro Forma'!$L$19:'3 Year Pro Forma'!O19)-'3 Year Pro Forma'!$L$6 -> $0.32 | P18: =SUM('3 Year Pro Forma'!$L$13:'3 Year Pro Forma'!P13)-SUM('3 Year Pro Forma'!$L$19:'3 Year Pro Forma'!P19)-'3 Year Pro Forma'!$L$6 -> $0.87 | Q18: =SUM('3 Year Pro Forma'!$L$13:'3 Year Pro Forma'!Q13)-SUM('3 Year Pro Forma'!$L$19:'3 Year Pro Forma'!Q19)-'3 Year Pro Forma'!$L$6 -> $1.47 | R18: =SUM('3 Year Pro Forma'!$L$13:'3 Year Pro Forma'!R13)-SUM('3 Year Pro Forma'!$L$19:'3 Year Pro Forma'!R19)-'3 Year Pro Forma'!$L$6 -> $2.10 | S18: =SUM('3 Year Pro Forma'!$L$13:'3 Year Pro Forma'!S13)-SUM('3 Year Pro Forma'!$L$19:'3 Year Pro Forma'!S19)-'3 Year Pro Forma'!$L$6 -> $2.78 | T18: =SUM('3 Year Pro Forma'!$L$13:'3 Year Pro Forma'!T13)-SUM('3 Year Pro Forma'!$L$19:'3 Year Pro Forma'!T19)-'3 Year Pro Forma'!$L$6 -> $3.50 | U18: =SUM('3 Year Pro Forma'!$L$13:'3 Year Pro Forma'!U13)-SUM('3 Year Pro Forma'!$L$19:'3 Year Pro Forma'!U19)-'3 Year Pro Forma'!$L$6 -> $4.27 | V18: =SUM('3 Year Pro Forma'!$L$13:'3 Year Pro Forma'!V13)-SUM('3 Year Pro Forma'!$L$19:'3 Year Pro Forma'!V19)-'3 Year Pro Forma'!$L$6 -> $5.08 | W18: =SUM('3 Year Pro Forma'!$L$13:'3 Year Pro Forma'!W13)-SUM('3 Year Pro Forma'!$L$19:'3 Year Pro Forma'!W19)-'3 Year Pro Forma'!$L$6 -> $5.95 | X18: =SUM('3 Year Pro Forma'!$L$13:'3 Year Pro Forma'!X13)-SUM('3 Year Pro Forma'!$L$19:'3 Year Pro Forma'!X19)-'3 Year Pro Forma'!$L$6 -> $6.86 | Y18: =SUM('3 Year Pro Forma'!$L$13:'3 Year Pro Forma'!Y13)-SUM('3 Year Pro Forma'!$L$19:'3 Year Pro Forma'!Y19)-'3 Year Pro Forma'!$L$6 -> $7.83 | Z18: =SUM('3 Year Pro Forma'!$L$13:'3 Year Pro Forma'!Z13)-SUM('3 Year Pro Forma'!$L$19:'3 Year Pro Forma'!Z19)-'3 Year Pro Forma'!$L$6 -> $8.85 | AA18: =SUM('3 Year Pro Forma'!$L$13:'3 Year Pro Forma'!AA13)-SUM('3 Year Pro Forma'!$L$19:'3 Year Pro Forma'!AA19)-'3 Year Pro Forma'!$L$6 -> $9.94 | AB18: =SUM('3 Year Pro Forma'!$L$13:'3 Year Pro Forma'!AB13)-SUM('3 Year Pro Forma'!$L$19:'3 Year Pro Forma'!AB19)-'3 Year Pro Forma'!$L$6 -> $11.08 | AC18: =SUM('3 Year Pro Forma'!$L$13:'3 Year Pro Forma'!AC13)-SUM('3 Year Pro Forma'!$L$19:'3 Year Pro Forma'!AC19)-'3 Year Pro Forma'!$L$6 -> $12.29 | AD18: =SUM('3 Year Pro Forma'!$L$13:'3 Year Pro Forma'!AD13)-SUM('3 Year Pro Forma'!$L$19:'3 Year Pro Forma'!AD19)-'3 Year Pro Forma'!$L$6 -> $13.56 | AE18: =SUM('3 Year Pro Forma'!$L$13:'3 Year Pro Forma'!AE13)-SUM('3 Year Pro Forma'!$L$19:'3 Year Pro Forma'!AE19)-'3 Year Pro Forma'!$L$6 -> $14.90 | AF18: =SUM('3 Year Pro Forma'!$L$13:'3 Year Pro Forma'!AF13)-SUM('3 Year Pro Forma'!$L$19:'3 Year Pro Forma'!AF19)-'3 Year Pro Forma'!$L$6 -> $16.31 | AG18: =SUM('3 Year Pro Forma'!$L$13:'3 Year Pro Forma'!AG13)-SUM('3 Year Pro Forma'!$L$19:'3 Year Pro Forma'!AG19)-'3 Year Pro Forma'!$L$6 -> $17.80 | AH18: =SUM('3 Year Pro Forma'!$L$13:'3 Year Pro Forma'!AH13)-SUM('3 Year Pro Forma'!$L$19:'3 Year Pro Forma'!AH19)-'3 Year Pro Forma'!$L$6 -> $19.37 | AI18: =SUM('3 Year Pro Forma'!$L$13:'3 Year Pro Forma'!AI13)-SUM('3 Year Pro Forma'!$L$19:'3 Year Pro Forma'!AI19)-'3 Year Pro Forma'!$L$6 -> $21.02 | AJ18: =SUM('3 Year Pro Forma'!$L$13:'3 Year Pro Forma'!AJ13)-SUM('3 Year Pro Forma'!$L$19:'3 Year Pro Forma'!AJ19)-'3 Year Pro Forma'!$L$6 -> $22.76 | AK18: =SUM('3 Year Pro Forma'!$L$13:'3 Year Pro Forma'!AK13)-SUM('3 Year Pro Forma'!$L$19:'3 Year Pro Forma'!AK19)-'3 Year Pro Forma'!$L$6 -> $24.58 | AL18: =SUM('3 Year Pro Forma'!$L$13:'3 Year Pro Forma'!AL13)-SUM('3 Year Pro Forma'!$L$19:'3 Year Pro Forma'!AL19)-'3 Year Pro Forma'!$L$6 -> $26.50
A19: 11 | M19: =SUM('3 Year Pro Forma'!$M$13:'3 Year Pro Forma'!M13)-SUM('3 Year Pro Forma'!$M$19:'3 Year Pro Forma'!M19)-'3 Year Pro Forma'!$M$6 -> $(1.09) | N19: =SUM('3 Year Pro Forma'!$M$13:'3 Year Pro Forma'!N13)-SUM('3 Year Pro Forma'!$M$19:'3 Year Pro Forma'!N19)-'3 Year Pro Forma'!$M$6 -> $(0.61) | O19: =SUM('3 Year Pro Forma'!$M$13:'3 Year Pro Forma'!O13)-SUM('3 Year Pro Forma'!$M$19:'3 Year Pro Forma'!O19)-'3 Year Pro Forma'!$M$6 -> $(0.09) | P19: =SUM('3 Year Pro Forma'!$M$13:'3 Year Pro Forma'!P13)-SUM('3 Year Pro Forma'!$M$19:'3 Year Pro Forma'!P19)-'3 Year Pro Forma'!$M$6 -> $0.46 | Q19: =SUM('3 Year Pro Forma'!$M$13:'3 Year Pro Forma'!Q13)-SUM('3 Year Pro Forma'!$M$19:'3 Year Pro Forma'!Q19)-'3 Year Pro Forma'!$M$6 -> $1.06 | R19: =SUM('3 Year Pro Forma'!$M$13:'3 Year Pro Forma'!R13)-SUM('3 Year Pro Forma'!$M$19:'3 Year Pro Forma'!R19)-'3 Year Pro Forma'!$M$6 -> $1.69 | S19: =SUM('3 Year Pro Forma'!$M$13:'3 Year Pro Forma'!S13)-SUM('3 Year Pro Forma'!$M$19:'3 Year Pro Forma'!S19)-'3 Year Pro Forma'!$M$6 -> $2.37 | T19: =SUM('3 Year Pro Forma'!$M$13:'3 Year Pro Forma'!T13)-SUM('3 Year Pro Forma'!$M$19:'3 Year Pro Forma'!T19)-'3 Year Pro Forma'!$M$6 -> $3.09 | U19: =SUM('3 Year Pro Forma'!$M$13:'3 Year Pro Forma'!U13)-SUM('3 Year Pro Forma'!$M$19:'3 Year Pro Forma'!U19)-'3 Year Pro Forma'!$M$6 -> $3.86 | V19: =SUM('3 Year Pro Forma'!$M$13:'3 Year Pro Forma'!V13)-SUM('3 Year Pro Forma'!$M$19:'3 Year Pro Forma'!V19)-'3 Year Pro Forma'!$M$6 -> $4.67 | W19: =SUM('3 Year Pro Forma'!$M$13:'3 Year Pro Forma'!W13)-SUM('3 Year Pro Forma'!$M$19:'3 Year Pro Forma'!W19)-'3 Year Pro Forma'!$M$6 -> $5.54 | X19: =SUM('3 Year Pro Forma'!$M$13:'3 Year Pro Forma'!X13)-SUM('3 Year Pro Forma'!$M$19:'3 Year Pro Forma'!X19)-'3 Year Pro Forma'!$M$6 -> $6.45 | Y19: =SUM('3 Year Pro Forma'!$M$13:'3 Year Pro Forma'!Y13)-SUM('3 Year Pro Forma'!$M$19:'3 Year Pro Forma'!Y19)-'3 Year Pro Forma'!$M$6 -> $7.42 | Z19: =SUM('3 Year Pro Forma'!$M$13:'3 Year Pro Forma'!Z13)-SUM('3 Year Pro Forma'!$M$19:'3 Year Pro Forma'!Z19)-'3 Year Pro Forma'!$M$6 -> $8.44 | AA19: =SUM('3 Year Pro Forma'!$M$13:'3 Year Pro Forma'!AA13)-SUM('3 Year Pro Forma'!$M$19:'3 Year Pro Forma'!AA19)-'3 Year Pro Forma'!$M$6 -> $9.53 | AB19: =SUM('3 Year Pro Forma'!$M$13:'3 Year Pro Forma'!AB13)-SUM('3 Year Pro Forma'!$M$19:'3 Year Pro Forma'!AB19)-'3 Year Pro Forma'!$M$6 -> $10.67 | AC19: =SUM('3 Year Pro Forma'!$M$13:'3 Year Pro Forma'!AC13)-SUM('3 Year Pro Forma'!$M$19:'3 Year Pro Forma'!AC19)-'3 Year Pro Forma'!$M$6 -> $11.88 | AD19: =SUM('3 Year Pro Forma'!$M$13:'3 Year Pro Forma'!AD13)-SUM('3 Year Pro Forma'!$M$19:'3 Year Pro Forma'!AD19)-'3 Year Pro Forma'!$M$6 -> $13.15 | AE19: =SUM('3 Year Pro Forma'!$M$13:'3 Year Pro Forma'!AE13)-SUM('3 Year Pro Forma'!$M$19:'3 Year Pro Forma'!AE19)-'3 Year Pro Forma'!$M$6 -> $14.49 | AF19: =SUM('3 Year Pro Forma'!$M$13:'3 Year Pro Forma'!AF13)-SUM('3 Year Pro Forma'!$M$19:'3 Year Pro Forma'!AF19)-'3 Year Pro Forma'!$M$6 -> $15.90 | AG19: =SUM('3 Year Pro Forma'!$M$13:'3 Year Pro Forma'!AG13)-SUM('3 Year Pro Forma'!$M$19:'3 Year Pro Forma'!AG19)-'3 Year Pro Forma'!$M$6 -> $17.39 | AH19: =SUM('3 Year Pro Forma'!$M$13:'3 Year Pro Forma'!AH13)-SUM('3 Year Pro Forma'!$M$19:'3 Year Pro Forma'!AH19)-'3 Year Pro Forma'!$M$6 -> $18.96 | AI19: =SUM('3 Year Pro Forma'!$M$13:'3 Year Pro Forma'!AI13)-SUM('3 Year Pro Forma'!$M$19:'3 Year Pro Forma'!AI19)-'3 Year Pro Forma'!$M$6 -> $20.61 | AJ19: =SUM('3 Year Pro Forma'!$M$13:'3 Year Pro Forma'!AJ13)-SUM('3 Year Pro Forma'!$M$19:'3 Year Pro Forma'!AJ19)-'3 Year Pro Forma'!$M$6 -> $22.35 | AK19: =SUM('3 Year Pro Forma'!$M$13:'3 Year Pro Forma'!AK13)-SUM('3 Year Pro Forma'!$M$19:'3 Year Pro Forma'!AK19)-'3 Year Pro Forma'!$M$6 -> $24.17 | AL19: =SUM('3 Year Pro Forma'!$M$13:'3 Year Pro Forma'!AL13)-SUM('3 Year Pro Forma'!$M$19:'3 Year Pro Forma'!AL19)-'3 Year Pro Forma'!$M$6 -> $26.09
A20: 12 | N20: =SUM('3 Year Pro Forma'!$N$13:'3 Year Pro Forma'!N13)-SUM('3 Year Pro Forma'!$N$19:'3 Year Pro Forma'!N19)-'3 Year Pro Forma'!$N$6 -> $(1.06) | O20: =SUM('3 Year Pro Forma'!$N$13:'3 Year Pro Forma'!O13)-SUM('3 Year Pro Forma'!$N$19:'3 Year Pro Forma'!O19)-'3 Year Pro Forma'!$N$6 -> $(0.54) | P20: =SUM('3 Year Pro Forma'!$N$13:'3 Year Pro Forma'!P13)-SUM('3 Year Pro Forma'!$N$19:'3 Year Pro Forma'!P19)-'3 Year Pro Forma'!$N$6 -> $0.02 | Q20: =SUM('3 Year Pro Forma'!$N$13:'3 Year Pro Forma'!Q13)-SUM('3 Year Pro Forma'!$N$19:'3 Year Pro Forma'!Q19)-'3 Year Pro Forma'!$N$6 -> $0.61 | R20: =SUM('3 Year Pro Forma'!$N$13:'3 Year Pro Forma'!R13)-SUM('3 Year Pro Forma'!$N$19:'3 Year Pro Forma'!R19)-'3 Year Pro Forma'!$N$6 -> $1.25 | S20: =SUM('3 Year Pro Forma'!$N$13:'3 Year Pro Forma'!S13)-SUM('3 Year Pro Forma'!$N$19:'3 Year Pro Forma'!S19)-'3 Year Pro Forma'!$N$6 -> $1.93 | T20: =SUM('3 Year Pro Forma'!$N$13:'3 Year Pro Forma'!T13)-SUM('3 Year Pro Forma'!$N$19:'3 Year Pro Forma'!T19)-'3 Year Pro Forma'!$N$6 -> $2.65 | U20: =SUM('3 Year Pro Forma'!$N$13:'3 Year Pro Forma'!U13)-SUM('3 Year Pro Forma'!$N$19:'3 Year Pro Forma'!U19)-'3 Year Pro Forma'!$N$6 -> $3.41 | V20: =SUM('3 Year Pro Forma'!$N$13:'3 Year Pro Forma'!V13)-SUM('3 Year Pro Forma'!$N$19:'3 Year Pro Forma'!V19)-'3 Year Pro Forma'!$N$6 -> $4.23 | W20: =SUM('3 Year Pro Forma'!$N$13:'3 Year Pro Forma'!W13)-SUM('3 Year Pro Forma'!$N$19:'3 Year Pro Forma'!W19)-'3 Year Pro Forma'!$N$6 -> $5.09 | X20: =SUM('3 Year Pro Forma'!$N$13:'3 Year Pro Forma'!X13)-SUM('3 Year Pro Forma'!$N$19:'3 Year Pro Forma'!X19)-'3 Year Pro Forma'!$N$6 -> $6.01 | Y20: =SUM('3 Year Pro Forma'!$N$13:'3 Year Pro Forma'!Y13)-SUM('3 Year Pro Forma'!$N$19:'3 Year Pro Forma'!Y19)-'3 Year Pro Forma'!$N$6 -> $6.98 | Z20: =SUM('3 Year Pro Forma'!$N$13:'3 Year Pro Forma'!Z13)-SUM('3 Year Pro Forma'!$N$19:'3 Year Pro Forma'!Z19)-'3 Year Pro Forma'!$N$6 -> $8.00 | AA20: =SUM('3 Year Pro Forma'!$N$13:'3 Year Pro Forma'!AA13)-SUM('3 Year Pro Forma'!$N$19:'3 Year Pro Forma'!AA19)-'3 Year Pro Forma'!$N$6 -> $9.08 | AB20: =SUM('3 Year Pro Forma'!$N$13:'3 Year Pro Forma'!AB13)-SUM('3 Year Pro Forma'!$N$19:'3 Year Pro Forma'!AB19)-'3 Year Pro Forma'!$N$6 -> $10.23 | AC20: =SUM('3 Year Pro Forma'!$N$13:'3 Year Pro Forma'!AC13)-SUM('3 Year Pro Forma'!$N$19:'3 Year Pro Forma'!AC19)-'3 Year Pro Forma'!$N$6 -> $11.43 | AD20: =SUM('3 Year Pro Forma'!$N$13:'3 Year Pro Forma'!AD13)-SUM('3 Year Pro Forma'!$N$19:'3 Year Pro Forma'!AD19)-'3 Year Pro Forma'!$N$6 -> $12.71 | AE20: =SUM('3 Year Pro Forma'!$N$13:'3 Year Pro Forma'!AE13)-SUM('3 Year Pro Forma'!$N$19:'3 Year Pro Forma'!AE19)-'3 Year Pro Forma'!$N$6 -> $14.05 | AF20: =SUM('3 Year Pro Forma'!$N$13:'3 Year Pro Forma'!AF13)-SUM('3 Year Pro Forma'!$N$19:'3 Year Pro Forma'!AF19)-'3 Year Pro Forma'!$N$6 -> $15.46 | AG20: =SUM('3 Year Pro Forma'!$N$13:'3 Year Pro Forma'!AG13)-SUM('3 Year Pro Forma'!$N$19:'3 Year Pro Forma'!AG19)-'3 Year Pro Forma'!$N$6 -> $16.95 | AH20: =SUM('3 Year Pro Forma'!$N$13:'3 Year Pro Forma'!AH13)-SUM('3 Year Pro Forma'!$N$19:'3 Year Pro Forma'!AH19)-'3 Year Pro Forma'!$N$6 -> $18.52 | AI20: =SUM('3 Year Pro Forma'!$N$13:'3 Year Pro Forma'!AI13)-SUM('3 Year Pro Forma'!$N$19:'3 Year Pro Forma'!AI19)-'3 Year Pro Forma'!$N$6 -> $20.17 | AJ20: =SUM('3 Year Pro Forma'!$N$13:'3 Year Pro Forma'!AJ13)-SUM('3 Year Pro Forma'!$N$19:'3 Year Pro Forma'!AJ19)-'3 Year Pro Forma'!$N$6 -> $21.90 | AK20: =SUM('3 Year Pro Forma'!$N$13:'3 Year Pro Forma'!AK13)-SUM('3 Year Pro Forma'!$N$19:'3 Year Pro Forma'!AK19)-'3 Year Pro Forma'!$N$6 -> $23.73 | AL20: =SUM('3 Year Pro Forma'!$N$13:'3 Year Pro Forma'!AL13)-SUM('3 Year Pro Forma'!$N$19:'3 Year Pro Forma'!AL19)-'3 Year Pro Forma'!$N$6 -> $25.65
A21: 13 | O21: =SUM('3 Year Pro Forma'!$O$13:'3 Year Pro Forma'!O13)-SUM('3 Year Pro Forma'!$O$19:'3 Year Pro Forma'!O19)-'3 Year Pro Forma'!$O$6 -> $(1.02) | P21: =SUM('3 Year Pro Forma'!$O$13:'3 Year Pro Forma'!P13)-SUM('3 Year Pro Forma'!$O$19:'3 Year Pro Forma'!P19)-'3 Year Pro Forma'!$O$6 -> $(0.46) | Q21: =SUM('3 Year Pro Forma'!$O$13:'3 Year Pro Forma'!Q13)-SUM('3 Year Pro Forma'!$O$19:'3 Year Pro Forma'!Q19)-'3 Year Pro Forma'!$O$6 -> $0.13 | R21: =SUM('3 Year Pro Forma'!$O$13:'3 Year Pro Forma'!R13)-SUM('3 Year Pro Forma'!$O$19:'3 Year Pro Forma'!R19)-'3 Year Pro Forma'!$O$6 -> $0.77 | S21: =SUM('3 Year Pro Forma'!$O$13:'3 Year Pro Forma'!S13)-SUM('3 Year Pro Forma'!$O$19:'3 Year Pro Forma'!S19)-'3 Year Pro Forma'!$O$6 -> $1.45 | T21: =SUM('3 Year Pro Forma'!$O$13:'3 Year Pro Forma'!T13)-SUM('3 Year Pro Forma'!$O$19:'3 Year Pro Forma'!T19)-'3 Year Pro Forma'!$O$6 -> $2.17 | U21: =SUM('3 Year Pro Forma'!$O$13:'3 Year Pro Forma'!U13)-SUM('3 Year Pro Forma'!$O$19:'3 Year Pro Forma'!U19)-'3 Year Pro Forma'!$O$6 -> $2.93 | V21: =SUM('3 Year Pro Forma'!$O$13:'3 Year Pro Forma'!V13)-SUM('3 Year Pro Forma'!$O$19:'3 Year Pro Forma'!V19)-'3 Year Pro Forma'!$O$6 -> $3.75 | W21: =SUM('3 Year Pro Forma'!$O$13:'3 Year Pro Forma'!W13)-SUM('3 Year Pro Forma'!$O$19:'3 Year Pro Forma'!W19)-'3 Year Pro Forma'!$O$6 -> $4.61 | X21: =SUM('3 Year Pro Forma'!$O$13:'3 Year Pro Forma'!X13)-SUM('3 Year Pro Forma'!$O$19:'3 Year Pro Forma'!X19)-'3 Year Pro Forma'!$O$6 -> $5.53 | Y21: =SUM('3 Year Pro Forma'!$O$13:'3 Year Pro Forma'!Y13)-SUM('3 Year Pro Forma'!$O$19:'3 Year Pro Forma'!Y19)-'3 Year Pro Forma'!$O$6 -> $6.50 | Z21: =SUM('3 Year Pro Forma'!$O$13:'3 Year Pro Forma'!Z13)-SUM('3 Year Pro Forma'!$O$19:'3 Year Pro Forma'!Z19)-'3 Year Pro Forma'!$O$6 -> $7.52 | AA21: =SUM('3 Year Pro Forma'!$O$13:'3 Year Pro Forma'!AA13)-SUM('3 Year Pro Forma'!$O$19:'3 Year Pro Forma'!AA19)-'3 Year Pro Forma'!$O$6 -> $8.60 | AB21: =SUM('3 Year Pro Forma'!$O$13:'3 Year Pro Forma'!AB13)-SUM('3 Year Pro Forma'!$O$19:'3 Year Pro Forma'!AB19)-'3 Year Pro Forma'!$O$6 -> $9.75 | AC21: =SUM('3 Year Pro Forma'!$O$13:'3 Year Pro Forma'!AC13)-SUM('3 Year Pro Forma'!$O$19:'3 Year Pro Forma'!AC19)-'3 Year Pro Forma'!$O$6 -> $10.95 | AD21: =SUM('3 Year Pro Forma'!$O$13:'3 Year Pro Forma'!AD13)-SUM('3 Year Pro Forma'!$O$19:'3 Year Pro Forma'!AD19)-'3 Year Pro Forma'!$O$6 -> $12.23 | AE21: =SUM('3 Year Pro Forma'!$O$13:'3 Year Pro Forma'!AE13)-SUM('3 Year Pro Forma'!$O$19:'3 Year Pro Forma'!AE19)-'3 Year Pro Forma'!$O$6 -> $13.57 | AF21: =SUM('3 Year Pro Forma'!$O$13:'3 Year Pro Forma'!AF13)-SUM('3 Year Pro Forma'!$O$19:'3 Year Pro Forma'!AF19)-'3 Year Pro Forma'!$O$6 -> $14.98 | AG21: =SUM('3 Year Pro Forma'!$O$13:'3 Year Pro Forma'!AG13)-SUM('3 Year Pro Forma'!$O$19:'3 Year Pro Forma'!AG19)-'3 Year Pro Forma'!$O$6 -> $16.47 | AH21: =SUM('3 Year Pro Forma'!$O$13:'3 Year Pro Forma'!AH13)-SUM('3 Year Pro Forma'!$O$19:'3 Year Pro Forma'!AH19)-'3 Year Pro Forma'!$O$6 -> $18.04 | AI21: =SUM('3 Year Pro Forma'!$O$13:'3 Year Pro Forma'!AI13)-SUM('3 Year Pro Forma'!$O$19:'3 Year Pro Forma'!AI19)-'3 Year Pro Forma'!$O$6 -> $19.69 | AJ21: =SUM('3 Year Pro Forma'!$O$13:'3 Year Pro Forma'!AJ13)-SUM('3 Year Pro Forma'!$O$19:'3 Year Pro Forma'!AJ19)-'3 Year Pro Forma'!$O$6 -> $21.42 | AK21: =SUM('3 Year Pro Forma'!$O$13:'3 Year Pro Forma'!AK13)-SUM('3 Year Pro Forma'!$O$19:'3 Year Pro Forma'!AK19)-'3 Year Pro Forma'!$O$6 -> $23.25 | AL21: =SUM('3 Year Pro Forma'!$O$13:'3 Year Pro Forma'!AL13)-SUM('3 Year Pro Forma'!$O$19:'3 Year Pro Forma'!AL19)-'3 Year Pro Forma'!$O$6 -> $25.17
A22: 14 | P22: =SUM('3 Year Pro Forma'!$P$13:'3 Year Pro Forma'!P13)-SUM('3 Year Pro Forma'!$P$19:'3 Year Pro Forma'!P19)-'3 Year Pro Forma'!$P$6 -> $(0.98) | Q22: =SUM('3 Year Pro Forma'!$P$13:'3 Year Pro Forma'!Q13)-SUM('3 Year Pro Forma'!$P$19:'3 Year Pro Forma'!Q19)-'3 Year Pro Forma'!$P$6 -> $(0.38) | R22: =SUM('3 Year Pro Forma'!$P$13:'3 Year Pro Forma'!R13)-SUM('3 Year Pro Forma'!$P$19:'3 Year Pro Forma'!R19)-'3 Year Pro Forma'!$P$6 -> $0.25 | S22: =SUM('3 Year Pro Forma'!$P$13:'3 Year Pro Forma'!S13)-SUM('3 Year Pro Forma'!$P$19:'3 Year Pro Forma'!S19)-'3 Year Pro Forma'!$P$6 -> $0.93 | T22: =SUM('3 Year Pro Forma'!$P$13:'3 Year Pro Forma'!T13)-SUM('3 Year Pro Forma'!$P$19:'3 Year Pro Forma'!T19)-'3 Year Pro Forma'!$P$6 -> $1.65 | U22: =SUM('3 Year Pro Forma'!$P$13:'3 Year Pro Forma'!U13)-SUM('3 Year Pro Forma'!$P$19:'3 Year Pro Forma'!U19)-'3 Year Pro Forma'!$P$6 -> $2.42 | V22: =SUM('3 Year Pro Forma'!$P$13:'3 Year Pro Forma'!V13)-SUM('3 Year Pro Forma'!$P$19:'3 Year Pro Forma'!V19)-'3 Year Pro Forma'!$P$6 -> $3.23 | W22: =SUM('3 Year Pro Forma'!$P$13:'3 Year Pro Forma'!W13)-SUM('3 Year Pro Forma'!$P$19:'3 Year Pro Forma'!W19)-'3 Year Pro Forma'!$P$6 -> $4.10 | X22: =SUM('3 Year Pro Forma'!$P$13:'3 Year Pro Forma'!X13)-SUM('3 Year Pro Forma'!$P$19:'3 Year Pro Forma'!X19)-'3 Year Pro Forma'!$P$6 -> $5.01 | Y22: =SUM('3 Year Pro Forma'!$P$13:'3 Year Pro Forma'!Y13)-SUM('3 Year Pro Forma'!$P$19:'3 Year Pro Forma'!Y19)-'3 Year Pro Forma'!$P$6 -> $5.98 | Z22: =SUM('3 Year Pro Forma'!$P$13:'3 Year Pro Forma'!Z13)-SUM('3 Year Pro Forma'!$P$19:'3 Year Pro Forma'!Z19)-'3 Year Pro Forma'!$P$6 -> $7.00 | AA22: =SUM('3 Year Pro Forma'!$P$13:'3 Year Pro Forma'!AA13)-SUM('3 Year Pro Forma'!$P$19:'3 Year Pro Forma'!AA19)-'3 Year Pro Forma'!$P$6 -> $8.09 | AB22: =SUM('3 Year Pro Forma'!$P$13:'3 Year Pro Forma'!AB13)-SUM('3 Year Pro Forma'!$P$19:'3 Year Pro Forma'!AB19)-'3 Year Pro Forma'!$P$6 -> $9.23 | AC22: =SUM('3 Year Pro Forma'!$P$13:'3 Year Pro Forma'!AC13)-SUM('3 Year Pro Forma'!$P$19:'3 Year Pro Forma'!AC19)-'3 Year Pro Forma'!$P$6 -> $10.44 | AD22: =SUM('3 Year Pro Forma'!$P$13:'3 Year Pro Forma'!AD13)-SUM('3 Year Pro Forma'!$P$19:'3 Year Pro Forma'!AD19)-'3 Year Pro Forma'!$P$6 -> $11.71 | AE22: =SUM('3 Year Pro Forma'!$P$13:'3 Year Pro Forma'!AE13)-SUM('3 Year Pro Forma'!$P$19:'3 Year Pro Forma'!AE19)-'3 Year Pro Forma'!$P$6 -> $13.05 | AF22: =SUM('3 Year Pro Forma'!$P$13:'3 Year Pro Forma'!AF13)-SUM('3 Year Pro Forma'!$P$19:'3 Year Pro Forma'!AF19)-'3 Year Pro Forma'!$P$6 -> $14.46 | AG22: =SUM('3 Year Pro Forma'!$P$13:'3 Year Pro Forma'!AG13)-SUM('3 Year Pro Forma'!$P$19:'3 Year Pro Forma'!AG19)-'3 Year Pro Forma'!$P$6 -> $15.95 | AH22: =SUM('3 Year Pro Forma'!$P$13:'3 Year Pro Forma'!AH13)-SUM('3 Year Pro Forma'!$P$19:'3 Year Pro Forma'!AH19)-'3 Year Pro Forma'!$P$6 -> $17.52 | AI22: =SUM('3 Year Pro Forma'!$P$13:'3 Year Pro Forma'!AI13)-SUM('3 Year Pro Forma'!$P$19:'3 Year Pro Forma'!AI19)-'3 Year Pro Forma'!$P$6 -> $19.17 | AJ22: =SUM('3 Year Pro Forma'!$P$13:'3 Year Pro Forma'!AJ13)-SUM('3 Year Pro Forma'!$P$19:'3 Year Pro Forma'!AJ19)-'3 Year Pro Forma'!$P$6 -> $20.91 | AK22: =SUM('3 Year Pro Forma'!$P$13:'3 Year Pro Forma'!AK13)-SUM('3 Year Pro Forma'!$P$19:'3 Year Pro Forma'!AK19)-'3 Year Pro Forma'!$P$6 -> $22.73 | AL22: =SUM('3 Year Pro Forma'!$P$13:'3 Year Pro Forma'!AL13)-SUM('3 Year Pro Forma'!$P$19:'3 Year Pro Forma'!AL19)-'3 Year Pro Forma'!$P$6 -> $24.65
A23: 15 | Q23: =SUM('3 Year Pro Forma'!$Q$13:'3 Year Pro Forma'!Q13)-SUM('3 Year Pro Forma'!$Q$19:'3 Year Pro Forma'!Q19)-'3 Year Pro Forma'!$Q$6 -> $(0.94) | R23: =SUM('3 Year Pro Forma'!$Q$13:'3 Year Pro Forma'!R13)-SUM('3 Year Pro Forma'!$Q$19:'3 Year Pro Forma'!R19)-'3 Year Pro Forma'!$Q$6 -> $(0.30) | S23: =SUM('3 Year Pro Forma'!$Q$13:'3 Year Pro Forma'!S13)-SUM('3 Year Pro Forma'!$Q$19:'3 Year Pro Forma'!S19)-'3 Year Pro Forma'!$Q$6 -> $0.38 | T23: =SUM('3 Year Pro Forma'!$Q$13:'3 Year Pro Forma'!T13)-SUM('3 Year Pro Forma'!$Q$19:'3 Year Pro Forma'!T19)-'3 Year Pro Forma'!$Q$6 -> $1.10 | U23: =SUM('3 Year Pro Forma'!$Q$13:'3 Year Pro Forma'!U13)-SUM('3 Year Pro Forma'!$Q$19:'3 Year Pro Forma'!U19)-'3 Year Pro Forma'!$Q$6 -> $1.86 | V23: =SUM('3 Year Pro Forma'!$Q$13:'3 Year Pro Forma'!V13)-SUM('3 Year Pro Forma'!$Q$19:'3 Year Pro Forma'!V19)-'3 Year Pro Forma'!$Q$6 -> $2.68 | W23: =SUM('3 Year Pro Forma'!$Q$13:'3 Year Pro Forma'!W13)-SUM('3 Year Pro Forma'!$Q$19:'3 Year Pro Forma'!W19)-'3 Year Pro Forma'!$Q$6 -> $3.54 | X23: =SUM('3 Year Pro Forma'!$Q$13:'3 Year Pro Forma'!X13)-SUM('3 Year Pro Forma'!$Q$19:'3 Year Pro Forma'!X19)-'3 Year Pro Forma'!$Q$6 -> $4.46 | Y23: =SUM('3 Year Pro Forma'!$Q$13:'3 Year Pro Forma'!Y13)-SUM('3 Year Pro Forma'!$Q$19:'3 Year Pro Forma'!Y19)-'3 Year Pro Forma'!$Q$6 -> $5.43 | Z23: =SUM('3 Year Pro Forma'!$Q$13:'3 Year Pro Forma'!Z13)-SUM('3 Year Pro Forma'!$Q$19:'3 Year Pro Forma'!Z19)-'3 Year Pro Forma'!$Q$6 -> $6.45 | AA23: =SUM('3 Year Pro Forma'!$Q$13:'3 Year Pro Forma'!AA13)-SUM('3 Year Pro Forma'!$Q$19:'3 Year Pro Forma'!AA19)-'3 Year Pro Forma'!$Q$6 -> $7.53 | AB23: =SUM('3 Year Pro Forma'!$Q$13:'3 Year Pro Forma'!AB13)-SUM('3 Year Pro Forma'!$Q$19:'3 Year Pro Forma'!AB19)-'3 Year Pro Forma'!$Q$6 -> $8.68 | AC23: =SUM('3 Year Pro Forma'!$Q$13:'3 Year Pro Forma'!AC13)-SUM('3 Year Pro Forma'!$Q$19:'3 Year Pro Forma'!AC19)-'3 Year Pro Forma'!$Q$6 -> $9.88 | AD23: =SUM('3 Year Pro Forma'!$Q$13:'3 Year Pro Forma'!AD13)-SUM('3 Year Pro Forma'!$Q$19:'3 Year Pro Forma'!AD19)-'3 Year Pro Forma'!$Q$6 -> $11.15 | AE23: =SUM('3 Year Pro Forma'!$Q$13:'3 Year Pro Forma'!AE13)-SUM('3 Year Pro Forma'!$Q$19:'3 Year Pro Forma'!AE19)-'3 Year Pro Forma'!$Q$6 -> $12.50 | AF23: =SUM('3 Year Pro Forma'!$Q$13:'3 Year Pro Forma'!AF13)-SUM('3 Year Pro Forma'!$Q$19:'3 Year Pro Forma'!AF19)-'3 Year Pro Forma'!$Q$6 -> $13.91 | AG23: =SUM('3 Year Pro Forma'!$Q$13:'3 Year Pro Forma'!AG13)-SUM('3 Year Pro Forma'!$Q$19:'3 Year Pro Forma'!AG19)-'3 Year Pro Forma'!$Q$6 -> $15.40 | AH23: =SUM('3 Year Pro Forma'!$Q$13:'3 Year Pro Forma'!AH13)-SUM('3 Year Pro Forma'!$Q$19:'3 Year Pro Forma'!AH19)-'3 Year Pro Forma'!$Q$6 -> $16.97 | AI23: =SUM('3 Year Pro Forma'!$Q$13:'3 Year Pro Forma'!AI13)-SUM('3 Year Pro Forma'!$Q$19:'3 Year Pro Forma'!AI19)-'3 Year Pro Forma'!$Q$6 -> $18.62 | AJ23: =SUM('3 Year Pro Forma'!$Q$13:'3 Year Pro Forma'!AJ13)-SUM('3 Year Pro Forma'!$Q$19:'3 Year Pro Forma'!AJ19)-'3 Year Pro Forma'!$Q$6 -> $20.35 | AK23: =SUM('3 Year Pro Forma'!$Q$13:'3 Year Pro Forma'!AK13)-SUM('3 Year Pro Forma'!$Q$19:'3 Year Pro Forma'!AK19)-'3 Year Pro Forma'!$Q$6 -> $22.18 | AL23: =SUM('3 Year Pro Forma'!$Q$13:'3 Year Pro Forma'!AL13)-SUM('3 Year Pro Forma'!$Q$19:'3 Year Pro Forma'!AL19)-'3 Year Pro Forma'!$Q$6 -> $24.10
A24: 16 | R24: =SUM('3 Year Pro Forma'!$R$13:'3 Year Pro Forma'!R13)-SUM('3 Year Pro Forma'!$R$19:'3 Year Pro Forma'!R19)-'3 Year Pro Forma'!$R$6 -> $(0.90) | S24: =SUM('3 Year Pro Forma'!$R$13:'3 Year Pro Forma'!S13)-SUM('3 Year Pro Forma'!$R$19:'3 Year Pro Forma'!S19)-'3 Year Pro Forma'!$R$6 -> $(0.22) | T24: =SUM('3 Year Pro Forma'!$R$13:'3 Year Pro Forma'!T13)-SUM('3 Year Pro Forma'!$R$19:'3 Year Pro Forma'!T19)-'3 Year Pro Forma'!$R$6 -> $0.50 | U24: =SUM('3 Year Pro Forma'!$R$13:'3 Year Pro Forma'!U13)-SUM('3 Year Pro Forma'!$R$19:'3 Year Pro Forma'!U19)-'3 Year Pro Forma'!$R$6 -> $1.27 | V24: =SUM('3 Year Pro Forma'!$R$13:'3 Year Pro Forma'!V13)-SUM('3 Year Pro Forma'!$R$19:'3 Year Pro Forma'!V19)-'3 Year Pro Forma'!$R$6 -> $2.08 | W24: =SUM('3 Year Pro Forma'!$R$13:'3 Year Pro Forma'!W13)-SUM('3 Year Pro Forma'!$R$19:'3 Year Pro Forma'!W19)-'3 Year Pro Forma'!$R$6 -> $2.95 | X24: =SUM('3 Year Pro Forma'!$R$13:'3 Year Pro Forma'!X13)-SUM('3 Year Pro Forma'!$R$19:'3 Year Pro Forma'!X19)-'3 Year Pro Forma'!$R$6 -> $3.86 | Y24: =SUM('3 Year Pro Forma'!$R$13:'3 Year Pro Forma'!Y13)-SUM('3 Year Pro Forma'!$R$19:'3 Year Pro Forma'!Y19)-'3 Year Pro Forma'!$R$6 -> $4.83 | Z24: =SUM('3 Year Pro Forma'!$R$13:'3 Year Pro Forma'!Z13)-SUM('3 Year Pro Forma'!$R$19:'3 Year Pro Forma'!Z19)-'3 Year Pro Forma'!$R$6 -> $5.86 | AA24: =SUM('3 Year Pro Forma'!$R$13:'3 Year Pro Forma'!AA13)-SUM('3 Year Pro Forma'!$R$19:'3 Year Pro Forma'!AA19)-'3 Year Pro Forma'!$R$6 -> $6.94 | AB24: =SUM('3 Year Pro Forma'!$R$13:'3 Year Pro Forma'!AB13)-SUM('3 Year Pro Forma'!$R$19:'3 Year Pro Forma'!AB19)-'3 Year Pro Forma'!$R$6 -> $8.08 | AC24: =SUM('3 Year Pro Forma'!$R$13:'3 Year Pro Forma'!AC13)-SUM('3 Year Pro Forma'!$R$19:'3 Year Pro Forma'!AC19)-'3 Year Pro Forma'!$R$6 -> $9.29 | AD24: =SUM('3 Year Pro Forma'!$R$13:'3 Year Pro Forma'!AD13)-SUM('3 Year Pro Forma'!$R$19:'3 Year Pro Forma'!AD19)-'3 Year Pro Forma'!$R$6 -> $10.56 | AE24: =SUM('3 Year Pro Forma'!$R$13:'3 Year Pro Forma'!AE13)-SUM('3 Year Pro Forma'!$R$19:'3 Year Pro Forma'!AE19)-'3 Year Pro Forma'!$R$6 -> $11.90 | AF24: =SUM('3 Year Pro Forma'!$R$13:'3 Year Pro Forma'!AF13)-SUM('3 Year Pro Forma'!$R$19:'3 Year Pro Forma'!AF19)-'3 Year Pro Forma'!$R$6 -> $13.32 | AG24: =SUM('3 Year Pro Forma'!$R$13:'3 Year Pro Forma'!AG13)-SUM('3 Year Pro Forma'!$R$19:'3 Year Pro Forma'!AG19)-'3 Year Pro Forma'!$R$6 -> $14.81 | AH24: =SUM('3 Year Pro Forma'!$R$13:'3 Year Pro Forma'!AH13)-SUM('3 Year Pro Forma'!$R$19:'3 Year Pro Forma'!AH19)-'3 Year Pro Forma'!$R$6 -> $16.37 | AI24: =SUM('3 Year Pro Forma'!$R$13:'3 Year Pro Forma'!AI13)-SUM('3 Year Pro Forma'!$R$19:'3 Year Pro Forma'!AI19)-'3 Year Pro Forma'!$R$6 -> $18.02 | AJ24: =SUM('3 Year Pro Forma'!$R$13:'3 Year Pro Forma'!AJ13)-SUM('3 Year Pro Forma'!$R$19:'3 Year Pro Forma'!AJ19)-'3 Year Pro Forma'!$R$6 -> $19.76 | AK24: =SUM('3 Year Pro Forma'!$R$13:'3 Year Pro Forma'!AK13)-SUM('3 Year Pro Forma'!$R$19:'3 Year Pro Forma'!AK19)-'3 Year Pro Forma'!$R$6 -> $21.59 | AL24: =SUM('3 Year Pro Forma'!$R$13:'3 Year Pro Forma'!AL13)-SUM('3 Year Pro Forma'!$R$19:'3 Year Pro Forma'!AL19)-'3 Year Pro Forma'!$R$6 -> $23.51
A25: 17 | S25: =SUM('3 Year Pro Forma'!$S$13:'3 Year Pro Forma'!S13)-SUM('3 Year Pro Forma'!$S$19:'3 Year Pro Forma'!S19)-'3 Year Pro Forma'!$S$6 -> $(0.85) | T25: =SUM('3 Year Pro Forma'!$S$13:'3 Year Pro Forma'!T13)-SUM('3 Year Pro Forma'!$S$19:'3 Year Pro Forma'!T19)-'3 Year Pro Forma'!$S$6 -> $(0.13) | U25: =SUM('3 Year Pro Forma'!$S$13:'3 Year Pro Forma'!U13)-SUM('3 Year Pro Forma'!$S$19:'3 Year Pro Forma'!U19)-'3 Year Pro Forma'!$S$6 -> $0.64 | V25: =SUM('3 Year Pro Forma'!$S$13:'3 Year Pro Forma'!V13)-SUM('3 Year Pro Forma'!$S$19:'3 Year Pro Forma'!V19)-'3 Year Pro Forma'!$S$6 -> $1.45 | W25: =SUM('3 Year Pro Forma'!$S$13:'3 Year Pro Forma'!W13)-SUM('3 Year Pro Forma'!$S$19:'3 Year Pro Forma'!W19)-'3 Year Pro Forma'!$S$6 -> $2.31 | X25: =SUM('3 Year Pro Forma'!$S$13:'3 Year Pro Forma'!X13)-SUM('3 Year Pro Forma'!$S$19:'3 Year Pro Forma'!X19)-'3 Year Pro Forma'!$S$6 -> $3.23 | Y25: =SUM('3 Year Pro Forma'!$S$13:'3 Year Pro Forma'!Y13)-SUM('3 Year Pro Forma'!$S$19:'3 Year Pro Forma'!Y19)-'3 Year Pro Forma'!$S$6 -> $4.20 | Z25: =SUM('3 Year Pro Forma'!$S$13:'3 Year Pro Forma'!Z13)-SUM('3 Year Pro Forma'!$S$19:'3 Year Pro Forma'!Z19)-'3 Year Pro Forma'!$S$6 -> $5.22 | AA25: =SUM('3 Year Pro Forma'!$S$13:'3 Year Pro Forma'!AA13)-SUM('3 Year Pro Forma'!$S$19:'3 Year Pro Forma'!AA19)-'3 Year Pro Forma'!$S$6 -> $6.30 | AB25: =SUM('3 Year Pro Forma'!$S$13:'3 Year Pro Forma'!AB13)-SUM('3 Year Pro Forma'!$S$19:'3 Year Pro Forma'!AB19)-'3 Year Pro Forma'!$S$6 -> $7.45 | AC25: =SUM('3 Year Pro Forma'!$S$13:'3 Year Pro Forma'!AC13)-SUM('3 Year Pro Forma'!$S$19:'3 Year Pro Forma'!AC19)-'3 Year Pro Forma'!$S$6 -> $8.65 | AD25: =SUM('3 Year Pro Forma'!$S$13:'3 Year Pro Forma'!AD13)-SUM('3 Year Pro Forma'!$S$19:'3 Year Pro Forma'!AD19)-'3 Year Pro Forma'!$S$6 -> $9.93 | AE25: =SUM('3 Year Pro Forma'!$S$13:'3 Year Pro Forma'!AE13)-SUM('3 Year Pro Forma'!$S$19:'3 Year Pro Forma'!AE19)-'3 Year Pro Forma'!$S$6 -> $11.27 | AF25: =SUM('3 Year Pro Forma'!$S$13:'3 Year Pro Forma'!AF13)-SUM('3 Year Pro Forma'!$S$19:'3 Year Pro Forma'!AF19)-'3 Year Pro Forma'!$S$6 -> $12.68 | AG25: =SUM('3 Year Pro Forma'!$S$13:'3 Year Pro Forma'!AG13)-SUM('3 Year Pro Forma'!$S$19:'3 Year Pro Forma'!AG19)-'3 Year Pro Forma'!$S$6 -> $14.17 | AH25: =SUM('3 Year Pro Forma'!$S$13:'3 Year Pro Forma'!AH13)-SUM('3 Year Pro Forma'!$S$19:'3 Year Pro Forma'!AH19)-'3 Year Pro Forma'!$S$6 -> $15.74 | AI25: =SUM('3 Year Pro Forma'!$S$13:'3 Year Pro Forma'!AI13)-SUM('3 Year Pro Forma'!$S$19:'3 Year Pro Forma'!AI19)-'3 Year Pro Forma'!$S$6 -> $17.39 | AJ25: =SUM('3 Year Pro Forma'!$S$13:'3 Year Pro Forma'!AJ13)-SUM('3 Year Pro Forma'!$S$19:'3 Year Pro Forma'!AJ19)-'3 Year Pro Forma'!$S$6 -> $19.13 | AK25: =SUM('3 Year Pro Forma'!$S$13:'3 Year Pro Forma'!AK13)-SUM('3 Year Pro Forma'!$S$19:'3 Year Pro Forma'!AK19)-'3 Year Pro Forma'!$S$6 -> $20.95 | AL25: =SUM('3 Year Pro Forma'!$S$13:'3 Year Pro Forma'!AL13)-SUM('3 Year Pro Forma'!$S$19:'3 Year Pro Forma'!AL19)-'3 Year Pro Forma'!$S$6 -> $22.87
A26: 18 | T26: =SUM('3 Year Pro Forma'!$T$13:'3 Year Pro Forma'!T13)-SUM('3 Year Pro Forma'!$T$19:'3 Year Pro Forma'!T19)-'3 Year Pro Forma'!$T$6 -> $(0.81) | U26: =SUM('3 Year Pro Forma'!$T$13:'3 Year Pro Forma'!U13)-SUM('3 Year Pro Forma'!$T$19:'3 Year Pro Forma'!U19)-'3 Year Pro Forma'!$T$6 -> $(0.04) | V26: =SUM('3 Year Pro Forma'!$T$13:'3 Year Pro Forma'!V13)-SUM('3 Year Pro Forma'!$T$19:'3 Year Pro Forma'!V19)-'3 Year Pro Forma'!$T$6 -> $0.77 | W26: =SUM('3 Year Pro Forma'!$T$13:'3 Year Pro Forma'!W13)-SUM('3 Year Pro Forma'!$T$19:'3 Year Pro Forma'!W19)-'3 Year Pro Forma'!$T$6 -> $1.64 | X26: =SUM('3 Year Pro Forma'!$T$13:'3 Year Pro Forma'!X13)-SUM('3 Year Pro Forma'!$T$19:'3 Year Pro Forma'!X19)-'3 Year Pro Forma'!$T$6 -> $2.55 | Y26: =SUM('3 Year Pro Forma'!$T$13:'3 Year Pro Forma'!Y13)-SUM('3 Year Pro Forma'!$T$19:'3 Year Pro Forma'!Y19)-'3 Year Pro Forma'!$T$6 -> $3.52 | Z26: =SUM('3 Year Pro Forma'!$T$13:'3 Year Pro Forma'!Z13)-SUM('3 Year Pro Forma'!$T$19:'3 Year Pro Forma'!Z19)-'3 Year Pro Forma'!$T$6 -> $4.55 | AA26: =SUM('3 Year Pro Forma'!$T$13:'3 Year Pro Forma'!AA13)-SUM('3 Year Pro Forma'!$T$19:'3 Year Pro Forma'!AA19)-'3 Year Pro Forma'!$T$6 -> $5.63 | AB26: =SUM('3 Year Pro Forma'!$T$13:'3 Year Pro Forma'!AB13)-SUM('3 Year Pro Forma'!$T$19:'3 Year Pro Forma'!AB19)-'3 Year Pro Forma'!$T$6 -> $6.77 | AC26: =SUM('3 Year Pro Forma'!$T$13:'3 Year Pro Forma'!AC13)-SUM('3 Year Pro Forma'!$T$19:'3 Year Pro Forma'!AC19)-'3 Year Pro Forma'!$T$6 -> $7.98 | AD26: =SUM('3 Year Pro Forma'!$T$13:'3 Year Pro Forma'!AD13)-SUM('3 Year Pro Forma'!$T$19:'3 Year Pro Forma'!AD19)-'3 Year Pro Forma'!$T$6 -> $9.25 | AE26: =SUM('3 Year Pro Forma'!$T$13:'3 Year Pro Forma'!AE13)-SUM('3 Year Pro Forma'!$T$19:'3 Year Pro Forma'!AE19)-'3 Year Pro Forma'!$T$6 -> $10.59 | AF26: =SUM('3 Year Pro Forma'!$T$13:'3 Year Pro Forma'!AF13)-SUM('3 Year Pro Forma'!$T$19:'3 Year Pro Forma'!AF19)-'3 Year Pro Forma'!$T$6 -> $12.01 | AG26: =SUM('3 Year Pro Forma'!$T$13:'3 Year Pro Forma'!AG13)-SUM('3 Year Pro Forma'!$T$19:'3 Year Pro Forma'!AG19)-'3 Year Pro Forma'!$T$6 -> $13.50 | AH26: =SUM('3 Year Pro Forma'!$T$13:'3 Year Pro Forma'!AH13)-SUM('3 Year Pro Forma'!$T$19:'3 Year Pro Forma'!AH19)-'3 Year Pro Forma'!$T$6 -> $15.06 | AI26: =SUM('3 Year Pro Forma'!$T$13:'3 Year Pro Forma'!AI13)-SUM('3 Year Pro Forma'!$T$19:'3 Year Pro Forma'!AI19)-'3 Year Pro Forma'!$T$6 -> $16.71 | AJ26: =SUM('3 Year Pro Forma'!$T$13:'3 Year Pro Forma'!AJ13)-SUM('3 Year Pro Forma'!$T$19:'3 Year Pro Forma'!AJ19)-'3 Year Pro Forma'!$T$6 -> $18.45 | AK26: =SUM('3 Year Pro Forma'!$T$13:'3 Year Pro Forma'!AK13)-SUM('3 Year Pro Forma'!$T$19:'3 Year Pro Forma'!AK19)-'3 Year Pro Forma'!$T$6 -> $20.28 | AL26: =SUM('3 Year Pro Forma'!$T$13:'3 Year Pro Forma'!AL13)-SUM('3 Year Pro Forma'!$T$19:'3 Year Pro Forma'!AL19)-'3 Year Pro Forma'!$T$6 -> $22.20
A27: 19 | U27: =SUM('3 Year Pro Forma'!$U$13:'3 Year Pro Forma'!U13)-SUM('3 Year Pro Forma'!$U$19:'3 Year Pro Forma'!U19)-'3 Year Pro Forma'!$U$6 -> $(0.76) | V27: =SUM('3 Year Pro Forma'!$U$13:'3 Year Pro Forma'!V13)-SUM('3 Year Pro Forma'!$U$19:'3 Year Pro Forma'!V19)-'3 Year Pro Forma'!$U$6 -> $0.05 | W27: =SUM('3 Year Pro Forma'!$U$13:'3 Year Pro Forma'!W13)-SUM('3 Year Pro Forma'!$U$19:'3 Year Pro Forma'!W19)-'3 Year Pro Forma'!$U$6 -> $0.92 | X27: =SUM('3 Year Pro Forma'!$U$13:'3 Year Pro Forma'!X13)-SUM('3 Year Pro Forma'!$U$19:'3 Year Pro Forma'!X19)-'3 Year Pro Forma'!$U$6 -> $1.83 | Y27: =SUM('3 Year Pro Forma'!$U$13:'3 Year Pro Forma'!Y13)-SUM('3 Year Pro Forma'!$U$19:'3 Year Pro Forma'!Y19)-'3 Year Pro Forma'!$U$6 -> $2.80 | Z27: =SUM('3 Year Pro Forma'!$U$13:'3 Year Pro Forma'!Z13)-SUM('3 Year Pro Forma'!$U$19:'3 Year Pro Forma'!Z19)-'3 Year Pro Forma'!$U$6 -> $3.82 | AA27: =SUM('3 Year Pro Forma'!$U$13:'3 Year Pro Forma'!AA13)-SUM('3 Year Pro Forma'!$U$19:'3 Year Pro Forma'!AA19)-'3 Year Pro Forma'!$U$6 -> $4.91 | AB27: =SUM('3 Year Pro Forma'!$U$13:'3 Year Pro Forma'!AB13)-SUM('3 Year Pro Forma'!$U$19:'3 Year Pro Forma'!AB19)-'3 Year Pro Forma'!$U$6 -> $6.05 | AC27: =SUM('3 Year Pro Forma'!$U$13:'3 Year Pro Forma'!AC13)-SUM('3 Year Pro Forma'!$U$19:'3 Year Pro Forma'!AC19)-'3 Year Pro Forma'!$U$6 -> $7.26 | AD27: =SUM('3 Year Pro Forma'!$U$13:'3 Year Pro Forma'!AD13)-SUM('3 Year Pro Forma'!$U$19:'3 Year Pro Forma'!AD19)-'3 Year Pro Forma'!$U$6 -> $8.53 | AE27: =SUM('3 Year Pro Forma'!$U$13:'3 Year Pro Forma'!AE13)-SUM('3 Year Pro Forma'!$U$19:'3 Year Pro Forma'!AE19)-'3 Year Pro Forma'!$U$6 -> $9.87 | AF27: =SUM('3 Year Pro Forma'!$U$13:'3 Year Pro Forma'!AF13)-SUM('3 Year Pro Forma'!$U$19:'3 Year Pro Forma'!AF19)-'3 Year Pro Forma'!$U$6 -> $11.29 | AG27: =SUM('3 Year Pro Forma'!$U$13:'3 Year Pro Forma'!AG13)-SUM('3 Year Pro Forma'!$U$19:'3 Year Pro Forma'!AG19)-'3 Year Pro Forma'!$U$6 -> $12.78 | AH27: =SUM('3 Year Pro Forma'!$U$13:'3 Year Pro Forma'!AH13)-SUM('3 Year Pro Forma'!$U$19:'3 Year Pro Forma'!AH19)-'3 Year Pro Forma'!$U$6 -> $14.34 | AI27: =SUM('3 Year Pro Forma'!$U$13:'3 Year Pro Forma'!AI13)-SUM('3 Year Pro Forma'!$U$19:'3 Year Pro Forma'!AI19)-'3 Year Pro Forma'!$U$6 -> $15.99 | AJ27: =SUM('3 Year Pro Forma'!$U$13:'3 Year Pro Forma'!AJ13)-SUM('3 Year Pro Forma'!$U$19:'3 Year Pro Forma'!AJ19)-'3 Year Pro Forma'!$U$6 -> $17.73 | AK27: =SUM('3 Year Pro Forma'!$U$13:'3 Year Pro Forma'!AK13)-SUM('3 Year Pro Forma'!$U$19:'3 Year Pro Forma'!AK19)-'3 Year Pro Forma'!$U$6 -> $19.56 | AL27: =SUM('3 Year Pro Forma'!$U$13:'3 Year Pro Forma'!AL13)-SUM('3 Year Pro Forma'!$U$19:'3 Year Pro Forma'!AL19)-'3 Year Pro Forma'!$U$6 -> $21.48
A28: 20 | V28: =SUM('3 Year Pro Forma'!$V$13:'3 Year Pro Forma'!V13)-SUM('3 Year Pro Forma'!$V$19:'3 Year Pro Forma'!V19)-'3 Year Pro Forma'!$V$6 -> $(0.71) | W28: =SUM('3 Year Pro Forma'!$V$13:'3 Year Pro Forma'!W13)-SUM('3 Year Pro Forma'!$V$19:'3 Year Pro Forma'!W19)-'3 Year Pro Forma'!$V$6 -> $0.15 | X28: =SUM('3 Year Pro Forma'!$V$13:'3 Year Pro Forma'!X13)-SUM('3 Year Pro Forma'!$V$19:'3 Year Pro Forma'!X19)-'3 Year Pro Forma'!$V$6 -> $1.07 | Y28: =SUM('3 Year Pro Forma'!$V$13:'3 Year Pro Forma'!Y13)-SUM('3 Year Pro Forma'!$V$19:'3 Year Pro Forma'!Y19)-'3 Year Pro Forma'!$V$6 -> $2.03 | Z28: =SUM('3 Year Pro Forma'!$V$13:'3 Year Pro Forma'!Z13)-SUM('3 Year Pro Forma'!$V$19:'3 Year Pro Forma'!Z19)-'3 Year Pro Forma'!$V$6 -> $3.06 | AA28: =SUM('3 Year Pro Forma'!$V$13:'3 Year Pro Forma'!AA13)-SUM('3 Year Pro Forma'!$V$19:'3 Year Pro Forma'!AA19)-'3 Year Pro Forma'!$V$6 -> $4.14 | AB28: =SUM('3 Year Pro Forma'!$V$13:'3 Year Pro Forma'!AB13)-SUM('3 Year Pro Forma'!$V$19:'3 Year Pro Forma'!AB19)-'3 Year Pro Forma'!$V$6 -> $5.28 | AC28: =SUM('3 Year Pro Forma'!$V$13:'3 Year Pro Forma'!AC13)-SUM('3 Year Pro Forma'!$V$19:'3 Year Pro Forma'!AC19)-'3 Year Pro Forma'!$V$6 -> $6.49 | AD28: =SUM('3 Year Pro Forma'!$V$13:'3 Year Pro Forma'!AD13)-SUM('3 Year Pro Forma'!$V$19:'3 Year Pro Forma'!AD19)-'3 Year Pro Forma'!$V$6 -> $7.76 | AE28: =SUM('3 Year Pro Forma'!$V$13:'3 Year Pro Forma'!AE13)-SUM('3 Year Pro Forma'!$V$19:'3 Year Pro Forma'!AE19)-'3 Year Pro Forma'!$V$6 -> $9.11 | AF28: =SUM('3 Year Pro Forma'!$V$13:'3 Year Pro Forma'!AF13)-SUM('3 Year Pro Forma'!$V$19:'3 Year Pro Forma'!AF19)-'3 Year Pro Forma'!$V$6 -> $10.52 | AG28: =SUM('3 Year Pro Forma'!$V$13:'3 Year Pro Forma'!AG13)-SUM('3 Year Pro Forma'!$V$19:'3 Year Pro Forma'!AG19)-'3 Year Pro Forma'!$V$6 -> $12.01 | AH28: =SUM('3 Year Pro Forma'!$V$13:'3 Year Pro Forma'!AH13)-SUM('3 Year Pro Forma'!$V$19:'3 Year Pro Forma'!AH19)-'3 Year Pro Forma'!$V$6 -> $13.58 | AI28: =SUM('3 Year Pro Forma'!$V$13:'3 Year Pro Forma'!AI13)-SUM('3 Year Pro Forma'!$V$19:'3 Year Pro Forma'!AI19)-'3 Year Pro Forma'!$V$6 -> $15.23 | AJ28: =SUM('3 Year Pro Forma'!$V$13:'3 Year Pro Forma'!AJ13)-SUM('3 Year Pro Forma'!$V$19:'3 Year Pro Forma'!AJ19)-'3 Year Pro Forma'!$V$6 -> $16.96 | AK28: =SUM('3 Year Pro Forma'!$V$13:'3 Year Pro Forma'!AK13)-SUM('3 Year Pro Forma'!$V$19:'3 Year Pro Forma'!AK19)-'3 Year Pro Forma'!$V$6 -> $18.79 | AL28: =SUM('3 Year Pro Forma'!$V$13:'3 Year Pro Forma'!AL13)-SUM('3 Year Pro Forma'!$V$19:'3 Year Pro Forma'!AL19)-'3 Year Pro Forma'!$V$6 -> $20.71
A29: 21 | W29: =SUM('3 Year Pro Forma'!$W$13:'3 Year Pro Forma'!W13)-SUM('3 Year Pro Forma'!$W$19:'3 Year Pro Forma'!W19)-'3 Year Pro Forma'!$W$6 -> $(0.66) | X29: =SUM('3 Year Pro Forma'!$W$13:'3 Year Pro Forma'!X13)-SUM('3 Year Pro Forma'!$W$19:'3 Year Pro Forma'!X19)-'3 Year Pro Forma'!$W$6 -> $0.25 | Y29: =SUM('3 Year Pro Forma'!$W$13:'3 Year Pro Forma'!Y13)-SUM('3 Year Pro Forma'!$W$19:'3 Year Pro Forma'!Y19)-'3 Year Pro Forma'!$W$6 -> $1.22 | Z29: =SUM('3 Year Pro Forma'!$W$13:'3 Year Pro Forma'!Z13)-SUM('3 Year Pro Forma'!$W$19:'3 Year Pro Forma'!Z19)-'3 Year Pro Forma'!$W$6 -> $2.25 | AA29: =SUM('3 Year Pro Forma'!$W$13:'3 Year Pro Forma'!AA13)-SUM('3 Year Pro Forma'!$W$19:'3 Year Pro Forma'!AA19)-'3 Year Pro Forma'!$W$6 -> $3.33 | AB29: =SUM('3 Year Pro Forma'!$W$13:'3 Year Pro Forma'!AB13)-SUM('3 Year Pro Forma'!$W$19:'3 Year Pro Forma'!AB19)-'3 Year Pro Forma'!$W$6 -> $4.47 | AC29: =SUM('3 Year Pro Forma'!$W$13:'3 Year Pro Forma'!AC13)-SUM('3 Year Pro Forma'!$W$19:'3 Year Pro Forma'!AC19)-'3 Year Pro Forma'!$W$6 -> $5.68 | AD29: =SUM('3 Year Pro Forma'!$W$13:'3 Year Pro Forma'!AD13)-SUM('3 Year Pro Forma'!$W$19:'3 Year Pro Forma'!AD19)-'3 Year Pro Forma'!$W$6 -> $6.95 | AE29: =SUM('3 Year Pro Forma'!$W$13:'3 Year Pro Forma'!AE13)-SUM('3 Year Pro Forma'!$W$19:'3 Year Pro Forma'!AE19)-'3 Year Pro Forma'!$W$6 -> $8.29 | AF29: =SUM('3 Year Pro Forma'!$W$13:'3 Year Pro Forma'!AF13)-SUM('3 Year Pro Forma'!$W$19:'3 Year Pro Forma'!AF19)-'3 Year Pro Forma'!$W$6 -> $9.71 | AG29: =SUM('3 Year Pro Forma'!$W$13:'3 Year Pro Forma'!AG13)-SUM('3 Year Pro Forma'!$W$19:'3 Year Pro Forma'!AG19)-'3 Year Pro Forma'!$W$6 -> $11.20 | AH29: =SUM('3 Year Pro Forma'!$W$13:'3 Year Pro Forma'!AH13)-SUM('3 Year Pro Forma'!$W$19:'3 Year Pro Forma'!AH19)-'3 Year Pro Forma'!$W$6 -> $12.76 | AI29: =SUM('3 Year Pro Forma'!$W$13:'3 Year Pro Forma'!AI13)-SUM('3 Year Pro Forma'!$W$19:'3 Year Pro Forma'!AI19)-'3 Year Pro Forma'!$W$6 -> $14.41 | AJ29: =SUM('3 Year Pro Forma'!$W$13:'3 Year Pro Forma'!AJ13)-SUM('3 Year Pro Forma'!$W$19:'3 Year Pro Forma'!AJ19)-'3 Year Pro Forma'!$W$6 -> $16.15 | AK29: =SUM('3 Year Pro Forma'!$W$13:'3 Year Pro Forma'!AK13)-SUM('3 Year Pro Forma'!$W$19:'3 Year Pro Forma'!AK19)-'3 Year Pro Forma'!$W$6 -> $17.98 | AL29: =SUM('3 Year Pro Forma'!$W$13:'3 Year Pro Forma'!AL13)-SUM('3 Year Pro Forma'!$W$19:'3 Year Pro Forma'!AL19)-'3 Year Pro Forma'!$W$6 -> $19.90
A30: 22 | X30: =SUM('3 Year Pro Forma'!$X$13:'3 Year Pro Forma'!X13)-SUM('3 Year Pro Forma'!$X$19:'3 Year Pro Forma'!X19)-'3 Year Pro Forma'!$X$6 -> $(0.61) | Y30: =SUM('3 Year Pro Forma'!$X$13:'3 Year Pro Forma'!Y13)-SUM('3 Year Pro Forma'!$X$19:'3 Year Pro Forma'!Y19)-'3 Year Pro Forma'!$X$6 -> $0.36 | Z30: =SUM('3 Year Pro Forma'!$X$13:'3 Year Pro Forma'!Z13)-SUM('3 Year Pro Forma'!$X$19:'3 Year Pro Forma'!Z19)-'3 Year Pro Forma'!$X$6 -> $1.38 | AA30: =SUM('3 Year Pro Forma'!$X$13:'3 Year Pro Forma'!AA13)-SUM('3 Year Pro Forma'!$X$19:'3 Year Pro Forma'!AA19)-'3 Year Pro Forma'!$X$6 -> $2.47 | AB30: =SUM('3 Year Pro Forma'!$X$13:'3 Year Pro Forma'!AB13)-SUM('3 Year Pro Forma'!$X$19:'3 Year Pro Forma'!AB19)-'3 Year Pro Forma'!$X$6 -> $3.61 | AC30: =SUM('3 Year Pro Forma'!$X$13:'3 Year Pro Forma'!AC13)-SUM('3 Year Pro Forma'!$X$19:'3 Year Pro Forma'!AC19)-'3 Year Pro Forma'!$X$6 -> $4.82 | AD30: =SUM('3 Year Pro Forma'!$X$13:'3 Year Pro Forma'!AD13)-SUM('3 Year Pro Forma'!$X$19:'3 Year Pro Forma'!AD19)-'3 Year Pro Forma'!$X$6 -> $6.09 | AE30: =SUM('3 Year Pro Forma'!$X$13:'3 Year Pro Forma'!AE13)-SUM('3 Year Pro Forma'!$X$19:'3 Year Pro Forma'!AE19)-'3 Year Pro Forma'!$X$6 -> $7.43 | AF30: =SUM('3 Year Pro Forma'!$X$13:'3 Year Pro Forma'!AF13)-SUM('3 Year Pro Forma'!$X$19:'3 Year Pro Forma'!AF19)-'3 Year Pro Forma'!$X$6 -> $8.84 | AG30: =SUM('3 Year Pro Forma'!$X$13:'3 Year Pro Forma'!AG13)-SUM('3 Year Pro Forma'!$X$19:'3 Year Pro Forma'!AG19)-'3 Year Pro Forma'!$X$6 -> $10.33 | AH30: =SUM('3 Year Pro Forma'!$X$13:'3 Year Pro Forma'!AH13)-SUM('3 Year Pro Forma'!$X$19:'3 Year Pro Forma'!AH19)-'3 Year Pro Forma'!$X$6 -> $11.90 | AI30: =SUM('3 Year Pro Forma'!$X$13:'3 Year Pro Forma'!AI13)-SUM('3 Year Pro Forma'!$X$19:'3 Year Pro Forma'!AI19)-'3 Year Pro Forma'!$X$6 -> $13.55 | AJ30: =SUM('3 Year Pro Forma'!$X$13:'3 Year Pro Forma'!AJ13)-SUM('3 Year Pro Forma'!$X$19:'3 Year Pro Forma'!AJ19)-'3 Year Pro Forma'!$X$6 -> $15.29 | AK30: =SUM('3 Year Pro Forma'!$X$13:'3 Year Pro Forma'!AK13)-SUM('3 Year Pro Forma'!$X$19:'3 Year Pro Forma'!AK19)-'3 Year Pro Forma'!$X$6 -> $17.11 | AL30: =SUM('3 Year Pro Forma'!$X$13:'3 Year Pro Forma'!AL13)-SUM('3 Year Pro Forma'!$X$19:'3 Year Pro Forma'!AL19)-'3 Year Pro Forma'!$X$6 -> $19.03
A31: 23 | Y31: =SUM('3 Year Pro Forma'!$Y$13:'3 Year Pro Forma'!Y13)-SUM('3 Year Pro Forma'!$Y$19:'3 Year Pro Forma'!Y19)-'3 Year Pro Forma'!$Y$6 -> $(0.56) | Z31: =SUM('3 Year Pro Forma'!$Y$13:'3 Year Pro Forma'!Z13)-SUM('3 Year Pro Forma'!$Y$19:'3 Year Pro Forma'!Z19)-'3 Year Pro Forma'!$Y$6 -> $0.47 | AA31: =SUM('3 Year Pro Forma'!$Y$13:'3 Year Pro Forma'!AA13)-SUM('3 Year Pro Forma'!$Y$19:'3 Year Pro Forma'!AA19)-'3 Year Pro Forma'!$Y$6 -> $1.55 | AB31: =SUM('3 Year Pro Forma'!$Y$13:'3 Year Pro Forma'!AB13)-SUM('3 Year Pro Forma'!$Y$19:'3 Year Pro Forma'!AB19)-'3 Year Pro Forma'!$Y$6 -> $2.69 | AC31: =SUM('3 Year Pro Forma'!$Y$13:'3 Year Pro Forma'!AC13)-SUM('3 Year Pro Forma'!$Y$19:'3 Year Pro Forma'!AC19)-'3 Year Pro Forma'!$Y$6 -> $3.90 | AD31: =SUM('3 Year Pro Forma'!$Y$13:'3 Year Pro Forma'!AD13)-SUM('3 Year Pro Forma'!$Y$19:'3 Year Pro Forma'!AD19)-'3 Year Pro Forma'!$Y$6 -> $5.17 | AE31: =SUM('3 Year Pro Forma'!$Y$13:'3 Year Pro Forma'!AE13)-SUM('3 Year Pro Forma'!$Y$19:'3 Year Pro Forma'!AE19)-'3 Year Pro Forma'!$Y$6 -> $6.52 | AF31: =SUM('3 Year Pro Forma'!$Y$13:'3 Year Pro Forma'!AF13)-SUM('3 Year Pro Forma'!$Y$19:'3 Year Pro Forma'!AF19)-'3 Year Pro Forma'!$Y$6 -> $7.93 | AG31: =SUM('3 Year Pro Forma'!$Y$13:'3 Year Pro Forma'!AG13)-SUM('3 Year Pro Forma'!$Y$19:'3 Year Pro Forma'!AG19)-'3 Year Pro Forma'!$Y$6 -> $9.42 | AH31: =SUM('3 Year Pro Forma'!$Y$13:'3 Year Pro Forma'!AH13)-SUM('3 Year Pro Forma'!$Y$19:'3 Year Pro Forma'!AH19)-'3 Year Pro Forma'!$Y$6 -> $10.99 | AI31: =SUM('3 Year Pro Forma'!$Y$13:'3 Year Pro Forma'!AI13)-SUM('3 Year Pro Forma'!$Y$19:'3 Year Pro Forma'!AI19)-'3 Year Pro Forma'!$Y$6 -> $12.64 | AJ31: =SUM('3 Year Pro Forma'!$Y$13:'3 Year Pro Forma'!AJ13)-SUM('3 Year Pro Forma'!$Y$19:'3 Year Pro Forma'!AJ19)-'3 Year Pro Forma'!$Y$6 -> $14.37 | AK31: =SUM('3 Year Pro Forma'!$Y$13:'3 Year Pro Forma'!AK13)-SUM('3 Year Pro Forma'!$Y$19:'3 Year Pro Forma'!AK19)-'3 Year Pro Forma'!$Y$6 -> $16.20 | AL31: =SUM('3 Year Pro Forma'!$Y$13:'3 Year Pro Forma'!AL13)-SUM('3 Year Pro Forma'!$Y$19:'3 Year Pro Forma'!AL19)-'3 Year Pro Forma'!$Y$6 -> $18.12
A32: 24 | Z32: =SUM('3 Year Pro Forma'!$Z$13:'3 Year Pro Forma'!Z13)-SUM('3 Year Pro Forma'!$Z$19:'3 Year Pro Forma'!Z19)-'3 Year Pro Forma'!$Z$6 -> $(0.50) | AA32: =SUM('3 Year Pro Forma'!$Z$13:'3 Year Pro Forma'!AA13)-SUM('3 Year Pro Forma'!$Z$19:'3 Year Pro Forma'!AA19)-'3 Year Pro Forma'!$Z$6 -> $0.58 | AB32: =SUM('3 Year Pro Forma'!$Z$13:'3 Year Pro Forma'!AB13)-SUM('3 Year Pro Forma'!$Z$19:'3 Year Pro Forma'!AB19)-'3 Year Pro Forma'!$Z$6 -> $1.73 | AC32: =SUM('3 Year Pro Forma'!$Z$13:'3 Year Pro Forma'!AC13)-SUM('3 Year Pro Forma'!$Z$19:'3 Year Pro Forma'!AC19)-'3 Year Pro Forma'!$Z$6 -> $2.93 | AD32: =SUM('3 Year Pro Forma'!$Z$13:'3 Year Pro Forma'!AD13)-SUM('3 Year Pro Forma'!$Z$19:'3 Year Pro Forma'!AD19)-'3 Year Pro Forma'!$Z$6 -> $4.21 | AE32: =SUM('3 Year Pro Forma'!$Z$13:'3 Year Pro Forma'!AE13)-SUM('3 Year Pro Forma'!$Z$19:'3 Year Pro Forma'!AE19)-'3 Year Pro Forma'!$Z$6 -> $5.55 | AF32: =SUM('3 Year Pro Forma'!$Z$13:'3 Year Pro Forma'!AF13)-SUM('3 Year Pro Forma'!$Z$19:'3 Year Pro Forma'!AF19)-'3 Year Pro Forma'!$Z$6 -> $6.96 | AG32: =SUM('3 Year Pro Forma'!$Z$13:'3 Year Pro Forma'!AG13)-SUM('3 Year Pro Forma'!$Z$19:'3 Year Pro Forma'!AG19)-'3 Year Pro Forma'!$Z$6 -> $8.45 | AH32: =SUM('3 Year Pro Forma'!$Z$13:'3 Year Pro Forma'!AH13)-SUM('3 Year Pro Forma'!$Z$19:'3 Year Pro Forma'!AH19)-'3 Year Pro Forma'!$Z$6 -> $10.02 | AI32: =SUM('3 Year Pro Forma'!$Z$13:'3 Year Pro Forma'!AI13)-SUM('3 Year Pro Forma'!$Z$19:'3 Year Pro Forma'!AI19)-'3 Year Pro Forma'!$Z$6 -> $11.67 | AJ32: =SUM('3 Year Pro Forma'!$Z$13:'3 Year Pro Forma'!AJ13)-SUM('3 Year Pro Forma'!$Z$19:'3 Year Pro Forma'!AJ19)-'3 Year Pro Forma'!$Z$6 -> $13.40 | AK32: =SUM('3 Year Pro Forma'!$Z$13:'3 Year Pro Forma'!AK13)-SUM('3 Year Pro Forma'!$Z$19:'3 Year Pro Forma'!AK19)-'3 Year Pro Forma'!$Z$6 -> $15.23 | AL32: =SUM('3 Year Pro Forma'!$Z$13:'3 Year Pro Forma'!AL13)-SUM('3 Year Pro Forma'!$Z$19:'3 Year Pro Forma'!AL19)-'3 Year Pro Forma'!$Z$6 -> $17.15
A33: 25 | AA33: =SUM('3 Year Pro Forma'!$AA$13:'3 Year Pro Forma'!AA13)-SUM('3 Year Pro Forma'!$AA$19:'3 Year Pro Forma'!AA19)-'3 Year Pro Forma'!$AA$6 -> $(0.44) | AB33: =SUM('3 Year Pro Forma'!$AA$13:'3 Year Pro Forma'!AB13)-SUM('3 Year Pro Forma'!$AA$19:'3 Year Pro Forma'!AB19)-'3 Year Pro Forma'!$AA$6 -> $0.70 | AC33: =SUM('3 Year Pro Forma'!$AA$13:'3 Year Pro Forma'!AC13)-SUM('3 Year Pro Forma'!$AA$19:'3 Year Pro Forma'!AC19)-'3 Year Pro Forma'!$AA$6 -> $1.91 | AD33: =SUM('3 Year Pro Forma'!$AA$13:'3 Year Pro Forma'!AD13)-SUM('3 Year Pro Forma'!$AA$19:'3 Year Pro Forma'!AD19)-'3 Year Pro Forma'!$AA$6 -> $3.18 | AE33: =SUM('3 Year Pro Forma'!$AA$13:'3 Year Pro Forma'!AE13)-SUM('3 Year Pro Forma'!$AA$19:'3 Year Pro Forma'!AE19)-'3 Year Pro Forma'!$AA$6 -> $4.52 | AF33: =SUM('3 Year Pro Forma'!$AA$13:'3 Year Pro Forma'!AF13)-SUM('3 Year Pro Forma'!$AA$19:'3 Year Pro Forma'!AF19)-'3 Year Pro Forma'!$AA$6 -> $5.94 | AG33: =SUM('3 Year Pro Forma'!$AA$13:'3 Year Pro Forma'!AG13)-SUM('3 Year Pro Forma'!$AA$19:'3 Year Pro Forma'!AG19)-'3 Year Pro Forma'!$AA$6 -> $7.43 | AH33: =SUM('3 Year Pro Forma'!$AA$13:'3 Year Pro Forma'!AH13)-SUM('3 Year Pro Forma'!$AA$19:'3 Year Pro Forma'!AH19)-'3 Year Pro Forma'!$AA$6 -> $8.99 | AI33: =SUM('3 Year Pro Forma'!$AA$13:'3 Year Pro Forma'!AI13)-SUM('3 Year Pro Forma'!$AA$19:'3 Year Pro Forma'!AI19)-'3 Year Pro Forma'!$AA$6 -> $10.64 | AJ33: =SUM('3 Year Pro Forma'!$AA$13:'3 Year Pro Forma'!AJ13)-SUM('3 Year Pro Forma'!$AA$19:'3 Year Pro Forma'!AJ19)-'3 Year Pro Forma'!$AA$6 -> $12.38 | AK33: =SUM('3 Year Pro Forma'!$AA$13:'3 Year Pro Forma'!AK13)-SUM('3 Year Pro Forma'!$AA$19:'3 Year Pro Forma'!AK19)-'3 Year Pro Forma'!$AA$6 -> $14.21 | AL33: =SUM('3 Year Pro Forma'!$AA$13:'3 Year Pro Forma'!AL13)-SUM('3 Year Pro Forma'!$AA$19:'3 Year Pro Forma'!AL19)-'3 Year Pro Forma'!$AA$6 -> $16.13
A34: 26 | AB34: =SUM('3 Year Pro Forma'!$AB$13:'3 Year Pro Forma'!AB13)-SUM('3 Year Pro Forma'!$AB$19:'3 Year Pro Forma'!AB19)-'3 Year Pro Forma'!$AB$6 -> $(0.38) | AC34: =SUM('3 Year Pro Forma'!$AB$13:'3 Year Pro Forma'!AC13)-SUM('3 Year Pro Forma'!$AB$19:'3 Year Pro Forma'!AC19)-'3 Year Pro Forma'!$AB$6 -> $0.83 | AD34: =SUM('3 Year Pro Forma'!$AB$13:'3 Year Pro Forma'!AD13)-SUM('3 Year Pro Forma'!$AB$19:'3 Year Pro Forma'!AD19)-'3 Year Pro Forma'!$AB$6 -> $2.10 | AE34: =SUM('3 Year Pro Forma'!$AB$13:'3 Year Pro Forma'!AE13)-SUM('3 Year Pro Forma'!$AB$19:'3 Year Pro Forma'!AE19)-'3 Year Pro Forma'!$AB$6 -> $3.44 | AF34: =SUM('3 Year Pro Forma'!$AB$13:'3 Year Pro Forma'!AF13)-SUM('3 Year Pro Forma'!$AB$19:'3 Year Pro Forma'!AF19)-'3 Year Pro Forma'!$AB$6 -> $4.86 | AG34: =SUM('3 Year Pro Forma'!$AB$13:'3 Year Pro Forma'!AG13)-SUM('3 Year Pro Forma'!$AB$19:'3 Year Pro Forma'!AG19)-'3 Year Pro Forma'!$AB$6 -> $6.34 | AH34: =SUM('3 Year Pro Forma'!$AB$13:'3 Year Pro Forma'!AH13)-SUM('3 Year Pro Forma'!$AB$19:'3 Year Pro Forma'!AH19)-'3 Year Pro Forma'!$AB$6 -> $7.91 | AI34: =SUM('3 Year Pro Forma'!$AB$13:'3 Year Pro Forma'!AI13)-SUM('3 Year Pro Forma'!$AB$19:'3 Year Pro Forma'!AI19)-'3 Year Pro Forma'!$AB$6 -> $9.56 | AJ34: =SUM('3 Year Pro Forma'!$AB$13:'3 Year Pro Forma'!AJ13)-SUM('3 Year Pro Forma'!$AB$19:'3 Year Pro Forma'!AJ19)-'3 Year Pro Forma'!$AB$6 -> $11.30 | AK34: =SUM('3 Year Pro Forma'!$AB$13:'3 Year Pro Forma'!AK13)-SUM('3 Year Pro Forma'!$AB$19:'3 Year Pro Forma'!AK19)-'3 Year Pro Forma'!$AB$6 -> $13.13 | AL34: =SUM('3 Year Pro Forma'!$AB$13:'3 Year Pro Forma'!AL13)-SUM('3 Year Pro Forma'!$AB$19:'3 Year Pro Forma'!AL19)-'3 Year Pro Forma'!$AB$6 -> $15.05
A35: 27 | AC35: =SUM('3 Year Pro Forma'!$AC$13:'3 Year Pro Forma'!AC13)-SUM('3 Year Pro Forma'!$AC$19:'3 Year Pro Forma'!AC19)-'3 Year Pro Forma'!$AC$6 -> $(0.32) | AD35: =SUM('3 Year Pro Forma'!$AC$13:'3 Year Pro Forma'!AD13)-SUM('3 Year Pro Forma'!$AC$19:'3 Year Pro Forma'!AD19)-'3 Year Pro Forma'!$AC$6 -> $0.96 | AE35: =SUM('3 Year Pro Forma'!$AC$13:'3 Year Pro Forma'!AE13)-SUM('3 Year Pro Forma'!$AC$19:'3 Year Pro Forma'!AE19)-'3 Year Pro Forma'!$AC$6 -> $2.30 | AF35: =SUM('3 Year Pro Forma'!$AC$13:'3 Year Pro Forma'!AF13)-SUM('3 Year Pro Forma'!$AC$19:'3 Year Pro Forma'!AF19)-'3 Year Pro Forma'!$AC$6 -> $3.71 | AG35: =SUM('3 Year Pro Forma'!$AC$13:'3 Year Pro Forma'!AG13)-SUM('3 Year Pro Forma'!$AC$19:'3 Year Pro Forma'!AG19)-'3 Year Pro Forma'!$AC$6 -> $5.20 | AH35: =SUM('3 Year Pro Forma'!$AC$13:'3 Year Pro Forma'!AH13)-SUM('3 Year Pro Forma'!$AC$19:'3 Year Pro Forma'!AH19)-'3 Year Pro Forma'!$AC$6 -> $6.77 | AI35: =SUM('3 Year Pro Forma'!$AC$13:'3 Year Pro Forma'!AI13)-SUM('3 Year Pro Forma'!$AC$19:'3 Year Pro Forma'!AI19)-'3 Year Pro Forma'!$AC$6 -> $8.42 | AJ35: =SUM('3 Year Pro Forma'!$AC$13:'3 Year Pro Forma'!AJ13)-SUM('3 Year Pro Forma'!$AC$19:'3 Year Pro Forma'!AJ19)-'3 Year Pro Forma'!$AC$6 -> $10.16 | AK35: =SUM('3 Year Pro Forma'!$AC$13:'3 Year Pro Forma'!AK13)-SUM('3 Year Pro Forma'!$AC$19:'3 Year Pro Forma'!AK19)-'3 Year Pro Forma'!$AC$6 -> $11.98 | AL35: =SUM('3 Year Pro Forma'!$AC$13:'3 Year Pro Forma'!AL13)-SUM('3 Year Pro Forma'!$AC$19:'3 Year Pro Forma'!AL19)-'3 Year Pro Forma'!$AC$6 -> $13.90
A36: 28 | AD36: =SUM('3 Year Pro Forma'!$AD$13:'3 Year Pro Forma'!AD13)-SUM('3 Year Pro Forma'!$AD$19:'3 Year Pro Forma'!AD19)-'3 Year Pro Forma'!$AD$6 -> $(0.25) | AE36: =SUM('3 Year Pro Forma'!$AD$13:'3 Year Pro Forma'!AE13)-SUM('3 Year Pro Forma'!$AD$19:'3 Year Pro Forma'!AE19)-'3 Year Pro Forma'!$AD$6 -> $1.09 | AF36: =SUM('3 Year Pro Forma'!$AD$13:'3 Year Pro Forma'!AF13)-SUM('3 Year Pro Forma'!$AD$19:'3 Year Pro Forma'!AF19)-'3 Year Pro Forma'!$AD$6 -> $2.51 | AG36: =SUM('3 Year Pro Forma'!$AD$13:'3 Year Pro Forma'!AG13)-SUM('3 Year Pro Forma'!$AD$19:'3 Year Pro Forma'!AG19)-'3 Year Pro Forma'!$AD$6 -> $4.00 | AH36: =SUM('3 Year Pro Forma'!$AD$13:'3 Year Pro Forma'!AH13)-SUM('3 Year Pro Forma'!$AD$19:'3 Year Pro Forma'!AH19)-'3 Year Pro Forma'!$AD$6 -> $5.56 | AI36: =SUM('3 Year Pro Forma'!$AD$13:'3 Year Pro Forma'!AI13)-SUM('3 Year Pro Forma'!$AD$19:'3 Year Pro Forma'!AI19)-'3 Year Pro Forma'!$AD$6 -> $7.21 | AJ36: =SUM('3 Year Pro Forma'!$AD$13:'3 Year Pro Forma'!AJ13)-SUM('3 Year Pro Forma'!$AD$19:'3 Year Pro Forma'!AJ19)-'3 Year Pro Forma'!$AD$6 -> $8.95 | AK36: =SUM('3 Year Pro Forma'!$AD$13:'3 Year Pro Forma'!AK13)-SUM('3 Year Pro Forma'!$AD$19:'3 Year Pro Forma'!AK19)-'3 Year Pro Forma'!$AD$6 -> $10.78 | AL36: =SUM('3 Year Pro Forma'!$AD$13:'3 Year Pro Forma'!AL13)-SUM('3 Year Pro Forma'!$AD$19:'3 Year Pro Forma'!AL19)-'3 Year Pro Forma'!$AD$6 -> $12.70
A37: 29 | AE37: =SUM('3 Year Pro Forma'!$AE$13:'3 Year Pro Forma'!AE13)-SUM('3 Year Pro Forma'!$AE$19:'3 Year Pro Forma'!AE19)-'3 Year Pro Forma'!$AE$6 -> $(0.18) | AF37: =SUM('3 Year Pro Forma'!$AE$13:'3 Year Pro Forma'!AF13)-SUM('3 Year Pro Forma'!$AE$19:'3 Year Pro Forma'!AF19)-'3 Year Pro Forma'!$AE$6 -> $1.23 | AG37: =SUM('3 Year Pro Forma'!$AE$13:'3 Year Pro Forma'!AG13)-SUM('3 Year Pro Forma'!$AE$19:'3 Year Pro Forma'!AG19)-'3 Year Pro Forma'!$AE$6 -> $2.72 | AH37: =SUM('3 Year Pro Forma'!$AE$13:'3 Year Pro Forma'!AH13)-SUM('3 Year Pro Forma'!$AE$19:'3 Year Pro Forma'!AH19)-'3 Year Pro Forma'!$AE$6 -> $4.29 | AI37: =SUM('3 Year Pro Forma'!$AE$13:'3 Year Pro Forma'!AI13)-SUM('3 Year Pro Forma'!$AE$19:'3 Year Pro Forma'!AI19)-'3 Year Pro Forma'!$AE$6 -> $5.94 | AJ37: =SUM('3 Year Pro Forma'!$AE$13:'3 Year Pro Forma'!AJ13)-SUM('3 Year Pro Forma'!$AE$19:'3 Year Pro Forma'!AJ19)-'3 Year Pro Forma'!$AE$6 -> $7.68 | AK37: =SUM('3 Year Pro Forma'!$AE$13:'3 Year Pro Forma'!AK13)-SUM('3 Year Pro Forma'!$AE$19:'3 Year Pro Forma'!AK19)-'3 Year Pro Forma'!$AE$6 -> $9.50 | AL37: =SUM('3 Year Pro Forma'!$AE$13:'3 Year Pro Forma'!AL13)-SUM('3 Year Pro Forma'!$AE$19:'3 Year Pro Forma'!AL19)-'3 Year Pro Forma'!$AE$6 -> $11.42
A38: 30 | AF38: =SUM('3 Year Pro Forma'!$AF$13:'3 Year Pro Forma'!AF13)-SUM('3 Year Pro Forma'!$AF$19:'3 Year Pro Forma'!AF19)-'3 Year Pro Forma'!$AF$6 -> $(0.11) | AG38: =SUM('3 Year Pro Forma'!$AF$13:'3 Year Pro Forma'!AG13)-SUM('3 Year Pro Forma'!$AF$19:'3 Year Pro Forma'!AG19)-'3 Year Pro Forma'!$AF$6 -> $1.38 | AH38: =SUM('3 Year Pro Forma'!$AF$13:'3 Year Pro Forma'!AH13)-SUM('3 Year Pro Forma'!$AF$19:'3 Year Pro Forma'!AH19)-'3 Year Pro Forma'!$AF$6 -> $2.95 | AI38: =SUM('3 Year Pro Forma'!$AF$13:'3 Year Pro Forma'!AI13)-SUM('3 Year Pro Forma'!$AF$19:'3 Year Pro Forma'!AI19)-'3 Year Pro Forma'!$AF$6 -> $4.60 | AJ38: =SUM('3 Year Pro Forma'!$AF$13:'3 Year Pro Forma'!AJ13)-SUM('3 Year Pro Forma'!$AF$19:'3 Year Pro Forma'!AJ19)-'3 Year Pro Forma'!$AF$6 -> $6.34 | AK38: =SUM('3 Year Pro Forma'!$AF$13:'3 Year Pro Forma'!AK13)-SUM('3 Year Pro Forma'!$AF$19:'3 Year Pro Forma'!AK19)-'3 Year Pro Forma'!$AF$6 -> $8.16 | AL38: =SUM('3 Year Pro Forma'!$AF$13:'3 Year Pro Forma'!AL13)-SUM('3 Year Pro Forma'!$AF$19:'3 Year Pro Forma'!AL19)-'3 Year Pro Forma'!$AF$6 -> $10.08
A39: 31 | AG39: =SUM('3 Year Pro Forma'!$AG$13:'3 Year Pro Forma'!AG13)-SUM('3 Year Pro Forma'!$AG$19:'3 Year Pro Forma'!AG19)-'3 Year Pro Forma'!$AG$6 -> $(0.03) | AH39: =SUM('3 Year Pro Forma'!$AG$13:'3 Year Pro Forma'!AH13)-SUM('3 Year Pro Forma'!$AG$19:'3 Year Pro Forma'!AH19)-'3 Year Pro Forma'!$AG$6 -> $1.54 | AI39: =SUM('3 Year Pro Forma'!$AG$13:'3 Year Pro Forma'!AI13)-SUM('3 Year Pro Forma'!$AG$19:'3 Year Pro Forma'!AI19)-'3 Year Pro Forma'!$AG$6 -> $3.19 | AJ39: =SUM('3 Year Pro Forma'!$AG$13:'3 Year Pro Forma'!AJ13)-SUM('3 Year Pro Forma'!$AG$19:'3 Year Pro Forma'!AJ19)-'3 Year Pro Forma'!$AG$6 -> $4.92 | AK39: =SUM('3 Year Pro Forma'!$AG$13:'3 Year Pro Forma'!AK13)-SUM('3 Year Pro Forma'!$AG$19:'3 Year Pro Forma'!AK19)-'3 Year Pro Forma'!$AG$6 -> $6.75 | AL39: =SUM('3 Year Pro Forma'!$AG$13:'3 Year Pro Forma'!AL13)-SUM('3 Year Pro Forma'!$AG$19:'3 Year Pro Forma'!AL19)-'3 Year Pro Forma'!$AG$6 -> $8.67
A40: 32 | AH40: =SUM('3 Year Pro Forma'!$AH$13:'3 Year Pro Forma'!AH13)-SUM('3 Year Pro Forma'!$AH$19:'3 Year Pro Forma'!AH19)-'3 Year Pro Forma'!$AH$6 -> $0.05 | AI40: =SUM('3 Year Pro Forma'!$AH$13:'3 Year Pro Forma'!AI13)-SUM('3 Year Pro Forma'!$AH$19:'3 Year Pro Forma'!AI19)-'3 Year Pro Forma'!$AH$6 -> $1.70 | AJ40: =SUM('3 Year Pro Forma'!$AH$13:'3 Year Pro Forma'!AJ13)-SUM('3 Year Pro Forma'!$AH$19:'3 Year Pro Forma'!AJ19)-'3 Year Pro Forma'!$AH$6 -> $3.44 | AK40: =SUM('3 Year Pro Forma'!$AH$13:'3 Year Pro Forma'!AK13)-SUM('3 Year Pro Forma'!$AH$19:'3 Year Pro Forma'!AK19)-'3 Year Pro Forma'!$AH$6 -> $5.26 | AL40: =SUM('3 Year Pro Forma'!$AH$13:'3 Year Pro Forma'!AL13)-SUM('3 Year Pro Forma'!$AH$19:'3 Year Pro Forma'!AL19)-'3 Year Pro Forma'!$AH$6 -> $7.18
A41: 33 | AI41: =SUM('3 Year Pro Forma'!$AI$13:'3 Year Pro Forma'!AI13)-SUM('3 Year Pro Forma'!$AI$19:'3 Year Pro Forma'!AI19)-'3 Year Pro Forma'!$AI$6 -> $0.13 | AJ41: =SUM('3 Year Pro Forma'!$AI$13:'3 Year Pro Forma'!AJ13)-SUM('3 Year Pro Forma'!$AI$19:'3 Year Pro Forma'!AJ19)-'3 Year Pro Forma'!$AI$6 -> $1.87 | AK41: =SUM('3 Year Pro Forma'!$AI$13:'3 Year Pro Forma'!AK13)-SUM('3 Year Pro Forma'!$AI$19:'3 Year Pro Forma'!AK19)-'3 Year Pro Forma'!$AI$6 -> $3.69 | AL41: =SUM('3 Year Pro Forma'!$AI$13:'3 Year Pro Forma'!AL13)-SUM('3 Year Pro Forma'!$AI$19:'3 Year Pro Forma'!AL19)-'3 Year Pro Forma'!$AI$6 -> $5.61
A42: 34 | AJ42: =SUM('3 Year Pro Forma'!$AJ$13:'3 Year Pro Forma'!AJ13)-SUM('3 Year Pro Forma'!$AJ$19:'3 Year Pro Forma'!AJ19)-'3 Year Pro Forma'!$AJ$6 -> $0.22 | AK42: =SUM('3 Year Pro Forma'!$AJ$13:'3 Year Pro Forma'!AK13)-SUM('3 Year Pro Forma'!$AJ$19:'3 Year Pro Forma'!AK19)-'3 Year Pro Forma'!$AJ$6 -> $2.04 | AL42: =SUM('3 Year Pro Forma'!$AJ$13:'3 Year Pro Forma'!AL13)-SUM('3 Year Pro Forma'!$AJ$19:'3 Year Pro Forma'!AL19)-'3 Year Pro Forma'!$AJ$6 -> $3.96
A43: 35 | AK43: =SUM('3 Year Pro Forma'!$AK$13:'3 Year Pro Forma'!AK13)-SUM('3 Year Pro Forma'!$AK$19:'3 Year Pro Forma'!AK19)-'3 Year Pro Forma'!$AK$6 -> $0.31 | AL43: =SUM('3 Year Pro Forma'!$AK$13:'3 Year Pro Forma'!AL13)-SUM('3 Year Pro Forma'!$AK$19:'3 Year Pro Forma'!AL19)-'3 Year Pro Forma'!$AK$6 -> $2.23
A44: 36 | AL44: =SUM('3 Year Pro Forma'!$AL$13:'3 Year Pro Forma'!AL13)-SUM('3 Year Pro Forma'!$AL$19:'3 Year Pro Forma'!AL19)-'3 Year Pro Forma'!$AL$6 -> $0.40

Sheet User Leveling Up Payout
B1: Payout | C1: Referral Reach Rate | D1: Organic Reach Rate | E1: Ambassador Reach Rate | G1: Referral Additional Cost | H1: Organic Additional Cost | I1: Ambassador Additional Cost
A2: Prospect | B2: 0 | C2: ='Referral Rate and Payout '!E9 -> 99% | D2: =AVERAGE(C2,E2) -> 99% | E2: ='Ambassador Payout'!C2 -> 99% | G2: =C2*$B2+C3*$B3+C4*$B4+C5*$B5+C6*$B6+C7*$B7 -> $0.62 | H2: =D2*$B2+D3*$B3+D4*$B4+D5*$B5+D6*$B6+D7*$B7 -> $0.54 | I2: =E2*$B2+E3*$B3+E4*$B4+E5*$B5+E6*$B6+E7*$B7 -> $0.46
A3: Rookie | B3: 0 | C3: ='Referral Rate and Payout '!E10 -> 77% | D3: =AVERAGE(C3,E3) -> 73% | E3: ='Ambassador Payout'!C3 -> 70%
A4: Pro | B4: 0.25 | C4: ='Referral Rate and Payout '!E11 -> 51% | D4: =AVERAGE(C4,E4) -> 43% | E4: ='Ambassador Payout'!C4 -> 36%
A5: Veteran | B5: 0.5 | C5: ='Referral Rate and Payout '!E12 -> 33% | D5: 28% | E5: ='Ambassador Payout'!C5 -> 23%
A6: All-star | B6: 0.75 | C6: ='Referral Rate and Payout '!E13 -> 22% | D6: 18% | E6: ='Ambassador Payout'!C6 -> 15%
A7: MVP | B7: 1.5 | C7: ='Referral Rate and Payout '!E14 -> 11% | D7: 10% | E7: ='Ambassador Payout'!C7 -> 10%
A9: Rookie

Sheet Ambassador Payout
A1: Referral Reaches | B1: $ paid | C1: Exp. % who make it | E1: Notes
A2: Prospect | B2: $0.00 | C2: 99% | E2: https://www.businessofapps.com/marketplace/app-marketing/research/app-marketing-cost/CNEitLfARHdGGL1nb0fXOGzsKCMt9w/
A3: Rookie | B3: $0.50 | C3: =('Retention Rates'!G3+C2)/2 -> 70% | E3: ^average CPI for a free app is $1.75
A4: Pro | B4: $0.75 | C4: ='Retention Rates'!G3*0.9 -> 36%
A5: Veteran | B5: $1.25 | C5: =('Retention Rates'!I3)*0.75 -> 23%
A6: All-star | B6: $2.50 | C6: ='Retention Rates'!L3*0.6 -> 15%
A7: MVP | B7: $5.00 | C7: ='Retention Rates'!P3*0.44 -> 9.8%
A8: =(B2*C2)+(B3*C3)+B4*C4+B5*C5+B6*C6+B7*C7 -> $1.76 | B8: Expected Payout
A10: =SUM(B2:B7) -> $10.00 | B10: Max Payout

Sheet Ambassador Cost Analysis
B1: 1 | C1: 2 | D1: 3 | E1: 4 | F1: 5 | G1: 6 | H1: 7 | I1: 8 | J1: 9 | K1: 10 | L1: 11 | M1: 12 | N1: 13 | O1: 14 | P1: 15 | Q1: 16 | R1: 17 | S1: 18 | T1: 19 | U1: 20 | V1: 21 | W1: 22 | X1: 23 | Y1: 24 | Z1: 25 | AA1: 26 | AB1: 27 | AC1: 28 | AD1: 29 | AE1: 30 | AF1: 31 | AG1: 32 | AH1: 33 | AI1: 34 | AJ1: 35 | AK1: 36
B2: Month 1 | C2: Month 2 | D2: Month 3 | E2: Month 4 | F2: Month 5 | G2: Month 6 | H2: Month 7 | I2: Month 8 | J2: Month 9 | K2: Month 10 | L2: Month 11 | M2: Month 12 | N2: Month 13 | O2: Month 14 | P2: Month 15 | Q2: Month 16 | R2: Month 17 | S2: Month 18 | T2: Month 19 | U2: Month 20 | V2: Month 21 | W2: Month 22 | X2: Month 23 | Y2: Month 24 | Z2: Month 25 | AA2: Month 26 | AB2: Month 27 | AC2: Month 28 | AD2: Month 29 | AE2: Month 30 | AF2: Month 31 | AG2: Month 32 | AH2: Month 33 | AI2: Month 34 | AJ2: Month 35 | AK2: Month 36
A3: New Ambassador Conversions | B3: =Assumptions!B3 -> 5,000 | C3: =B3*((Assumptions!$B$4*(1-Assumptions!$B$5)^(1-B1))+1) -> 5,500 | D3: =C3*((Assumptions!$B$4*(1-Assumptions!$B$5)^(1-C1))+1) -> 6,037 | E3: =D3*((Assumptions!$B$4*(1-Assumptions!$B$5)^(1-D1))+1) -> 6,611 | F3: =E3*((Assumptions!$B$4*(1-Assumptions!$B$5)^(1-E1))+1) -> 7,225 | G3: =F3*((Assumptions!$B$4*(1-Assumptions!$B$5)^(1-F1))+1) -> 7,880 | H3: =G3*((Assumptions!$B$4*(1-Assumptions!$B$5)^(1-G1))+1) -> 8,576 | I3: =H3*((Assumptions!$B$4*(1-Assumptions!$B$5)^(1-H1))+1) -> 9,316 | J3: =I3*((Assumptions!$B$4*(1-Assumptions!$B$5)^(1-I1))+1) -> 10,099 | K3: =J3*((Assumptions!$B$4*(1-Assumptions!$B$5)^(1-J1))+1) -> 10,928 | L3: =K3*((Assumptions!$B$4*(1-Assumptions!$B$5)^(1-K1))+1) -> 11,803 | M3: =L3*((Assumptions!$B$4*(1-Assumptions!$B$5)^(1-L1))+1) -> 12,725 | N3: =M3*((Assumptions!$B$4*(1-Assumptions!$B$5)^(1-M1))+1) -> 13,695 | O3: =N3*((Assumptions!$B$4*(1-Assumptions!$B$5)^(1-N1))+1) -> 14,713 | P3: =O3*((Assumptions!$B$4*(1-Assumptions!$B$5)^(1-O1))+1) -> 15,781 | Q3: =P3*((Assumptions!$B$4*(1-Assumptions!$B$5)^(1-P1))+1) -> 16,898 | R3: =Q3*((Assumptions!$B$4*(1-Assumptions!$B$5)^(1-Q1))+1) -> 18,064 | S3: =R3*((Assumptions!$B$4*(1-Assumptions!$B$5)^(1-R1))+1) -> 19,281 | T3: =S3*((Assumptions!$B$4*(1-Assumptions!$B$5)^(1-S1))+1) -> 20,548 | U3: =T3*((Assumptions!$B$4*(1-Assumptions!$B$5)^(1-T1))+1) -> 21,866 | V3: =U3*((Assumptions!$B$4*(1-Assumptions!$B$5)^(1-U1))+1) -> 23,234 | W3: =V3*((Assumptions!$B$4*(1-Assumptions!$B$5)^(1-V1))+1) -> 24,651 | X3: =W3*((Assumptions!$B$4*(1-Assumptions!$B$5)^(1-W1))+1) -> 26,119 | Y3: =X3*((Assumptions!$B$4*(1-Assumptions!$B$5)^(1-X1))+1) -> 27,636 | Z3: =Y3*((Assumptions!$B$4*(1-Assumptions!$B$5)^(1-Y1))+1) -> 29,203 | AA3: =Z3*((Assumptions!$B$4*(1-Assumptions!$B$5)^(1-Z1))+1) -> 30,817 | AB3: =AA3*((Assumptions!$B$4*(1-Assumptions!$B$5)^(1-AA1))+1) -> 32,479 | AC3: =AB3*((Assumptions!$B$4*(1-Assumptions!$B$5)^(1-AB1))+1) -> 34,188 | AD3: =AC3*((Assumptions!$B$4*(1-Assumptions!$B$5)^(1-AC1))+1) -> 35,944 | AE3: =AD3*((Assumptions!$B$4*(1-Assumptions!$B$5)^(1-AD1))+1) -> 37,744 | AF3: =AE3*((Assumptions!$B$4*(1-Assumptions!$B$5)^(1-AE1))+1) -> 39,588 | AG3: =AF3*((Assumptions!$B$4*(1-Assumptions!$B$5)^(1-AF1))+1) -> 41,476 | AH3: =AG3*((Assumptions!$B$4*(1-Assumptions!$B$5)^(1-AG1))+1) -> 43,405 | AI3: =AH3*((Assumptions!$B$4*(1-Assumptions!$B$5)^(1-AH1))+1) -> 45,375 | AJ3: =AI3*((Assumptions!$B$4*(1-Assumptions!$B$5)^(1-AI1))+1) -> 47,383 | AK3: =AJ3*((Assumptions!$B$4*(1-Assumptions!$B$5)^(1-AJ1))+1) -> 49,430
A4: CPA | B4: =Assumptions!$B$6 -> $2.22 | C4: =Assumptions!$B$6 -> $2.22 | D4: =Assumptions!$B$6 -> $2.22 | E4: =Assumptions!$B$6 -> $2.22 | F4: =Assumptions!$B$6 -> $2.22 | G4: =Assumptions!$B$6 -> $2.22 | H4: =Assumptions!$B$6 -> $2.22 | I4: =Assumptions!$B$6 -> $2.22 | J4: =Assumptions!$B$6 -> $2.22 | K4: =Assumptions!$B$6 -> $2.22 | L4: =Assumptions!$B$6 -> $2.22 | M4: =Assumptions!$B$6 -> $2.22 | N4: =Assumptions!$B$6 -> $2.22 | O4: =Assumptions!$B$6 -> $2.22 | P4: =Assumptions!$B$6 -> $2.22 | Q4: =Assumptions!$B$6 -> $2.22 | R4: =Assumptions!$B$6 -> $2.22 | S4: =Assumptions!$B$6 -> $2.22 | T4: =Assumptions!$B$6 -> $2.22 | U4: =Assumptions!$B$6 -> $2.22 | V4: =Assumptions!$B$6 -> $2.22 | W4: =Assumptions!$B$6 -> $2.22 | X4: =Assumptions!$B$6 -> $2.22 | Y4: =Assumptions!$B$6 -> $2.22 | Z4: =Assumptions!$B$6 -> $2.22 | AA4: =Assumptions!$B$6 -> $2.22 | AB4: =Assumptions!$B$6 -> $2.22 | AC4: =Assumptions!$B$6 -> $2.22 | AD4: =Assumptions!$B$6 -> $2.22 | AE4: =Assumptions!$B$6 -> $2.22 | AF4: =Assumptions!$B$6 -> $2.22 | AG4: =Assumptions!$B$6 -> $2.22 | AH4: =Assumptions!$B$6 -> $2.22 | AI4: =Assumptions!$B$6 -> $2.22 | AJ4: =Assumptions!$B$6 -> $2.22 | AK4: =Assumptions!$B$6 -> $2.22
A5: Spend | B5: =B3*B4 -> $11,115 | C5: $12,227 | D5: $13,420 | E5: $14,697 | F5: $16,062 | G5: $17,517 | H5: $19,065 | I5: $20,709 | J5: $22,451 | K5: $24,294 | L5: $26,239 | M5: $28,289 | N5: $30,445 | O5: $32,709 | P5: $35,082 | Q5: $37,565 | R5: $40,159 | S5: $42,864 | T5: $45,681 | U5: $48,610 | V5: $51,650 | W5: $54,802 | X5: $58,065 | Y5: $61,438 | Z5: $64,920 | AA5: $68,509 | AB5: $72,204 | AC5: $76,004 | AD5: $79,906 | AE5: $83,908 | AF5: $88,008 | AG5: $92,204 | AH5: $96,493 | AI5: $100,871 | AJ5: $105,337 | AK5: $109,886
B6: 5

Sheet Referral Rate and Payout
A1: Rate of Referrals
B2: Starting Month | C2: Diminishing rate | D2: Month 1 | E2: Month 2 | F2: Month 3 | G2: Month 4 | H2: Month 5 | I2: Month 6 | J2: Month 7 | K2: Month 8 | L2: Month 9 | M2: Month 10 | N2: Month 11 | O2: Month 12 | P2: Month 13 | Q2: Month 14 | R2: Month 15 | S2: Month 16 | T2: Month 17 | U2: Month 18 | V2: Month 19 | W2: Month 20 | X2: Month 21 | Y2: Month 22 | Z2: Month 23 | AA2: Month 24 | AB2: Month 25 | AC2: Month 26 | AD2: Month 27 | AE2: Month 28 | AF2: Month 29 | AG2: Month 30 | AH2: Month 31 | AI2: Month 32 | AJ2: Month 33 | AK2: Month 34 | AL2: Month 35 | AM2: Month 36
A3: Invites per marketed user | B3: =Assumptions!B9 -> 10 | C3: =Assumptions!B10 -> 20% | D3: =B3 -> 10 | E3: =D3*(1-$C$3) -> 8.00 | F3: =E3*(1-$C$3) -> 6.40 | G3: 5.12 | H3: 4.10 | I3: 3.28 | J3: 2.62 | K3: 2.10 | L3: 1.68 | M3: 1.34 | N3: 1.07 | O3: 0.86 | P3: 0.69 | Q3: 0.55 | R3: 0.44 | S3: 0.35 | T3: 0.28 | U3: 0.23 | V3: 0.18 | W3: 0.14 | X3: 0.12 | Y3: 0.09 | Z3: 0.07 | AA3: 0.06 | AB3: 0.05 | AC3: 0.04 | AD3: 0.03 | AE3: 0.02 | AF3: 0.02 | AG3: 0.02 | AH3: 0.01 | AI3: 0.01 | AJ3: 0.01 | AK3: 0.01 | AL3: 0.01 | AM3: 0.00
A4: Click through + download rate | B4: =Assumptions!B11 -> 5% | C4: N/A | D4: =$B$4 -> 5% | E4: =$B$4 -> 5% | F4: 5% | G4: 5% | H4: 5% | I4: 5% | J4: 5% | K4: 5% | L4: 5% | M4: 5% | N4: 5% | O4: 5% | P4: 5% | Q4: 5% | R4: 5% | S4: 5% | T4: 5% | U4: 5% | V4: 5% | W4: 5% | X4: 5% | Y4: 5% | Z4: 5% | AA4: 5% | AB4: 5% | AC4: 5% | AD4: 5% | AE4: 5% | AF4: 5% | AG4: 5% | AH4: 5% | AI4: 5% | AJ4: 5% | AK4: 5% | AL4: 5% | AM4: 5%
A5: Referrals per marketed user | B5: x | C5: x | D5: =D3*D4 -> 0.50 | E5: =E3*E4 -> 0.40 | F5: 0.32 | G5: 0.26 | H5: 0.20 | I5: 0.16 | J5: 0.13 | K5: 0.10 | L5: 0.08 | M5: 0.07 | N5: 0.05 | O5: 0.04 | P5: 0.03 | Q5: 0.03 | R5: 0.02 | S5: 0.02 | T5: 0.01 | U5: 0.01 | V5: 0.01 | W5: 0.01 | X5: 0.01 | Y5: 0.00 | Z5: 0.00 | AA5: 0.00 | AB5: 0.00 | AC5: 0.00 | AD5: 0.00 | AE5: 0.00 | AF5: 0.00 | AG5: 0.00 | AH5: 0.00 | AI5: 0.00 | AJ5: 0.00 | AK5: 0.00 | AL5: 0.00 | AM5: 0.00
A7: Cost of Referrals
B8: Prize for referrer | D8: Dollar cost | E8: % of referrals who make it
A9: Referral becomes prospect | D9: 0 | E9: 99%
A10: Referral becomes rookie | D10: 0 | E10: =('Retention Rates'!G4+E9)/2 -> 77%
A11: Referral reaches pro club | B11: =D11 -> $0.25 | D11: $0.25 | E11: ='Retention Rates'!G4*0.93 -> 51%
A12: Referral reaches veteran club | B12: =D12 -> $0.50 | D12: $0.50 | E12: ='Retention Rates'!I4*0.79 -> 33%
A13: Referral reaches all-star club | B13: $0.75 | D13: $0.75 | E13: ='Retention Rates'!L4*0.65 -> 22%
A14: Referral reaches MVP club | B14: $1.50 | D14: $1.50 | E14: ='Retention Rates'!R4*0.37 -> 11.1%
A16: Total average cost of referral | D16: =SUM(D9*E9,D10*E10,D11*E11,D12*E12,D13*E13,D14*E14) -> $0.62
A18: =SUM(D10:D14) -> $3.00 | B18: <-- max user can earn

Sheet Retention Rates
F1: 0 | G1: 1 | H1: 2 | I1: 3 | J1: 4 | K1: 5 | L1: 6 | M1: 7 | N1: 8 | O1: 9 | P1: 10 | Q1: 11 | R1: 12 | S1: 13 | T1: 14 | U1: 15 | V1: 16 | W1: 17 | X1: 18 | Y1: 19 | Z1: 20 | AA1: 21 | AB1: 22 | AC1: 23 | AD1: 24 | AE1: 25 | AF1: 26 | AG1: 27 | AH1: 28 | AI1: 29 | AJ1: 30 | AK1: 31 | AL1: 32 | AM1: 33 | AN1: 34 | AO1: 35 | AP1: 36
B2: User Type | C2: 1 Month retention | D2: Churn Rate | E2: Growth of Churn rate | F2: Month 0 | G2: Month 1 | H2: Month 2 | I2: Month 3 | J2: Month 4 | K2: Month 5 | L2: Month 6 | M2: Month 7 | N2: Month 8 | O2: Month 9 | P2: Month 10 | Q2: Month 11 | R2: Month 12 | S2: Month 13 | T2: Month 14 | U2: Month 15 | V2: Month 16 | W2: Month 17 | X2: Month 18 | Y2: Month 19 | Z2: Month 20 | AA2: Month 21 | AB2: Month 22 | AC2: Month 23 | AD2: Month 24 | AE2: Month 25 | AF2: Month 26 | AG2: Month 27 | AH2: Month 28 | AI2: Month 29 | AJ2: Month 30 | AK2: Month 31 | AL2: Month 32 | AM2: Month 33 | AN2: Month 34 | AO2: Month 35 | AP2: Month 36
B3: Marketed | C3: =Assumptions!B20 -> 40% | D3: =Assumptions!B21 -> 15% | E3: =Assumptions!B22 -> -25% | F3: =G3*1.25 -> 50% | G3: =C3 -> 40% | H3: =G3*((1-($D$3)*(1+$E$3)^E1)) -> 34% | I3: =H3*((1-($D$3)*(1+$E$3)^G1)) -> 30% | J3: =I3*((1-($D$3)*(1+$E$3)^H1)) -> 28% | K3: =J3*((1-($D$3)*(1+$E$3)^I1)) -> 26% | L3: 25% | M3: 24% | N3: 23% | O3: 23% | P3: 22% | Q3: 22% | R3: 22% | S3: 22% | T3: 22% | U3: 22% | V3: 22% | W3: 21% | X3: 21% | Y3: 21% | Z3: 21% | AA3: 21% | AB3: 21% | AC3: 21% | AD3: 21% | AE3: 21% | AF3: 21% | AG3: 21% | AH3: 21% | AI3: 21% | AJ3: 21% | AK3: 21% | AL3: 21% | AM3: 21% | AN3: 21% | AO3: 21% | AP3: 21%
B4: Referral | C4: =Assumptions!B26 -> 54.8% | D4: =Assumptions!B27 -> 15% | E4: =Assumptions!B28 -> -25% | F4: =G4*1.25 -> 69% | G4: =C4 -> 55% | H4: =G4*((1-($D$4)*(1+$E$4)^E1)) -> 47% | I4: =H4*((1-($D$4)*(1+$E$4)^G1)) -> 41% | J4: 38% | K4: 35% | L4: 34% | M4: 33% | N4: 32% | O4: 31% | P4: 31% | Q4: 30% | R4: 30% | S4: 30% | T4: 30% | U4: 30% | V4: 29% | W4: 29% | X4: 29% | Y4: 29% | Z4: 29% | AA4: 29% | AB4: 29% | AC4: 29% | AD4: 29% | AE4: 29% | AF4: 29% | AG4: 29% | AH4: 29% | AI4: 29% | AJ4: 29% | AK4: 29% | AL4: 29% | AM4: 29% | AN4: 29% | AO4: 29% | AP4: 29%
B5: Organic | F5: =G5*1.25 -> 59% | G5: =AVERAGE(G3,G4) -> 47% | H5: 40% | I5: 36% | J5: 33% | K5: 31% | L5: 29% | M5: 28% | N5: 27% | O5: 27% | P5: 26% | Q5: 26% | R5: 26% | S5: 26% | T5: 26% | U5: 26% | V5: 26% | W5: 25% | X5: 25% | Y5: 25% | Z5: 25% | AA5: 25% | AB5: 25% | AC5: 25% | AD5: 25% | AE5: 25% | AF5: 25% | AG5: 25% | AH5: 25% | AI5: 25% | AJ5: 25% | AK5: 25% | AL5: 25% | AM5: 25% | AN5: 25% | AO5: 25% | AP5: 25%

Sheet HR
A1: Department | B1: Month 1 | C1: Month 2 | D1: Month 3 | E1: Month 4 | F1: Month 5 | G1: Month 6 | H1: Month 7 | I1: Month 8 | J1: Month 9 | K1: Month 10 | L1: Month 11 | M1: Month 12 | N1: Month 13 | O1: Month 14 | P1: Month 15 | Q1: Month 16 | R1: Month 17 | S1: Month 18 | T1: Month 19 | U1: Month 20 | V1: Month 21 | W1: Month 22 | X1: Month 23 | Y1: Month 24 | Z1: Month 25 | AA1: Month 26 | AB1: Month 27 | AC1: Month 28 | AD1: Month 29 | AE1: Month 30 | AF1: Month 31 | AG1: Month 32 | AH1: Month 33 | AI1: Month 34 | AJ1: Month 35 | AK1: Month 36
A2: Hd Social Media | B2: $1,000 | C2: =B2*1.05 -> $1,050 | D2: =C2*1.05 -> $1,103 | E2: $1,158 | F2: $1,216 | G2: $1,276 | H2: $1,340 | I2: $1,407 | J2: $1,477 | K2: $1,551 | L2: $1,629 | M2: $1,710 | N2: $1,796 | O2: $1,886 | P2: $1,980 | Q2: $2,079 | R2: $2,183 | S2: =R2*1.1 -> $2,401 | T2: =S2*1.1 -> $2,641 | U2: $2,905 | V2: $3,196 | W2: $3,516 | X2: $3,867 | Y2: $4,254 | Z2: $4,679 | AA2: $5,147 | AB2: $5,662 | AC2: $6,228 | AD2: $6,851 | AE2: $7,536 | AF2: $8,289 | AG2: $9,118 | AH2: $10,030 | AI2: $11,033 | AJ2: $12,137 | AK2: $13,350
A3: Hd Customer Support | B3: $0 | C3: =B3*1.05 -> $0 | D3: =C3*1.05 -> $0 | E3: $0 | F3: =1000 -> $1,000 | G3: =F3*1.1 -> $1,100 | H3: $1,210 | I3: $1,331 | J3: $1,464 | K3: $1,611 | L3: $1,772 | M3: $1,949 | N3: $2,144 | O3: $2,358 | P3: $2,594 | Q3: $2,853 | R3: $3,138 | S3: $3,452 | T3: $3,797 | U3: $4,177 | V3: $4,595 | W3: $5,054 | X3: $5,560 | Y3: $6,116 | Z3: $6,727 | AA3: $7,400 | AB3: $8,140 | AC3: $8,954 | AD3: $9,850 | AE3: $10,835 | AF3: $11,918 | AG3: $13,110 | AH3: $14,421 | AI3: $15,863 | AJ3: $17,449 | AK3: $19,194
A4: Hd Business Operations | B4: 0 | C4: $0 | D4: $0 | E4: $0 | F4: $0 | G4: $0 | H4: $0 | I4: $0 | J4: $0 | K4: $0 | L4: $0 | M4: $0 | N4: =4000 -> $4,000 | O4: =N4 -> $4,000 | P4: =O4 -> $4,000 | Q4: $4,000 | R4: $6,000 | S4: $6,000 | T4: $6,000 | U4: $6,000 | V4: =10000 -> $10,000 | W4: $10,000 | X4: $10,000 | Y4: $10,000 | Z4: =12000 -> $12,000 | AA4: =12000 -> $12,000 | AB4: =12000 -> $12,000 | AC4: =12000 -> $12,000 | AD4: =12000 -> $12,000 | AE4: =12000 -> $12,000 | AF4: =15000 -> $15,000 | AG4: =15000 -> $15,000 | AH4: =15000 -> $15,000 | AI4: =15000 -> $15,000 | AJ4: =15000 -> $15,000 | AK4: =15000 -> $15,000
A5: Hd Marketing/Sales | B5: 0 | C5: $0 | D5: $0 | E5: $0 | F5: $0 | G5: =F5*1.1 -> $0 | H5: =G5*1.1 -> $0 | I5: $0 | J5: $0 | K5: $0 | L5: $0 | M5: $0 | N5: =4000 -> $4,000 | O5: $4,400 | P5: $4,840 | Q5: $5,324 | R5: $5,856 | S5: $6,442 | T5: $7,086 | U5: $7,795 | V5: $8,574 | W5: $9,432 | X5: $10,375 | Y5: $11,412 | Z5: $12,554 | AA5: $13,809 | AB5: $15,190 | AC5: $16,709 | AD5: $18,380 | AE5: $20,218 | AF5: $22,240 | AG5: $24,464 | AH5: $26,910 | AI5: $29,601 | AJ5: $32,561 | AK5: $35,817
A6: Hd Engineering | B6: 0 | C6: 0 | D6: 0 | E6: 0 | F6: 0 | G6: 0 | H6: $0 | I6: $0 | J6: $0 | K6: $0 | L6: $0 | M6: $0 | N6: $7,500 | O6: $7,500 | P6: $7,500 | Q6: $7,500 | R6: $7,500 | S6: $7,500 | T6: $15,000 | U6: $15,000 | V6: $15,000 | W6: $15,000 | X6: $15,000 | Y6: $15,000 | Z6: $40,000 | AA6: $40,000 | AB6: $40,000 | AC6: $40,000 | AD6: $50,000 | AE6: $50,000 | AF6: $50,000 | AG6: $50,000 | AH6: $60,000 | AI6: $60,000 | AJ6: $60,000 | AK6: $60,000
A7: Growth Employees | B7: 0 | C7: 0 | D7: 0 | E7: 0 | F7: 0 | G7: 0 | H7: $0 | I7: $0 | J7: $0 | K7: $0 | L7: $0 | M7: $0 | N7: ='3 Year Pro Forma'!O33*0.1 -> $9,280 | O7: ='3 Year Pro Forma'!P33*0.1 -> $10,758 | P7: ='3 Year Pro Forma'!Q33*0.1 -> $12,405 | Q7: ='3 Year Pro Forma'!R33*0.1 -> $14,239 | R7: ='3 Year Pro Forma'!S33*0.1 -> $16,277 | S7: ='3 Year Pro Forma'!T33*0.1 -> $18,542 | T7: ='3 Year Pro Forma'!U33*0.1 -> $21,053 | U7: ='3 Year Pro Forma'!V33*0.1 -> $23,836 | V7: ='3 Year Pro Forma'!W33*0.1 -> $26,917 | W7: ='3 Year Pro Forma'!X33*0.1 -> $30,324 | X7: ='3 Year Pro Forma'!Y33*0.1 -> $34,087 | Y7: ='3 Year Pro Forma'!Z33*0.1 -> $38,241 | Z7: ='3 Year Pro Forma'!AA33*0.1 -> $42,820 | AA7: ='3 Year Pro Forma'!AB33*0.1 -> $47,864 | AB7: ='3 Year Pro Forma'!AC33*0.1 -> $53,416 | AC7: ='3 Year Pro Forma'!AD33*0.1 -> $59,520 | AD7: ='3 Year Pro Forma'!AE33*0.1 -> $66,226 | AE7: ='3 Year Pro Forma'!AF33*0.1 -> $73,589 | AF7: ='3 Year Pro Forma'!AG33*0.1 -> $81,665 | AG7: ='3 Year Pro Forma'!AH33*0.1 -> $90,517 | AH7: ='3 Year Pro Forma'!AI33*0.1 -> $100,212 | AI7: ='3 Year Pro Forma'!AJ33*0.1 -> $110,823 | AJ7: ='3 Year Pro Forma'!AK33*0.1 -> $122,429 | AK7: ='3 Year Pro Forma'!AL33*0.1 -> $135,114
A8: Monthly Tottal | B8: =SUM(B2:B7) -> $1,000 | C8: $1,050 | D8: $1,103 | E8: $1,158 | F8: $2,216 | G8: $2,376 | H8: $2,550 | I8: $2,738 | J8: $2,942 | K8: $3,162 | L8: $3,400 | M8: $3,659 | N8: $28,719 | O8: $30,902 | P8: $33,319 | Q8: $35,995 | R8: $40,955 | S8: $44,337 | T8: $55,578 | U8: $59,714 | V8: $68,282 | W8: $73,326 | X8: $78,889 | Y8: $85,023 | Z8: $118,781 | AA8: $126,221 | AB8: $134,408 | AC8: $143,411 | AD8: $163,307 | AE8: $174,177 | AF8: $189,112 | AG8: $202,209 | AH8: $226,573 | AI8: $242,321 | AJ8: $259,576 | AK8: $278,476
A9: Spent to date

Sheet Cohort Analysis
A1: Cohort Analysis Overview | B1: Month 1 | C1: Month 1 | D1: Month 2 | E1: Month 3 | F1: Month 4 | G1: Month 5 | H1: Month 6 | I1: Month 7 | J1: Month 8 | K1: Month 9 | L1: Month 10 | M1: Month 11 | N1: Month 12 | O1: Month 13 | P1: Month 14 | Q1: Month 15 | R1: Month 16 | S1: Month 17 | T1: Month 18 | U1: Month 19 | V1: Month 20 | W1: Month 21 | X1: Month 22 | Y1: Month 23 | Z1: Month 24 | AA1: Month 25 | AB1: Month 26 | AC1: Month 27 | AD1: Month 28 | AE1: Month 29 | AF1: Month 30 | AG1: Month 31 | AH1: Month 32 | AI1: Month 33 | AJ1: Month 34 | AK1: Month 35 | AL1: Month 36
A2: New Users from Ambassadors | B2: ='3 Year Pro Forma'!C29/Assumptions!B6 -> 2500 | C2: ='Ambassador Cost Analysis'!B3 -> 5,000 | D2: ='Ambassador Cost Analysis'!C3 -> 5,500 | E2: ='Ambassador Cost Analysis'!D3 -> 6,037 | F2: ='Ambassador Cost Analysis'!E3 -> 6,611 | G2: ='Ambassador Cost Analysis'!F3 -> 7,225 | H2: ='Ambassador Cost Analysis'!G3 -> 7,880 | I2: ='Ambassador Cost Analysis'!H3 -> 8,576 | J2: ='Ambassador Cost Analysis'!I3 -> 9,316 | K2: ='Ambassador Cost Analysis'!J3 -> 10,099 | L2: ='Ambassador Cost Analysis'!K3 -> 10,928 | M2: ='Ambassador Cost Analysis'!L3 -> 11,803 | N2: ='Ambassador Cost Analysis'!M3 -> 12,725 | O2: ='Ambassador Cost Analysis'!N3 -> 13,695 | P2: ='Ambassador Cost Analysis'!O3 -> 14,713 | Q2: ='Ambassador Cost Analysis'!P3 -> 15,781 | R2: ='Ambassador Cost Analysis'!Q3 -> 16,898 | S2: ='Ambassador Cost Analysis'!R3 -> 18,064 | T2: ='Ambassador Cost Analysis'!S3 -> 19,281 | U2: ='Ambassador Cost Analysis'!T3 -> 20,548 | V2: ='Ambassador Cost Analysis'!U3 -> 21,866 | W2: ='Ambassador Cost Analysis'!V3 -> 23,234 | X2: ='Ambassador Cost Analysis'!W3 -> 24,651 | Y2: ='Ambassador Cost Analysis'!X3 -> 26,119 | Z2: ='Ambassador Cost Analysis'!Y3 -> 27,636 | AA2: ='Ambassador Cost Analysis'!Z3 -> 29,203 | AB2: ='Ambassador Cost Analysis'!AA3 -> 30,817 | AC2: ='Ambassador Cost Analysis'!AB3 -> 32,479 | AD2: ='Ambassador Cost Analysis'!AC3 -> 34,188 | AE2: ='Ambassador Cost Analysis'!AD3 -> 35,944 | AF2: ='Ambassador Cost Analysis'!AE3 -> 37,744 | AG2: ='Ambassador Cost Analysis'!AF3 -> 39,588 | AH2: ='Ambassador Cost Analysis'!AG3 -> 41,476 | AI2: ='Ambassador Cost Analysis'!AH3 -> 43,405 | AJ2: ='Ambassador Cost Analysis'!AI3 -> 45,375 | AK2: ='Ambassador Cost Analysis'!AJ3 -> 47,383 | AL2: ='Ambassador Cost Analysis'!AK3 -> 49,430
A3: New Users from In-App Referrals | B3: ='3 Year Pro Forma'!C28/Assumptions!B12 -> 1125 | C3: =C90 -> 1,125 | D3: =D90 -> 1,978 | E3: 2,686 | F3: 3,316 | G3: 3,905 | H3: 4,476 | I3: 5,044 | J3: 5,619 | K3: 6,207 | L3: 6,815 | M3: 7,446 | N3: 8,104 | O3: 8,790 | P3: 9,508 | Q3: 10,259 | R3: 11,044 | S3: 11,865 | T3: 12,722 | U3: 13,616 | V3: 14,548 | W3: 15,518 | X3: 16,526 | Y3: 17,574 | Z3: 18,660 | AA3: 19,785 | AB3: 20,949 | AC3: 22,151 | AD3: 23,391 | AE3: 24,669 | AF3: 25,984 | AG3: 27,336 | AH3: 28,723 | AI3: 30,146 | AJ3: 31,604 | AK3: 33,095 | AL3: 34,619
A4: New Users from Organic Downloads | B4: =C4/2 -> 374 | C4: =D4/2 -> 748 | D4: =D132 -> 1,496 | E4: 1,744 | F4: 1,985 | G4: 2,226 | H4: 2,471 | I4: 2,724 | J4: 2,987 | K4: 3,261 | L4: 3,549 | M4: 3,850 | N4: 4,166 | O4: 4,497 | P4: 4,844 | Q4: 5,208 | R4: 5,588 | S4: 5,986 | T4: 6,401 | U4: 6,833 | V4: 7,283 | W4: 7,750 | X4: 8,236 | Y4: 8,739 | Z4: 9,259 | AA4: 9,797 | AB4: 10,353 | AC4: 10,926 | AD4: 11,516 | AE4: 12,122 | AF4: 12,746 | AG4: 13,385 | AH4: 14,040 | AI4: 14,710 | AJ4: 15,396 | AK4: 16,096 | AL4: 16,810
A5: Total New Users | C5: =SUM(C2:C4) -> 6,873 | D5: =SUM(D2:D4) -> 8,973 | E5: 10,467 | F5: 11,912 | G5: 13,356 | H5: 14,827 | I5: 16,344 | J5: 17,921 | K5: 19,568 | L5: 21,292 | M5: 23,099 | N5: 24,995 | O5: 26,983 | P5: 29,066 | Q5: 31,248 | R5: 33,530 | S5: 35,915 | T5: 38,403 | U5: 40,997 | V5: 43,696 | W5: 46,502 | X5: 49,413 | Y5: 52,432 | Z5: 55,556 | AA5: 58,785 | AB5: 62,119 | AC5: 65,556 | AD5: 69,095 | AE5: 72,735 | AF5: 76,473 | AG5: 80,309 | AH5: 84,239 | AI5: 88,262 | AJ5: 92,374 | AK5: 96,574 | AL5: 100,859
A6: Total Active (avg throughout month) | C6: =C51+C129+C171 -> 3,597 | D6: =D51+D129+D171 -> 7,449 | E6: =E51+E129+E171 -> 11,560 | F6: =F51+F129+F171 -> 15,950 | G6: 20,647 | H6: 25,681 | I6: 31,084 | J6: 36,888 | K6: 43,124 | L6: 49,824 | M6: 57,018 | N6: 64,737 | O6: 73,010 | P6: 81,868 | Q6: 91,340 | R6: 101,455 | S6: 112,242 | T6: 123,730 | U6: 135,948 | V6: 148,924 | W6: 162,685 | X6: 177,261 | Y6: 192,677 | Z6: 208,961 | AA6: 226,140 | AB6: 244,239 | AC6: 263,285 | AD6: 283,301 | AE6: 304,313 | AF6: 326,344 | AG6: 349,417 | AH6: 373,555 | AI6: 398,778 | AJ6: 425,109 | AK6: 452,566 | AL6: 481,170
A7: +/- | C7: =C6 -> 3,597 | D7: =D6-C6 -> 3,852 | E7: =E6-D6 -> 4,111 | F7: 4,390 | G7: 4,697 | H7: 5,034 | I7: 5,403 | J7: 5,804 | K7: 6,236 | L7: 6,700 | M7: 7,194 | N7: 7,719 | O7: 8,273 | P7: 8,858 | Q7: 9,472 | R7: 10,115 | S7: 10,787 | T7: 11,488 | U7: 12,218 | V7: 12,976 | W7: 13,762 | X7: 14,575 | Y7: 15,416 | Z7: 16,284 | AA7: 17,179 | AB7: 18,099 | AC7: 19,045 | AD7: 20,016 | AE7: 21,012 | AF7: 22,031 | AG7: 23,073 | AH7: 24,138 | AI7: 25,224 | AJ7: 26,331 | AK7: 27,457 | AL7: 28,603
A8: % growth | C8: N/A | D8: =(D6/C6)-1 -> 107% | E8: =(E6/D6)-1 -> 55% | F8: 38% | G8: 29% | H8: 24% | I8: 21% | J8: 19% | K8: 17% | L8: 16% | M8: 14% | N8: 14% | O8: 13% | P8: 12% | Q8: 12% | R8: 11% | S8: 11% | T8: 10% | U8: 10% | V8: 10% | W8: 9% | X8: 9% | Y8: 9% | Z8: 8% | AA8: 8% | AB8: 8% | AC8: 8% | AD8: 8% | AE8: 7% | AF8: 7% | AG8: 7% | AH8: 7% | AI8: 7% | AJ8: 7% | AK8: 6% | AL8: 6%
A9: Total cost of acquisition | C9: ='Ambassador Cost Analysis'!B5+('Cohort Analysis'!C3*Assumptions!$B$12) -> $12,515 | D9: ='Ambassador Cost Analysis'!C5+('Cohort Analysis'!D3*Assumptions!$B$12) -> $14,686 | E9: ='Ambassador Cost Analysis'!D5+('Cohort Analysis'!E3*Assumptions!$B$12) -> $16,760 | F9: ='Ambassador Cost Analysis'!E5+('Cohort Analysis'!F3*Assumptions!$B$12) -> $18,821 | G9: ='Ambassador Cost Analysis'!F5+('Cohort Analysis'!G3*Assumptions!$B$12) -> $20,918 | H9: ='Ambassador Cost Analysis'!G5+('Cohort Analysis'!H3*Assumptions!$B$12) -> $23,084 | I9: ='Ambassador Cost Analysis'!H5+('Cohort Analysis'!I3*Assumptions!$B$12) -> $25,338 | J9: ='Ambassador Cost Analysis'!I5+('Cohort Analysis'!J3*Assumptions!$B$12) -> $27,697 | K9: ='Ambassador Cost Analysis'!J5+('Cohort Analysis'!K3*Assumptions!$B$12) -> $30,171 | L9: ='Ambassador Cost Analysis'!K5+('Cohort Analysis'!L3*Assumptions!$B$12) -> $32,770 | M9: ='Ambassador Cost Analysis'!L5+('Cohort Analysis'!M3*Assumptions!$B$12) -> $35,500 | N9: ='Ambassador Cost Analysis'!M5+('Cohort Analysis'!N3*Assumptions!$B$12) -> $38,368 | O9: ='Ambassador Cost Analysis'!N5+('Cohort Analysis'!O3*Assumptions!$B$12) -> $41,378 | P9: ='Ambassador Cost Analysis'!O5+('Cohort Analysis'!P3*Assumptions!$B$12) -> $44,535 | Q9: ='Ambassador Cost Analysis'!P5+('Cohort Analysis'!Q3*Assumptions!$B$12) -> $47,841 | R9: ='Ambassador Cost Analysis'!Q5+('Cohort Analysis'!R3*Assumptions!$B$12) -> $51,300 | S9: ='Ambassador Cost Analysis'!R5+('Cohort Analysis'!S3*Assumptions!$B$12) -> $54,915 | T9: ='Ambassador Cost Analysis'!S5+('Cohort Analysis'!T3*Assumptions!$B$12) -> $58,686 | U9: ='Ambassador Cost Analysis'!T5+('Cohort Analysis'!U3*Assumptions!$B$12) -> $62,615 | V9: ='Ambassador Cost Analysis'!U5+('Cohort Analysis'!V3*Assumptions!$B$12) -> $66,702 | W9: ='Ambassador Cost Analysis'!V5+('Cohort Analysis'!W3*Assumptions!$B$12) -> $70,950 | X9: ='Ambassador Cost Analysis'!W5+('Cohort Analysis'!X3*Assumptions!$B$12) -> $75,356 | Y9: ='Ambassador Cost Analysis'!X5+('Cohort Analysis'!Y3*Assumptions!$B$12) -> $79,922 | Z9: ='Ambassador Cost Analysis'!Y5+('Cohort Analysis'!Z3*Assumptions!$B$12) -> $84,645 | AA9: ='Ambassador Cost Analysis'!Z5+('Cohort Analysis'!AA3*Assumptions!$B$12) -> $89,526 | AB9: ='Ambassador Cost Analysis'!AA5+('Cohort Analysis'!AB3*Assumptions!$B$12) -> $94,563 | AC9: ='Ambassador Cost Analysis'!AB5+('Cohort Analysis'!AC3*Assumptions!$B$12) -> $99,753 | AD9: ='Ambassador Cost Analysis'!AC5+('Cohort Analysis'!AD3*Assumptions!$B$12) -> $105,095 | AE9: ='Ambassador Cost Analysis'!AD5+('Cohort Analysis'!AE3*Assumptions!$B$12) -> $110,586 | AF9: ='Ambassador Cost Analysis'!AE5+('Cohort Analysis'!AF3*Assumptions!$B$12) -> $116,224 | AG9: ='Ambassador Cost Analysis'!AF5+('Cohort Analysis'!AG3*Assumptions!$B$12) -> $122,006 | AH9: ='Ambassador Cost Analysis'!AG5+('Cohort Analysis'!AH3*Assumptions!$B$12) -> $127,927 | AI9: ='Ambassador Cost Analysis'!AH5+('Cohort Analysis'!AI3*Assumptions!$B$12) -> $133,986 | AJ9: ='Ambassador Cost Analysis'!AI5+('Cohort Analysis'!AJ3*Assumptions!$B$12) -> $140,177 | AK9: ='Ambassador Cost Analysis'!AJ5+('Cohort Analysis'!AK3*Assumptions!$B$12) -> $146,497 | AL9: ='Ambassador Cost Analysis'!AK5+('Cohort Analysis'!AL3*Assumptions!$B$12) -> $152,942
A10: Overall CPA | C10: =C9/(C3+C2+C4) -> $1.82 | D10: =D9/(D3+D2+D4) -> $1.64 | E10: $1.60 | F10: $1.58 | G10: =G9/(G3+G2+G4) -> $1.57 | H10: =H9/(H3+H2+H4) -> $1.56 | I10: $1.55 | J10: =J9/(J3+J2+J4) -> $1.55 | K10: =K9/(K3+K2+K4) -> $1.54 | L10: $1.54 | M10: =M9/(M3+M2+M4) -> $1.54 | N10: =N9/(N3+N2+N4) -> $1.54 | O10: $1.53 | P10: =P9/(P3+P2+P4) -> $1.53 | Q10: =Q9/(Q3+Q2+Q4) -> $1.53 | R10: $1.53 | S10: =S9/(S3+S2+S4) -> $1.53 | T10: =T9/(T3+T2+T4) -> $1.53 | U10: $1.53 | V10: =V9/(V3+V2+V4) -> $1.53 | W10: =W9/(W3+W2+W4) -> $1.53 | X10: $1.53 | Y10: =Y9/(Y3+Y2+Y4) -> $1.52 | Z10: =Z9/(Z3+Z2+Z4) -> $1.52 | AA10: $1.52 | AB10: =AB9/(AB3+AB2+AB4) -> $1.52 | AC10: =AC9/(AC3+AC2+AC4) -> $1.52 | AD10: $1.52 | AE10: =AE9/(AE3+AE2+AE4) -> $1.52 | AF10: =AF9/(AF3+AF2+AF4) -> $1.52 | AG10: $1.52 | AH10: =AH9/(AH3+AH2+AH4) -> $1.52 | AI10: =AI9/(AI3+AI2+AI4) -> $1.52 | AJ10: $1.52 | AK10: =AK9/(AK3+AK2+AK4) -> $1.52 | AL10: =AL9/(AL3+AL2+AL4) -> $1.52
A12: Churned total | C12: =C5-C6 -> 3,276 | D12: =D5+C6-D6 -> 5,121 | E12: =E5+D6-E6 -> 6,355 | F12: 7,522 | G12: 8,659 | H12: 9,793 | I12: 10,941 | J12: 12,117 | K12: 13,331 | L12: 14,592 | M12: 15,905 | N12: 17,276 | O12: 18,709 | P12: 20,208 | Q12: 21,776 | R12: 23,415 | S12: 25,128 | T12: 26,915 | U12: 28,779 | V12: 30,720 | W12: 32,740 | X12: 34,838 | Y12: 37,015 | Z12: 39,271 | AA12: 41,606 | AB12: 44,019 | AC12: 46,511 | AD12: 49,079 | AE12: 51,723 | AF12: 54,443 | AG12: 57,236 | AH12: 60,101 | AI12: 63,038 | AJ12: 66,044 | AK12: 69,117 | AL12: 72,255
A14: Avg. marketed users Active | C14: Month 1 | D14: Month 2 | E14: Month 3 | F14: Month 4 | G14: Month 5 | H14: Month 6 | I14: Month 7 | J14: Month 8 | K14: Month 9 | L14: Month 10 | M14: Month 11 | N14: Month 12 | O14: Month 13 | P14: Month 14 | Q14: Month 15 | R14: Month 16 | S14: Month 17 | T14: Month 18 | U14: Month 19 | V14: Month 20 | W14: Month 21 | X14: Month 22 | Y14: Month 23 | Z14: Month 24 | AA14: Month 25 | AB14: Month 26 | AC14: Month 27 | AD14: Month 28 | AE14: Month 29 | AF14: Month 30 | AG14: Month 31 | AH14: Month 32 | AI14: Month 33 | AJ14: Month 34 | AK14: Month 35 | AL14: Month 36
A15: Cohort 1 | C15: ='Ambassador Cost Analysis'!$B$3*(AVERAGE('Retention Rates'!F3,'Retention Rates'!G3)) -> 2250 | D15: ='Ambassador Cost Analysis'!$B$3*(AVERAGE('Retention Rates'!G3,'Retention Rates'!H3)) -> 1850 | E15: ='Ambassador Cost Analysis'!$B$3*(AVERAGE('Retention Rates'!H3,'Retention Rates'!I3)) -> 1604 | F15: ='Ambassador Cost Analysis'!$B$3*(AVERAGE('Retention Rates'!I3,'Retention Rates'!J3)) -> 1445 | G15: ='Ambassador Cost Analysis'!$B$3*(AVERAGE('Retention Rates'!J3,'Retention Rates'!K3)) -> 1338 | H15: ='Ambassador Cost Analysis'!$B$3*(AVERAGE('Retention Rates'!K3,'Retention Rates'!L3)) -> 1263 | I15: ='Ambassador Cost Analysis'!$B$3*(AVERAGE('Retention Rates'!L3,'Retention Rates'!M3)) -> 1211 | J15: ='Ambassador Cost Analysis'!$B$3*(AVERAGE('Retention Rates'!M3,'Retention Rates'!N3)) -> 1173 | K15: ='Ambassador Cost Analysis'!$B$3*(AVERAGE('Retention Rates'!N3,'Retention Rates'!O3)) -> 1145 | L15: ='Ambassador Cost Analysis'!$B$3*(AVERAGE('Retention Rates'!O3,'Retention Rates'!P3)) -> 1125 | M15: ='Ambassador Cost Analysis'!$B$3*(AVERAGE('Retention Rates'!P3,'Retention Rates'!Q3)) -> 1111 | N15: ='Ambassador Cost Analysis'!$B$3*(AVERAGE('Retention Rates'!Q3,'Retention Rates'!R3)) -> 1100 | O15: ='Ambassador Cost Analysis'!$B$3*(AVERAGE('Retention Rates'!R3,'Retention Rates'!S3)) -> 1091 | P15: ='Ambassador Cost Analysis'!$B$3*(AVERAGE('Retention Rates'!S3,'Retention Rates'!T3)) -> 1085 | Q15: ='Ambassador Cost Analysis'!$B$3*(AVERAGE('Retention Rates'!T3,'Retention Rates'!U3)) -> 1081 | R15: ='Ambassador Cost Analysis'!$B$3*(AVERAGE('Retention Rates'!U3,'Retention Rates'!V3)) -> 1077 | S15: ='Ambassador Cost Analysis'!$B$3*(AVERAGE('Retention Rates'!V3,'Retention Rates'!W3)) -> 1075 | T15: ='Ambassador Cost Analysis'!$B$3*(AVERAGE('Retention Rates'!W3,'Retention Rates'!X3)) -> 1073 | U15: ='Ambassador Cost Analysis'!$B$3*(AVERAGE('Retention Rates'!X3,'Retention Rates'!Y3)) -> 1072 | V15: ='Ambassador Cost Analysis'!$B$3*(AVERAGE('Retention Rates'!Y3,'Retention Rates'!Z3)) -> 1071 | W15: ='Ambassador Cost Analysis'!$B$3*(AVERAGE('Retention Rates'!Z3,'Retention Rates'!AA3)) -> 1070 | X15: ='Ambassador Cost Analysis'!$B$3*(AVERAGE('Retention Rates'!AA3,'Retention Rates'!AB3)) -> 1069 | Y15: ='Ambassador Cost Analysis'!$B$3*(AVERAGE('Retention Rates'!AB3,'Retention Rates'!AC3)) -> 1069 | Z15: ='Ambassador Cost Analysis'!$B$3*(AVERAGE('Retention Rates'!AC3,'Retention Rates'!AD3)) -> 1068 | AA15: ='Ambassador Cost Analysis'!$B$3*(AVERAGE('Retention Rates'!AD3,'Retention Rates'!AE3)) -> 1068 | AB15: ='Ambassador Cost Analysis'!$B$3*(AVERAGE('Retention Rates'!AE3,'Retention Rates'!AF3)) -> 1068 | AC15: ='Ambassador Cost Analysis'!$B$3*(AVERAGE('Retention Rates'!AF3,'Retention Rates'!AG3)) -> 1068 | AD15: ='Ambassador Cost Analysis'!$B$3*(AVERAGE('Retention Rates'!AG3,'Retention Rates'!AH3)) -> 1068 | AE15: ='Ambassador Cost Analysis'!$B$3*(AVERAGE('Retention Rates'!AH3,'Retention Rates'!AI3)) -> 1068 | AF15: ='Ambassador Cost Analysis'!$B$3*(AVERAGE('Retention Rates'!AI3,'Retention Rates'!AJ3)) -> 1068 | AG15: ='Ambassador Cost Analysis'!$B$3*(AVERAGE('Retention Rates'!AJ3,'Retention Rates'!AK3)) -> 1068 | AH15: ='Ambassador Cost Analysis'!$B$3*(AVERAGE('Retention Rates'!AK3,'Retention Rates'!AL3)) -> 1068 | AI15: ='Ambassador Cost Analysis'!$B$3*(AVERAGE('Retention Rates'!AL3,'Retention Rates'!AM3)) -> 1068 | AJ15: ='Ambassador Cost Analysis'!$B$3*(AVERAGE('Retention Rates'!AM3,'Retention Rates'!AN3)) -> 1068 | AK15: ='Ambassador Cost Analysis'!$B$3*(AVERAGE('Retention Rates'!AN3,'Retention Rates'!AO3)) -> 1067 | AL15: ='Ambassador Cost Analysis'!$B$3*(AVERAGE('Retention Rates'!AO3,'Retention Rates'!AP3)) -> 1067
A16: Cohort 2 | D16: ='Ambassador Cost Analysis'!$C$3*(AVERAGE('Retention Rates'!F3,'Retention Rates'!G3)) -> 2475 | E16: ='Ambassador Cost Analysis'!$C$3*(AVERAGE('Retention Rates'!G3,'Retention Rates'!H3)) -> 2035 | F16: ='Ambassador Cost Analysis'!$C$3*(AVERAGE('Retention Rates'!H3,'Retention Rates'!I3)) -> 1765 | G16: ='Ambassador Cost Analysis'!$C$3*(AVERAGE('Retention Rates'!I3,'Retention Rates'!J3)) -> 1590 | H16: ='Ambassador Cost Analysis'!$C$3*(AVERAGE('Retention Rates'!J3,'Retention Rates'!K3)) -> 1472 | I16: ='Ambassador Cost Analysis'!$C$3*(AVERAGE('Retention Rates'!K3,'Retention Rates'!L3)) -> 1390 | J16: ='Ambassador Cost Analysis'!$C$3*(AVERAGE('Retention Rates'!L3,'Retention Rates'!M3)) -> 1332 | K16: ='Ambassador Cost Analysis'!$C$3*(AVERAGE('Retention Rates'!M3,'Retention Rates'!N3)) -> 1290 | L16: ='Ambassador Cost Analysis'!$C$3*(AVERAGE('Retention Rates'!N3,'Retention Rates'!O3)) -> 1260 | M16: ='Ambassador Cost Analysis'!$C$3*(AVERAGE('Retention Rates'!O3,'Retention Rates'!P3)) -> 1238 | N16: ='Ambassador Cost Analysis'!$C$3*(AVERAGE('Retention Rates'!P3,'Retention Rates'!Q3)) -> 1222 | O16: ='Ambassador Cost Analysis'!$C$3*(AVERAGE('Retention Rates'!Q3,'Retention Rates'!R3)) -> 1210 | P16: ='Ambassador Cost Analysis'!$C$3*(AVERAGE('Retention Rates'!R3,'Retention Rates'!S3)) -> 1201 | Q16: ='Ambassador Cost Analysis'!$C$3*(AVERAGE('Retention Rates'!S3,'Retention Rates'!T3)) -> 1194 | R16: ='Ambassador Cost Analysis'!$C$3*(AVERAGE('Retention Rates'!T3,'Retention Rates'!U3)) -> 1189 | S16: ='Ambassador Cost Analysis'!$C$3*(AVERAGE('Retention Rates'!U3,'Retention Rates'!V3)) -> 1185 | T16: ='Ambassador Cost Analysis'!$C$3*(AVERAGE('Retention Rates'!V3,'Retention Rates'!W3)) -> 1182 | U16: ='Ambassador Cost Analysis'!$C$3*(AVERAGE('Retention Rates'!W3,'Retention Rates'!X3)) -> 1180 | V16: ='Ambassador Cost Analysis'!$C$3*(AVERAGE('Retention Rates'!X3,'Retention Rates'!Y3)) -> 1179 | W16: ='Ambassador Cost Analysis'!$C$3*(AVERAGE('Retention Rates'!Y3,'Retention Rates'!Z3)) -> 1178 | X16: ='Ambassador Cost Analysis'!$C$3*(AVERAGE('Retention Rates'!Z3,'Retention Rates'!AA3)) -> 1177 | Y16: ='Ambassador Cost Analysis'!$C$3*(AVERAGE('Retention Rates'!AA3,'Retention Rates'!AB3)) -> 1176 | Z16: ='Ambassador Cost Analysis'!$C$3*(AVERAGE('Retention Rates'!AB3,'Retention Rates'!AC3)) -> 1176 | AA16: ='Ambassador Cost Analysis'!$C$3*(AVERAGE('Retention Rates'!AC3,'Retention Rates'!AD3)) -> 1175 | AB16: ='Ambassador Cost Analysis'!$C$3*(AVERAGE('Retention Rates'!AD3,'Retention Rates'!AE3)) -> 1175 | AC16: ='Ambassador Cost Analysis'!$C$3*(AVERAGE('Retention Rates'!AE3,'Retention Rates'!AF3)) -> 1175 | AD16: ='Ambassador Cost Analysis'!$C$3*(AVERAGE('Retention Rates'!AF3,'Retention Rates'!AG3)) -> 1175 | AE16: ='Ambassador Cost Analysis'!$C$3*(AVERAGE('Retention Rates'!AG3,'Retention Rates'!AH3)) -> 1175 | AF16: ='Ambassador Cost Analysis'!$C$3*(AVERAGE('Retention Rates'!AH3,'Retention Rates'!AI3)) -> 1174 | AG16: ='Ambassador Cost Analysis'!$C$3*(AVERAGE('Retention Rates'!AI3,'Retention Rates'!AJ3)) -> 1174 | AH16: ='Ambassador Cost Analysis'!$C$3*(AVERAGE('Retention Rates'!AJ3,'Retention Rates'!AK3)) -> 1174 | AI16: ='Ambassador Cost Analysis'!$C$3*(AVERAGE('Retention Rates'!AK3,'Retention Rates'!AL3)) -> 1174 | AJ16: ='Ambassador Cost Analysis'!$C$3*(AVERAGE('Retention Rates'!AL3,'Retention Rates'!AM3)) -> 1174 | AK16: ='Ambassador Cost Analysis'!$C$3*(AVERAGE('Retention Rates'!AM3,'Retention Rates'!AN3)) -> 1174 | AL16: ='Ambassador Cost Analysis'!$C$3*(AVERAGE('Retention Rates'!AN3,'Retention Rates'!AO3)) -> 1174
A17: Cohort 3 | E17: ='Ambassador Cost Analysis'!$D$3*(AVERAGE('Retention Rates'!F3,'Retention Rates'!G3)) -> 2716 | F17: ='Ambassador Cost Analysis'!$D$3*(AVERAGE('Retention Rates'!G3,'Retention Rates'!H3)) -> 2234 | G17: ='Ambassador Cost Analysis'!$D$3*(AVERAGE('Retention Rates'!H3,'Retention Rates'!I3)) -> 1937 | H17: ='Ambassador Cost Analysis'!$D$3*(AVERAGE('Retention Rates'!I3,'Retention Rates'!J3)) -> 1745 | I17: ='Ambassador Cost Analysis'!$D$3*(AVERAGE('Retention Rates'!J3,'Retention Rates'!K3)) -> 1615 | J17: ='Ambassador Cost Analysis'!$D$3*(AVERAGE('Retention Rates'!K3,'Retention Rates'!L3)) -> 1525 | K17: ='Ambassador Cost Analysis'!$D$3*(AVERAGE('Retention Rates'!L3,'Retention Rates'!M3)) -> 1462 | L17: ='Ambassador Cost Analysis'!$D$3*(AVERAGE('Retention Rates'!M3,'Retention Rates'!N3)) -> 1416 | M17: ='Ambassador Cost Analysis'!$D$3*(AVERAGE('Retention Rates'!N3,'Retention Rates'!O3)) -> 1383 | N17: ='Ambassador Cost Analysis'!$D$3*(AVERAGE('Retention Rates'!O3,'Retention Rates'!P3)) -> 1359 | O17: ='Ambassador Cost Analysis'!$D$3*(AVERAGE('Retention Rates'!P3,'Retention Rates'!Q3)) -> 1341 | P17: ='Ambassador Cost Analysis'!$D$3*(AVERAGE('Retention Rates'!Q3,'Retention Rates'!R3)) -> 1328 | Q17: ='Ambassador Cost Analysis'!$D$3*(AVERAGE('Retention Rates'!R3,'Retention Rates'!S3)) -> 1318 | R17: ='Ambassador Cost Analysis'!$D$3*(AVERAGE('Retention Rates'!S3,'Retention Rates'!T3)) -> 1310 | S17: ='Ambassador Cost Analysis'!$D$3*(AVERAGE('Retention Rates'!T3,'Retention Rates'!U3)) -> 1305 | T17: ='Ambassador Cost Analysis'!$D$3*(AVERAGE('Retention Rates'!U3,'Retention Rates'!V3)) -> 1301 | U17: ='Ambassador Cost Analysis'!$D$3*(AVERAGE('Retention Rates'!V3,'Retention Rates'!W3)) -> 1298 | V17: ='Ambassador Cost Analysis'!$D$3*(AVERAGE('Retention Rates'!W3,'Retention Rates'!X3)) -> 1296 | W17: ='Ambassador Cost Analysis'!$D$3*(AVERAGE('Retention Rates'!X3,'Retention Rates'!Y3)) -> 1294 | X17: ='Ambassador Cost Analysis'!$D$3*(AVERAGE('Retention Rates'!Y3,'Retention Rates'!Z3)) -> 1293 | Y17: ='Ambassador Cost Analysis'!$D$3*(AVERAGE('Retention Rates'!Z3,'Retention Rates'!AA3)) -> 1292 | Z17: ='Ambassador Cost Analysis'!$D$3*(AVERAGE('Retention Rates'!AA3,'Retention Rates'!AB3)) -> 1291 | AA17: ='Ambassador Cost Analysis'!$D$3*(AVERAGE('Retention Rates'!AB3,'Retention Rates'!AC3)) -> 1290 | AB17: ='Ambassador Cost Analysis'!$D$3*(AVERAGE('Retention Rates'!AC3,'Retention Rates'!AD3)) -> 1290 | AC17: ='Ambassador Cost Analysis'!$D$3*(AVERAGE('Retention Rates'!AD3,'Retention Rates'!AE3)) -> 1290 | AD17: ='Ambassador Cost Analysis'!$D$3*(AVERAGE('Retention Rates'!AE3,'Retention Rates'!AF3)) -> 1289 | AE17: ='Ambassador Cost Analysis'!$D$3*(AVERAGE('Retention Rates'!AF3,'Retention Rates'!AG3)) -> 1289 | AF17: ='Ambassador Cost Analysis'!$D$3*(AVERAGE('Retention Rates'!AG3,'Retention Rates'!AH3)) -> 1289 | AG17: ='Ambassador Cost Analysis'!$D$3*(AVERAGE('Retention Rates'!AH3,'Retention Rates'!AI3)) -> 1289 | AH17: ='Ambassador Cost Analysis'!$D$3*(AVERAGE('Retention Rates'!AI3,'Retention Rates'!AJ3)) -> 1289 | AI17: ='Ambassador Cost Analysis'!$D$3*(AVERAGE('Retention Rates'!AJ3,'Retention Rates'!AK3)) -> 1289 | AJ17: ='Ambassador Cost Analysis'!$D$3*(AVERAGE('Retention Rates'!AK3,'Retention Rates'!AL3)) -> 1289 | AK17: ='Ambassador Cost Analysis'!$D$3*(AVERAGE('Retention Rates'!AL3,'Retention Rates'!AM3)) -> 1289 | AL17: ='Ambassador Cost Analysis'!$D$3*(AVERAGE('Retention Rates'!AM3,'Retention Rates'!AN3)) -> 1289
A18: Cohort 4 | F18: ='Ambassador Cost Analysis'!$E$3*(AVERAGE('Retention Rates'!F3,'Retention Rates'!G3)) -> 2975 | G18: ='Ambassador Cost Analysis'!$E$3*(AVERAGE('Retention Rates'!G3,'Retention Rates'!H3)) -> 2446 | H18: ='Ambassador Cost Analysis'!$E$3*(AVERAGE('Retention Rates'!H3,'Retention Rates'!I3)) -> 2121 | I18: ='Ambassador Cost Analysis'!$E$3*(AVERAGE('Retention Rates'!I3,'Retention Rates'!J3)) -> 1911 | J18: ='Ambassador Cost Analysis'!$E$3*(AVERAGE('Retention Rates'!J3,'Retention Rates'!K3)) -> 1769 | K18: ='Ambassador Cost Analysis'!$E$3*(AVERAGE('Retention Rates'!K3,'Retention Rates'!L3)) -> 1670 | L18: ='Ambassador Cost Analysis'!$E$3*(AVERAGE('Retention Rates'!L3,'Retention Rates'!M3)) -> 1601 | M18: ='Ambassador Cost Analysis'!$E$3*(AVERAGE('Retention Rates'!M3,'Retention Rates'!N3)) -> 1551 | N18: ='Ambassador Cost Analysis'!$E$3*(AVERAGE('Retention Rates'!N3,'Retention Rates'!O3)) -> 1515 | O18: ='Ambassador Cost Analysis'!$E$3*(AVERAGE('Retention Rates'!O3,'Retention Rates'!P3)) -> 1488 | P18: ='Ambassador Cost Analysis'!$E$3*(AVERAGE('Retention Rates'!P3,'Retention Rates'!Q3)) -> 1468 | Q18: ='Ambassador Cost Analysis'!$E$3*(AVERAGE('Retention Rates'!Q3,'Retention Rates'!R3)) -> 1454 | R18: ='Ambassador Cost Analysis'!$E$3*(AVERAGE('Retention Rates'!R3,'Retention Rates'!S3)) -> 1443 | S18: ='Ambassador Cost Analysis'!$E$3*(AVERAGE('Retention Rates'!S3,'Retention Rates'!T3)) -> 1435 | T18: ='Ambassador Cost Analysis'!$E$3*(AVERAGE('Retention Rates'!T3,'Retention Rates'!U3)) -> 1429 | U18: ='Ambassador Cost Analysis'!$E$3*(AVERAGE('Retention Rates'!U3,'Retention Rates'!V3)) -> 1425 | V18: ='Ambassador Cost Analysis'!$E$3*(AVERAGE('Retention Rates'!V3,'Retention Rates'!W3)) -> 1421 | W18: ='Ambassador Cost Analysis'!$E$3*(AVERAGE('Retention Rates'!W3,'Retention Rates'!X3)) -> 1419 | X18: ='Ambassador Cost Analysis'!$E$3*(AVERAGE('Retention Rates'!X3,'Retention Rates'!Y3)) -> 1417 | Y18: ='Ambassador Cost Analysis'!$E$3*(AVERAGE('Retention Rates'!Y3,'Retention Rates'!Z3)) -> 1416 | Z18: ='Ambassador Cost Analysis'!$E$3*(AVERAGE('Retention Rates'!Z3,'Retention Rates'!AA3)) -> 1415 | AA18: ='Ambassador Cost Analysis'!$E$3*(AVERAGE('Retention Rates'!AA3,'Retention Rates'!AB3)) -> 1414 | AB18: ='Ambassador Cost Analysis'!$E$3*(AVERAGE('Retention Rates'!AB3,'Retention Rates'!AC3)) -> 1413 | AC18: ='Ambassador Cost Analysis'!$E$3*(AVERAGE('Retention Rates'!AC3,'Retention Rates'!AD3)) -> 1413 | AD18: ='Ambassador Cost Analysis'!$E$3*(AVERAGE('Retention Rates'!AD3,'Retention Rates'!AE3)) -> 1412 | AE18: ='Ambassador Cost Analysis'!$E$3*(AVERAGE('Retention Rates'!AE3,'Retention Rates'!AF3)) -> 1412 | AF18: ='Ambassador Cost Analysis'!$E$3*(AVERAGE('Retention Rates'!AF3,'Retention Rates'!AG3)) -> 1412 | AG18: ='Ambassador Cost Analysis'!$E$3*(AVERAGE('Retention Rates'!AG3,'Retention Rates'!AH3)) -> 1412 | AH18: ='Ambassador Cost Analysis'!$E$3*(AVERAGE('Retention Rates'!AH3,'Retention Rates'!AI3)) -> 1412 | AI18: ='Ambassador Cost Analysis'!$E$3*(AVERAGE('Retention Rates'!AI3,'Retention Rates'!AJ3)) -> 1412 | AJ18: ='Ambassador Cost Analysis'!$E$3*(AVERAGE('Retention Rates'!AJ3,'Retention Rates'!AK3)) -> 1412 | AK18: ='Ambassador Cost Analysis'!$E$3*(AVERAGE('Retention Rates'!AK3,'Retention Rates'!AL3)) -> 1412 | AL18: ='Ambassador Cost Analysis'!$E$3*(AVERAGE('Retention Rates'!AL3,'Retention Rates'!AM3)) -> 1412
A19: Cohort 5 | G19: ='Ambassador Cost Analysis'!$F$3*(AVERAGE('Retention Rates'!F3,'Retention Rates'!G3)) -> 3251 | H19: ='Ambassador Cost Analysis'!$F$3*(AVERAGE('Retention Rates'!G3,'Retention Rates'!H3)) -> 2673 | I19: ='Ambassador Cost Analysis'!$F$3*(AVERAGE('Retention Rates'!H3,'Retention Rates'!I3)) -> 2318 | J19: ='Ambassador Cost Analysis'!$F$3*(AVERAGE('Retention Rates'!I3,'Retention Rates'!J3)) -> 2088 | K19: ='Ambassador Cost Analysis'!$F$3*(AVERAGE('Retention Rates'!J3,'Retention Rates'!K3)) -> 1933 | L19: ='Ambassador Cost Analysis'!$F$3*(AVERAGE('Retention Rates'!K3,'Retention Rates'!L3)) -> 1826 | M19: ='Ambassador Cost Analysis'!$F$3*(AVERAGE('Retention Rates'!L3,'Retention Rates'!M3)) -> 1749 | N19: ='Ambassador Cost Analysis'!$F$3*(AVERAGE('Retention Rates'!M3,'Retention Rates'!N3)) -> 1695 | O19: ='Ambassador Cost Analysis'!$F$3*(AVERAGE('Retention Rates'!N3,'Retention Rates'!O3)) -> 1655 | P19: ='Ambassador Cost Analysis'!$F$3*(AVERAGE('Retention Rates'!O3,'Retention Rates'!P3)) -> 1626 | Q19: ='Ambassador Cost Analysis'!$F$3*(AVERAGE('Retention Rates'!P3,'Retention Rates'!Q3)) -> 1605 | R19: ='Ambassador Cost Analysis'!$F$3*(AVERAGE('Retention Rates'!Q3,'Retention Rates'!R3)) -> 1589 | S19: ='Ambassador Cost Analysis'!$F$3*(AVERAGE('Retention Rates'!R3,'Retention Rates'!S3)) -> 1577 | T19: ='Ambassador Cost Analysis'!$F$3*(AVERAGE('Retention Rates'!S3,'Retention Rates'!T3)) -> 1568 | U19: ='Ambassador Cost Analysis'!$F$3*(AVERAGE('Retention Rates'!T3,'Retention Rates'!U3)) -> 1562 | V19: ='Ambassador Cost Analysis'!$F$3*(AVERAGE('Retention Rates'!U3,'Retention Rates'!V3)) -> 1557 | W19: ='Ambassador Cost Analysis'!$F$3*(AVERAGE('Retention Rates'!V3,'Retention Rates'!W3)) -> 1553 | X19: ='Ambassador Cost Analysis'!$F$3*(AVERAGE('Retention Rates'!W3,'Retention Rates'!X3)) -> 1551 | Y19: ='Ambassador Cost Analysis'!$F$3*(AVERAGE('Retention Rates'!X3,'Retention Rates'!Y3)) -> 1549 | Z19: ='Ambassador Cost Analysis'!$F$3*(AVERAGE('Retention Rates'!Y3,'Retention Rates'!Z3)) -> 1547 | AA19: ='Ambassador Cost Analysis'!$F$3*(AVERAGE('Retention Rates'!Z3,'Retention Rates'!AA3)) -> 1546 | AB19: ='Ambassador Cost Analysis'!$F$3*(AVERAGE('Retention Rates'!AA3,'Retention Rates'!AB3)) -> 1545 | AC19: ='Ambassador Cost Analysis'!$F$3*(AVERAGE('Retention Rates'!AB3,'Retention Rates'!AC3)) -> 1544 | AD19: ='Ambassador Cost Analysis'!$F$3*(AVERAGE('Retention Rates'!AC3,'Retention Rates'!AD3)) -> 1544 | AE19: ='Ambassador Cost Analysis'!$F$3*(AVERAGE('Retention Rates'!AD3,'Retention Rates'!AE3)) -> 1544 | AF19: ='Ambassador Cost Analysis'!$F$3*(AVERAGE('Retention Rates'!AE3,'Retention Rates'!AF3)) -> 1543 | AG19: ='Ambassador Cost Analysis'!$F$3*(AVERAGE('Retention Rates'!AF3,'Retention Rates'!AG3)) -> 1543 | AH19: ='Ambassador Cost Analysis'!$F$3*(AVERAGE('Retention Rates'!AG3,'Retention Rates'!AH3)) -> 1543 | AI19: ='Ambassador Cost Analysis'!$F$3*(AVERAGE('Retention Rates'!AH3,'Retention Rates'!AI3)) -> 1543 | AJ19: ='Ambassador Cost Analysis'!$F$3*(AVERAGE('Retention Rates'!AI3,'Retention Rates'!AJ3)) -> 1543 | AK19: ='Ambassador Cost Analysis'!$F$3*(AVERAGE('Retention Rates'!AJ3,'Retention Rates'!AK3)) -> 1543 | AL19: ='Ambassador Cost Analysis'!$F$3*(AVERAGE('Retention Rates'!AK3,'Retention Rates'!AL3)) -> 1543
A20: Cohort 6 | H20: ='Ambassador Cost Analysis'!$G$3*(AVERAGE('Retention Rates'!F3,'Retention Rates'!G3)) -> 3546 | I20: ='Ambassador Cost Analysis'!$G$3*(AVERAGE('Retention Rates'!G3,'Retention Rates'!H3)) -> 2915 | J20: ='Ambassador Cost Analysis'!$G$3*(AVERAGE('Retention Rates'!H3,'Retention Rates'!I3)) -> 2528 | K20: ='Ambassador Cost Analysis'!$G$3*(AVERAGE('Retention Rates'!I3,'Retention Rates'!J3)) -> 2277 | L20: ='Ambassador Cost Analysis'!$G$3*(AVERAGE('Retention Rates'!J3,'Retention Rates'!K3)) -> 2108 | M20: ='Ambassador Cost Analysis'!$G$3*(AVERAGE('Retention Rates'!K3,'Retention Rates'!L3)) -> 1991 | N20: ='Ambassador Cost Analysis'!$G$3*(AVERAGE('Retention Rates'!L3,'Retention Rates'!M3)) -> 1908 | O20: ='Ambassador Cost Analysis'!$G$3*(AVERAGE('Retention Rates'!M3,'Retention Rates'!N3)) -> 1848 | P20: ='Ambassador Cost Analysis'!$G$3*(AVERAGE('Retention Rates'!N3,'Retention Rates'!O3)) -> 1805 | Q20: ='Ambassador Cost Analysis'!$G$3*(AVERAGE('Retention Rates'!O3,'Retention Rates'!P3)) -> 1773 | R20: ='Ambassador Cost Analysis'!$G$3*(AVERAGE('Retention Rates'!P3,'Retention Rates'!Q3)) -> 1750 | S20: ='Ambassador Cost Analysis'!$G$3*(AVERAGE('Retention Rates'!Q3,'Retention Rates'!R3)) -> 1733 | T20: ='Ambassador Cost Analysis'!$G$3*(AVERAGE('Retention Rates'!R3,'Retention Rates'!S3)) -> 1720 | U20: ='Ambassador Cost Analysis'!$G$3*(AVERAGE('Retention Rates'!S3,'Retention Rates'!T3)) -> 1710 | V20: ='Ambassador Cost Analysis'!$G$3*(AVERAGE('Retention Rates'!T3,'Retention Rates'!U3)) -> 1703 | W20: ='Ambassador Cost Analysis'!$G$3*(AVERAGE('Retention Rates'!U3,'Retention Rates'!V3)) -> 1698 | X20: ='Ambassador Cost Analysis'!$G$3*(AVERAGE('Retention Rates'!V3,'Retention Rates'!W3)) -> 1694 | Y20: ='Ambassador Cost Analysis'!$G$3*(AVERAGE('Retention Rates'!W3,'Retention Rates'!X3)) -> 1691 | Z20: ='Ambassador Cost Analysis'!$G$3*(AVERAGE('Retention Rates'!X3,'Retention Rates'!Y3)) -> 1689 | AA20: ='Ambassador Cost Analysis'!$G$3*(AVERAGE('Retention Rates'!Y3,'Retention Rates'!Z3)) -> 1687 | AB20: ='Ambassador Cost Analysis'!$G$3*(AVERAGE('Retention Rates'!Z3,'Retention Rates'!AA3)) -> 1686 | AC20: ='Ambassador Cost Analysis'!$G$3*(AVERAGE('Retention Rates'!AA3,'Retention Rates'!AB3)) -> 1685 | AD20: ='Ambassador Cost Analysis'!$G$3*(AVERAGE('Retention Rates'!AB3,'Retention Rates'!AC3)) -> 1684 | AE20: ='Ambassador Cost Analysis'!$G$3*(AVERAGE('Retention Rates'!AC3,'Retention Rates'!AD3)) -> 1684 | AF20: ='Ambassador Cost Analysis'!$G$3*(AVERAGE('Retention Rates'!AD3,'Retention Rates'!AE3)) -> 1683 | AG20: ='Ambassador Cost Analysis'!$G$3*(AVERAGE('Retention Rates'!AE3,'Retention Rates'!AF3)) -> 1683 | AH20: ='Ambassador Cost Analysis'!$G$3*(AVERAGE('Retention Rates'!AF3,'Retention Rates'!AG3)) -> 1683 | AI20: ='Ambassador Cost Analysis'!$G$3*(AVERAGE('Retention Rates'!AG3,'Retention Rates'!AH3)) -> 1683 | AJ20: ='Ambassador Cost Analysis'!$G$3*(AVERAGE('Retention Rates'!AH3,'Retention Rates'!AI3)) -> 1683 | AK20: ='Ambassador Cost Analysis'!$G$3*(AVERAGE('Retention Rates'!AI3,'Retention Rates'!AJ3)) -> 1683 | AL20: ='Ambassador Cost Analysis'!$G$3*(AVERAGE('Retention Rates'!AJ3,'Retention Rates'!AK3)) -> 1682
A21: Cohort 7 | I21: ='Ambassador Cost Analysis'!$H$3*(AVERAGE('Retention Rates'!F3,'Retention Rates'!G3)) -> 3859 | J21: ='Ambassador Cost Analysis'!$H$3*(AVERAGE('Retention Rates'!G3,'Retention Rates'!H3)) -> 3173 | K21: ='Ambassador Cost Analysis'!$H$3*(AVERAGE('Retention Rates'!H3,'Retention Rates'!I3)) -> 2752 | L21: ='Ambassador Cost Analysis'!$H$3*(AVERAGE('Retention Rates'!I3,'Retention Rates'!J3)) -> 2479 | M21: ='Ambassador Cost Analysis'!$H$3*(AVERAGE('Retention Rates'!J3,'Retention Rates'!K3)) -> 2295 | N21: ='Ambassador Cost Analysis'!$H$3*(AVERAGE('Retention Rates'!K3,'Retention Rates'!L3)) -> 2167 | O21: ='Ambassador Cost Analysis'!$H$3*(AVERAGE('Retention Rates'!L3,'Retention Rates'!M3)) -> 2077 | P21: ='Ambassador Cost Analysis'!$H$3*(AVERAGE('Retention Rates'!M3,'Retention Rates'!N3)) -> 2012 | Q21: ='Ambassador Cost Analysis'!$H$3*(AVERAGE('Retention Rates'!N3,'Retention Rates'!O3)) -> 1965 | R21: ='Ambassador Cost Analysis'!$H$3*(AVERAGE('Retention Rates'!O3,'Retention Rates'!P3)) -> 1930 | S21: ='Ambassador Cost Analysis'!$H$3*(AVERAGE('Retention Rates'!P3,'Retention Rates'!Q3)) -> 1905 | T21: ='Ambassador Cost Analysis'!$H$3*(AVERAGE('Retention Rates'!Q3,'Retention Rates'!R3)) -> 1886 | U21: ='Ambassador Cost Analysis'!$H$3*(AVERAGE('Retention Rates'!R3,'Retention Rates'!S3)) -> 1872 | V21: ='Ambassador Cost Analysis'!$H$3*(AVERAGE('Retention Rates'!S3,'Retention Rates'!T3)) -> 1862 | W21: ='Ambassador Cost Analysis'!$H$3*(AVERAGE('Retention Rates'!T3,'Retention Rates'!U3)) -> 1854 | X21: ='Ambassador Cost Analysis'!$H$3*(AVERAGE('Retention Rates'!U3,'Retention Rates'!V3)) -> 1848 | Y21: ='Ambassador Cost Analysis'!$H$3*(AVERAGE('Retention Rates'!V3,'Retention Rates'!W3)) -> 1844 | Z21: ='Ambassador Cost Analysis'!$H$3*(AVERAGE('Retention Rates'!W3,'Retention Rates'!X3)) -> 1841 | AA21: ='Ambassador Cost Analysis'!$H$3*(AVERAGE('Retention Rates'!X3,'Retention Rates'!Y3)) -> 1838 | AB21: ='Ambassador Cost Analysis'!$H$3*(AVERAGE('Retention Rates'!Y3,'Retention Rates'!Z3)) -> 1836 | AC21: ='Ambassador Cost Analysis'!$H$3*(AVERAGE('Retention Rates'!Z3,'Retention Rates'!AA3)) -> 1835 | AD21: ='Ambassador Cost Analysis'!$H$3*(AVERAGE('Retention Rates'!AA3,'Retention Rates'!AB3)) -> 1834 | AE21: ='Ambassador Cost Analysis'!$H$3*(AVERAGE('Retention Rates'!AB3,'Retention Rates'!AC3)) -> 1833 | AF21: ='Ambassador Cost Analysis'!$H$3*(AVERAGE('Retention Rates'!AC3,'Retention Rates'!AD3)) -> 1833 | AG21: ='Ambassador Cost Analysis'!$H$3*(AVERAGE('Retention Rates'!AD3,'Retention Rates'!AE3)) -> 1832 | AH21: ='Ambassador Cost Analysis'!$H$3*(AVERAGE('Retention Rates'!AE3,'Retention Rates'!AF3)) -> 1832 | AI21: ='Ambassador Cost Analysis'!$H$3*(AVERAGE('Retention Rates'!AF3,'Retention Rates'!AG3)) -> 1832 | AJ21: ='Ambassador Cost Analysis'!$H$3*(AVERAGE('Retention Rates'!AG3,'Retention Rates'!AH3)) -> 1831 | AK21: ='Ambassador Cost Analysis'!$H$3*(AVERAGE('Retention Rates'!AH3,'Retention Rates'!AI3)) -> 1831 | AL21: ='Ambassador Cost Analysis'!$H$3*(AVERAGE('Retention Rates'!AI3,'Retention Rates'!AJ3)) -> 1831
A22: Cohort 8 | J22: ='Ambassador Cost Analysis'!$I$3*(AVERAGE('Retention Rates'!F3,'Retention Rates'!G3)) -> 4192 | K22: ='Ambassador Cost Analysis'!$I$3*(AVERAGE('Retention Rates'!G3,'Retention Rates'!H3)) -> 3447 | L22: ='Ambassador Cost Analysis'!$I$3*(AVERAGE('Retention Rates'!H3,'Retention Rates'!I3)) -> 2989 | M22: ='Ambassador Cost Analysis'!$I$3*(AVERAGE('Retention Rates'!I3,'Retention Rates'!J3)) -> 2692 | N22: ='Ambassador Cost Analysis'!$I$3*(AVERAGE('Retention Rates'!J3,'Retention Rates'!K3)) -> 2492 | O22: ='Ambassador Cost Analysis'!$I$3*(AVERAGE('Retention Rates'!K3,'Retention Rates'!L3)) -> 2354 | P22: ='Ambassador Cost Analysis'!$I$3*(AVERAGE('Retention Rates'!L3,'Retention Rates'!M3)) -> 2256 | Q22: ='Ambassador Cost Analysis'!$I$3*(AVERAGE('Retention Rates'!M3,'Retention Rates'!N3)) -> 2185 | R22: ='Ambassador Cost Analysis'!$I$3*(AVERAGE('Retention Rates'!N3,'Retention Rates'!O3)) -> 2134 | S22: ='Ambassador Cost Analysis'!$I$3*(AVERAGE('Retention Rates'!O3,'Retention Rates'!P3)) -> 2097 | T22: ='Ambassador Cost Analysis'!$I$3*(AVERAGE('Retention Rates'!P3,'Retention Rates'!Q3)) -> 2069 | U22: ='Ambassador Cost Analysis'!$I$3*(AVERAGE('Retention Rates'!Q3,'Retention Rates'!R3)) -> 2049 | V22: ='Ambassador Cost Analysis'!$I$3*(AVERAGE('Retention Rates'!R3,'Retention Rates'!S3)) -> 2033 | W22: ='Ambassador Cost Analysis'!$I$3*(AVERAGE('Retention Rates'!S3,'Retention Rates'!T3)) -> 2022 | X22: ='Ambassador Cost Analysis'!$I$3*(AVERAGE('Retention Rates'!T3,'Retention Rates'!U3)) -> 2014 | Y22: ='Ambassador Cost Analysis'!$I$3*(AVERAGE('Retention Rates'!U3,'Retention Rates'!V3)) -> 2008 | Z22: ='Ambassador Cost Analysis'!$I$3*(AVERAGE('Retention Rates'!V3,'Retention Rates'!W3)) -> 2003 | AA22: ='Ambassador Cost Analysis'!$I$3*(AVERAGE('Retention Rates'!W3,'Retention Rates'!X3)) -> 1999 | AB22: ='Ambassador Cost Analysis'!$I$3*(AVERAGE('Retention Rates'!X3,'Retention Rates'!Y3)) -> 1997 | AC22: ='Ambassador Cost Analysis'!$I$3*(AVERAGE('Retention Rates'!Y3,'Retention Rates'!Z3)) -> 1995 | AD22: ='Ambassador Cost Analysis'!$I$3*(AVERAGE('Retention Rates'!Z3,'Retention Rates'!AA3)) -> 1993 | AE22: ='Ambassador Cost Analysis'!$I$3*(AVERAGE('Retention Rates'!AA3,'Retention Rates'!AB3)) -> 1992 | AF22: ='Ambassador Cost Analysis'!$I$3*(AVERAGE('Retention Rates'!AB3,'Retention Rates'!AC3)) -> 1991 | AG22: ='Ambassador Cost Analysis'!$I$3*(AVERAGE('Retention Rates'!AC3,'Retention Rates'!AD3)) -> 1991 | AH22: ='Ambassador Cost Analysis'!$I$3*(AVERAGE('Retention Rates'!AD3,'Retention Rates'!AE3)) -> 1990 | AI22: ='Ambassador Cost Analysis'!$I$3*(AVERAGE('Retention Rates'!AE3,'Retention Rates'!AF3)) -> 1990 | AJ22: ='Ambassador Cost Analysis'!$I$3*(AVERAGE('Retention Rates'!AF3,'Retention Rates'!AG3)) -> 1990 | AK22: ='Ambassador Cost Analysis'!$I$3*(AVERAGE('Retention Rates'!AG3,'Retention Rates'!AH3)) -> 1989 | AL22: ='Ambassador Cost Analysis'!$I$3*(AVERAGE('Retention Rates'!AH3,'Retention Rates'!AI3)) -> 1989
A23: Cohort 9 | K23: ='Ambassador Cost Analysis'!$J$3*(AVERAGE('Retention Rates'!F3,'Retention Rates'!G3)) -> 4545 | L23: ='Ambassador Cost Analysis'!$J$3*(AVERAGE('Retention Rates'!G3,'Retention Rates'!H3)) -> 3737 | M23: ='Ambassador Cost Analysis'!$J$3*(AVERAGE('Retention Rates'!H3,'Retention Rates'!I3)) -> 3241 | N23: ='Ambassador Cost Analysis'!$J$3*(AVERAGE('Retention Rates'!I3,'Retention Rates'!J3)) -> 2919 | O23: ='Ambassador Cost Analysis'!$J$3*(AVERAGE('Retention Rates'!J3,'Retention Rates'!K3)) -> 2702 | P23: ='Ambassador Cost Analysis'!$J$3*(AVERAGE('Retention Rates'!K3,'Retention Rates'!L3)) -> 2552 | Q23: ='Ambassador Cost Analysis'!$J$3*(AVERAGE('Retention Rates'!L3,'Retention Rates'!M3)) -> 2445 | R23: ='Ambassador Cost Analysis'!$J$3*(AVERAGE('Retention Rates'!M3,'Retention Rates'!N3)) -> 2369 | S23: ='Ambassador Cost Analysis'!$J$3*(AVERAGE('Retention Rates'!N3,'Retention Rates'!O3)) -> 2314 | T23: ='Ambassador Cost Analysis'!$J$3*(AVERAGE('Retention Rates'!O3,'Retention Rates'!P3)) -> 2273 | U23: ='Ambassador Cost Analysis'!$J$3*(AVERAGE('Retention Rates'!P3,'Retention Rates'!Q3)) -> 2243 | V23: ='Ambassador Cost Analysis'!$J$3*(AVERAGE('Retention Rates'!Q3,'Retention Rates'!R3)) -> 2221 | W23: ='Ambassador Cost Analysis'!$J$3*(AVERAGE('Retention Rates'!R3,'Retention Rates'!S3)) -> 2205 | X23: ='Ambassador Cost Analysis'!$J$3*(AVERAGE('Retention Rates'!S3,'Retention Rates'!T3)) -> 2192 | Y23: ='Ambassador Cost Analysis'!$J$3*(AVERAGE('Retention Rates'!T3,'Retention Rates'!U3)) -> 2183 | Z23: ='Ambassador Cost Analysis'!$J$3*(AVERAGE('Retention Rates'!U3,'Retention Rates'!V3)) -> 2176 | AA23: ='Ambassador Cost Analysis'!$J$3*(AVERAGE('Retention Rates'!V3,'Retention Rates'!W3)) -> 2171 | AB23: ='Ambassador Cost Analysis'!$J$3*(AVERAGE('Retention Rates'!W3,'Retention Rates'!X3)) -> 2167 | AC23: ='Ambassador Cost Analysis'!$J$3*(AVERAGE('Retention Rates'!X3,'Retention Rates'!Y3)) -> 2165 | AD23: ='Ambassador Cost Analysis'!$J$3*(AVERAGE('Retention Rates'!Y3,'Retention Rates'!Z3)) -> 2162 | AE23: ='Ambassador Cost Analysis'!$J$3*(AVERAGE('Retention Rates'!Z3,'Retention Rates'!AA3)) -> 2161 | AF23: ='Ambassador Cost Analysis'!$J$3*(AVERAGE('Retention Rates'!AA3,'Retention Rates'!AB3)) -> 2160 | AG23: ='Ambassador Cost Analysis'!$J$3*(AVERAGE('Retention Rates'!AB3,'Retention Rates'!AC3)) -> 2159 | AH23: ='Ambassador Cost Analysis'!$J$3*(AVERAGE('Retention Rates'!AC3,'Retention Rates'!AD3)) -> 2158 | AI23: ='Ambassador Cost Analysis'!$J$3*(AVERAGE('Retention Rates'!AD3,'Retention Rates'!AE3)) -> 2158 | AJ23: ='Ambassador Cost Analysis'!$J$3*(AVERAGE('Retention Rates'!AE3,'Retention Rates'!AF3)) -> 2157 | AK23: ='Ambassador Cost Analysis'!$J$3*(AVERAGE('Retention Rates'!AF3,'Retention Rates'!AG3)) -> 2157 | AL23: ='Ambassador Cost Analysis'!$J$3*(AVERAGE('Retention Rates'!AG3,'Retention Rates'!AH3)) -> 2157
A24: Cohort 10 | L24: ='Ambassador Cost Analysis'!$K$3*(AVERAGE('Retention Rates'!F3,'Retention Rates'!G3)) -> 4918 | M24: ='Ambassador Cost Analysis'!$K$3*(AVERAGE('Retention Rates'!G3,'Retention Rates'!H3)) -> 4043 | N24: ='Ambassador Cost Analysis'!$K$3*(AVERAGE('Retention Rates'!H3,'Retention Rates'!I3)) -> 3507 | O24: ='Ambassador Cost Analysis'!$K$3*(AVERAGE('Retention Rates'!I3,'Retention Rates'!J3)) -> 3158 | P24: ='Ambassador Cost Analysis'!$K$3*(AVERAGE('Retention Rates'!J3,'Retention Rates'!K3)) -> 2924 | Q24: ='Ambassador Cost Analysis'!$K$3*(AVERAGE('Retention Rates'!K3,'Retention Rates'!L3)) -> 2761 | R24: ='Ambassador Cost Analysis'!$K$3*(AVERAGE('Retention Rates'!L3,'Retention Rates'!M3)) -> 2646 | S24: ='Ambassador Cost Analysis'!$K$3*(AVERAGE('Retention Rates'!M3,'Retention Rates'!N3)) -> 2563 | T24: ='Ambassador Cost Analysis'!$K$3*(AVERAGE('Retention Rates'!N3,'Retention Rates'!O3)) -> 2503 | U24: ='Ambassador Cost Analysis'!$K$3*(AVERAGE('Retention Rates'!O3,'Retention Rates'!P3)) -> 2460 | V24: ='Ambassador Cost Analysis'!$K$3*(AVERAGE('Retention Rates'!P3,'Retention Rates'!Q3)) -> 2427 | W24: ='Ambassador Cost Analysis'!$K$3*(AVERAGE('Retention Rates'!Q3,'Retention Rates'!R3)) -> 2403 | X24: ='Ambassador Cost Analysis'!$K$3*(AVERAGE('Retention Rates'!R3,'Retention Rates'!S3)) -> 2385 | Y24: ='Ambassador Cost Analysis'!$K$3*(AVERAGE('Retention Rates'!S3,'Retention Rates'!T3)) -> 2372 | Z24: ='Ambassador Cost Analysis'!$K$3*(AVERAGE('Retention Rates'!T3,'Retention Rates'!U3)) -> 2362 | AA24: ='Ambassador Cost Analysis'!$K$3*(AVERAGE('Retention Rates'!U3,'Retention Rates'!V3)) -> 2355 | AB24: ='Ambassador Cost Analysis'!$K$3*(AVERAGE('Retention Rates'!V3,'Retention Rates'!W3)) -> 2350 | AC24: ='Ambassador Cost Analysis'!$K$3*(AVERAGE('Retention Rates'!W3,'Retention Rates'!X3)) -> 2345 | AD24: ='Ambassador Cost Analysis'!$K$3*(AVERAGE('Retention Rates'!X3,'Retention Rates'!Y3)) -> 2342 | AE24: ='Ambassador Cost Analysis'!$K$3*(AVERAGE('Retention Rates'!Y3,'Retention Rates'!Z3)) -> 2340 | AF24: ='Ambassador Cost Analysis'!$K$3*(AVERAGE('Retention Rates'!Z3,'Retention Rates'!AA3)) -> 2338 | AG24: ='Ambassador Cost Analysis'!$K$3*(AVERAGE('Retention Rates'!AA3,'Retention Rates'!AB3)) -> 2337 | AH24: ='Ambassador Cost Analysis'!$K$3*(AVERAGE('Retention Rates'!AB3,'Retention Rates'!AC3)) -> 2336 | AI24: ='Ambassador Cost Analysis'!$K$3*(AVERAGE('Retention Rates'!AC3,'Retention Rates'!AD3)) -> 2335 | AJ24: ='Ambassador Cost Analysis'!$K$3*(AVERAGE('Retention Rates'!AD3,'Retention Rates'!AE3)) -> 2335 | AK24: ='Ambassador Cost Analysis'!$K$3*(AVERAGE('Retention Rates'!AE3,'Retention Rates'!AF3)) -> 2334 | AL24: ='Ambassador Cost Analysis'!$K$3*(AVERAGE('Retention Rates'!AF3,'Retention Rates'!AG3)) -> 2334
A25: Cohort 11 | M25: ='Ambassador Cost Analysis'!$L$3*(AVERAGE('Retention Rates'!F3,'Retention Rates'!G3)) -> 5311 | N25: ='Ambassador Cost Analysis'!$L$3*(AVERAGE('Retention Rates'!G3,'Retention Rates'!H3)) -> 4367 | O25: ='Ambassador Cost Analysis'!$L$3*(AVERAGE('Retention Rates'!H3,'Retention Rates'!I3)) -> 3787 | P25: ='Ambassador Cost Analysis'!$L$3*(AVERAGE('Retention Rates'!I3,'Retention Rates'!J3)) -> 3411 | Q25: ='Ambassador Cost Analysis'!$L$3*(AVERAGE('Retention Rates'!J3,'Retention Rates'!K3)) -> 3158 | R25: ='Ambassador Cost Analysis'!$L$3*(AVERAGE('Retention Rates'!K3,'Retention Rates'!L3)) -> 2982 | S25: ='Ambassador Cost Analysis'!$L$3*(AVERAGE('Retention Rates'!L3,'Retention Rates'!M3)) -> 2858 | T25: ='Ambassador Cost Analysis'!$L$3*(AVERAGE('Retention Rates'!M3,'Retention Rates'!N3)) -> 2769 | U25: ='Ambassador Cost Analysis'!$L$3*(AVERAGE('Retention Rates'!N3,'Retention Rates'!O3)) -> 2704 | V25: ='Ambassador Cost Analysis'!$L$3*(AVERAGE('Retention Rates'!O3,'Retention Rates'!P3)) -> 2656 | W25: ='Ambassador Cost Analysis'!$L$3*(AVERAGE('Retention Rates'!P3,'Retention Rates'!Q3)) -> 2622 | X25: ='Ambassador Cost Analysis'!$L$3*(AVERAGE('Retention Rates'!Q3,'Retention Rates'!R3)) -> 2596 | Y25: ='Ambassador Cost Analysis'!$L$3*(AVERAGE('Retention Rates'!R3,'Retention Rates'!S3)) -> 2576 | Z25: ='Ambassador Cost Analysis'!$L$3*(AVERAGE('Retention Rates'!S3,'Retention Rates'!T3)) -> 2562 | AA25: ='Ambassador Cost Analysis'!$L$3*(AVERAGE('Retention Rates'!T3,'Retention Rates'!U3)) -> 2552 | AB25: ='Ambassador Cost Analysis'!$L$3*(AVERAGE('Retention Rates'!U3,'Retention Rates'!V3)) -> 2544 | AC25: ='Ambassador Cost Analysis'!$L$3*(AVERAGE('Retention Rates'!V3,'Retention Rates'!W3)) -> 2538 | AD25: ='Ambassador Cost Analysis'!$L$3*(AVERAGE('Retention Rates'!W3,'Retention Rates'!X3)) -> 2533 | AE25: ='Ambassador Cost Analysis'!$L$3*(AVERAGE('Retention Rates'!X3,'Retention Rates'!Y3)) -> 2530 | AF25: ='Ambassador Cost Analysis'!$L$3*(AVERAGE('Retention Rates'!Y3,'Retention Rates'!Z3)) -> 2527 | AG25: ='Ambassador Cost Analysis'!$L$3*(AVERAGE('Retention Rates'!Z3,'Retention Rates'!AA3)) -> 2525 | AH25: ='Ambassador Cost Analysis'!$L$3*(AVERAGE('Retention Rates'!AA3,'Retention Rates'!AB3)) -> 2524 | AI25: ='Ambassador Cost Analysis'!$L$3*(AVERAGE('Retention Rates'!AB3,'Retention Rates'!AC3)) -> 2523 | AJ25: ='Ambassador Cost Analysis'!$L$3*(AVERAGE('Retention Rates'!AC3,'Retention Rates'!AD3)) -> 2522 | AK25: ='Ambassador Cost Analysis'!$L$3*(AVERAGE('Retention Rates'!AD3,'Retention Rates'!AE3)) -> 2522 | AL25: ='Ambassador Cost Analysis'!$L$3*(AVERAGE('Retention Rates'!AE3,'Retention Rates'!AF3)) -> 2521
A26: Cohort 12 | N26: ='Ambassador Cost Analysis'!$M$3*(AVERAGE('Retention Rates'!F3,'Retention Rates'!G3)) -> 5726 | O26: ='Ambassador Cost Analysis'!$M$3*(AVERAGE('Retention Rates'!G3,'Retention Rates'!H3)) -> 4708 | P26: ='Ambassador Cost Analysis'!$M$3*(AVERAGE('Retention Rates'!H3,'Retention Rates'!I3)) -> 4083 | Q26: ='Ambassador Cost Analysis'!$M$3*(AVERAGE('Retention Rates'!I3,'Retention Rates'!J3)) -> 3678 | R26: ='Ambassador Cost Analysis'!$M$3*(AVERAGE('Retention Rates'!J3,'Retention Rates'!K3)) -> 3405 | S26: ='Ambassador Cost Analysis'!$M$3*(AVERAGE('Retention Rates'!K3,'Retention Rates'!L3)) -> 3215 | T26: ='Ambassador Cost Analysis'!$M$3*(AVERAGE('Retention Rates'!L3,'Retention Rates'!M3)) -> 3081 | U26: ='Ambassador Cost Analysis'!$M$3*(AVERAGE('Retention Rates'!M3,'Retention Rates'!N3)) -> 2985 | V26: ='Ambassador Cost Analysis'!$M$3*(AVERAGE('Retention Rates'!N3,'Retention Rates'!O3)) -> 2915 | W26: ='Ambassador Cost Analysis'!$M$3*(AVERAGE('Retention Rates'!O3,'Retention Rates'!P3)) -> 2864 | X26: ='Ambassador Cost Analysis'!$M$3*(AVERAGE('Retention Rates'!P3,'Retention Rates'!Q3)) -> 2826 | Y26: ='Ambassador Cost Analysis'!$M$3*(AVERAGE('Retention Rates'!Q3,'Retention Rates'!R3)) -> 2798 | Z26: ='Ambassador Cost Analysis'!$M$3*(AVERAGE('Retention Rates'!R3,'Retention Rates'!S3)) -> 2778 | AA26: ='Ambassador Cost Analysis'!$M$3*(AVERAGE('Retention Rates'!S3,'Retention Rates'!T3)) -> 2762 | AB26: ='Ambassador Cost Analysis'!$M$3*(AVERAGE('Retention Rates'!T3,'Retention Rates'!U3)) -> 2751 | AC26: ='Ambassador Cost Analysis'!$M$3*(AVERAGE('Retention Rates'!U3,'Retention Rates'!V3)) -> 2742 | AD26: ='Ambassador Cost Analysis'!$M$3*(AVERAGE('Retention Rates'!V3,'Retention Rates'!W3)) -> 2736 | AE26: ='Ambassador Cost Analysis'!$M$3*(AVERAGE('Retention Rates'!W3,'Retention Rates'!X3)) -> 2731 | AF26: ='Ambassador Cost Analysis'!$M$3*(AVERAGE('Retention Rates'!X3,'Retention Rates'!Y3)) -> 2727 | AG26: ='Ambassador Cost Analysis'!$M$3*(AVERAGE('Retention Rates'!Y3,'Retention Rates'!Z3)) -> 2725 | AH26: ='Ambassador Cost Analysis'!$M$3*(AVERAGE('Retention Rates'!Z3,'Retention Rates'!AA3)) -> 2723 | AI26: ='Ambassador Cost Analysis'!$M$3*(AVERAGE('Retention Rates'!AA3,'Retention Rates'!AB3)) -> 2721 | AJ26: ='Ambassador Cost Analysis'!$M$3*(AVERAGE('Retention Rates'!AB3,'Retention Rates'!AC3)) -> 2720 | AK26: ='Ambassador Cost Analysis'!$M$3*(AVERAGE('Retention Rates'!AC3,'Retention Rates'!AD3)) -> 2719 | AL26: ='Ambassador Cost Analysis'!$M$3*(AVERAGE('Retention Rates'!AD3,'Retention Rates'!AE3)) -> 2719
A27: Cohort 13 | O27: ='Ambassador Cost Analysis'!$N$3*(AVERAGE('Retention Rates'!F3,'Retention Rates'!G3)) -> 6163 | P27: ='Ambassador Cost Analysis'!$N$3*(AVERAGE('Retention Rates'!G3,'Retention Rates'!H3)) -> 5067 | Q27: ='Ambassador Cost Analysis'!$N$3*(AVERAGE('Retention Rates'!H3,'Retention Rates'!I3)) -> 4394 | R27: ='Ambassador Cost Analysis'!$N$3*(AVERAGE('Retention Rates'!I3,'Retention Rates'!J3)) -> 3958 | S27: ='Ambassador Cost Analysis'!$N$3*(AVERAGE('Retention Rates'!J3,'Retention Rates'!K3)) -> 3664 | T27: ='Ambassador Cost Analysis'!$N$3*(AVERAGE('Retention Rates'!K3,'Retention Rates'!L3)) -> 3460 | U27: ='Ambassador Cost Analysis'!$N$3*(AVERAGE('Retention Rates'!L3,'Retention Rates'!M3)) -> 3316 | V27: ='Ambassador Cost Analysis'!$N$3*(AVERAGE('Retention Rates'!M3,'Retention Rates'!N3)) -> 3213 | W27: ='Ambassador Cost Analysis'!$N$3*(AVERAGE('Retention Rates'!N3,'Retention Rates'!O3)) -> 3137 | X27: ='Ambassador Cost Analysis'!$N$3*(AVERAGE('Retention Rates'!O3,'Retention Rates'!P3)) -> 3082 | Y27: ='Ambassador Cost Analysis'!$N$3*(AVERAGE('Retention Rates'!P3,'Retention Rates'!Q3)) -> 3042 | Z27: ='Ambassador Cost Analysis'!$N$3*(AVERAGE('Retention Rates'!Q3,'Retention Rates'!R3)) -> 3012 | AA27: ='Ambassador Cost Analysis'!$N$3*(AVERAGE('Retention Rates'!R3,'Retention Rates'!S3)) -> 2989 | AB27: ='Ambassador Cost Analysis'!$N$3*(AVERAGE('Retention Rates'!S3,'Retention Rates'!T3)) -> 2973 | AC27: ='Ambassador Cost Analysis'!$N$3*(AVERAGE('Retention Rates'!T3,'Retention Rates'!U3)) -> 2961 | AD27: ='Ambassador Cost Analysis'!$N$3*(AVERAGE('Retention Rates'!U3,'Retention Rates'!V3)) -> 2951 | AE27: ='Ambassador Cost Analysis'!$N$3*(AVERAGE('Retention Rates'!V3,'Retention Rates'!W3)) -> 2944 | AF27: ='Ambassador Cost Analysis'!$N$3*(AVERAGE('Retention Rates'!W3,'Retention Rates'!X3)) -> 2939 | AG27: ='Ambassador Cost Analysis'!$N$3*(AVERAGE('Retention Rates'!X3,'Retention Rates'!Y3)) -> 2935 | AH27: ='Ambassador Cost Analysis'!$N$3*(AVERAGE('Retention Rates'!Y3,'Retention Rates'!Z3)) -> 2932 | AI27: ='Ambassador Cost Analysis'!$N$3*(AVERAGE('Retention Rates'!Z3,'Retention Rates'!AA3)) -> 2930 | AJ27: ='Ambassador Cost Analysis'!$N$3*(AVERAGE('Retention Rates'!AA3,'Retention Rates'!AB3)) -> 2929 | AK27: ='Ambassador Cost Analysis'!$N$3*(AVERAGE('Retention Rates'!AB3,'Retention Rates'!AC3)) -> 2927 | AL27: ='Ambassador Cost Analysis'!$N$3*(AVERAGE('Retention Rates'!AC3,'Retention Rates'!AD3)) -> 2927
A28: Cohort 14 | P28: ='Ambassador Cost Analysis'!$O$3*(AVERAGE('Retention Rates'!F3,'Retention Rates'!G3)) -> 6621 | Q28: ='Ambassador Cost Analysis'!$O$3*(AVERAGE('Retention Rates'!G3,'Retention Rates'!H3)) -> 5444 | R28: ='Ambassador Cost Analysis'!$O$3*(AVERAGE('Retention Rates'!H3,'Retention Rates'!I3)) -> 4721 | S28: ='Ambassador Cost Analysis'!$O$3*(AVERAGE('Retention Rates'!I3,'Retention Rates'!J3)) -> 4252 | T28: ='Ambassador Cost Analysis'!$O$3*(AVERAGE('Retention Rates'!J3,'Retention Rates'!K3)) -> 3937 | U28: ='Ambassador Cost Analysis'!$O$3*(AVERAGE('Retention Rates'!K3,'Retention Rates'!L3)) -> 3718 | V28: ='Ambassador Cost Analysis'!$O$3*(AVERAGE('Retention Rates'!L3,'Retention Rates'!M3)) -> 3563 | W28: ='Ambassador Cost Analysis'!$O$3*(AVERAGE('Retention Rates'!M3,'Retention Rates'!N3)) -> 3451 | X28: ='Ambassador Cost Analysis'!$O$3*(AVERAGE('Retention Rates'!N3,'Retention Rates'!O3)) -> 3371 | Y28: ='Ambassador Cost Analysis'!$O$3*(AVERAGE('Retention Rates'!O3,'Retention Rates'!P3)) -> 3311 | Z28: ='Ambassador Cost Analysis'!$O$3*(AVERAGE('Retention Rates'!P3,'Retention Rates'!Q3)) -> 3268 | AA28: ='Ambassador Cost Analysis'!$O$3*(AVERAGE('Retention Rates'!Q3,'Retention Rates'!R3)) -> 3236 | AB28: ='Ambassador Cost Analysis'!$O$3*(AVERAGE('Retention Rates'!R3,'Retention Rates'!S3)) -> 3212 | AC28: ='Ambassador Cost Analysis'!$O$3*(AVERAGE('Retention Rates'!S3,'Retention Rates'!T3)) -> 3194 | AD28: ='Ambassador Cost Analysis'!$O$3*(AVERAGE('Retention Rates'!T3,'Retention Rates'!U3)) -> 3181 | AE28: ='Ambassador Cost Analysis'!$O$3*(AVERAGE('Retention Rates'!U3,'Retention Rates'!V3)) -> 3171 | AF28: ='Ambassador Cost Analysis'!$O$3*(AVERAGE('Retention Rates'!V3,'Retention Rates'!W3)) -> 3163 | AG28: ='Ambassador Cost Analysis'!$O$3*(AVERAGE('Retention Rates'!W3,'Retention Rates'!X3)) -> 3158 | AH28: ='Ambassador Cost Analysis'!$O$3*(AVERAGE('Retention Rates'!X3,'Retention Rates'!Y3)) -> 3154 | AI28: ='Ambassador Cost Analysis'!$O$3*(AVERAGE('Retention Rates'!Y3,'Retention Rates'!Z3)) -> 3151 | AJ28: ='Ambassador Cost Analysis'!$O$3*(AVERAGE('Retention Rates'!Z3,'Retention Rates'!AA3)) -> 3148 | AK28: ='Ambassador Cost Analysis'!$O$3*(AVERAGE('Retention Rates'!AA3,'Retention Rates'!AB3)) -> 3146 | AL28: ='Ambassador Cost Analysis'!$O$3*(AVERAGE('Retention Rates'!AB3,'Retention Rates'!AC3)) -> 3145
A29: Cohort 15 | Q29: ='Ambassador Cost Analysis'!$P$3*(AVERAGE('Retention Rates'!F3,'Retention Rates'!G3)) -> 7101 | R29: ='Ambassador Cost Analysis'!$P$3*(AVERAGE('Retention Rates'!G3,'Retention Rates'!H3)) -> 5839 | S29: ='Ambassador Cost Analysis'!$P$3*(AVERAGE('Retention Rates'!H3,'Retention Rates'!I3)) -> 5064 | T29: ='Ambassador Cost Analysis'!$P$3*(AVERAGE('Retention Rates'!I3,'Retention Rates'!J3)) -> 4561 | U29: ='Ambassador Cost Analysis'!$P$3*(AVERAGE('Retention Rates'!J3,'Retention Rates'!K3)) -> 4222 | V29: ='Ambassador Cost Analysis'!$P$3*(AVERAGE('Retention Rates'!K3,'Retention Rates'!L3)) -> 3987 | W29: ='Ambassador Cost Analysis'!$P$3*(AVERAGE('Retention Rates'!L3,'Retention Rates'!M3)) -> 3821 | X29: ='Ambassador Cost Analysis'!$P$3*(AVERAGE('Retention Rates'!M3,'Retention Rates'!N3)) -> 3702 | Y29: ='Ambassador Cost Analysis'!$P$3*(AVERAGE('Retention Rates'!N3,'Retention Rates'!O3)) -> 3615 | Z29: ='Ambassador Cost Analysis'!$P$3*(AVERAGE('Retention Rates'!O3,'Retention Rates'!P3)) -> 3552 | AA29: ='Ambassador Cost Analysis'!$P$3*(AVERAGE('Retention Rates'!P3,'Retention Rates'!Q3)) -> 3505 | AB29: ='Ambassador Cost Analysis'!$P$3*(AVERAGE('Retention Rates'!Q3,'Retention Rates'!R3)) -> 3470 | AC29: ='Ambassador Cost Analysis'!$P$3*(AVERAGE('Retention Rates'!R3,'Retention Rates'!S3)) -> 3445 | AD29: ='Ambassador Cost Analysis'!$P$3*(AVERAGE('Retention Rates'!S3,'Retention Rates'!T3)) -> 3426 | AE29: ='Ambassador Cost Analysis'!$P$3*(AVERAGE('Retention Rates'!T3,'Retention Rates'!U3)) -> 3411 | AF29: ='Ambassador Cost Analysis'!$P$3*(AVERAGE('Retention Rates'!U3,'Retention Rates'!V3)) -> 3401 | AG29: ='Ambassador Cost Analysis'!$P$3*(AVERAGE('Retention Rates'!V3,'Retention Rates'!W3)) -> 3393 | AH29: ='Ambassador Cost Analysis'!$P$3*(AVERAGE('Retention Rates'!W3,'Retention Rates'!X3)) -> 3387 | AI29: ='Ambassador Cost Analysis'!$P$3*(AVERAGE('Retention Rates'!X3,'Retention Rates'!Y3)) -> 3382 | AJ29: ='Ambassador Cost Analysis'!$P$3*(AVERAGE('Retention Rates'!Y3,'Retention Rates'!Z3)) -> 3379 | AK29: ='Ambassador Cost Analysis'!$P$3*(AVERAGE('Retention Rates'!Z3,'Retention Rates'!AA3)) -> 3377 | AL29: ='Ambassador Cost Analysis'!$P$3*(AVERAGE('Retention Rates'!AA3,'Retention Rates'!AB3)) -> 3375
A30: Cohort 16 | R30: ='Ambassador Cost Analysis'!$Q$3*(AVERAGE('Retention Rates'!F3,'Retention Rates'!G3)) -> 7604 | S30: ='Ambassador Cost Analysis'!$Q$3*(AVERAGE('Retention Rates'!G3,'Retention Rates'!H3)) -> 6252 | T30: ='Ambassador Cost Analysis'!$Q$3*(AVERAGE('Retention Rates'!H3,'Retention Rates'!I3)) -> 5422 | U30: ='Ambassador Cost Analysis'!$Q$3*(AVERAGE('Retention Rates'!I3,'Retention Rates'!J3)) -> 4884 | V30: ='Ambassador Cost Analysis'!$Q$3*(AVERAGE('Retention Rates'!J3,'Retention Rates'!K3)) -> 4521 | W30: ='Ambassador Cost Analysis'!$Q$3*(AVERAGE('Retention Rates'!K3,'Retention Rates'!L3)) -> 4269 | X30: ='Ambassador Cost Analysis'!$Q$3*(AVERAGE('Retention Rates'!L3,'Retention Rates'!M3)) -> 4092 | Y30: ='Ambassador Cost Analysis'!$Q$3*(AVERAGE('Retention Rates'!M3,'Retention Rates'!N3)) -> 3964 | Z30: ='Ambassador Cost Analysis'!$Q$3*(AVERAGE('Retention Rates'!N3,'Retention Rates'!O3)) -> 3871 | AA30: ='Ambassador Cost Analysis'!$Q$3*(AVERAGE('Retention Rates'!O3,'Retention Rates'!P3)) -> 3803 | AB30: ='Ambassador Cost Analysis'!$Q$3*(AVERAGE('Retention Rates'!P3,'Retention Rates'!Q3)) -> 3753 | AC30: ='Ambassador Cost Analysis'!$Q$3*(AVERAGE('Retention Rates'!Q3,'Retention Rates'!R3)) -> 3716 | AD30: ='Ambassador Cost Analysis'!$Q$3*(AVERAGE('Retention Rates'!R3,'Retention Rates'!S3)) -> 3689 | AE30: ='Ambassador Cost Analysis'!$Q$3*(AVERAGE('Retention Rates'!S3,'Retention Rates'!T3)) -> 3668 | AF30: ='Ambassador Cost Analysis'!$Q$3*(AVERAGE('Retention Rates'!T3,'Retention Rates'!U3)) -> 3653 | AG30: ='Ambassador Cost Analysis'!$Q$3*(AVERAGE('Retention Rates'!U3,'Retention Rates'!V3)) -> 3641 | AH30: ='Ambassador Cost Analysis'!$Q$3*(AVERAGE('Retention Rates'!V3,'Retention Rates'!W3)) -> 3633 | AI30: ='Ambassador Cost Analysis'!$Q$3*(AVERAGE('Retention Rates'!W3,'Retention Rates'!X3)) -> 3627 | AJ30: ='Ambassador Cost Analysis'!$Q$3*(AVERAGE('Retention Rates'!X3,'Retention Rates'!Y3)) -> 3622 | AK30: ='Ambassador Cost Analysis'!$Q$3*(AVERAGE('Retention Rates'!Y3,'Retention Rates'!Z3)) -> 3618 | AL30: ='Ambassador Cost Analysis'!$Q$3*(AVERAGE('Retention Rates'!Z3,'Retention Rates'!AA3)) -> 3616
A31: Cohort 17 | S31: ='Ambassador Cost Analysis'!$R$3*(AVERAGE('Retention Rates'!F3,'Retention Rates'!G3)) -> 8129 | T31: ='Ambassador Cost Analysis'!$R$3*(AVERAGE('Retention Rates'!G3,'Retention Rates'!H3)) -> 6684 | U31: ='Ambassador Cost Analysis'!$R$3*(AVERAGE('Retention Rates'!H3,'Retention Rates'!I3)) -> 5796 | V31: ='Ambassador Cost Analysis'!$R$3*(AVERAGE('Retention Rates'!I3,'Retention Rates'!J3)) -> 5221 | W31: ='Ambassador Cost Analysis'!$R$3*(AVERAGE('Retention Rates'!J3,'Retention Rates'!K3)) -> 4833 | X31: ='Ambassador Cost Analysis'!$R$3*(AVERAGE('Retention Rates'!K3,'Retention Rates'!L3)) -> 4564 | Y31: ='Ambassador Cost Analysis'!$R$3*(AVERAGE('Retention Rates'!L3,'Retention Rates'!M3)) -> 4374 | Z31: ='Ambassador Cost Analysis'!$R$3*(AVERAGE('Retention Rates'!M3,'Retention Rates'!N3)) -> 4237 | AA31: ='Ambassador Cost Analysis'!$R$3*(AVERAGE('Retention Rates'!N3,'Retention Rates'!O3)) -> 4138 | AB31: ='Ambassador Cost Analysis'!$R$3*(AVERAGE('Retention Rates'!O3,'Retention Rates'!P3)) -> 4066 | AC31: ='Ambassador Cost Analysis'!$R$3*(AVERAGE('Retention Rates'!P3,'Retention Rates'!Q3)) -> 4012 | AD31: ='Ambassador Cost Analysis'!$R$3*(AVERAGE('Retention Rates'!Q3,'Retention Rates'!R3)) -> 3973 | AE31: ='Ambassador Cost Analysis'!$R$3*(AVERAGE('Retention Rates'!R3,'Retention Rates'!S3)) -> 3943 | AF31: ='Ambassador Cost Analysis'!$R$3*(AVERAGE('Retention Rates'!S3,'Retention Rates'!T3)) -> 3921 | AG31: ='Ambassador Cost Analysis'!$R$3*(AVERAGE('Retention Rates'!T3,'Retention Rates'!U3)) -> 3905 | AH31: ='Ambassador Cost Analysis'!$R$3*(AVERAGE('Retention Rates'!U3,'Retention Rates'!V3)) -> 3893 | AI31: ='Ambassador Cost Analysis'!$R$3*(AVERAGE('Retention Rates'!V3,'Retention Rates'!W3)) -> 3884 | AJ31: ='Ambassador Cost Analysis'!$R$3*(AVERAGE('Retention Rates'!W3,'Retention Rates'!X3)) -> 3877 | AK31: ='Ambassador Cost Analysis'!$R$3*(AVERAGE('Retention Rates'!X3,'Retention Rates'!Y3)) -> 3872 | AL31: ='Ambassador Cost Analysis'!$R$3*(AVERAGE('Retention Rates'!Y3,'Retention Rates'!Z3)) -> 3868
A32: Cohort 18 | T32: ='Ambassador Cost Analysis'!$S$3*(AVERAGE('Retention Rates'!F3,'Retention Rates'!G3)) -> 8677 | U32: ='Ambassador Cost Analysis'!$S$3*(AVERAGE('Retention Rates'!G3,'Retention Rates'!H3)) -> 7134 | V32: ='Ambassador Cost Analysis'!$S$3*(AVERAGE('Retention Rates'!H3,'Retention Rates'!I3)) -> 6187 | W32: ='Ambassador Cost Analysis'!$S$3*(AVERAGE('Retention Rates'!I3,'Retention Rates'!J3)) -> 5573 | X32: ='Ambassador Cost Analysis'!$S$3*(AVERAGE('Retention Rates'!J3,'Retention Rates'!K3)) -> 5159 | Y32: ='Ambassador Cost Analysis'!$S$3*(AVERAGE('Retention Rates'!K3,'Retention Rates'!L3)) -> 4872 | Z32: ='Ambassador Cost Analysis'!$S$3*(AVERAGE('Retention Rates'!L3,'Retention Rates'!M3)) -> 4669 | AA32: ='Ambassador Cost Analysis'!$S$3*(AVERAGE('Retention Rates'!M3,'Retention Rates'!N3)) -> 4523 | AB32: ='Ambassador Cost Analysis'!$S$3*(AVERAGE('Retention Rates'!N3,'Retention Rates'!O3)) -> 4417 | AC32: ='Ambassador Cost Analysis'!$S$3*(AVERAGE('Retention Rates'!O3,'Retention Rates'!P3)) -> 4340 | AD32: ='Ambassador Cost Analysis'!$S$3*(AVERAGE('Retention Rates'!P3,'Retention Rates'!Q3)) -> 4282 | AE32: ='Ambassador Cost Analysis'!$S$3*(AVERAGE('Retention Rates'!Q3,'Retention Rates'!R3)) -> 4240 | AF32: ='Ambassador Cost Analysis'!$S$3*(AVERAGE('Retention Rates'!R3,'Retention Rates'!S3)) -> 4209 | AG32: ='Ambassador Cost Analysis'!$S$3*(AVERAGE('Retention Rates'!S3,'Retention Rates'!T3)) -> 4185 | AH32: ='Ambassador Cost Analysis'!$S$3*(AVERAGE('Retention Rates'!T3,'Retention Rates'!U3)) -> 4168 | AI32: ='Ambassador Cost Analysis'!$S$3*(AVERAGE('Retention Rates'!U3,'Retention Rates'!V3)) -> 4155 | AJ32: ='Ambassador Cost Analysis'!$S$3*(AVERAGE('Retention Rates'!V3,'Retention Rates'!W3)) -> 4145 | AK32: ='Ambassador Cost Analysis'!$S$3*(AVERAGE('Retention Rates'!W3,'Retention Rates'!X3)) -> 4138 | AL32: ='Ambassador Cost Analysis'!$S$3*(AVERAGE('Retention Rates'!X3,'Retention Rates'!Y3)) -> 4133
A33: Cohort 19 | U33: ='Ambassador Cost Analysis'!$T$3*(AVERAGE('Retention Rates'!F3,'Retention Rates'!G3)) -> 9247 | V33: ='Ambassador Cost Analysis'!$T$3*(AVERAGE('Retention Rates'!G3,'Retention Rates'!H3)) -> 7603 | W33: ='Ambassador Cost Analysis'!$T$3*(AVERAGE('Retention Rates'!H3,'Retention Rates'!I3)) -> 6593 | X33: ='Ambassador Cost Analysis'!$T$3*(AVERAGE('Retention Rates'!I3,'Retention Rates'!J3)) -> 5939 | Y33: ='Ambassador Cost Analysis'!$T$3*(AVERAGE('Retention Rates'!J3,'Retention Rates'!K3)) -> 5498 | Z33: ='Ambassador Cost Analysis'!$T$3*(AVERAGE('Retention Rates'!K3,'Retention Rates'!L3)) -> 5192 | AA33: ='Ambassador Cost Analysis'!$T$3*(AVERAGE('Retention Rates'!L3,'Retention Rates'!M3)) -> 4975 | AB33: ='Ambassador Cost Analysis'!$T$3*(AVERAGE('Retention Rates'!M3,'Retention Rates'!N3)) -> 4820 | AC33: ='Ambassador Cost Analysis'!$T$3*(AVERAGE('Retention Rates'!N3,'Retention Rates'!O3)) -> 4707 | AD33: ='Ambassador Cost Analysis'!$T$3*(AVERAGE('Retention Rates'!O3,'Retention Rates'!P3)) -> 4625 | AE33: ='Ambassador Cost Analysis'!$T$3*(AVERAGE('Retention Rates'!P3,'Retention Rates'!Q3)) -> 4564 | AF33: ='Ambassador Cost Analysis'!$T$3*(AVERAGE('Retention Rates'!Q3,'Retention Rates'!R3)) -> 4519 | AG33: ='Ambassador Cost Analysis'!$T$3*(AVERAGE('Retention Rates'!R3,'Retention Rates'!S3)) -> 4485 | AH33: ='Ambassador Cost Analysis'!$T$3*(AVERAGE('Retention Rates'!S3,'Retention Rates'!T3)) -> 4461 | AI33: ='Ambassador Cost Analysis'!$T$3*(AVERAGE('Retention Rates'!T3,'Retention Rates'!U3)) -> 4442 | AJ33: ='Ambassador Cost Analysis'!$T$3*(AVERAGE('Retention Rates'!U3,'Retention Rates'!V3)) -> 4428 | AK33: ='Ambassador Cost Analysis'!$T$3*(AVERAGE('Retention Rates'!V3,'Retention Rates'!W3)) -> 4418 | AL33: ='Ambassador Cost Analysis'!$T$3*(AVERAGE('Retention Rates'!W3,'Retention Rates'!X3)) -> 4410
A34: Cohort 20 | V34: ='Ambassador Cost Analysis'!$U$3*(AVERAGE('Retention Rates'!F3,'Retention Rates'!G3)) -> 9840 | W34: ='Ambassador Cost Analysis'!$U$3*(AVERAGE('Retention Rates'!G3,'Retention Rates'!H3)) -> 8090 | X34: ='Ambassador Cost Analysis'!$U$3*(AVERAGE('Retention Rates'!H3,'Retention Rates'!I3)) -> 7016 | Y34: ='Ambassador Cost Analysis'!$U$3*(AVERAGE('Retention Rates'!I3,'Retention Rates'!J3)) -> 6320 | Z34: ='Ambassador Cost Analysis'!$U$3*(AVERAGE('Retention Rates'!J3,'Retention Rates'!K3)) -> 5850 | AA34: ='Ambassador Cost Analysis'!$U$3*(AVERAGE('Retention Rates'!K3,'Retention Rates'!L3)) -> 5525 | AB34: ='Ambassador Cost Analysis'!$U$3*(AVERAGE('Retention Rates'!L3,'Retention Rates'!M3)) -> 5294 | AC34: ='Ambassador Cost Analysis'!$U$3*(AVERAGE('Retention Rates'!M3,'Retention Rates'!N3)) -> 5129 | AD34: ='Ambassador Cost Analysis'!$U$3*(AVERAGE('Retention Rates'!N3,'Retention Rates'!O3)) -> 5009 | AE34: ='Ambassador Cost Analysis'!$U$3*(AVERAGE('Retention Rates'!O3,'Retention Rates'!P3)) -> 4921 | AF34: ='Ambassador Cost Analysis'!$U$3*(AVERAGE('Retention Rates'!P3,'Retention Rates'!Q3)) -> 4856 | AG34: ='Ambassador Cost Analysis'!$U$3*(AVERAGE('Retention Rates'!Q3,'Retention Rates'!R3)) -> 4809 | AH34: ='Ambassador Cost Analysis'!$U$3*(AVERAGE('Retention Rates'!R3,'Retention Rates'!S3)) -> 4773 | AI34: ='Ambassador Cost Analysis'!$U$3*(AVERAGE('Retention Rates'!S3,'Retention Rates'!T3)) -> 4747 | AJ34: ='Ambassador Cost Analysis'!$U$3*(AVERAGE('Retention Rates'!T3,'Retention Rates'!U3)) -> 4727 | AK34: ='Ambassador Cost Analysis'!$U$3*(AVERAGE('Retention Rates'!U3,'Retention Rates'!V3)) -> 4712 | AL34: ='Ambassador Cost Analysis'!$U$3*(AVERAGE('Retention Rates'!V3,'Retention Rates'!W3)) -> 4701
A35: Cohort 21 | W35: ='Ambassador Cost Analysis'!$V$3*(AVERAGE('Retention Rates'!F3,'Retention Rates'!G3)) -> 10455 | X35: ='Ambassador Cost Analysis'!$V$3*(AVERAGE('Retention Rates'!G3,'Retention Rates'!H3)) -> 8596 | Y35: ='Ambassador Cost Analysis'!$V$3*(AVERAGE('Retention Rates'!H3,'Retention Rates'!I3)) -> 7455 | Z35: ='Ambassador Cost Analysis'!$V$3*(AVERAGE('Retention Rates'!I3,'Retention Rates'!J3)) -> 6715 | AA35: ='Ambassador Cost Analysis'!$V$3*(AVERAGE('Retention Rates'!J3,'Retention Rates'!K3)) -> 6216 | AB35: ='Ambassador Cost Analysis'!$V$3*(AVERAGE('Retention Rates'!K3,'Retention Rates'!L3)) -> 5870 | AC35: ='Ambassador Cost Analysis'!$V$3*(AVERAGE('Retention Rates'!L3,'Retention Rates'!M3)) -> 5626 | AD35: ='Ambassador Cost Analysis'!$V$3*(AVERAGE('Retention Rates'!M3,'Retention Rates'!N3)) -> 5450 | AE35: ='Ambassador Cost Analysis'!$V$3*(AVERAGE('Retention Rates'!N3,'Retention Rates'!O3)) -> 5322 | AF35: ='Ambassador Cost Analysis'!$V$3*(AVERAGE('Retention Rates'!O3,'Retention Rates'!P3)) -> 5229 | AG35: ='Ambassador Cost Analysis'!$V$3*(AVERAGE('Retention Rates'!P3,'Retention Rates'!Q3)) -> 5160 | AH35: ='Ambassador Cost Analysis'!$V$3*(AVERAGE('Retention Rates'!Q3,'Retention Rates'!R3)) -> 5109 | AI35: ='Ambassador Cost Analysis'!$V$3*(AVERAGE('Retention Rates'!R3,'Retention Rates'!S3)) -> 5072 | AJ35: ='Ambassador Cost Analysis'!$V$3*(AVERAGE('Retention Rates'!S3,'Retention Rates'!T3)) -> 5043 | AK35: ='Ambassador Cost Analysis'!$V$3*(AVERAGE('Retention Rates'!T3,'Retention Rates'!U3)) -> 5022 | AL35: ='Ambassador Cost Analysis'!$V$3*(AVERAGE('Retention Rates'!U3,'Retention Rates'!V3)) -> 5007
A36: Cohort 22 | X36: ='Ambassador Cost Analysis'!$W$3*(AVERAGE('Retention Rates'!F3,'Retention Rates'!G3)) -> 11093 | Y36: ='Ambassador Cost Analysis'!$W$3*(AVERAGE('Retention Rates'!G3,'Retention Rates'!H3)) -> 9121 | Z36: ='Ambassador Cost Analysis'!$W$3*(AVERAGE('Retention Rates'!H3,'Retention Rates'!I3)) -> 7910 | AA36: ='Ambassador Cost Analysis'!$W$3*(AVERAGE('Retention Rates'!I3,'Retention Rates'!J3)) -> 7125 | AB36: ='Ambassador Cost Analysis'!$W$3*(AVERAGE('Retention Rates'!J3,'Retention Rates'!K3)) -> 6595 | AC36: ='Ambassador Cost Analysis'!$W$3*(AVERAGE('Retention Rates'!K3,'Retention Rates'!L3)) -> 6229 | AD36: ='Ambassador Cost Analysis'!$W$3*(AVERAGE('Retention Rates'!L3,'Retention Rates'!M3)) -> 5969 | AE36: ='Ambassador Cost Analysis'!$W$3*(AVERAGE('Retention Rates'!M3,'Retention Rates'!N3)) -> 5783 | AF36: ='Ambassador Cost Analysis'!$W$3*(AVERAGE('Retention Rates'!N3,'Retention Rates'!O3)) -> 5647 | AG36: ='Ambassador Cost Analysis'!$W$3*(AVERAGE('Retention Rates'!O3,'Retention Rates'!P3)) -> 5548 | AH36: ='Ambassador Cost Analysis'!$W$3*(AVERAGE('Retention Rates'!P3,'Retention Rates'!Q3)) -> 5475 | AI36: ='Ambassador Cost Analysis'!$W$3*(AVERAGE('Retention Rates'!Q3,'Retention Rates'!R3)) -> 5421 | AJ36: ='Ambassador Cost Analysis'!$W$3*(AVERAGE('Retention Rates'!R3,'Retention Rates'!S3)) -> 5381 | AK36: ='Ambassador Cost Analysis'!$W$3*(AVERAGE('Retention Rates'!S3,'Retention Rates'!T3)) -> 5351 | AL36: ='Ambassador Cost Analysis'!$W$3*(AVERAGE('Retention Rates'!T3,'Retention Rates'!U3)) -> 5329
A37: Cohort 23 | Y37: ='Ambassador Cost Analysis'!$X$3*(AVERAGE('Retention Rates'!F3,'Retention Rates'!G3)) -> 11754 | Z37: ='Ambassador Cost Analysis'!$X$3*(AVERAGE('Retention Rates'!G3,'Retention Rates'!H3)) -> 9664 | AA37: ='Ambassador Cost Analysis'!$X$3*(AVERAGE('Retention Rates'!H3,'Retention Rates'!I3)) -> 8381 | AB37: ='Ambassador Cost Analysis'!$X$3*(AVERAGE('Retention Rates'!I3,'Retention Rates'!J3)) -> 7549 | AC37: ='Ambassador Cost Analysis'!$X$3*(AVERAGE('Retention Rates'!J3,'Retention Rates'!K3)) -> 6988 | AD37: ='Ambassador Cost Analysis'!$X$3*(AVERAGE('Retention Rates'!K3,'Retention Rates'!L3)) -> 6599 | AE37: ='Ambassador Cost Analysis'!$X$3*(AVERAGE('Retention Rates'!L3,'Retention Rates'!M3)) -> 6324 | AF37: ='Ambassador Cost Analysis'!$X$3*(AVERAGE('Retention Rates'!M3,'Retention Rates'!N3)) -> 6127 | AG37: ='Ambassador Cost Analysis'!$X$3*(AVERAGE('Retention Rates'!N3,'Retention Rates'!O3)) -> 5983 | AH37: ='Ambassador Cost Analysis'!$X$3*(AVERAGE('Retention Rates'!O3,'Retention Rates'!P3)) -> 5879 | AI37: ='Ambassador Cost Analysis'!$X$3*(AVERAGE('Retention Rates'!P3,'Retention Rates'!Q3)) -> 5801 | AJ37: ='Ambassador Cost Analysis'!$X$3*(AVERAGE('Retention Rates'!Q3,'Retention Rates'!R3)) -> 5744 | AK37: ='Ambassador Cost Analysis'!$X$3*(AVERAGE('Retention Rates'!R3,'Retention Rates'!S3)) -> 5701 | AL37: ='Ambassador Cost Analysis'!$X$3*(AVERAGE('Retention Rates'!S3,'Retention Rates'!T3)) -> 5670
A38: Cohort 24 | Z38: ='Ambassador Cost Analysis'!$Y$3*(AVERAGE('Retention Rates'!F3,'Retention Rates'!G3)) -> 12436 | AA38: ='Ambassador Cost Analysis'!$Y$3*(AVERAGE('Retention Rates'!G3,'Retention Rates'!H3)) -> 10225 | AB38: ='Ambassador Cost Analysis'!$Y$3*(AVERAGE('Retention Rates'!H3,'Retention Rates'!I3)) -> 8868 | AC38: ='Ambassador Cost Analysis'!$Y$3*(AVERAGE('Retention Rates'!I3,'Retention Rates'!J3)) -> 7987 | AD38: ='Ambassador Cost Analysis'!$Y$3*(AVERAGE('Retention Rates'!J3,'Retention Rates'!K3)) -> 7394 | AE38: ='Ambassador Cost Analysis'!$Y$3*(AVERAGE('Retention Rates'!K3,'Retention Rates'!L3)) -> 6983 | AF38: ='Ambassador Cost Analysis'!$Y$3*(AVERAGE('Retention Rates'!L3,'Retention Rates'!M3)) -> 6692 | AG38: ='Ambassador Cost Analysis'!$Y$3*(AVERAGE('Retention Rates'!M3,'Retention Rates'!N3)) -> 6483 | AH38: ='Ambassador Cost Analysis'!$Y$3*(AVERAGE('Retention Rates'!N3,'Retention Rates'!O3)) -> 6331 | AI38: ='Ambassador Cost Analysis'!$Y$3*(AVERAGE('Retention Rates'!O3,'Retention Rates'!P3)) -> 6220 | AJ38: ='Ambassador Cost Analysis'!$Y$3*(AVERAGE('Retention Rates'!P3,'Retention Rates'!Q3)) -> 6138 | AK38: ='Ambassador Cost Analysis'!$Y$3*(AVERAGE('Retention Rates'!Q3,'Retention Rates'!R3)) -> 6078 | AL38: ='Ambassador Cost Analysis'!$Y$3*(AVERAGE('Retention Rates'!R3,'Retention Rates'!S3)) -> 6033
A39: Cohort 25 | AA39: ='Ambassador Cost Analysis'!$Z$3*(AVERAGE('Retention Rates'!F3,'Retention Rates'!G3)) -> 13141 | AB39: ='Ambassador Cost Analysis'!$Z$3*(AVERAGE('Retention Rates'!G3,'Retention Rates'!H3)) -> 10805 | AC39: ='Ambassador Cost Analysis'!$Z$3*(AVERAGE('Retention Rates'!H3,'Retention Rates'!I3)) -> 9370 | AD39: ='Ambassador Cost Analysis'!$Z$3*(AVERAGE('Retention Rates'!I3,'Retention Rates'!J3)) -> 8440 | AE39: ='Ambassador Cost Analysis'!$Z$3*(AVERAGE('Retention Rates'!J3,'Retention Rates'!K3)) -> 7813 | AF39: ='Ambassador Cost Analysis'!$Z$3*(AVERAGE('Retention Rates'!K3,'Retention Rates'!L3)) -> 7378 | AG39: ='Ambassador Cost Analysis'!$Z$3*(AVERAGE('Retention Rates'!L3,'Retention Rates'!M3)) -> 7071 | AH39: ='Ambassador Cost Analysis'!$Z$3*(AVERAGE('Retention Rates'!M3,'Retention Rates'!N3)) -> 6850 | AI39: ='Ambassador Cost Analysis'!$Z$3*(AVERAGE('Retention Rates'!N3,'Retention Rates'!O3)) -> 6690 | AJ39: ='Ambassador Cost Analysis'!$Z$3*(AVERAGE('Retention Rates'!O3,'Retention Rates'!P3)) -> 6572 | AK39: ='Ambassador Cost Analysis'!$Z$3*(AVERAGE('Retention Rates'!P3,'Retention Rates'!Q3)) -> 6486 | AL39: ='Ambassador Cost Analysis'!$Z$3*(AVERAGE('Retention Rates'!Q3,'Retention Rates'!R3)) -> 6422
A40: Cohort 26 | AB40: ='Ambassador Cost Analysis'!$AA$3*(AVERAGE('Retention Rates'!F3,'Retention Rates'!G3)) -> 13868 | AC40: ='Ambassador Cost Analysis'!$AA$3*(AVERAGE('Retention Rates'!G3,'Retention Rates'!H3)) -> 11402 | AD40: ='Ambassador Cost Analysis'!$AA$3*(AVERAGE('Retention Rates'!H3,'Retention Rates'!I3)) -> 9888 | AE40: ='Ambassador Cost Analysis'!$AA$3*(AVERAGE('Retention Rates'!I3,'Retention Rates'!J3)) -> 8907 | AF40: ='Ambassador Cost Analysis'!$AA$3*(AVERAGE('Retention Rates'!J3,'Retention Rates'!K3)) -> 8245 | AG40: ='Ambassador Cost Analysis'!$AA$3*(AVERAGE('Retention Rates'!K3,'Retention Rates'!L3)) -> 7786 | AH40: ='Ambassador Cost Analysis'!$AA$3*(AVERAGE('Retention Rates'!L3,'Retention Rates'!M3)) -> 7462 | AI40: ='Ambassador Cost Analysis'!$AA$3*(AVERAGE('Retention Rates'!M3,'Retention Rates'!N3)) -> 7229 | AJ40: ='Ambassador Cost Analysis'!$AA$3*(AVERAGE('Retention Rates'!N3,'Retention Rates'!O3)) -> 7060 | AK40: ='Ambassador Cost Analysis'!$AA$3*(AVERAGE('Retention Rates'!O3,'Retention Rates'!P3)) -> 6936 | AL40: ='Ambassador Cost Analysis'!$AA$3*(AVERAGE('Retention Rates'!P3,'Retention Rates'!Q3)) -> 6845
A41: Cohort 27 | AC41: ='Ambassador Cost Analysis'!$AB$3*(AVERAGE('Retention Rates'!F3,'Retention Rates'!G3)) -> 14616 | AD41: ='Ambassador Cost Analysis'!$AB$3*(AVERAGE('Retention Rates'!G3,'Retention Rates'!H3)) -> 12017 | AE41: ='Ambassador Cost Analysis'!$AB$3*(AVERAGE('Retention Rates'!H3,'Retention Rates'!I3)) -> 10422 | AF41: ='Ambassador Cost Analysis'!$AB$3*(AVERAGE('Retention Rates'!I3,'Retention Rates'!J3)) -> 9387 | AG41: ='Ambassador Cost Analysis'!$AB$3*(AVERAGE('Retention Rates'!J3,'Retention Rates'!K3)) -> 8690 | AH41: ='Ambassador Cost Analysis'!$AB$3*(AVERAGE('Retention Rates'!K3,'Retention Rates'!L3)) -> 8206 | AI41: ='Ambassador Cost Analysis'!$AB$3*(AVERAGE('Retention Rates'!L3,'Retention Rates'!M3)) -> 7864 | AJ41: ='Ambassador Cost Analysis'!$AB$3*(AVERAGE('Retention Rates'!M3,'Retention Rates'!N3)) -> 7619 | AK41: ='Ambassador Cost Analysis'!$AB$3*(AVERAGE('Retention Rates'!N3,'Retention Rates'!O3)) -> 7440 | AL41: ='Ambassador Cost Analysis'!$AB$3*(AVERAGE('Retention Rates'!O3,'Retention Rates'!P3)) -> 7310
A42: Cohort 28 | AD42: ='Ambassador Cost Analysis'!$AC$3*(AVERAGE('Retention Rates'!F3,'Retention Rates'!G3)) -> 15385 | AE42: ='Ambassador Cost Analysis'!$AC$3*(AVERAGE('Retention Rates'!G3,'Retention Rates'!H3)) -> 12650 | AF42: ='Ambassador Cost Analysis'!$AC$3*(AVERAGE('Retention Rates'!H3,'Retention Rates'!I3)) -> 10970 | AG42: ='Ambassador Cost Analysis'!$AC$3*(AVERAGE('Retention Rates'!I3,'Retention Rates'!J3)) -> 9881 | AH42: ='Ambassador Cost Analysis'!$AC$3*(AVERAGE('Retention Rates'!J3,'Retention Rates'!K3)) -> 9147 | AI42: ='Ambassador Cost Analysis'!$AC$3*(AVERAGE('Retention Rates'!K3,'Retention Rates'!L3)) -> 8638 | AJ42: ='Ambassador Cost Analysis'!$AC$3*(AVERAGE('Retention Rates'!L3,'Retention Rates'!M3)) -> 8278 | AK42: ='Ambassador Cost Analysis'!$AC$3*(AVERAGE('Retention Rates'!M3,'Retention Rates'!N3)) -> 8020 | AL42: ='Ambassador Cost Analysis'!$AC$3*(AVERAGE('Retention Rates'!N3,'Retention Rates'!O3)) -> 7832
A43: Cohort 29 | AE43: ='Ambassador Cost Analysis'!$AD$3*(AVERAGE('Retention Rates'!F3,'Retention Rates'!G3)) -> 16175 | AF43: ='Ambassador Cost Analysis'!$AD$3*(AVERAGE('Retention Rates'!G3,'Retention Rates'!H3)) -> 13299 | AG43: ='Ambassador Cost Analysis'!$AD$3*(AVERAGE('Retention Rates'!H3,'Retention Rates'!I3)) -> 11533 | AH43: ='Ambassador Cost Analysis'!$AD$3*(AVERAGE('Retention Rates'!I3,'Retention Rates'!J3)) -> 10388 | AI43: ='Ambassador Cost Analysis'!$AD$3*(AVERAGE('Retention Rates'!J3,'Retention Rates'!K3)) -> 9617 | AJ43: ='Ambassador Cost Analysis'!$AD$3*(AVERAGE('Retention Rates'!K3,'Retention Rates'!L3)) -> 9082 | AK43: ='Ambassador Cost Analysis'!$AD$3*(AVERAGE('Retention Rates'!L3,'Retention Rates'!M3)) -> 8703 | AL43: ='Ambassador Cost Analysis'!$AD$3*(AVERAGE('Retention Rates'!M3,'Retention Rates'!N3)) -> 8431
A44: Cohort 30 | AF44: ='Ambassador Cost Analysis'!$AE$3*(AVERAGE('Retention Rates'!F3,'Retention Rates'!G3)) -> 16985 | AG44: ='Ambassador Cost Analysis'!$AE$3*(AVERAGE('Retention Rates'!G3,'Retention Rates'!H3)) -> 13965 | AH44: ='Ambassador Cost Analysis'!$AE$3*(AVERAGE('Retention Rates'!H3,'Retention Rates'!I3)) -> 12111 | AI44: ='Ambassador Cost Analysis'!$AE$3*(AVERAGE('Retention Rates'!I3,'Retention Rates'!J3)) -> 10909 | AJ44: ='Ambassador Cost Analysis'!$AE$3*(AVERAGE('Retention Rates'!J3,'Retention Rates'!K3)) -> 10098 | AK44: ='Ambassador Cost Analysis'!$AE$3*(AVERAGE('Retention Rates'!K3,'Retention Rates'!L3)) -> 9537 | AL44: ='Ambassador Cost Analysis'!$AE$3*(AVERAGE('Retention Rates'!L3,'Retention Rates'!M3)) -> 9139
A45: Cohort 31 | AG45: ='Ambassador Cost Analysis'!$AF$3*(AVERAGE('Retention Rates'!F3,'Retention Rates'!G3)) -> 17815 | AH45: ='Ambassador Cost Analysis'!$AF$3*(AVERAGE('Retention Rates'!G3,'Retention Rates'!H3)) -> 14648 | AI45: ='Ambassador Cost Analysis'!$AF$3*(AVERAGE('Retention Rates'!H3,'Retention Rates'!I3)) -> 12703 | AJ45: ='Ambassador Cost Analysis'!$AF$3*(AVERAGE('Retention Rates'!I3,'Retention Rates'!J3)) -> 11442 | AK45: ='Ambassador Cost Analysis'!$AF$3*(AVERAGE('Retention Rates'!J3,'Retention Rates'!K3)) -> 10592 | AL45: ='Ambassador Cost Analysis'!$AF$3*(AVERAGE('Retention Rates'!K3,'Retention Rates'!L3)) -> 10003
A46: Cohort 32 | AH46: ='Ambassador Cost Analysis'!$AG$3*(AVERAGE('Retention Rates'!F3,'Retention Rates'!G3)) -> 18664 | AI46: ='Ambassador Cost Analysis'!$AG$3*(AVERAGE('Retention Rates'!G3,'Retention Rates'!H3)) -> 15346 | AJ46: ='Ambassador Cost Analysis'!$AG$3*(AVERAGE('Retention Rates'!H3,'Retention Rates'!I3)) -> 13309 | AK46: ='Ambassador Cost Analysis'!$AG$3*(AVERAGE('Retention Rates'!I3,'Retention Rates'!J3)) -> 11987 | AL46: ='Ambassador Cost Analysis'!$AG$3*(AVERAGE('Retention Rates'!J3,'Retention Rates'!K3)) -> 11097
A47: Cohort 33 | AI47: ='Ambassador Cost Analysis'!$AH$3*(AVERAGE('Retention Rates'!F3,'Retention Rates'!G3)) -> 19532 | AJ47: ='Ambassador Cost Analysis'!$AH$3*(AVERAGE('Retention Rates'!G3,'Retention Rates'!H3)) -> 16060 | AK47: ='Ambassador Cost Analysis'!$AH$3*(AVERAGE('Retention Rates'!H3,'Retention Rates'!I3)) -> 13928 | AL47: ='Ambassador Cost Analysis'!$AH$3*(AVERAGE('Retention Rates'!I3,'Retention Rates'!J3)) -> 12545
A48: Cohort 34 | AJ48: ='Ambassador Cost Analysis'!$AI$3*(AVERAGE('Retention Rates'!F3,'Retention Rates'!G3)) -> 20419 | AK48: ='Ambassador Cost Analysis'!$AI$3*(AVERAGE('Retention Rates'!G3,'Retention Rates'!H3)) -> 16789 | AL48: ='Ambassador Cost Analysis'!$AI$3*(AVERAGE('Retention Rates'!H3,'Retention Rates'!I3)) -> 14560
A49: Cohort 35 | AK49: ='Ambassador Cost Analysis'!$AJ$3*(AVERAGE('Retention Rates'!F3,'Retention Rates'!G3)) -> 21322 | AL49: ='Ambassador Cost Analysis'!$AJ$3*(AVERAGE('Retention Rates'!G3,'Retention Rates'!H3)) -> 17532
A50: Cohort 36 | AL50: ='Ambassador Cost Analysis'!$AK$3*(AVERAGE('Retention Rates'!F3,'Retention Rates'!G3)) -> 22243
A51: Total remaining end of month | C51: =SUM(C15:C50) -> 2250 | D51: =SUM(D15:D50) -> 4325 | E51: 6356 | F51: 8418 | G51: 10562 | H51: 12820 | I51: 15219 | J51: 17780 | K51: 20521 | L51: 23458 | M51: 26605 | N51: 29975 | O51: 33582 | P51: 37439 | Q51: 41556 | R51: 45947 | S51: 50623 | T51: 55596 | U51: 60876 | V51: 66475 | W51: 72405 | X51: 78676 | Y51: 85298 | Z51: 92284 | AA51: 99641 | AB51: 107382 | AC51: 115516 | AD51: =SUM(AD15:AD50) -> 124052 | AE51: =SUM(AE15:AE50) -> 132999 | AF51: =SUM(AF15:AF50) -> 142368 | AG51: =SUM(AG15:AG50) -> 152166 | AH51: =SUM(AH15:AH50) -> 162403 | AI51: =SUM(AI15:AI50) -> 173086 | AJ51: =SUM(AJ15:AJ50) -> 184223 | AK51: =SUM(AK15:AK50) -> 195821 | AL51: =SUM(AL15:AL50) -> 207888
A53: Referrals per cohort per month | C53: Month 1 | D53: Month 2 | E53: Month 3 | F53: Month 4 | G53: Month 5 | H53: Month 6 | I53: Month 7 | J53: Month 8 | K53: Month 9 | L53: Month 10 | M53: Month 11 | N53: Month 12 | O53: Month 13 | P53: Month 14 | Q53: Month 15 | R53: Month 16 | S53: Month 17 | T53: Month 18 | U53: Month 19 | V53: Month 20 | W53: Month 21 | X53: Month 22 | Y53: Month 23 | Z53: Month 24 | AA53: Month 25 | AB53: Month 26 | AC53: Month 27 | AD53: Month 28 | AE53: Month 29 | AF53: Month 30 | AG53: Month 31 | AH53: Month 32 | AI53: Month 33 | AJ53: Month 34 | AK53: Month 35 | AL53: Month 36
A54: Cohort 1 | C54: =C15*'Referral Rate and Payout '!D5 -> 1,125.0 | D54: =D15*'Referral Rate and Payout '!E5 -> 740.0 | E54: =E15*'Referral Rate and Payout '!F5 -> 513.4 | F54: =F15*'Referral Rate and Payout '!G5 -> 369.9 | G54: =G15*'Referral Rate and Payout '!H5 -> 274.0 | H54: =H15*'Referral Rate and Payout '!I5 -> 207.0 | I54: =I15*'Referral Rate and Payout '!J5 -> 158.7 | J54: =J15*'Referral Rate and Payout '!K5 -> 123.0 | K54: =K15*'Referral Rate and Payout '!L5 -> 96.1 | L54: =L15*'Referral Rate and Payout '!M5 -> 75.5 | M54: =M15*'Referral Rate and Payout '!N5 -> 59.6 | N54: =N15*'Referral Rate and Payout '!O5 -> 47.2 | O54: =O15*'Referral Rate and Payout '!P5 -> 37.5 | P54: =P15*'Referral Rate and Payout '!Q5 -> 29.8 | Q54: =Q15*'Referral Rate and Payout '!R5 -> 23.8 | R54: =R15*'Referral Rate and Payout '!S5 -> 19.0 | S54: =S15*'Referral Rate and Payout '!T5 -> 15.1 | T54: =T15*'Referral Rate and Payout '!U5 -> 12.1 | U54: =U15*'Referral Rate and Payout '!V5 -> 9.7 | V54: =V15*'Referral Rate and Payout '!W5 -> 7.7 | W54: =W15*'Referral Rate and Payout '!X5 -> 6.2 | X54: =X15*'Referral Rate and Payout '!Y5 -> 4.9 | Y54: =Y15*'Referral Rate and Payout '!Z5 -> 3.9 | Z54: =Z15*'Referral Rate and Payout '!AA5 -> 3.2 | AA54: =AA15*'Referral Rate and Payout '!AB5 -> 2.5 | AB54: =AB15*'Referral Rate and Payout '!AC5 -> 2.0 | AC54: =AC15*'Referral Rate and Payout '!AD5 -> 1.6 | AD54: =AD15*'Referral Rate and Payout '!AE5 -> 1.3 | AE54: =AE15*'Referral Rate and Payout '!AF5 -> 1.0 | AF54: =AF15*'Referral Rate and Payout '!AG5 -> 0.8 | AG54: =AG15*'Referral Rate and Payout '!AH5 -> 0.7 | AH54: =AH15*'Referral Rate and Payout '!AI5 -> 0.5 | AI54: =AI15*'Referral Rate and Payout '!AJ5 -> 0.4 | AJ54: =AJ15*'Referral Rate and Payout '!AK5 -> 0.3 | AK54: =AK15*'Referral Rate and Payout '!AL5 -> 0.3 | AL54: =AL15*'Referral Rate and Payout '!AM5 -> 0.2 | AM54: =SUM(C54:AL54) -> 3,974.0 | AN54: =AM54/C2 -> 0.7947983569
A55: Cohort 2 | D55: =D16*'Referral Rate and Payout '!D5 -> 1,237.5 | E55: =E16*'Referral Rate and Payout '!E5 -> 814.0 | F55: =F16*'Referral Rate and Payout '!F5 -> 564.7 | G55: =G16*'Referral Rate and Payout '!G5 -> 406.9 | H55: =H16*'Referral Rate and Payout '!H5 -> 301.4 | I55: =I16*'Referral Rate and Payout '!I5 -> 227.7 | J55: =J16*'Referral Rate and Payout '!J5 -> 174.6 | K55: =K16*'Referral Rate and Payout '!K5 -> 135.3 | L55: =L16*'Referral Rate and Payout '!L5 -> 105.7 | M55: =M16*'Referral Rate and Payout '!M5 -> 83.1 | N55: =N16*'Referral Rate and Payout '!N5 -> 65.6 | O55: =O16*'Referral Rate and Payout '!O5 -> 51.9 | P55: =P16*'Referral Rate and Payout '!P5 -> 41.3 | Q55: =Q16*'Referral Rate and Payout '!Q5 -> 32.8 | R55: =R16*'Referral Rate and Payout '!R5 -> 26.1 | S55: =S16*'Referral Rate and Payout '!S5 -> 20.9 | T55: =T16*'Referral Rate and Payout '!T5 -> 16.6 | U55: =U16*'Referral Rate and Payout '!U5 -> 13.3 | V55: =V16*'Referral Rate and Payout '!V5 -> 10.6 | W55: =W16*'Referral Rate and Payout '!W5 -> 8.5 | X55: =X16*'Referral Rate and Payout '!X5 -> 6.8 | Y55: =Y16*'Referral Rate and Payout '!Y5 -> 5.4 | Z55: =Z16*'Referral Rate and Payout '!Z5 -> 4.3 | AA55: =AA16*'Referral Rate and Payout '!AA5 -> 3.5 | AB55: =AB16*'Referral Rate and Payout '!AB5 -> 2.8 | AC55: =AC16*'Referral Rate and Payout '!AC5 -> 2.2 | AD55: =AD16*'Referral Rate and Payout '!AD5 -> 1.8 | AE55: =AE16*'Referral Rate and Payout '!AE5 -> 1.4 | AF55: =AF16*'Referral Rate and Payout '!AF5 -> 1.1 | AG55: =AG16*'Referral Rate and Payout '!AG5 -> 0.9 | AH55: =AH16*'Referral Rate and Payout '!AH5 -> 0.7 | AI55: =AI16*'Referral Rate and Payout '!AI5 -> 0.6 | AJ55: =AJ16*'Referral Rate and Payout '!AJ5 -> 0.5 | AK55: =AK16*'Referral Rate and Payout '!AK5 -> 0.4 | AL55: =AL16*'Referral Rate and Payout '!AL5 -> 0.3
A56: Cohort 3 | E56: =E17*'Referral Rate and Payout '!D5 -> 1,358.2 | F56: =F17*'Referral Rate and Payout '!E5 -> 893.4 | G56: =G17*'Referral Rate and Payout '!F5 -> 619.8 | H56: =H17*'Referral Rate and Payout '!G5 -> 446.6 | I56: =I17*'Referral Rate and Payout '!H5 -> 330.8 | J56: =J17*'Referral Rate and Payout '!I5 -> 249.9 | K56: =K17*'Referral Rate and Payout '!J5 -> 191.6 | L56: =L17*'Referral Rate and Payout '!K5 -> 148.5 | M56: =M17*'Referral Rate and Payout '!L5 -> 116.0 | N56: =N17*'Referral Rate and Payout '!M5 -> 91.2 | O56: =O17*'Referral Rate and Payout '!N5 -> 72.0 | P56: =P17*'Referral Rate and Payout '!O5 -> 57.0 | Q56: =Q17*'Referral Rate and Payout '!P5 -> 45.3 | R56: =R17*'Referral Rate and Payout '!Q5 -> 36.0 | S56: =S17*'Referral Rate and Payout '!R5 -> 28.7 | T56: =T17*'Referral Rate and Payout '!S5 -> 22.9 | U56: =U17*'Referral Rate and Payout '!T5 -> 18.3 | V56: =V17*'Referral Rate and Payout '!U5 -> 14.6 | W56: =W17*'Referral Rate and Payout '!V5 -> 11.7 | X56: =X17*'Referral Rate and Payout '!W5 -> 9.3 | Y56: =Y17*'Referral Rate and Payout '!X5 -> 7.4 | Z56: =Z17*'Referral Rate and Payout '!Y5 -> 6.0 | AA56: =AA17*'Referral Rate and Payout '!Z5 -> 4.8 | AB56: =AB17*'Referral Rate and Payout '!AA5 -> 3.8 | AC56: =AC17*'Referral Rate and Payout '!AB5 -> 3.0 | AD56: =AD17*'Referral Rate and Payout '!AC5 -> 2.4 | AE56: =AE17*'Referral Rate and Payout '!AD5 -> 1.9 | AF56: =AF17*'Referral Rate and Payout '!AE5 -> 1.6 | AG56: =AG17*'Referral Rate and Payout '!AF5 -> 1.2 | AH56: =AH17*'Referral Rate and Payout '!AG5 -> 1.0 | AI56: =AI17*'Referral Rate and Payout '!AH5 -> 0.8 | AJ56: =AJ17*'Referral Rate and Payout '!AI5 -> 0.6 | AK56: =AK17*'Referral Rate and Payout '!AJ5 -> 0.5 | AL56: =AL17*'Referral Rate and Payout '!AK5 -> 0.4
A57: Cohort 4 | F57: =F18*'Referral Rate and Payout '!D5 -> 1,487.5 | G57: =G18*'Referral Rate and Payout '!E5 -> 978.5 | H57: =H18*'Referral Rate and Payout '!F5 -> 678.8 | I57: =I18*'Referral Rate and Payout '!G5 -> 489.2 | J57: =J18*'Referral Rate and Payout '!H5 -> 362.3 | K57: =K18*'Referral Rate and Payout '!I5 -> 273.7 | L57: =L18*'Referral Rate and Payout '!J5 -> 209.8 | M57: =M18*'Referral Rate and Payout '!K5 -> 162.6 | N57: =N18*'Referral Rate and Payout '!L5 -> 127.0 | O57: =O18*'Referral Rate and Payout '!M5 -> 99.9 | P57: =P18*'Referral Rate and Payout '!N5 -> 78.8 | Q57: =Q18*'Referral Rate and Payout '!O5 -> 62.4 | R57: =R18*'Referral Rate and Payout '!P5 -> 49.6 | S57: =S18*'Referral Rate and Payout '!Q5 -> 39.4 | T57: =T18*'Referral Rate and Payout '!R5 -> 31.4 | U57: =U18*'Referral Rate and Payout '!S5 -> 25.1 | V57: =V18*'Referral Rate and Payout '!T5 -> 20.0 | W57: =W18*'Referral Rate and Payout '!U5 -> 16.0 | X57: =X18*'Referral Rate and Payout '!V5 -> 12.8 | Y57: =Y18*'Referral Rate and Payout '!W5 -> 10.2 | Z57: =Z18*'Referral Rate and Payout '!X5 -> 8.2 | AA57: =AA18*'Referral Rate and Payout '!Y5 -> 6.5 | AB57: =AB18*'Referral Rate and Payout '!Z5 -> 5.2 | AC57: =AC18*'Referral Rate and Payout '!AA5 -> 4.2 | AD57: =AD18*'Referral Rate and Payout '!AB5 -> 3.3 | AE57: =AE18*'Referral Rate and Payout '!AC5 -> 2.7 | AF57: =AF18*'Referral Rate and Payout '!AD5 -> 2.1 | AG57: =AG18*'Referral Rate and Payout '!AE5 -> 1.7 | AH57: =AH18*'Referral Rate and Payout '!AF5 -> 1.4 | AI57: =AI18*'Referral Rate and Payout '!AG5 -> 1.1 | AJ57: =AJ18*'Referral Rate and Payout '!AH5 -> 0.9 | AK57: =AK18*'Referral Rate and Payout '!AI5 -> 0.7 | AL57: =AL18*'Referral Rate and Payout '!AJ5 -> 0.6
A58: Cohort 5 | G58: =G19*'Referral Rate and Payout '!D5 -> 1,625.6 | H58: =H19*'Referral Rate and Payout '!E5 -> 1,069.3 | I58: =I19*'Referral Rate and Payout '!F5 -> 741.9 | J58: =J19*'Referral Rate and Payout '!G5 -> 534.6 | K58: =K19*'Referral Rate and Payout '!H5 -> 395.9 | L58: =L19*'Referral Rate and Payout '!I5 -> 299.1 | M58: =M19*'Referral Rate and Payout '!J5 -> 229.3 | N58: =N19*'Referral Rate and Payout '!K5 -> 177.7 | O58: =O19*'Referral Rate and Payout '!L5 -> 138.8 | P58: =P19*'Referral Rate and Payout '!M5 -> 109.1 | Q58: =Q19*'Referral Rate and Payout '!N5 -> 86.2 | R58: =R19*'Referral Rate and Payout '!O5 -> 68.2 | S58: =S19*'Referral Rate and Payout '!P5 -> 54.2 | T58: =T19*'Referral Rate and Payout '!Q5 -> 43.1 | U58: =U19*'Referral Rate and Payout '!R5 -> 34.3 | V58: =V19*'Referral Rate and Payout '!S5 -> 27.4 | W58: =W19*'Referral Rate and Payout '!T5 -> 21.9 | X58: =X19*'Referral Rate and Payout '!U5 -> 17.5 | Y58: =Y19*'Referral Rate and Payout '!V5 -> 13.9 | Z58: =Z19*'Referral Rate and Payout '!W5 -> 11.1 | AA58: =AA19*'Referral Rate and Payout '!X5 -> 8.9 | AB58: =AB19*'Referral Rate and Payout '!Y5 -> 7.1 | AC58: =AC19*'Referral Rate and Payout '!Z5 -> 5.7 | AD58: =AD19*'Referral Rate and Payout '!AA5 -> 4.6 | AE58: =AE19*'Referral Rate and Payout '!AB5 -> 3.6 | AF58: =AF19*'Referral Rate and Payout '!AC5 -> 2.9 | AG58: =AG19*'Referral Rate and Payout '!AD5 -> 2.3 | AH58: =AH19*'Referral Rate and Payout '!AE5 -> 1.9 | AI58: =AI19*'Referral Rate and Payout '!AF5 -> 1.5 | AJ58: =AJ19*'Referral Rate and Payout '!AG5 -> 1.2 | AK58: =AK19*'Referral Rate and Payout '!AH5 -> 1.0 | AL58: =AL19*'Referral Rate and Payout '!AI5 -> 0.8
A59: Cohort 6 | H59: =H20*'Referral Rate and Payout '!D5 -> 1,772.9 | I59: =I20*'Referral Rate and Payout '!E5 -> 1,166.2 | J59: =J20*'Referral Rate and Payout '!F5 -> 809.1 | K59: =K20*'Referral Rate and Payout '!G5 -> 583.0 | L59: =L20*'Referral Rate and Payout '!H5 -> 431.8 | M59: =M20*'Referral Rate and Payout '!I5 -> 326.2 | N59: =N20*'Referral Rate and Payout '!J5 -> 250.1 | O59: =O20*'Referral Rate and Payout '!K5 -> 193.8 | P59: =P20*'Referral Rate and Payout '!L5 -> 151.4 | Q59: =Q20*'Referral Rate and Payout '!M5 -> 119.0 | R59: =R20*'Referral Rate and Payout '!N5 -> 94.0 | S59: =S20*'Referral Rate and Payout '!O5 -> 74.4 | T59: =T20*'Referral Rate and Payout '!P5 -> 59.1 | U59: =U20*'Referral Rate and Payout '!Q5 -> 47.0 | V59: =V20*'Referral Rate and Payout '!R5 -> 37.5 | W59: =W20*'Referral Rate and Payout '!S5 -> 29.9 | X59: =X20*'Referral Rate and Payout '!T5 -> 23.8 | Y59: =Y20*'Referral Rate and Payout '!U5 -> 19.0 | Z59: =Z20*'Referral Rate and Payout '!V5 -> 15.2 | AA59: =AA20*'Referral Rate and Payout '!W5 -> 12.2 | AB59: =AB20*'Referral Rate and Payout '!X5 -> 9.7 | AC59: =AC20*'Referral Rate and Payout '!Y5 -> 7.8 | AD59: =AD20*'Referral Rate and Payout '!Z5 -> 6.2 | AE59: =AE20*'Referral Rate and Payout '!AA5 -> 5.0 | AF59: =AF20*'Referral Rate and Payout '!AB5 -> 4.0 | AG59: =AG20*'Referral Rate and Payout '!AC5 -> 3.2 | AH59: =AH20*'Referral Rate and Payout '!AD5 -> 2.5 | AI59: =AI20*'Referral Rate and Payout '!AE5 -> 2.0 | AJ59: =AJ20*'Referral Rate and Payout '!AF5 -> 1.6 | AK59: =AK20*'Referral Rate and Payout '!AG5 -> 1.3 | AL59: =AL20*'Referral Rate and Payout '!AH5 -> 1.0
A60: Cohort 7 | I60: =I21*'Referral Rate and Payout '!D5 -> 1,929.6 | J60: =J21*'Referral Rate and Payout '!E5 -> 1,269.3 | K60: =K21*'Referral Rate and Payout '!F5 -> 880.6 | L60: =L21*'Referral Rate and Payout '!G5 -> 634.5 | M60: =M21*'Referral Rate and Payout '!H5 -> 469.9 | N60: =N21*'Referral Rate and Payout '!I5 -> 355.0 | O60: =O21*'Referral Rate and Payout '!J5 -> 272.2 | P60: =P21*'Referral Rate and Payout '!K5 -> 210.9 | Q60: =Q21*'Referral Rate and Payout '!L5 -> 164.8 | R60: =R21*'Referral Rate and Payout '!M5 -> 129.5 | S60: =S21*'Referral Rate and Payout '!N5 -> 102.3 | T60: =T21*'Referral Rate and Payout '!O5 -> 81.0 | U60: =U21*'Referral Rate and Payout '!P5 -> 64.3 | V60: =V21*'Referral Rate and Payout '!Q5 -> 51.2 | W60: =W21*'Referral Rate and Payout '!R5 -> 40.8 | X60: =X21*'Referral Rate and Payout '!S5 -> 32.5 | Y60: =Y21*'Referral Rate and Payout '!T5 -> 25.9 | Z60: =Z21*'Referral Rate and Payout '!U5 -> 20.7 | AA60: =AA21*'Referral Rate and Payout '!V5 -> 16.6 | AB60: =AB21*'Referral Rate and Payout '!W5 -> 13.2 | AC60: =AC21*'Referral Rate and Payout '!X5 -> 10.6 | AD60: =AD21*'Referral Rate and Payout '!Y5 -> 8.5 | AE60: =AE21*'Referral Rate and Payout '!Z5 -> 6.8 | AF60: =AF21*'Referral Rate and Payout '!AA5 -> 5.4 | AG60: =AG21*'Referral Rate and Payout '!AB5 -> 4.3 | AH60: =AH21*'Referral Rate and Payout '!AC5 -> 3.5 | AI60: =AI21*'Referral Rate and Payout '!AD5 -> 2.8 | AJ60: =AJ21*'Referral Rate and Payout '!AE5 -> 2.2 | AK60: =AK21*'Referral Rate and Payout '!AF5 -> 1.8 | AL60: =AL21*'Referral Rate and Payout '!AG5 -> 1.4
A61: Cohort 8 | J61: =J22*'Referral Rate and Payout '!D5 -> 2,096.0 | K61: =K22*'Referral Rate and Payout '!E5 -> 1,378.7 | L61: =L22*'Referral Rate and Payout '!F5 -> 956.5 | M61: =M22*'Referral Rate and Payout '!G5 -> 689.3 | N61: =N22*'Referral Rate and Payout '!H5 -> 510.4 | O61: =O22*'Referral Rate and Payout '!I5 -> 385.6 | P61: =P22*'Referral Rate and Payout '!J5 -> 295.6 | Q61: =Q22*'Referral Rate and Payout '!K5 -> 229.1 | R61: =R22*'Referral Rate and Payout '!L5 -> 179.0 | S61: =S22*'Referral Rate and Payout '!M5 -> 140.7 | T61: =T22*'Referral Rate and Payout '!N5 -> 111.1 | U61: =U22*'Referral Rate and Payout '!O5 -> 88.0 | V61: =V22*'Referral Rate and Payout '!P5 -> 69.9 | W61: =W22*'Referral Rate and Payout '!Q5 -> 55.6 | X61: =X22*'Referral Rate and Payout '!R5 -> 44.3 | Y61: =Y22*'Referral Rate and Payout '!S5 -> 35.3 | Z61: =Z22*'Referral Rate and Payout '!T5 -> 28.2 | AA61: =AA22*'Referral Rate and Payout '!U5 -> 22.5 | AB61: =AB22*'Referral Rate and Payout '!V5 -> 18.0 | AC61: =AC22*'Referral Rate and Payout '!W5 -> 14.4 | AD61: =AD22*'Referral Rate and Payout '!X5 -> 11.5 | AE61: =AE22*'Referral Rate and Payout '!Y5 -> 9.2 | AF61: =AF22*'Referral Rate and Payout '!Z5 -> 7.3 | AG61: =AG22*'Referral Rate and Payout '!AA5 -> 5.9 | AH61: =AH22*'Referral Rate and Payout '!AB5 -> 4.7 | AI61: =AI22*'Referral Rate and Payout '!AC5 -> 3.8 | AJ61: =AJ22*'Referral Rate and Payout '!AD5 -> 3.0 | AK61: =AK22*'Referral Rate and Payout '!AE5 -> 2.4 | AL61: =AL22*'Referral Rate and Payout '!AF5 -> 1.9
